Workbook

Sheet AER Changes
A2: Issues | B2: Location | C2: Comment
B5: Final Decision
A6: 1 | B6: DNSP Inputs General'!B26:F26 | C6: Update for AER Draft Decision Real Pre Tax WACC
A8: =A6+1 -> 2 | B8: DNSP Inputs General'!D31:D35 | C8: Update for AER Final Decision CPI Forecast
A10: =A8+1 -> 3 | B10: DNSP Inputs General'!C31 | C10: CPI to escalate prices in 2021-22 is Forecast CPI
B11: WACC!C14
A14: =A10+1 -> 4 | B14: DNSP Inputs General'!Q134:U134 | C14: AER Final Decision Real Labour Escalator

Sheet Instructions
A1: ='DNSP Inputs O & M'!$A$3 -> Citipower
A3: Instructions
A5: This model is to be used for the setting of Public Lighting Tariffs for the Regulatory Period 2021-22 to 2025-26 based on forecast inflation rates, Real Pre Tax WACC and Nominal vanilla WACC.
A7: Distributor data input fields are shaded | C7: and located in tabs "DNSP Inputs General" , "DNSP Inputs O & M" and "DNSP Inputs Capex"
A10: This model will also to be used for the annual Public Lighting Tariff Approvals in the Regulatory Period 2021-22 to 2025-26 based on actual inflation rates and Real Pre Tax WACC.
H68: =G68 -> 0 | I68: =H68 -> 0 | J68: =I68 -> 0 | K68: =J68 -> 0 | L68: =K68 -> 0

Sheet DNSP Inputs General
A1: ='DNSP Inputs O & M'!$A$3 -> Citipower
B2: =D2 -> 2009 | D2: 2009 | E2: 2010 | F2: 2011 | G2: 2012 | H2: 2013 | I2: 2014 | J2: 2015 | K2: 2016 | L2: 2017 | M2: 2018 | N2: 2019 | O2: 2020 | P2: HY2021 | Q2: 2021/22 | R2: 2022/23 | S2: 2023/24 | T2: 2024/25 | U2: 2025/26
A3: Capital Expenditure | B3: Submission Model | D3: Nominal $ - Actual | P3: Real 2021 $ - Forecast
A4: (Net of customer contributions)
A6: Poles and Brackets | B6: 531468.6752 | C6: =B6/B$14 -> 0.2 | D6: =D$15*C6 -> 169386.496 | E6: 393132.521 | F6: 731739.197 | G6: 446549.6698 | H6: 829214.4062 | I6: 467945.2163 | J6: 341443.8115 | K6: 322191.4692 | L6: 302156.9146 | M6: 274533.18 | N6: 304540.644 | O6: =N6/N14*O14 -> 210487.4079 | P6: =O6/2*(1+C$30) -> 106527.1638 | Q6: ='Capex 2021-2025'!B24 -> 159770.26 | R6: ='Capex 2021-2025'!C24 -> 159980.3006 | S6: ='Capex 2021-2025'!D24 -> 160174.6449 | T6: ='Capex 2021-2025'!E24 -> 160409.8629 | U6: ='Capex 2021-2025'!F24 -> 160717.351
A8: Existing Lights
A9: Luminaires | B9: 1528078.735 | C9: =B9/B$14 -> 0.57504 | D9: =D$15*C9 -> 487020.0533 | E9: 180798.5269 | F9: 155610.0815 | G9: 264471.52 | H9: -663200.7381 | I9: 782411.5722 | J9: 196618.8888 | K9: 221456.5372 | L9: 256905.0854 | M9: 191383.1496 | N9: 95691.57481 | O9: =N9/2 -> 47845.78741 | P9: =O9/2*(1+C$30) -> 24214.63631 | Q9: ='Capex 2021-2025'!B13-'Capex 2021-2025'!B31-'Capex 2021-2025'!B37 -> -5338.261651 | R9: ='Capex 2021-2025'!C13-'Capex 2021-2025'!C31-'Capex 2021-2025'!C37 -> -4291.1471 | S9: ='Capex 2021-2025'!D13-'Capex 2021-2025'!D31-'Capex 2021-2025'!D37 -> -3964.01736 | T9: ='Capex 2021-2025'!E13-'Capex 2021-2025'!E31-'Capex 2021-2025'!E37 -> -4316.111305 | U9: ='Capex 2021-2025'!F13-'Capex 2021-2025'!F31-'Capex 2021-2025'!F37 -> -4725.279648
A11: Energy Efficient Lights | W11: =#REF!/(#REF!-#REF!) -> 
A12: Luminaires and Ballasts | B12: 597795.9658 | C12: =B12/B$14 -> 0.22496 | D12: =D$15*C12 -> 190525.9307 | E12: 70729.75205 | F12: 60875.84155 | G12: 103463.2602 | H12: -259449.148 | I12: 686961.8696 | J12: 466179.4488 | K12: 420288.7636 | L12: 629354 | M12: 868713.3103 | N12: 1080277.241 | O12: =O14-O6-O9 -> 764941.053 | P12: =O12/2*(1+C$30) -> 387134.8012 | Q12: ='Capex 2021-2025'!B19 -> 380407.8881 | R12: ='Capex 2021-2025'!C19 -> 361659.6786 | S12: ='Capex 2021-2025'!D19 -> 343675.5604 | T12: ='Capex 2021-2025'!E19 -> 328436.2103 | U12: ='Capex 2021-2025'!F19 -> 315896.332
A14: Total Net Capex | B14: =SUM(B6,B9,B12) -> 2657343.376 | D14: =SUM(D6,D9,D12) -> 846932.48 | E14: =SUM(E6,E9,E12) -> 644660.8 | F14: 948225.12 | G14: 814484.45 | H14: -93435.47993 | I14: 1937318.658 | J14: 1004242.149 | K14: 963936.77 | L14: 1188416 | M14: 1334629.64 | N14: 1480509.46 | O14: 1023274.248 | P14: 517876.6013 | Q14: 534839.8864 | R14: 517348.8321 | S14: 499886.1879 | T14: 484529.9619 | U14: 471888.4033
D15: 846932.48
F17: 2011 | G17: 2012 | H17: 2013 | I17: 2014 | J17: 2015 | K17: 2016 | L17: 2017 | M17: 2018 | N17: 2019 | O17: 2020 | P17: =P2 -> HY2021 | Q17: 2021/22 | R17: 2022/23 | S17: 2023/24 | T17: 2024/25 | U17: 2025/26
A18: Operating and Maintenance Expenditure | F18: Nominal $ - Actual | P18: Real 2021 $ - Forecast
A20: Total O & M | F20: 2230601.628 | G20: 3901658.947 | H20: 3489511.98 | I20: 3246762.454 | J20: 2237305 | K20: 2561840 | L20: 2984745 | M20: 1585433 | N20: 2099780.4 | O20: 3200515.796 | P20: =O20/2*(1+C$30) -> 1619773.238 | Q20: ='Cashflow Summary'!K89 -> 2216702.259 | R20: ='Cashflow Summary'!L89 -> 2080360.194 | S20: ='Cashflow Summary'!M89 -> 1946301.08 | T20: ='Cashflow Summary'!N89 -> 1828121.879 | U20: ='Cashflow Summary'!O89 -> 1726104.167
A24: WACC
A25: Regulatory Period | B25: 2021/22 | C25: 2022/23 | D25: 2023/24 | E25: 2024/25 | F25: 2025/26 | J25: Updated/changed calculations are highlighted in green throughout the model, to reflect the change in practice to replace all lights with LED alternaties, to include all costs of pole replacement and to introduce a new light type
A26: Real Pre Tax WACC | B26: 0.02947056509 | C26: 0.02947056509 | D26: 0.02947056509 | E26: 0.02947056509 | F26: 0.02947056509
A29: CPI Index | B29: CPI Index | C29: Actual CPI | D29: F'cast CPI
C30: =116.2/114.8-1 -> 0.01219512195 | E30: 1H2021
A31: 2020-12-31 | B31: 117.2 | C31: =D31 -> 0.0199938725 | D31: 0.0199938725 | E31: =B25 -> 2021/22
A32: 2021-12-31 | C32: =IF(B32="","",B32/B31-1) ->  | D32: 0.0199938725 | E32: =C25 -> 2022/23
A33: 2022-12-31 | C33: =IF(B33="","",B33/B32-1) ->  | D33: 0.0199938725 | E33: =D25 -> 2023/24
A34: 2023-12-31 | D34: 0.0199938725 | E34: =E25 -> 2024/25
A35: 2024-12-31 | D35: 0.0199938725 | E35: =F25 -> 2025/26
A38: Number Of Lights | E38: 2020 | F38: =F$2 -> 2011 | G38: 2012 | H38: 2013 | I38: 2014 | J38: 2015 | K38: 2016 | L38: 2017 | M38: 2018 | N38: 2019 | O38: 2020 | P38: HY2021 | Q38: 2021/22 | R38: 2022/23 | S38: 2023/24 | T38: 2024/25 | U38: 2025/26
F39: Actual Volumes | P39: Forecast Volumes
A40: Existing Lights | B40: Reference Light | D40: Price Factor
A41: Mercury vapour 80 watt | B41: =A$41 -> Mercury vapour 80 watt | D41: 1 | E41: 65.29 | F41: 19415 | G41: 19158 | H41: 12877 | I41: 7585.4 | J41: 3440 | K41: 3109 | L41: 3021 | M41: 738 | N41: 589 | O41: 519.35 | P41: =O41 -> 519.35 | Q41: 441.4475 | R41: 375.230375 | S41: 318.9458188 | T41: 271.1039459 | U41: 230.438354
A42: Sodium high pressure 150 watt | B42: =A$42 -> Sodium high pressure 150 watt | D42: 1 | E42: 111.62 | F42: 12492.5 | G42: 12481 | H42: 12502.8 | I42: 12616.8 | J42: 12630 | K42: 12649 | L42: 11439 | M42: 10826 | N42: 9989 | O42: 9034.2 | P42: =O42 -> 9034.2 | Q42: 8130.78 | R42: 6911.163 | S42: 5874.48855 | T42: 4993.315267 | U42: 4244.317977
A43: Sodium high pressure 250 watt | B43: =A$43 -> Sodium high pressure 250 watt | D43: 1 | E43: 113.24 | F43: 4765 | G43: 4783 | H43: 4938.2 | I43: 5246.6 | J43: 5452 | K43: 5552 | L43: 4047 | M43: 3029.4 | N43: 2508 | O43: 2345.4 | P43: 2345.4 | Q43: 2110.86 | R43: 1794.231 | S43: 1525.09635 | T43: 1296.331898 | U43: 1101.882113
A44: Fluorescent 20 watt | B44: =A$41 -> Mercury vapour 80 watt | D44: 1.99 | E44: 129.93 | F44: 39 | G44: 39 | H44: 83 | I44: 78 | J44: 79 | K44: 58 | L44: 58 | M44: 57 | N44: 57 | O44: 54.15 | P44: 54.15 | Q44: 51.4425 | R44: 48.870375 | S44: 46.42685625 | T44: 0 | U44: 0
A45: Fluorescent 40 watt | B45: =A$41 -> Mercury vapour 80 watt | D45: 2 | E45: 130.59 | F45: 0 | G45: 0 | H45: 0 | I45: 149 | J45: 149 | K45: 149 | L45: 156 | M45: 7 | N45: 7 | O45: 7 | P45: 7 | Q45: 7 | R45: 7 | S45: 0 | T45: 0 | U45: 0
A46: Mercury vapour 50 watt | B46: =A$41 -> Mercury vapour 80 watt | D46: 1.42 | E46: 92.72 | F46: 584 | G46: 454 | H46: 426 | I46: 377 | J46: 113 | K46: 92 | L46: 56 | M46: 37 | N46: 18 | O46: 15.4 | P46: 15.4 | Q46: 10.78 | R46: 7.546 | S46: 0 | T46: 0 | U46: 0
A47: Mercury vapour 125 watt | B47: =A$41 -> Mercury vapour 80 watt | D47: 1.58 | E47: 103.16 | F47: 2362 | G47: 1966 | H47: 1786 | I47: 1315 | J47: 1118 | K47: 1050 | L47: 750 | M47: 672 | N47: 229 | O47: 279.65 | P47: 279.65 | Q47: 237.7025 | R47: 166.39175 | S47: 116.474225 | T47: 81.5319575 | U47: 0
A48: Mercury vapour 250 watt | B48: =A$43 -> Sodium high pressure 250 watt | D48: 0.84 | E48: 95.12 | F48: 977 | G48: 863 | H48: 728 | I48: 587 | J48: 528 | K48: 489 | L48: 316 | M48: 241 | N48: 205 | O48: 143.5 | P48: 143.5 | Q48: 100.45 | R48: 85.3825 | S48: 0 | T48: 0 | U48: 0
A49: Mercury vapour 400 watt | B49: =A$43 -> Sodium high pressure 250 watt | D49: 0.85 | E49: 96.25 | F49: 433.5 | G49: 423.5 | H49: 354 | I49: 296 | J49: 245 | K49: 206 | L49: 140 | M49: 87 | N49: 90 | O49: 64.4 | P49: 64.4 | Q49: 45.08 | R49: 31.556 | S49: 0 | T49: 0 | U49: 0
A50: Mercury vapour 700 watt | B50: =A$43 -> Sodium high pressure 250 watt | D50: 1.25 | F50: 4 | G50: 4 | H50: 0 | I50: 0 | J50: 0 | K50: 0 | L50: 0 | M50: 0 | N50: 0 | O50: 0 | P50: 0 | Q50: 0 | R50: 0 | S50: 0 | T50: 0 | U50: 0
A51: Sodium high pressure 70 watt | B51: =A$41 -> Mercury vapour 80 watt | D51: 2.12 | E51: 138.42 | F51: 508 | G51: 489 | H51: 479 | I51: 453 | J51: 348 | K51: 321 | L51: 298 | M51: 263 | N51: 237 | O51: 206.55 | P51: 206.55 | Q51: 175.5675 | R51: 149.232375 | S51: 104.4626625 | T51: 73.12386375 | U51: 51.18670462
A52: Sodium high pressure 100 watt | B52: =A$42 -> Sodium high pressure 150 watt | D52: 1.02 | E52: 113.85 | F52: 419 | G52: 405 | H52: 376 | I52: 367 | J52: 332 | K52: 346 | L52: 268 | M52: 209 | N52: 150 | O52: 131.75 | P52: 131.75 | Q52: 111.9875 | R52: 95.189375 | S52: 66.6325625 | T52: 0 | U52: 0
A53: Sodium high pressure 220 watt | B53: =A$43 -> Sodium high pressure 250 watt | D53: 1.002 | E53: 113.47 | F53: 2155 | G53: 2118 | H53: 2009 | I53: 1884 | J53: 1752 | K53: 1714 | L53: 640 | M53: 318 | N53: 198 | O53: 170 | P53: 170 | Q53: 144.5 | R53: 122.825 | S53: 85.9775 | T53: 0 | U53: 0
A54: Sodium high pressure 360 watt | B54: =A$43 -> Sodium high pressure 250 watt | D54: 1.02 | E54: 115.5 | F54: 228 | G54: 225.5 | H54: 245 | I54: 233 | J54: 225 | K54: 185 | L54: 103 | M54: 43 | N54: 34 | O54: 28.9 | P54: 28.9 | Q54: 24.565 | R54: 20.88025 | S54: 0 | T54: 0 | U54: 0
A55: Sodium high pressure 400 watt | B55: =A$43 -> Sodium high pressure 250 watt | D55: 1.1 | E55: 124.56 | F55: 398.5 | G55: 399 | H55: 422 | I55: 421 | J55: 398 | K55: 420 | L55: 379 | M55: 234 | N55: 213 | O55: 179.35 | P55: 179.35 | Q55: 152.4475 | R55: 129.580375 | S55: 90.7062625 | T55: 63.49438375 | U55: 0
A56: Sodium high pressure 1000 watt | B56: =A$43 -> Sodium high pressure 250 watt | D56: 1.98 | F56: 2 | G56: 2 | H56: 0 | I56: 0 | J56: 0 | K56: 0 | L56: 0 | M56: 0 | N56: 0 | O56: 0 | P56: 0 | Q56: 0 | R56: 0 | S56: 0 | T56: 0 | U56: 0
A57: Metal halide 70 watt | B57: =A$41 -> Mercury vapour 80 watt | D57: 2.12 | E57: 138.42 | F57: 1123 | G57: 1142 | H57: 1143 | I57: 1156 | J57: 1050 | K57: 1007 | L57: 1051 | M57: 770 | N57: 701 | O57: 597.55 | P57: 597.55 | Q57: 507.9175 | R57: 431.729875 | S57: 302.2109125 | T57: 211.5476387 | U57: 0
A58: Metal halide 100 watt | B58: =A$42 -> Sodium high pressure 150 watt | D58: 1.57 | E58: 175.25 | F58: 236 | G58: 153 | H58: 153 | I58: 154 | J58: 155 | K58: 129 | L58: 131 | M58: 85 | N58: 72 | O58: 62.05 | P58: 62.05 | Q58: 52.7425 | R58: 44.831125 | S58: 31.3817875 | T58: 0 | U58: 0
A59: Metal halide 150 watt | B59: =A$42 -> Sodium high pressure 150 watt | D59: 1.58 | E59: 176.36 | F59: 498 | G59: 540 | H59: 315 | I59: 323 | J59: 337 | K59: 299 | L59: 293 | M59: 445 | N59: 365 | O59: 310.25 | P59: 310.25 | Q59: 263.7125 | R59: 224.155625 | S59: 156.9089375 | T59: 109.8362562 | U59: 0
A60: Metal halide 250 watt | B60: =A$43 -> Sodium high pressure 250 watt | D60: 1.2 | E60: 135.89 | F60: 469 | G60: 473 | H60: 647 | I60: 663 | J60: 671 | K60: 671 | L60: 645 | M60: 264 | N60: 210 | O60: 178.5 | P60: 178.5 | Q60: 151.725 | R60: 128.96625 | S60: 90.276375 | T60: 0 | U60: 0
A61: Metal halide 400 watt | B61: =A$43 -> Sodium high pressure 250 watt | D61: 1.2 | E61: 135.89 | F61: 1214 | G61: 1206 | H61: 1266 | I61: 1303 | J61: 1277 | K61: 1212 | L61: 1056 | M61: 90 | N61: 22 | O61: 21.25 | P61: 21.25 | Q61: 18.0625 | R61: 15.353125 | S61: 10.7471875 | T61: 0 | U61: 0
A62: Metal halide 1000 watt | B62: =A$43 -> Sodium high pressure 250 watt | D62: 1.79 | E62: 202.7 | F62: 8 | G62: 8 | H62: 6 | I62: 2 | J62: 2 | K62: 2 | L62: 4 | M62: 0 | N62: 0 | O62: 1 | P62: 1 | Q62: 2 | R62: 3 | S62: 4 | T62: 5 | U62: 6
A65: Total Existing Lights | F65: =SUM(F41:F64) -> 48330.5 | G65: 47332 | H65: 40756 | I65: 35209.8 | J65: 30301 | K65: 29660 | L65: 24851 | M65: 18415.4 | N65: =SUM(N41:N64) -> 15894 | O65: 14350.2 | P65: 14350.2 | Q65: 12740.77 | R65: 10793.11437 | S65: 8824.735988 | T65: 7105.285211 | U65: 5633.825149
A67: Energy Efficient Lights | B67: Reference Light | D67: Price Factor
A68: T5 2X14W | B68: =A68 -> T5 2X14W | D68: 1 | E68: 43.37 | F68: 3776 | G68: 4015 | H68: 9387 | I68: 13926 | J68: 13944 | K68: 14031 | L68: 13715 | M68: 13317 | N68: 12815 | O68: 11003.25 | P68: =O68 -> 11003.25 | Q68: 9352.7625 | R68: 7949.848125 | S68: 6757.370906 | T68: 5743.76527 | U68: 4882.20048
A69: T5 2X24W | B69: T5 2X14W | D69: 0.9861275788 | E69: 42.77 | F69: 167 | G69: 660 | H69: 1743 | I69: 2359 | J69: 2357 | K69: 2360 | L69: 2330 | M69: 2260 | N69: 1697 | O69: 1520.65 | P69: 1520.65 | Q69: 1292.5525 | R69: 1098.669625 | S69: 933.8691812 | T69: 793.7888041 | U69: 674.7204835
A70: CF32 | B70: T5 2X14W | D70: 0.9687520325 | E70: 42.01 | F70: 56 | G70: 195 | H70: 225 | I70: 602 | J70: 618 | K70: 648 | L70: 641 | M70: 636 | N70: 616 | O70: 528.7 | P70: 528.7 | Q70: 449.395 | R70: 381.98575 | S70: 324.6878875 | T70: 275.9847044 | U70: 234.5869987
A71: CF42 | B71: T5 2X14W | D71: 0.9687520325 | E71: 42.01 | F71: 33 | G71: 106 | H71: 158 | I71: 228 | J71: 475 | K71: 469 | L71: 443 | M71: 437 | N71: 421 | O71: 360.4 | P71: 360.4 | Q71: 252.28 | R71: 176.596 | S71: 123.6172 | T71: 105.07462 | U71: 89.313427
A72: Category P LED Standard Output | B72: Category P LED 18 Watt | D72: 1 | E72: 29.6 | F72: 0 | G72: 0 | H72: 0 | I72: 212 | J72: 4866 | K72: 5193 | L72: 5743 | M72: 8748 | N72: 10292 | O72: 12600.861 | P72: 12600.861 | Q72: 14899.62201 | R72: 16711.53576 | S72: 18252.36416 | T72: 19567.56467 | U72: 20646.02227
A73: Category P LED High Output | B73: Category P LED 18 Watt | D73: 1 | E73: 29.6 | F73: 0 | G73: 0 | H73: 9 | I73: 78 | J73: 83 | K73: 174 | L73: 459 | M73: 737 | N73: 979 | O73: 1146.45 | P73: 1146.45 | Q73: 1338.0825 | R73: 1536.6255 | S73: 1802.83785 | T73: 2057.79654 | U73: 2372.813295
A74: Category V LED L1 Standard Output | B74: Category V LED L1 Standard Output | D74: 1 | E74: 58.83 | F74: 0 | G74: 0 | H74: 0 | I74: 0 | J74: 0 | K74: 0 | L74: 2555 | M74: 3585 | N74: 4613 | O74: 5674.05 | P74: 5674.05 | Q74: 6692.5575 | R74: 7988.473875 | S74: 9214.625013 | T74: 10228.84848 | U74: 11087.68202
A75: Category V LED L2 Medium Output | B75: Category V LED L1 Standard Output | D75: 1.1 | E75: 65.19 | F75: 0 | G75: 0 | H75: 0 | I75: 0 | J75: 0 | K75: 0 | L75: 1715 | M75: 3251 | N75: 3737 | O75: 3890.8 | P75: 3890.8 | Q75: 4175.77 | R75: 4532.3665 | S75: 4892.627275 | T75: 5211.668103 | U75: 5406.117887
A76: Category V L4 LED High Output | B76: Category V LED L1 Standard Output | D76: 1.25 | E76: 73.84 | F76: 0 | G76: 0 | H76: 0 | I76: 0 | J76: 0 | K76: 0 | L76: 258 | M76: 1365 | N76: 1449 | O76: 1483.4 | P76: 1483.4 | Q76: 1513.49 | R76: 1539.0665 | S76: 1582.54655 | T76: 1620.505616 | U76: 1684
A78: Total Energy Efficient Lights | F78: =SUM(F68:F77) -> 4032 | G78: 4976 | H78: 11522 | I78: 17405 | J78: 22343 | K78: 22875 | L78: 27859 | M78: 34336 | N78: =SUM(N68:N77) -> 36619 | O78: 38208.561 | P78: =SUM(P68:P77) -> 38208.561 | Q78: 39966.51201 | R78: 41915.16764 | S78: 43884.54602 | T78: =SUM(T68:T77) -> 45604.9968 | U78: =SUM(U68:U77) -> 47077.45686
A80: Total Number of Lights | F80: =SUM(F65,F78) -> 52362.5 | G80: 52308 | H80: 52278 | I80: 52614.8 | J80: 52644 | K80: 52535 | L80: 52710 | M80: 52751.4 | N80: =SUM(N65,N78) -> 52513 | O80: 52558.761 | P80: =SUM(P65,P78) -> 52558.761 | Q80: 52707.28201 | R80: 52708.28201 | S80: 52709.28201 | T80: 52710.28201 | U80: =SUM(U65,U78) -> 52711.28201
Q83: =Q2 -> 2021/22 | R83: =R2 -> 2022/23 | S83: =S2 -> 2023/24 | T83: 2024/25 | U83: 2025/26
P84: Real Labour Escalation | Q84: 0.0100352624 | R84: 0.006626862471 | S84: 0.006091269693 | T84: 0.007327727922 | U84: 0.009509468237

Sheet DNSP Inputs O & M
A1: Public Lighting Cost Build-up Model
A3: Citipower | C3: O & M Data Inputs
C5: Real 2021 $
A7: Input parameters | C7: 2020 | D7: 2021/22 | E7: 2022/23 | F7: 2023/24 | G7: 2024/25 | H7: 2025/26
A9: Inputs - all lamps
A11: Labour rate (per hour) | C11: 114.1167364 | D11: 117.0289293 | E11: =D11*(1+'DNSP Inputs General'!R$84) -> 117.804464 | F11: =E11*(1+'DNSP Inputs General'!S$84) -> 118.5220427 | G11: =F11*(1+'DNSP Inputs General'!T$84) -> 119.39054 | H11: =G11*(1+'DNSP Inputs General'!U$84) -> 120.5258805
A12: Labour rate for night patrols (per hour) | C12: 136.6890268 | D12: 140.1772516 | E12: =D12*(1+'DNSP Inputs General'!R$84) -> 141.1061869 | F12: =E12*(1+'DNSP Inputs General'!S$84) -> 141.9657028 | G12: =F12*(1+'DNSP Inputs General'!T$84) -> 143.0059888 | H12: =G12*(1+'DNSP Inputs General'!U$84) -> 144.3658997
A13: Elevated platform vehicle (per hour) - urban MV,urban T5 | C13: 44.70618145 | D13: 44.69329858 | E13: 44.69329858 | F13: 44.69329858 | G13: 44.69329858 | H13: 44.69329858
A14: Elevated platform vehicle (per hour) - rural MV, rural T5, S-HP | C14: 68.4646212 | D14: 63.6381438 | E14: 63.6381438 | F14: 63.6381438 | G14: 63.6381438 | H14: 63.6381438
A15: Patrol vehicle (per hour) | C15: 30.34323654 | D15: 28.20416175 | E15: 28.20416175 | F15: 28.20416175 | G15: 28.20416175 | H15: 28.20416175
A16: Crane truck rate (per hour) | D16: 160.0206222 | E16: 160.0206222 | F16: 160.0206222 | G16: 160.0206222 | H16: 160.0206222
A17: Tipper (per hour) | D17: 21.43057778 | E17: 21.43057778 | F17: 21.43057778 | G17: 21.43057778 | H17: 21.43057778
A18: Number of hours in a day | C18: 8 | D18: 8 | E18: 8 | F18: 8 | G18: 8 | H18: 8
A19: Indirect overheads | C19: 0.25 | D19: 0.25 | E19: 0.25 | F19: 0.25 | G19: 0.25 | H19: 0.25
A21: Inputs - MV80
A23: Depreciation period | B23: years | C23: 20 | D23: 20 | E23: 20 | F23: 20 | G23: 20 | H23: 20
A24: Lamps - bulk change | B24: years | C24: 4 | D24: 4 | E24: 4 | F24: 4 | G24: 4 | H24: 4
A25: PE cells - bulk change | B25: years | C25: 8 | D25: 8 | E25: 8 | F25: 8 | G25: 8 | H25: 8
A26: Proportion of lamps that fail between bulk change | C26: 0.2313269938 | D26: 0.5324658987 | E26: 0.5324658987 | F26: 0.5324658987 | G26: 0.5324658987 | H26: 0.5324658987
A27: Unit cost - lamp | C27: 6.298271066 | D27: 6.296456109 | E27: 6.296456109 | F27: 6.296456109 | G27: 6.296456109 | H27: 6.296456109
A28: Unit cost - PE cell | C28: 25.42737444 | D28: 25.42004709 | E28: 25.42004709 | F28: 25.42004709 | G28: 25.42004709 | H28: 25.42004709
A29: Unit cost - luminaire | C29: 218.5100388 | D29: 218.4470714 | E29: 218.4470714 | F29: 218.4470714 | G29: 218.4470714 | H29: 218.4470714
A30: Unit cost - miscellaneous materials (bulk lamp) | C30: 1.378177476 | D30: 1.574114027 | E30: 1.574114027 | F30: 1.574114027 | G30: 1.574114027 | H30: 1.574114027
A31: Unit cost - miscellaneous materials (repair) | C31: 13.78177476 | D31: 13.7778033 | E31: 13.7778033 | F31: 13.7778033 | G31: 13.7778033 | H31: 13.7778033
A32: Number of men in crew | C32: 2 | D32: 2 | E32: 2 | F32: 2 | G32: 2 | H32: 2
A33: Number of bulk lamp changes in 1 day - urban | C33: 86.4 | D33: 86 | E33: 86 | F33: 86 | G33: 86 | H33: 86
A34: Number of repairs in 1 day - urban | C34: 28.8 | D34: 28.8 | E34: 28.8 | F34: 28.8 | G34: 28.8 | H34: 28.8
A35: % of repairs - lamps | C35: 0.6 | D35: 0.6 | E35: 0.6 | F35: 0.6 | G35: 0.6 | H35: 0.6
A36: % of repairs - PE cells | C36: 0.5 | D36: 0.5 | E36: 0.5 | F36: 0.5 | G36: 0.5 | H36: 0.5
A37: % of repairs - luminaires | C37: 0.15 | D37: 0.15 | E37: 0.15 | F37: 0.15 | G37: 0.15 | H37: 0.15
A38: % of repairs - other | C38: 0.1 | D38: 0.1 | E38: 0.1 | F38: 0.1 | G38: 0.1 | H38: 0.1
A40: Other Maintenance and Repair costs
A41: Traffic control costs | C41: 2995.187246 | D41: 1201.659279 | E41: 1036.519614 | F41: 894.5160141 | G41: 771.1105938 | H41: 663.6841749
A42: Other costs : Cascading Network | C42: 1209.042635 | D42: 329.7858974 | E42: 284.4646208 | F42: 245.4928543 | G42: 211.6252115 | H42: 182.1428794
C43: =SUM(C41:C42) -> 4204.229881 | D43: 1531.445177 | E43: 1320.984235 | F43: 1140.008868 | G43: 982.7358053 | H43: 845.8270543
A44: Number of Lights | C44: 519.35 | D44: 441.4475 | E44: 375.230375 | F44: 318.9458188 | G44: 271.1039459 | H44: 230.438354
A45: Unit Cost | C45: 2.759887518 | D45: 3.469144523 | E45: 3.52046189 | F45: 3.574302598 | G45: 3.624940987 | H45: 3.670513347
A47: Inputs - S-HP150
A49: Depreciation period | B49: years | C49: 20 | D49: 20 | E49: 20 | F49: 20 | G49: 20 | H49: 20
A50: Number of patrols per year | C50: 3 | D50: 3 | E50: 3 | F50: 3 | G50: 3 | H50: 3
A51: Lamps - frequency of replacement | B51: years | C51: 5 | D51: 5 | E51: 5 | F51: 5 | G51: 5 | H51: 5
A52: PE cells - frequency of replacement | B52: years | C52: 10 | D52: 10 | E52: 10 | F52: 10 | G52: 10 | H52: 10
A53: Unit cost - lamp | C53: 45.54876559 | D53: 45.53563991 | E53: 45.53563991 | F53: 45.53563991 | G53: 45.53563991 | H53: 45.53563991
A54: Unit cost - PE cell | C54: 24.7382857 | D54: 87.71 | E54: 87.71 | F54: 87.71 | G54: 87.71 | H54: 87.71
A55: Unit cost - miscellaneous materials | C55: 2.756354952 | D55: 2.755560661 | E55: 2.755560661 | F55: 2.755560661 | G55: 2.755560661 | H55: 2.755560661
A56: Number of men in crew - road patrols | C56: 2 | D56: 2 | E56: 2 | F56: 2 | G56: 2 | H56: 2
A57: Number of men in crew - repairs | C57: 2 | D57: 2 | E57: 2 | F57: 2 | G57: 2 | H57: 2
A58: Number of lamps patrolled in 1 day - urban | C58: 3000 | D58: 3000 | E58: 3000 | F58: 3000 | G58: 3000 | H58: 3000
A59: Number of repairs in 1 day - urban | C59: 19.2 | D59: 19.2 | E59: 19.2 | F59: 19.2 | G59: 19.2 | H59: 19.2
A61: Other Maintenance and Repair costs
A62: Traffic control costs | C62: 41145.7779 | D62: 24658.56069 | E62: 21269.82437 | F62: 18355.84995 | G62: 15823.51812 | H62: 13619.0822
A63: Other costs : Cascading Network | C63: 20724.72725 | D63: 13767.42347 | E63: 11564.73117 | F63: 9946.963457 | G63: 8579.988442 | H63: 7404.526605
C64: =SUM(C62:C63) -> 61870.50515 | D64: =SUM(D62:D63) -> 38425.98416 | E64: 32834.55554 | F64: 28302.81341 | G64: 24403.50656 | H64: 21023.60881
A65: Number of Lights | C65: 9034.2 | D65: 8130.78 | E65: 6911.163 | F65: 5874.48855 | G65: 4993.315267 | H65: 4244.317977
A66: Unit Cost | C66: 4.789946732 | D66: 4.7259899 | E66: 4.750945035 | F66: 4.81791958 | G66: 4.887235284 | H66: 4.953353853
A68: Inputs - S-HP250
A70: Depreciation period | B70: years | C70: 20 | D70: 20 | E70: 20 | F70: 20 | G70: 20 | H70: 20
A71: Number of patrols per year | C71: 3 | D71: 3 | E71: 3 | F71: 3 | G71: 3 | H71: 3
A72: Lamps - frequency of replacement | B72: years | C72: 5 | D72: 5 | E72: 5 | F72: 5 | G72: 5 | H72: 5
A73: PE cells - frequency of replacement | B73: years | C73: 10 | D73: 10 | E73: 10 | F73: 10 | G73: 10 | H73: 10
A74: Unit cost - lamp | C74: 45.54876559 | D74: 45.53563991 | E74: 45.53563991 | F74: 45.53563991 | G74: 45.53563991 | H74: 45.53563991
A75: Unit cost - PE cell | C75: 24.7382857 | D75: 87.71 | E75: 87.71 | F75: 87.71 | G75: 87.71 | H75: 87.71
A76: Unit cost - miscellaneous materials | C76: 2.756354952 | D76: 2.755560661 | E76: 2.755560661 | F76: 2.755560661 | G76: 2.755560661 | H76: 2.755560661
A77: Number of men in crew - road patrols | C77: 2 | D77: 2 | E77: 2 | F77: 2 | G77: 2 | H77: 2
A78: Number of men in crew - repairs | C78: 2 | D78: 2 | E78: 2 | F78: 2 | G78: 2 | H78: 2
A79: Number of lamps patrolled in 1 day - urban | C79: 3000 | D79: 3000 | E79: 3000 | F79: 3000 | G79: 3000 | H79: 3000
A80: Number of repairs in 1 day - urban | C80: 19.2 | D80: 19.2 | E80: 19.2 | F80: 19.2 | G80: 19.2 | H80: 19.2
A82: Other Maintenance and Repair costs
A83: Traffic control costs | C83: 18541.79312 | D83: 6529.964152 | E83: 5632.574925 | F83: 4860.909915 | G83: 4190.3097 | H83: 3606.541342
A84: Other costs : Cascading Network | C84: 11524.5158 | D84: 4369.868472 | E84: 3670.719816 | F84: 3157.229971 | G84: 2723.343337 | H84: 2350.244214
C85: =SUM(C83:C84) -> 30066.30892 | D85: 10899.83262 | E85: 9303.294741 | F85: 8018.139886 | G85: 6913.653038 | H85: 5956.785556
A86: Number of Lights | C86: 2345.4 | D86: 2110.86 | E86: 1794.231 | F86: 1525.09635 | G86: 1296.331898 | H86: 1101.882113
A87: Unit Cost | C87: 5.173015318 | D87: 5.163692819 | E87: 5.185115373 | F87: 5.257464478 | G87: 5.333243015 | H87: 5.406009851
A91: Dedicated street lighting poles
A93: Period of inspection | B93: years | C93: 5 | D93: 5 | E93: 5 | F93: 5 | G93: 5 | H93: 5
A94: Pole inspection rate | B94: per day | C94: 72 | D94: 72 | E94: 72 | F94: 72 | G94: 72 | H94: 72
A95: Depreciation of dedicated street lighting pole & bracket | B95: years | C95: 35 | D95: 35 | E95: 35 | F95: 35 | G95: 35 | H95: 35
A96: Proportion of lights on dedicated poles | C96: 0.1963308044 | D96: 0.1963308044 | E96: 0.1963308044 | F96: 0.1963308044 | G96: 0.1963308044 | H96: 0.1963308044
A100: Other direct costs
A101: Call centre
A102: Number of calls | C102: 4243.829482 | D102: 2056.352997 | E102: 1747.900048 | F102: 1485.715041 | G102: 1262.857785 | H102: 1073.429117
A103: Average cost per call $ | C103: 12.54721161 | D103: 12.69281966 | E103: 12.88057837 | F103: 13.07756941 | G103: 13.26284389 | H103: 13.4295829
C104: =C102*C103 -> 53248.22654 | D104: =D102*D103 -> 26100.91775 | E104: 22513.96354 | F104: 19429.54156 | G104: 16749.08565 | H104: 14415.70532
A106: GIS and other | C106: 125472.1161 | D106: 126928.1966 | E106: 128805.7837 | F106: 130775.6941 | G106: 132628.4389 | H106: 134295.829
A107: Complaints handling | C107: 37641.63482 | D107: 38078.45898 | E107: 38641.7351 | F107: 39232.70822 | G107: 39788.53166 | H107: 40288.74871
A110: ENERGY EFFICIENT LIGHTS
A112: Inputs - T5 (2 X 14W)
A114: Depreciation period | B114: years | C114: 20 | D114: 20 | E114: 20 | F114: 20 | G114: 20 | H114: 20
A115: Lamps - bulk change | B115: years | C115: 4 | D115: 4 | E115: 4 | F115: 4 | G115: 4 | H115: 4
A116: PE cells - bulk change | B116: years | C116: 8 | D116: 8 | E116: 8 | F116: 8 | G116: 8 | H116: 8
A117: Ballast unit life | B117: years | C117: 20 | D117: 20 | E117: 20 | F117: 20 | G117: 20 | H117: 20
A118: Proportion of luminaires that fail between bulk change | C118: 0.114 | D118: 0.37 | E118: 0.37 | F118: 0.37 | G118: 0.37 | H118: 0.37
A119: Unit cost - lamp | C119: 11.02541981 | D119: 11.02224264 | E119: 11.02224264 | F119: 11.02224264 | G119: 11.02224264 | H119: 11.02224264
A120: Unit cost - PE cell | C120: 18.60539593 | D120: 18.60003446 | E120: 18.60003446 | F120: 18.60003446 | G120: 18.60003446 | H120: 18.60003446
A121: Unit cost - luminaire | C121: 332.3888437 | D121: 205 | E121: 205 | F121: 205 | G121: 205 | H121: 205
A122: Unit cost - miscellaneous materials (bulk lamp) | C122: 1.378177476 | D122: 1.574114027 | E122: 1.574114027 | F122: 1.574114027 | G122: 1.574114027 | H122: 1.574114027
A123: Unit cost - miscellaneous materials (repair) | C123: 13.78177476 | D123: 13.7778033 | E123: 13.7778033 | F123: 13.7778033 | G123: 13.7778033 | H123: 13.7778033
A124: Number of men in crew | C124: 2 | D124: 2 | E124: 2 | F124: 2 | G124: 2 | H124: 2
A125: Number of bulk lamp changes in 1 day - urban | C125: 73.92 | D125: 73.92 | E125: 73.92 | F125: 73.92 | G125: 73.92 | H125: 73.92
A126: Number of repairs in 1 day - urban | C126: 24.96 | D126: 24.96 | E126: 24.96 | F126: 24.96 | G126: 24.96 | H126: 24.96
A127: % of repairs - lamps | C127: 0.6 | D127: 0.6 | E127: 0.6 | F127: 0.6 | G127: 0.6 | H127: 0.6
A128: % of repairs - PE cells | C128: 0.5 | D128: 0.5 | E128: 0.5 | F128: 0.5 | G128: 0.5 | H128: 0.5
A129: % of repairs - luminaires | C129: 0.15 | D129: 0.15 | E129: 0.15 | F129: 0.15 | G129: 0.15 | H129: 0.15
A130: % of repairs - other | C130: 0.1 | D130: 0.1 | E130: 0.1 | F130: 0.1 | G130: 0.1 | H130: 0.1
A132: Other Maintenance and Repair costs
A133: Traffic control costs | C133: 16526.44034 | D133: 13838.67289 | E133: 11936.8744 | F133: 10301.51785 | G133: 8880.34358 | H133: 7643.188343
A134: Other costs : Cascading Network | C134: 8553.06452 | D134: 6987.035093 | E134: 5869.157924 | F134: 5048.132855 | G134: 4354.386314 | H134: 3757.833653
C135: =SUM(C133:C134) -> 25079.50486 | D135: 20825.70798 | E135: 17806.03232 | F135: 15349.6507 | G135: 13234.72989 | H135: 11401.022
A136: Number of Lights | C136: 11003.25 | D136: 9352.7625 | E136: 7949.848125 | F136: 6757.370906 | G136: 5743.76527 | H136: 4882.20048
A137: Unit Cost | C137: 2.327253829 | D137: 2.226690561 | E137: 2.239795282 | F137: 2.271541834 | G137: 2.304190591 | H137: 2.335222006
A143: Inputs - Category P LED
A145: Depreciation period | B145: years | C145: 20 | D145: 20 | E145: 20 | F145: 20 | G145: 20 | H145: 20
A146: PE cells - bulk change | B146: years | C146: 8 | D146: 8 | E146: 8 | F146: 8 | G146: 8 | H146: 8
A147: Proportion of luminaires that fail between bulk change | C147: 0.114 | D147: 0.1197969911 | E147: 0.1197969911 | F147: 0.1197969911 | G147: 0.1197969911 | H147: 0.1197969911
A148: Unit cost - PE cell | C148: 18.60539593 | D148: 18.60003446 | E148: 18.60003446 | F148: 18.60003446 | G148: 18.60003446 | H148: 18.60003446
A149: Unit cost - luminaire | C149: 390.1324981 | D149: 205 | E149: 205 | F149: 205 | G149: 205 | H149: 205
A150: Unit cost - miscellaneous materials (repair) | C150: 13.78177476 | D150: 13.7778033 | E150: 13.7778033 | F150: 13.7778033 | G150: 13.7778033 | H150: 13.7778033
A151: Number of men in crew | C151: 2 | D151: 2 | E151: 2 | F151: 2 | G151: 2 | H151: 2
A152: Number of bulk lamp changes in 1 day - urban | C152: 73.92 | D152: 73.92 | E152: 73.92 | F152: 73.92 | G152: 73.92 | H152: 73.92
A153: Number of repairs in 1 day - urban | C153: 24.96 | D153: 24.96 | E153: 24.96 | F153: 24.96 | G153: 24.96 | H153: 24.96
A154: % of repairs - PE cells | C154: 0.5 | D154: 0.5 | E154: 0.5 | F154: 0.5 | G154: 0.5 | H154: 0.5
A155: % of repairs - luminaires | C155: 0.15 | D155: 0.15 | E155: 0.15 | F155: 0.15 | G155: 0.15 | H155: 0.15
A156: % of repairs - other | C156: 0.1 | D156: 0.1 | E156: 0.1 | F156: 0.1 | G156: 0.1 | H156: 0.1
A158: Other Maintenance and Repair costs
A159: Traffic control costs | C159: 12513.34735 | D159: 5555.092166 | E159: 6322.802775 | F159: 7011.389065 | G159: 7623.095205 | H159: 8144.357413
A160: Other costs : Cascading Network | C160: 2865.258971 | D160: 4417.003348 | E160: 4895.902781 | F160: 5410.926099 | G160: 5886.626889 | H160: 6306.055563
C161: =SUM(C159:C160) -> 15378.60632 | D161: 9972.095514 | E161: 11218.70556 | F161: 12422.31516 | G161: 13509.72209 | H161: 14450.41298
A162: Number of Lights | C162: 12600.861 | D162: 14899.62201 | E162: 16711.53576 | F162: 18252.36416 | G162: 19567.56467 | H162: 20646.02227
A163: Unit Cost | C163: 1.690437433 | D163: 0.6692851341 | E163: 0.6713150555 | F163: 0.6805866383 | G163: 0.6904140769 | H163: 0.6999126897
A167: Inputs - Category V LED
A169: Depreciation period | B169: years | D169: 20 | E169: 20 | F169: 20 | G169: 20 | H169: 20
A170: Number of patrols per year | D170: 3 | E170: 3 | F170: 3 | G170: 3 | H170: 3
A171: PE cells - frequency of replacement | B171: years | D171: 10 | E171: 10 | F171: 10 | G171: 10 | H171: 10
A172: Unit cost - PE cell | D172: 87.71 | E172: 87.71 | F172: 87.71 | G172: 87.71 | H172: 87.71
A173: Unit cost - luminaire | D173: 402 | E173: 402 | F173: 402 | G173: 402 | H173: 402
A174: Number of men in crew - road patrols | D174: 2 | E174: 2 | F174: 2 | G174: 2 | H174: 2
A175: Number of men in crew - repairs | D175: 2 | E175: 2 | F175: 2 | G175: 2 | H175: 2
A176: Number of lamps patrolled in 1 day - urban | D176: 3000 | E176: 3000 | F176: 3000 | G176: 3000 | H176: 3000
A177: Number of repairs in 1 day - urban | D177: 19.2 | E177: 19.2 | F177: 19.2 | G177: 19.2 | H177: 19.2
A179: Other Maintenance and Repair costs
A180: Traffic control costs | D180: 20703.48605 | E180: 25077.97359 | F180: 29369.59497 | G180: 33064.09653 | H180: 36290.8002
A181: Other costs : Cascading Network | D181: 13854.82505 | E181: 16782.24315 | F181: 19654.20699 | G181: 22126.57675 | H181: 24285.89498
C182: =SUM(C180:C181) -> 0 | D182: 34558.3111 | E182: 41860.21674 | F182: 49023.80196 | G182: 55190.67328 | H182: 60576.69518
A183: Number of Lights | D183: 6692.5575 | E183: 7988.473875 | F183: 9214.625013 | G183: 10228.84848 | H183: 11087.68202
A184: Unit Cost | D184: =D182/D183 -> 5.163692819 | E184: 5.240076815 | F184: 5.320216709 | G184: 5.395590071 | H184: 5.463422838

Sheet DNSP Inputs Capex
A1: Public Lighting Cost Build-up Model
A3: ='DNSP Inputs O & M'!$A$3 -> Citipower | C3: Capex Data Inputs
C5: Real 2021 $
A7: Input parameters | C7: 2020 | D7: 2021/22 | E7: 2022/23 | F7: 2023/24 | G7: 2024/25 | H7: 2025/26
A9: Inputs - all lamps
A11: Labour rate (per hour) | C11: ='DNSP Inputs O & M'!C11 -> 114.1167364 | D11: ='DNSP Inputs O & M'!D11 -> 117.0289293 | E11: ='DNSP Inputs O & M'!E11 -> 117.804464 | F11: ='DNSP Inputs O & M'!F11 -> 118.5220427 | G11: ='DNSP Inputs O & M'!G11 -> 119.39054 | H11: ='DNSP Inputs O & M'!H11 -> 120.5258805
A12: Elevated platform vehicle (per hour) - urban MV,urban T5 | C12: ='DNSP Inputs O & M'!C13 -> 44.70618145 | D12: ='DNSP Inputs O & M'!D13 -> 44.69329858 | E12: ='DNSP Inputs O & M'!E13 -> 44.69329858 | F12: ='DNSP Inputs O & M'!F13 -> 44.69329858 | G12: ='DNSP Inputs O & M'!G13 -> 44.69329858 | H12: ='DNSP Inputs O & M'!H13 -> 44.69329858
A13: Elevated platform vehicle (per hour) - rural MV, rural T5, S-HP | C13: ='DNSP Inputs O & M'!C14 -> 68.4646212 | D13: ='DNSP Inputs O & M'!D14 -> 63.6381438 | E13: ='DNSP Inputs O & M'!E14 -> 63.6381438 | F13: ='DNSP Inputs O & M'!F14 -> 63.6381438 | G13: ='DNSP Inputs O & M'!G14 -> 63.6381438 | H13: ='DNSP Inputs O & M'!H14 -> 63.6381438
A14: Number of hours in a day | C14: ='DNSP Inputs O & M'!C18 -> 8 | D14: ='DNSP Inputs O & M'!D18 -> 8 | E14: ='DNSP Inputs O & M'!E18 -> 8 | F14: ='DNSP Inputs O & M'!F18 -> 8 | G14: ='DNSP Inputs O & M'!G18 -> 8 | H14: ='DNSP Inputs O & M'!H18 -> 8
A18: Inputs - MV80
A20: Unit cost - luminaire | C20: ='DNSP Inputs O & M'!$C$29 -> 218.5100388 | D20: ='DNSP Inputs O & M'!D29 -> 218.4470714 | E20: ='DNSP Inputs O & M'!E29 -> 218.4470714 | F20: ='DNSP Inputs O & M'!F29 -> 218.4470714 | G20: ='DNSP Inputs O & M'!G29 -> 218.4470714 | H20: ='DNSP Inputs O & M'!H29 -> 218.4470714
A21: Unit cost - miscellaneous materials (bulk lamp) | C21: ='DNSP Inputs O & M'!C30 -> 1.378177476 | D21: ='DNSP Inputs O & M'!D30 -> 1.574114027 | E21: ='DNSP Inputs O & M'!E30 -> 1.574114027 | F21: ='DNSP Inputs O & M'!F30 -> 1.574114027 | G21: ='DNSP Inputs O & M'!G30 -> 1.574114027 | H21: ='DNSP Inputs O & M'!H30 -> 1.574114027
A22: Number of men in crew | C22: ='DNSP Inputs O & M'!C32 -> 2 | D22: ='DNSP Inputs O & M'!D32 -> 2 | E22: ='DNSP Inputs O & M'!E32 -> 2 | F22: ='DNSP Inputs O & M'!F32 -> 2 | G22: ='DNSP Inputs O & M'!G32 -> 2 | H22: ='DNSP Inputs O & M'!H32 -> 2
A23: Number of luminaires replaced per day - urban | C23: 15.36 | D23: 0 | E23: 0 | F23: 0 | G23: 0 | H23: 0
A25: Other Capex unit costs Describe :……………………… | C25: 0 | D25: 0 | E25: 0 | F25: 0 | G25: 0 | H25: 0
A27: Forecast Quantities to be replaced
A28: Number of luminaires replaced per year - urban | C28: 14.91602526 | D28: 0 | E28: 0 | F28: 0 | G28: 0 | H28: 0
A30: MV80 Lights replaced with T5 Energy Efficient Lights
A31: Number of Lights MV80 replaced with T5 per year | C31: 176.8975889 | D31: 0 | E31: 0 | F31: 0 | G31: 0 | H31: 0
A33: MV80 Lights replaced with Cat P lights
A34: Number of Lights MV80 replaced with Cat P per year | D34: 43.11589971 | E34: 35.71269445 | F34: 26.75500858 | G34: 19.19051456 | H34: 8.480255742
A36: MV80 Lights replaced with Cat P lights BY COUNCILS
A37: Number of Lights MV80 replaced with Cat P per year | D37: =('DNSP Inputs General'!O41-'DNSP Inputs General'!Q41)-'DNSP Inputs Capex'!D34 -> 34.78660029 | E37: =('DNSP Inputs General'!Q41-'DNSP Inputs General'!R41)-'DNSP Inputs Capex'!E34 -> 30.50443055 | F37: =('DNSP Inputs General'!R41-'DNSP Inputs General'!S41)-'DNSP Inputs Capex'!F34 -> 29.52954767 | G37: =('DNSP Inputs General'!S41-'DNSP Inputs General'!T41)-'DNSP Inputs Capex'!G34 -> 28.65135825 | H37: =('DNSP Inputs General'!T41-'DNSP Inputs General'!U41)-'DNSP Inputs Capex'!H34 -> 32.18533615
A39: Inputs - S-HP150
A41: Unit cost - luminaire | C41: 225.0509946 | D41: =C41 -> 225.0509946 | E41: =D41 -> 225.0509946 | F41: 225.0509946 | G41: 225.0509946 | H41: 225.0509946
A42: Unit cost - miscellaneous materials | C42: ='DNSP Inputs O & M'!C55 -> 2.756354952 | D42: ='DNSP Inputs O & M'!D55 -> 2.755560661 | E42: ='DNSP Inputs O & M'!E55 -> 2.755560661 | F42: ='DNSP Inputs O & M'!F55 -> 2.755560661 | G42: ='DNSP Inputs O & M'!G55 -> 2.755560661 | H42: ='DNSP Inputs O & M'!H55 -> 2.755560661
A43: Number of men in crew | C43: ='DNSP Inputs O & M'!C57 -> 2 | D43: ='DNSP Inputs O & M'!D57 -> 2 | E43: ='DNSP Inputs O & M'!E57 -> 2 | F43: ='DNSP Inputs O & M'!F57 -> 2 | G43: ='DNSP Inputs O & M'!G57 -> 2 | H43: ='DNSP Inputs O & M'!H57 -> 2
A44: Number of luminaires replaced per day - urban | C44: 15.36 | D44: 0 | E44: 0 | F44: 0 | G44: 0 | H44: 0
A46: Other Capex unit costs Describe :……………………… | C46: 0 | D46: 0 | E46: 0 | F46: 0 | G46: 0 | H46: 0
A48: Forecast Quantities to be replaced
A49: Number of luminaires replaced per year - urban | C49: 269.2248877 | D49: 0 | E49: 0 | F49: 0 | G49: 0 | H49: 0
A51: S-HP 150 Lights replaced with Cat V lights
A52: Number of Lights S-HP 150 replaced with Cat V per year | D52: 145.620533 | E52: 123.7774531 | F52: 104.28146 | G52: 86.82139588 | H52: 72.20981185
A55: Inputs - S-HP250
A57: Unit cost - luminaire | C57: 228.4092487 | D57: =C57 -> 228.4092487 | E57: =D57 -> 228.4092487 | F57: =E57 -> 228.4092487 | G57: =F57 -> 228.4092487 | H57: =G57 -> 228.4092487
A58: Unit cost - miscellaneous materials | C58: ='DNSP Inputs O & M'!C76 -> 2.756354952 | D58: ='DNSP Inputs O & M'!D76 -> 2.755560661 | E58: ='DNSP Inputs O & M'!E76 -> 2.755560661 | F58: ='DNSP Inputs O & M'!F76 -> 2.755560661 | G58: ='DNSP Inputs O & M'!G76 -> 2.755560661 | H58: ='DNSP Inputs O & M'!H76 -> 2.755560661
A59: Number of men in crew | C59: ='DNSP Inputs O & M'!C78 -> 2 | D59: ='DNSP Inputs O & M'!D78 -> 2 | E59: ='DNSP Inputs O & M'!E78 -> 2 | F59: ='DNSP Inputs O & M'!F78 -> 2 | G59: ='DNSP Inputs O & M'!G78 -> 2 | H59: ='DNSP Inputs O & M'!H78 -> 2
A60: Number of luminaires replaced per day - urban | C60: 15.36 | D60: 0 | E60: 0 | F60: 0 | G60: 0 | H60: 0
A62: Other Capex unit costs Describe :……………………… | C62: 0 | D62: 0 | E62: 0 | F62: 0 | G62: 0 | H62: 0
A64: Forecast Quantities to be replaced
A65: Number of luminaires replaced per year - urban | C65: 121.1430705 | D65: 0 | E65: 0 | F65: 0 | G65: 0 | H65: 0
A67: S-HP 250 Lights replaced with Cat V lights
A68: Number of Lights S-HP 250 replaced with Cat V per year | D68: 68.15934237 | E68: 57.80004891 | F68: 44.78706701 | G68: 33.83132709 | H68: 27.46219255
A71: Dedicated street lighting poles
A73: Cost of pole & bracket | C73: 1538.391202 | D73: 1605 | E73: 1605 | F73: 1605 | G73: 1605 | H73: 1605
A74: Number of poles & brackets replaced per day | C74: 3.84 | D74: 3.84 | E74: 3.84 | F74: 3.84 | G74: 3.84 | H74: 3.84
A75: Cost of bracket on non-dedicated poles | C75: 46.65750341 | D75: 52.91420603 | E75: 52.91420603 | F75: 52.91420603 | G75: 52.91420603 | H75: 52.91420603
A76: Number of brackets replaced per day | C76: 19.2 | D76: 19.2 | E76: 19.2 | F76: 19.2 | G76: 19.2 | H76: 19.2
A78: Other poles & brackets Capex unit costs Describe :………………… | C78: 0 | D78: 0 | E78: 0 | F78: 0 | G78: 0 | H78: 0
A81: Forecast Quantities to be replaced
A82: Number of poles & brackets replaced per year - urban | C82: 61.25 | D82: 61 | E82: 61 | F82: 61 | G82: 61 | H82: 61
A84: Brackets on non-dedicated poles :
A85: Number of brackets replaced per year - urban | C85: 20 | D85: 20 | E85: 20 | F85: 20 | G85: 20 | H85: 20
A89: Luminaire Replacements - Other Light types (excluding T5s)
A90: Number of luminaires replaced per year | C90: 599.8827289 | D90: 0 | E90: 0 | F90: 0 | G90: 0 | H90: 0
A91: Forecast Capex | C91: 501219.9749 | D91: 0 | E91: 0 | F91: 0 | G91: 0 | H91: 0
A95: Inputs - T5 (2 X 14W)
A97: Unit cost - luminaire | C97: ='DNSP Inputs O & M'!$C$29 -> 218.5100388 | D97: ='DNSP Inputs O & M'!D121 -> 205 | E97: ='DNSP Inputs O & M'!E121 -> 205 | F97: ='DNSP Inputs O & M'!F121 -> 205 | G97: ='DNSP Inputs O & M'!G121 -> 205 | H97: ='DNSP Inputs O & M'!H121 -> 205
A98: Unit cost - miscellaneous materials (bulk lamp) | C98: ='DNSP Inputs O & M'!C122 -> 1.378177476 | D98: ='DNSP Inputs O & M'!D122 -> 1.574114027 | E98: ='DNSP Inputs O & M'!E122 -> 1.574114027 | F98: ='DNSP Inputs O & M'!F122 -> 1.574114027 | G98: ='DNSP Inputs O & M'!G122 -> 1.574114027 | H98: ='DNSP Inputs O & M'!H122 -> 1.574114027
A99: Number of men in crew | C99: ='DNSP Inputs O & M'!C124 -> 2 | D99: ='DNSP Inputs O & M'!D124 -> 2 | E99: ='DNSP Inputs O & M'!E124 -> 2 | F99: ='DNSP Inputs O & M'!F124 -> 2 | G99: ='DNSP Inputs O & M'!G124 -> 2 | H99: ='DNSP Inputs O & M'!H124 -> 2
A100: Number of luminaires replaced per day - urban | C100: 15.36 | D100: 15.36 | E100: 15.36 | F100: 15.36 | G100: 15.36 | H100: 15.36
A102: Other Capex unit costs Describe :……………………… | C102: 0 | D102: 0 | E102: 0 | F102: 0 | G102: 0 | H102: 0
A104: Forecast Quantities to be replaced
A105: Number of luminaires replaced per year - urban | C105: 105.5196258 | D105: 0 | E105: 0 | F105: 0 | G105: 0 | H105: 0
A107: T5 Lights replaced with Cat P lights
A108: Number of Lights T5 replaced with Cat P per year | D108: 317.71572 | E108: 268.998786 | F108: 227.9072649 | G108: 193.7211752 | H108: 164.6629989
A111: Inputs - Category P LED
A113: Unit cost - luminaire | C113: ='DNSP Inputs O & M'!$C$29 -> 218.5100388 | D113: ='DNSP Inputs O & M'!D149 -> 205 | E113: ='DNSP Inputs O & M'!E149 -> 205 | F113: ='DNSP Inputs O & M'!F149 -> 205 | G113: ='DNSP Inputs O & M'!G149 -> 205 | H113: ='DNSP Inputs O & M'!H149 -> 205
A114: Number of men in crew | C114: 2 | D114: ='DNSP Inputs O & M'!D151 -> 2 | E114: ='DNSP Inputs O & M'!E151 -> 2 | F114: ='DNSP Inputs O & M'!F151 -> 2 | G114: ='DNSP Inputs O & M'!G151 -> 2 | H114: ='DNSP Inputs O & M'!H151 -> 2
A115: Number of luminaires replaced per day - urban | C115: 15.36 | D115: 15.36 | E115: 15.36 | F115: 15.36 | G115: 15.36 | H115: 15.36
A117: Other Capex unit costs Describe :……………………… | C117: 0 | D117: 0 | E117: 0 | F117: 0 | G117: 0 | H117: 0
A119: Forecast Quantities to be replaced
A120: Number of luminaires replaced per year - urban | C120: 89.07911962 | D120: 178.6147496 | E120: 200.7297739 | F120: 220.6072221 | G120: 237.8789733 | H120: 253.2071912
A123: Inputs - Category V LED
A125: Unit cost - luminaire | C125: ='DNSP Inputs O & M'!C173 -> 0 | D125: ='DNSP Inputs O & M'!D173 -> 402 | E125: ='DNSP Inputs O & M'!E173 -> 402 | F125: ='DNSP Inputs O & M'!F173 -> 402 | G125: ='DNSP Inputs O & M'!G173 -> 402 | H125: ='DNSP Inputs O & M'!H173 -> 402
A126: Number of men in crew | C126: 2 | D126: 2 | E126: 2 | F126: 2 | G126: 2 | H126: 2
A127: Number of luminaires replaced per day - urban | C127: 15.36 | D127: 15.36 | E127: 15.36 | F127: 15.36 | G127: 15.36 | H127: 15.36
A129: Other Capex unit costs Describe :……………………… | C129: 0 | D129: 0 | E129: 0 | F129: 0 | G129: 0 | H129: 0
A131: Forecast Quantities to be replaced
A132: Number of luminaires replaced per year - urban | C132: 121.53075 | D132: 136.1999925 | E132: 154.6589756 | F132: 172.5877872 | G132: 187.6712441 | H132: 199.955799
A135: New lights total
A136: Cat P | C136: =C108+C34 -> 0 | D136: =D108+D34 -> 360.8316197 | E136: 304.7114805 | F136: 254.6622735 | G136: 212.9116897 | H136: 173.1432546
A137: Cat V | C137: =C68+C52 -> 0 | D137: 213.7798754 | E137: 181.577502 | F137: 149.068527 | G137: 120.652723 | H137: 99.6720044
A138: Replaced lights

Sheet PL Tariffs
A1: ='DNSP Inputs O & M'!$A$3 -> Citipower | E1: Global Check | F1: =IF(SUM('Total RAB'!F1,'Depn & WACC Post 2004'!F1,'Cashflow Summary'!F1,)<1,"Ok","Error") -> Ok
V2: Average
A3: Public Lighting Tariffs (unsmoothed) | C3: Nominal Prices | J3: Nominal Price Movement | P3: Real Price Movement (Implied X Factor) | V3: Nubmer | W3: % of | Y3: Revised Submission Model | AE3: Difference
C4: Actual | V4: of Lights | W4: Total Lights
A5: ='DNSP Inputs General'!A$40 -> Existing Lights | C5: ='DNSP Inputs General'!P$2 -> HY2021 | D5: ='DNSP Inputs General'!Q$2 -> 2021/22 | E5: ='DNSP Inputs General'!R$2 -> 2022/23 | F5: ='DNSP Inputs General'!S$2 -> 2023/24 | G5: ='DNSP Inputs General'!T$2 -> 2024/25 | H5: ='DNSP Inputs General'!U$2 -> 2025/26 | J5: =D5 -> 2021/22 | K5: =E5 -> 2022/23 | L5: =F5 -> 2023/24 | M5: =G5 -> 2024/25 | N5: =H5 -> 2025/26 | P5: =J5 -> 2021/22 | Q5: =K5 -> 2022/23 | R5: 2023/24 | S5: 2024/25 | T5: 2025/26 | V5: 2022-26 | W5: 2022-26 | Y5: =J5 -> 2021/22 | Z5: =K5 -> 2022/23 | AA5: =L5 -> 2023/24 | AB5: =M5 -> 2024/25 | AC5: =N5 -> 2025/26 | AE5: =Y5 -> 2021/22 | AF5: =Z5 -> 2022/23 | AG5: 2023/24 | AH5: 2024/25 | AI5: 2025/26
A6: ='DNSP Inputs General'!A41 -> Mercury vapour 80 watt | C6: =IF('DNSP Inputs General'!E41="","",'DNSP Inputs General'!E41) -> 65.29 | D6: ='Charges Summary'!D$31 -> 93.34795808 | E6: ='Charges Summary'!E$31 -> 94.53381472 | F6: ='Charges Summary'!F$31 -> 101.1526686 | G6: ='Charges Summary'!G$31 -> 111.6114996 | H6: ='Charges Summary'!H$31 -> 126.9196584 | J6: =IF(C6="","",D6/C6-1) -> 0.4297435761 | K6: =IF(D6="","",E6/D6-1) -> 0.01270361628 | L6: 0.07001572866 | M6: 0.1033964907 | N6: 0.1371557483 | P6: =IF(C6="","",(D6/'Charges Summary'!D$4)/(C6/'Charges Summary'!C$4)-1) -> 0.4017178089 | Q6: =IF(D6="","",(E6/'Charges Summary'!E$4)/(D6/'Charges Summary'!D$4)-1) -> -0.007147352963 | R6: =IF(E6="","",(F6/'Charges Summary'!F$4)/(E6/'Charges Summary'!E$4)-1) -> 0.04904133006 | S6: =IF(F6="","",(G6/'Charges Summary'!G$4)/(F6/'Charges Summary'!F$4)-1) -> 0.08176776399 | T6: =IF(G6="","",(H6/'Charges Summary'!H$4)/(G6/'Charges Summary'!G$4)-1) -> 0.1148652741 | V6: =SUM('DNSP Inputs General'!Q41:U41)/5 -> 327.4331987 | W6: =V6/V$41 -> 0.006212059551 | Y6: 93.05963538 | Z6: 94.40144988 | AA6: 101.1802514 | AB6: 111.8923364 | AC6: 127.4953462 | AE6: =D6-Y6 -> 0.2883227015 | AF6: =E6-Z6 -> 0.1323648447 | AG6: =F6-AA6 -> -0.02758274408 | AH6: =G6-AB6 -> -0.28083682 | AI6: =H6-AC6 -> -0.5756878082
A7: ='DNSP Inputs General'!A42 -> Sodium high pressure 150 watt | C7: =IF('DNSP Inputs General'!E42="","",'DNSP Inputs General'!E42) -> 111.62 | D7: ='Charges Summary'!D$55 -> 138.1568518 | E7: ='Charges Summary'!E$55 -> 140.0603083 | F7: ='Charges Summary'!F$55 -> 142.2351537 | G7: ='Charges Summary'!G$55 -> 153.9559694 | H7: ='Charges Summary'!H$55 -> 170.7472593 | J7: =IF(C7="","",D7/C7-1) -> 0.2377428043 | K7: 0.01377750303 | L7: 0.01552792114 | M7: 0.08240449284 | N7: 0.1090655336 | P7: =IF(C7="","",(D7/'Charges Summary'!D$4)/(C7/'Charges Summary'!C$4)-1) -> 0.2134806274 | Q7: =IF(D7="","",(E7/'Charges Summary'!E$4)/(D7/'Charges Summary'!D$4)-1) -> -0.006094516489 | R7: =IF(E7="","",(F7/'Charges Summary'!F$4)/(E7/'Charges Summary'!E$4)-1) -> -0.004378409997 | S7: =IF(F7="","",(G7/'Charges Summary'!G$4)/(F7/'Charges Summary'!F$4)-1) -> 0.06118725025 | T7: =IF(G7="","",(H7/'Charges Summary'!H$4)/(G7/'Charges Summary'!G$4)-1) -> 0.08732568253 | V7: =SUM('DNSP Inputs General'!Q42:U42)/5 -> 6030.812959 | W7: =V7/V$41 -> 0.1144165264 | Y7: 137.9578593 | Z7: 140.1289054 | AA7: 142.6657903 | AB7: 154.860234 | AC7: 172.2025574 | AE7: 0.1989925009 | AF7: -0.06859714682 | AG7: -0.4306366628 | AH7: -0.904264592 | AI7: -1.455298052
A8: ='DNSP Inputs General'!A43 -> Sodium high pressure 250 watt | C8: =IF('DNSP Inputs General'!E43="","",'DNSP Inputs General'!E43) -> 113.24 | D8: ='Charges Summary'!D$79 -> 140.5198277 | E8: ='Charges Summary'!E$79 -> 142.4245042 | F8: ='Charges Summary'!F$79 -> 143.4843552 | G8: ='Charges Summary'!G$79 -> 155.3667919 | H8: ='Charges Summary'!H$79 -> 172.3936535 | J8: 0.2409027528 | K8: 0.01355450303 | L8: 0.007441493847 | M8: 0.08281346523 | N8: 0.109591383 | P8: =IF(C8="","",(D8/'Charges Summary'!D$4)/(C8/'Charges Summary'!C$4)-1) -> 0.2165786347 | Q8: =IF(D8="","",(E8/'Charges Summary'!E$4)/(D8/'Charges Summary'!D$4)-1) -> -0.006313145253 | R8: =IF(E8="","",(F8/'Charges Summary'!F$4)/(E8/'Charges Summary'!E$4)-1) -> -0.01230632751 | S8: =IF(F8="","",(G8/'Charges Summary'!G$4)/(F8/'Charges Summary'!F$4)-1) -> 0.06158820599 | T8: =IF(G8="","",(H8/'Charges Summary'!H$4)/(G8/'Charges Summary'!G$4)-1) -> 0.08784122427 | V8: =SUM('DNSP Inputs General'!Q43:U43)/5 -> 1565.680272 | W8: 0.02970407132 | Y8: 140.3092175 | Z8: 142.483918 | AA8: 143.9164971 | AB8: 156.2749308 | AC8: 173.8554389 | AE8: 0.210610208 | AF8: -0.05941385743 | AG8: -0.4321418302 | AH8: -0.9081388789 | AI8: -1.461785371
A9: ='DNSP Inputs General'!A44 -> Fluorescent 20 watt | C9: =IF('DNSP Inputs General'!E44="","",'DNSP Inputs General'!E44) -> 129.93 | D9: =IF(SUM('DNSP Inputs General'!$O44:$U44)=0,"",IF('DNSP Inputs General'!$B44='DNSP Inputs General'!$A$41,D$6,IF('DNSP Inputs General'!$B44='DNSP Inputs General'!$A$42,D$7,D$8))*'DNSP Inputs General'!$D44) -> 185.7624366 | E9: =IF(SUM('DNSP Inputs General'!$O44:$U44)=0,"",IF('DNSP Inputs General'!$B44='DNSP Inputs General'!$A$41,E$6,IF('DNSP Inputs General'!$B44='DNSP Inputs General'!$A$42,E$7,E$8))*'DNSP Inputs General'!$D44) -> 188.1222913 | F9: =IF(SUM('DNSP Inputs General'!$O44:$U44)=0,"",IF('DNSP Inputs General'!$B44='DNSP Inputs General'!$A$41,F$6,IF('DNSP Inputs General'!$B44='DNSP Inputs General'!$A$42,F$7,F$8))*'DNSP Inputs General'!$D44) -> 201.2938106 | G9: =IF(SUM('DNSP Inputs General'!$O44:$U44)=0,"",IF('DNSP Inputs General'!$B44='DNSP Inputs General'!$A$41,G$6,IF('DNSP Inputs General'!$B44='DNSP Inputs General'!$A$42,G$7,G$8))*'DNSP Inputs General'!$D44) -> 222.1068842 | H9: =IF(SUM('DNSP Inputs General'!$O44:$U44)=0,"",IF('DNSP Inputs General'!$B44='DNSP Inputs General'!$A$41,H$6,IF('DNSP Inputs General'!$B44='DNSP Inputs General'!$A$42,H$7,H$8))*'DNSP Inputs General'!$D44) -> 252.5701201 | J9: 0.4297116646 | K9: 0.01270361628 | L9: 0.07001572866 | M9: 0.1033964907 | N9: 0.1371557483 | P9: =IF(C9="","",(D9/'Charges Summary'!D$4)/(C9/'Charges Summary'!C$4)-1) -> 0.401686523 | Q9: =IF(D9="","",(E9/'Charges Summary'!E$4)/(D9/'Charges Summary'!D$4)-1) -> -0.007147352963 | R9: =IF(E9="","",(F9/'Charges Summary'!F$4)/(E9/'Charges Summary'!E$4)-1) -> 0.04904133006 | S9: =IF(F9="","",(G9/'Charges Summary'!G$4)/(F9/'Charges Summary'!F$4)-1) -> 0.08176776399 | T9: =IF(G9="","",(H9/'Charges Summary'!H$4)/(G9/'Charges Summary'!G$4)-1) -> 0.1148652741 | V9: =SUM('DNSP Inputs General'!Q44:U44)/5 -> 29.34794625 | W9: 0.0005567889588 | Y9: 185.1886744 | Z9: 187.8588853 | AA9: 201.3487003 | AB9: 222.6657495 | AC9: 253.7157389 | AE9: 0.573762176 | AF9: 0.2634060409 | AG9: -0.05488966072 | AH9: -0.5588652717 | AI9: -1.145618738
A10: ='DNSP Inputs General'!A45 -> Fluorescent 40 watt | C10: =IF('DNSP Inputs General'!E45="","",'DNSP Inputs General'!E45) -> 130.59 | D10: =IF(SUM('DNSP Inputs General'!$O45:$U45)=0,"",IF('DNSP Inputs General'!$B45='DNSP Inputs General'!$A$41,D$6,IF('DNSP Inputs General'!$B45='DNSP Inputs General'!$A$42,D$7,D$8))*'DNSP Inputs General'!$D45) -> 186.6959162 | E10: =IF(SUM('DNSP Inputs General'!$O45:$U45)=0,"",IF('DNSP Inputs General'!$B45='DNSP Inputs General'!$A$41,E$6,IF('DNSP Inputs General'!$B45='DNSP Inputs General'!$A$42,E$7,E$8))*'DNSP Inputs General'!$D45) -> 189.0676294 | F10: =IF(SUM('DNSP Inputs General'!$O45:$U45)=0,"",IF('DNSP Inputs General'!$B45='DNSP Inputs General'!$A$41,F$6,IF('DNSP Inputs General'!$B45='DNSP Inputs General'!$A$42,F$7,F$8))*'DNSP Inputs General'!$D45) -> 202.3053373 | G10: =IF(SUM('DNSP Inputs General'!$O45:$U45)=0,"",IF('DNSP Inputs General'!$B45='DNSP Inputs General'!$A$41,G$6,IF('DNSP Inputs General'!$B45='DNSP Inputs General'!$A$42,G$7,G$8))*'DNSP Inputs General'!$D45) -> 223.2229992 | H10: =IF(SUM('DNSP Inputs General'!$O45:$U45)=0,"",IF('DNSP Inputs General'!$B45='DNSP Inputs General'!$A$41,H$6,IF('DNSP Inputs General'!$B45='DNSP Inputs General'!$A$42,H$7,H$8))*'DNSP Inputs General'!$D45) -> 253.8393167 | J10: 0.4296340927 | K10: 0.01270361628 | L10: 0.07001572866 | M10: 0.1033964907 | N10: 0.1371557483 | P10: =IF(C10="","",(D10/'Charges Summary'!D$4)/(C10/'Charges Summary'!C$4)-1) -> 0.4016104716 | Q10: =IF(D10="","",(E10/'Charges Summary'!E$4)/(D10/'Charges Summary'!D$4)-1) -> -0.007147352963 | R10: =IF(E10="","",(F10/'Charges Summary'!F$4)/(E10/'Charges Summary'!E$4)-1) -> 0.04904133006 | S10: =IF(F10="","",(G10/'Charges Summary'!G$4)/(F10/'Charges Summary'!F$4)-1) -> 0.08176776399 | T10: =IF(G10="","",(H10/'Charges Summary'!H$4)/(G10/'Charges Summary'!G$4)-1) -> 0.1148652741 | V10: =SUM('DNSP Inputs General'!Q45:U45)/5 -> 2.8 | W10: 5.312157353e-05 | Y10: 186.1192708 | Z10: 188.8028998 | AA10: 202.3605028 | AB10: 223.7846729 | AC10: 254.9906923 | AE10: 0.576645403 | AF10: 0.2647296894 | AG10: -0.05516548817 | AH10: -0.5616736399 | AI10: -1.151375616
A11: ='DNSP Inputs General'!A46 -> Mercury vapour 50 watt | C11: =IF('DNSP Inputs General'!E46="","",'DNSP Inputs General'!E46) -> 92.72 | D11: =IF(SUM('DNSP Inputs General'!$O46:$U46)=0,"",IF('DNSP Inputs General'!$B46='DNSP Inputs General'!$A$41,D$6,IF('DNSP Inputs General'!$B46='DNSP Inputs General'!$A$42,D$7,D$8))*'DNSP Inputs General'!$D46) -> 132.5541005 | E11: =IF(SUM('DNSP Inputs General'!$O46:$U46)=0,"",IF('DNSP Inputs General'!$B46='DNSP Inputs General'!$A$41,E$6,IF('DNSP Inputs General'!$B46='DNSP Inputs General'!$A$42,E$7,E$8))*'DNSP Inputs General'!$D46) -> 134.2380169 | F11: =IF(SUM('DNSP Inputs General'!$O46:$U46)=0,"",IF('DNSP Inputs General'!$B46='DNSP Inputs General'!$A$41,F$6,IF('DNSP Inputs General'!$B46='DNSP Inputs General'!$A$42,F$7,F$8))*'DNSP Inputs General'!$D46) -> 143.6367895 | G11: =IF(SUM('DNSP Inputs General'!$O46:$U46)=0,"",IF('DNSP Inputs General'!$B46='DNSP Inputs General'!$A$41,G$6,IF('DNSP Inputs General'!$B46='DNSP Inputs General'!$A$42,G$7,G$8))*'DNSP Inputs General'!$D46) -> 158.4883294 | H11: =IF(SUM('DNSP Inputs General'!$O46:$U46)=0,"",IF('DNSP Inputs General'!$B46='DNSP Inputs General'!$A$41,H$6,IF('DNSP Inputs General'!$B46='DNSP Inputs General'!$A$42,H$7,H$8))*'DNSP Inputs General'!$D46) -> 180.2259149 | J11: 0.429617132 | K11: 0.01270361628 | L11: 0.07001572866 | M11: 0.1033964907 | N11: 0.1371557483 | P11: =IF(C11="","",(D11/'Charges Summary'!D$4)/(C11/'Charges Summary'!C$4)-1) -> 0.4015938434 | Q11: =IF(D11="","",(E11/'Charges Summary'!E$4)/(D11/'Charges Summary'!D$4)-1) -> -0.007147352963 | R11: =IF(E11="","",(F11/'Charges Summary'!F$4)/(E11/'Charges Summary'!E$4)-1) -> 0.04904133006 | S11: =IF(F11="","",(G11/'Charges Summary'!G$4)/(F11/'Charges Summary'!F$4)-1) -> 0.08176776399 | T11: =IF(G11="","",(H11/'Charges Summary'!H$4)/(G11/'Charges Summary'!G$4)-1) -> 0.1148652741 | V11: =SUM('DNSP Inputs General'!Q46:U46)/5 -> 3.6652 | W11: 6.953613975e-05 | Y11: 132.1446822 | Z11: 134.0500588 | AA11: 143.675957 | AB11: 158.8871177 | AC11: 181.0433916 | AE11: 0.4094182361 | AF11: 0.1879580795 | AG11: -0.0391674966 | AH11: -0.3987882843 | AI11: -0.8174766876
A12: ='DNSP Inputs General'!A47 -> Mercury vapour 125 watt | C12: =IF('DNSP Inputs General'!E47="","",'DNSP Inputs General'!E47) -> 103.16 | D12: =IF(SUM('DNSP Inputs General'!$O47:$U47)=0,"",IF('DNSP Inputs General'!$B47='DNSP Inputs General'!$A$41,D$6,IF('DNSP Inputs General'!$B47='DNSP Inputs General'!$A$42,D$7,D$8))*'DNSP Inputs General'!$D47) -> 147.4897738 | E12: =IF(SUM('DNSP Inputs General'!$O47:$U47)=0,"",IF('DNSP Inputs General'!$B47='DNSP Inputs General'!$A$41,E$6,IF('DNSP Inputs General'!$B47='DNSP Inputs General'!$A$42,E$7,E$8))*'DNSP Inputs General'!$D47) -> 149.3634273 | F12: =IF(SUM('DNSP Inputs General'!$O47:$U47)=0,"",IF('DNSP Inputs General'!$B47='DNSP Inputs General'!$A$41,F$6,IF('DNSP Inputs General'!$B47='DNSP Inputs General'!$A$42,F$7,F$8))*'DNSP Inputs General'!$D47) -> 159.8212165 | G12: =IF(SUM('DNSP Inputs General'!$O47:$U47)=0,"",IF('DNSP Inputs General'!$B47='DNSP Inputs General'!$A$41,G$6,IF('DNSP Inputs General'!$B47='DNSP Inputs General'!$A$42,G$7,G$8))*'DNSP Inputs General'!$D47) -> 176.3461694 | H12: =IF(SUM('DNSP Inputs General'!$O47:$U47)=0,"",IF('DNSP Inputs General'!$B47='DNSP Inputs General'!$A$41,H$6,IF('DNSP Inputs General'!$B47='DNSP Inputs General'!$A$42,H$7,H$8))*'DNSP Inputs General'!$D47) -> 200.5330602 | J12: 0.429718629 | K12: 0.01270361628 | L12: 0.07001572866 | M12: 0.1033964907 | N12: 0.1371557483 | P12: =IF(C12="","",(D12/'Charges Summary'!D$4)/(C12/'Charges Summary'!C$4)-1) -> 0.4016933509 | Q12: =IF(D12="","",(E12/'Charges Summary'!E$4)/(D12/'Charges Summary'!D$4)-1) -> -0.007147352963 | R12: =IF(E12="","",(F12/'Charges Summary'!F$4)/(E12/'Charges Summary'!E$4)-1) -> 0.04904133006 | S12: =IF(F12="","",(G12/'Charges Summary'!G$4)/(F12/'Charges Summary'!F$4)-1) -> 0.08176776399 | T12: =IF(G12="","",(H12/'Charges Summary'!H$4)/(G12/'Charges Summary'!G$4)-1) -> 0.1148652741 | V12: =SUM('DNSP Inputs General'!Q47:U47)/5 -> 120.4200865 | W12: 0.002284608743 | Y12: 147.0342239 | Z12: 149.1542908 | AA12: 159.8647972 | AB12: 176.7898916 | AC12: 201.4426469 | AE12: 0.4555498684 | AF12: 0.2091364546 | AG12: -0.04358073565 | AH12: -0.4437221755 | AI12: -0.909586737
A13: ='DNSP Inputs General'!A48 -> Mercury vapour 250 watt | C13: =IF('DNSP Inputs General'!E48="","",'DNSP Inputs General'!E48) -> 95.12 | D13: =IF(SUM('DNSP Inputs General'!$O48:$U48)=0,"",IF('DNSP Inputs General'!$B48='DNSP Inputs General'!$A$41,D$6,IF('DNSP Inputs General'!$B48='DNSP Inputs General'!$A$42,D$7,D$8))*'DNSP Inputs General'!$D48) -> 118.0366553 | E13: =IF(SUM('DNSP Inputs General'!$O48:$U48)=0,"",IF('DNSP Inputs General'!$B48='DNSP Inputs General'!$A$41,E$6,IF('DNSP Inputs General'!$B48='DNSP Inputs General'!$A$42,E$7,E$8))*'DNSP Inputs General'!$D48) -> 119.6365835 | F13: =IF(SUM('DNSP Inputs General'!$O48:$U48)=0,"",IF('DNSP Inputs General'!$B48='DNSP Inputs General'!$A$41,F$6,IF('DNSP Inputs General'!$B48='DNSP Inputs General'!$A$42,F$7,F$8))*'DNSP Inputs General'!$D48) -> 120.5268584 | G13: =IF(SUM('DNSP Inputs General'!$O48:$U48)=0,"",IF('DNSP Inputs General'!$B48='DNSP Inputs General'!$A$41,G$6,IF('DNSP Inputs General'!$B48='DNSP Inputs General'!$A$42,G$7,G$8))*'DNSP Inputs General'!$D48) -> 130.5081052 | H13: =IF(SUM('DNSP Inputs General'!$O48:$U48)=0,"",IF('DNSP Inputs General'!$B48='DNSP Inputs General'!$A$41,H$6,IF('DNSP Inputs General'!$B48='DNSP Inputs General'!$A$42,H$7,H$8))*'DNSP Inputs General'!$D48) -> 144.8106689 | J13: 0.2409236258 | K13: 0.01355450303 | L13: 0.007441493847 | M13: 0.08281346523 | N13: 0.109591383 | P13: =IF(C13="","",(D13/'Charges Summary'!D$4)/(C13/'Charges Summary'!C$4)-1) -> 0.2165990986 | Q13: =IF(D13="","",(E13/'Charges Summary'!E$4)/(D13/'Charges Summary'!D$4)-1) -> -0.006313145253 | R13: =IF(E13="","",(F13/'Charges Summary'!F$4)/(E13/'Charges Summary'!E$4)-1) -> -0.01230632751 | S13: =IF(F13="","",(G13/'Charges Summary'!G$4)/(F13/'Charges Summary'!F$4)-1) -> 0.06158820599 | T13: =IF(G13="","",(H13/'Charges Summary'!H$4)/(G13/'Charges Summary'!G$4)-1) -> 0.08784122427 | V13: =SUM('DNSP Inputs General'!Q48:U48)/5 -> 37.1665 | W13: 0.0007051224866 | Y13: 117.8597427 | Z13: 119.6864911 | AA13: 120.8898575 | AB13: 131.2709418 | AC13: 146.0385686 | AE13: 0.1769125747 | AF13: -0.04990764024 | AG13: -0.3629991374 | AH13: -0.7628366583 | AI13: -1.227899711
A14: ='DNSP Inputs General'!A49 -> Mercury vapour 400 watt | C14: =IF('DNSP Inputs General'!E49="","",'DNSP Inputs General'!E49) -> 96.25 | D14: =IF(SUM('DNSP Inputs General'!$O49:$U49)=0,"",IF('DNSP Inputs General'!$B49='DNSP Inputs General'!$A$41,D$6,IF('DNSP Inputs General'!$B49='DNSP Inputs General'!$A$42,D$7,D$8))*'DNSP Inputs General'!$D49) -> 119.4418536 | E14: =IF(SUM('DNSP Inputs General'!$O49:$U49)=0,"",IF('DNSP Inputs General'!$B49='DNSP Inputs General'!$A$41,E$6,IF('DNSP Inputs General'!$B49='DNSP Inputs General'!$A$42,E$7,E$8))*'DNSP Inputs General'!$D49) -> 121.0608285 | F14: =IF(SUM('DNSP Inputs General'!$O49:$U49)=0,"",IF('DNSP Inputs General'!$B49='DNSP Inputs General'!$A$41,F$6,IF('DNSP Inputs General'!$B49='DNSP Inputs General'!$A$42,F$7,F$8))*'DNSP Inputs General'!$D49) -> 121.9617019 | G14: =IF(SUM('DNSP Inputs General'!$O49:$U49)=0,"",IF('DNSP Inputs General'!$B49='DNSP Inputs General'!$A$41,G$6,IF('DNSP Inputs General'!$B49='DNSP Inputs General'!$A$42,G$7,G$8))*'DNSP Inputs General'!$D49) -> 132.0617731 | H14: =IF(SUM('DNSP Inputs General'!$O49:$U49)=0,"",IF('DNSP Inputs General'!$B49='DNSP Inputs General'!$A$41,H$6,IF('DNSP Inputs General'!$B49='DNSP Inputs General'!$A$42,H$7,H$8))*'DNSP Inputs General'!$D49) -> 146.5346055 | J14: 0.2409543228 | K14: 0.01355450303 | L14: 0.007441493847 | M14: 0.08281346523 | N14: 0.109591383 | P14: =IF(C14="","",(D14/'Charges Summary'!D$4)/(C14/'Charges Summary'!C$4)-1) -> 0.2166291938 | Q14: =IF(D14="","",(E14/'Charges Summary'!E$4)/(D14/'Charges Summary'!D$4)-1) -> -0.006313145253 | R14: =IF(E14="","",(F14/'Charges Summary'!F$4)/(E14/'Charges Summary'!E$4)-1) -> -0.01230632751 | S14: =IF(F14="","",(G14/'Charges Summary'!G$4)/(F14/'Charges Summary'!F$4)-1) -> 0.06158820599 | T14: =IF(G14="","",(H14/'Charges Summary'!H$4)/(G14/'Charges Summary'!G$4)-1) -> 0.08784122427 | V14: =SUM('DNSP Inputs General'!Q49:U49)/5 -> 15.3272 | W14: 0.0002907874935 | Y14: 119.2628349 | Z14: 121.1113303 | AA14: 122.3290225 | AB14: 132.8336912 | AC14: 147.777123 | AE14: 0.1790186768 | AF14: -0.05050177881 | AG14: -0.3673205557 | AH14: -0.7719180471 | AI14: -1.242517565
A15: ='DNSP Inputs General'!A50 -> Mercury vapour 700 watt | C15: =IF('DNSP Inputs General'!E50="","",'DNSP Inputs General'!E50) ->  | D15: =IF(SUM('DNSP Inputs General'!$O50:$U50)=0,"",IF('DNSP Inputs General'!$B50='DNSP Inputs General'!$A$41,D$6,IF('DNSP Inputs General'!$B50='DNSP Inputs General'!$A$42,D$7,D$8))*'DNSP Inputs General'!$D50) ->  | E15: =IF(SUM('DNSP Inputs General'!$O50:$U50)=0,"",IF('DNSP Inputs General'!$B50='DNSP Inputs General'!$A$41,E$6,IF('DNSP Inputs General'!$B50='DNSP Inputs General'!$A$42,E$7,E$8))*'DNSP Inputs General'!$D50) ->  | F15: =IF(SUM('DNSP Inputs General'!$O50:$U50)=0,"",IF('DNSP Inputs General'!$B50='DNSP Inputs General'!$A$41,F$6,IF('DNSP Inputs General'!$B50='DNSP Inputs General'!$A$42,F$7,F$8))*'DNSP Inputs General'!$D50) ->  | G15: =IF(SUM('DNSP Inputs General'!$O50:$U50)=0,"",IF('DNSP Inputs General'!$B50='DNSP Inputs General'!$A$41,G$6,IF('DNSP Inputs General'!$B50='DNSP Inputs General'!$A$42,G$7,G$8))*'DNSP Inputs General'!$D50) ->  | H15: =IF(SUM('DNSP Inputs General'!$O50:$U50)=0,"",IF('DNSP Inputs General'!$B50='DNSP Inputs General'!$A$41,H$6,IF('DNSP Inputs General'!$B50='DNSP Inputs General'!$A$42,H$7,H$8))*'DNSP Inputs General'!$D50) ->  | P15: =IF(C15="","",(D15/'Charges Summary'!D$4)/C15-1) ->  | Q15: =IF(D15="","",(E15/'Charges Summary'!E$4)/D15-1) ->  | R15: =IF(E15="","",(F15/'Charges Summary'!F$4)/E15-1) ->  | S15: =IF(F15="","",(G15/'Charges Summary'!G$4)/F15-1) ->  | T15: =IF(G15="","",(H15/'Charges Summary'!H$4)/G15-1) ->  | V15: =SUM('DNSP Inputs General'!Q50:U50)/5 -> 0 | W15: 0
A16: ='DNSP Inputs General'!A51 -> Sodium high pressure 70 watt | C16: =IF('DNSP Inputs General'!E51="","",'DNSP Inputs General'!E51) -> 138.42 | D16: =IF(SUM('DNSP Inputs General'!$O51:$U51)=0,"",IF('DNSP Inputs General'!$B51='DNSP Inputs General'!$A$41,D$6,IF('DNSP Inputs General'!$B51='DNSP Inputs General'!$A$42,D$7,D$8))*'DNSP Inputs General'!$D51) -> 197.8976711 | E16: =IF(SUM('DNSP Inputs General'!$O51:$U51)=0,"",IF('DNSP Inputs General'!$B51='DNSP Inputs General'!$A$41,E$6,IF('DNSP Inputs General'!$B51='DNSP Inputs General'!$A$42,E$7,E$8))*'DNSP Inputs General'!$D51) -> 200.4116872 | F16: =IF(SUM('DNSP Inputs General'!$O51:$U51)=0,"",IF('DNSP Inputs General'!$B51='DNSP Inputs General'!$A$41,F$6,IF('DNSP Inputs General'!$B51='DNSP Inputs General'!$A$42,F$7,F$8))*'DNSP Inputs General'!$D51) -> 214.4436575 | G16: =IF(SUM('DNSP Inputs General'!$O51:$U51)=0,"",IF('DNSP Inputs General'!$B51='DNSP Inputs General'!$A$41,G$6,IF('DNSP Inputs General'!$B51='DNSP Inputs General'!$A$42,G$7,G$8))*'DNSP Inputs General'!$D51) -> 236.6163792 | H16: =IF(SUM('DNSP Inputs General'!$O51:$U51)=0,"",IF('DNSP Inputs General'!$B51='DNSP Inputs General'!$A$41,H$6,IF('DNSP Inputs General'!$B51='DNSP Inputs General'!$A$42,H$7,H$8))*'DNSP Inputs General'!$D51) -> 269.0696757 | J16: 0.4296898652 | K16: 0.01270361628 | L16: 0.07001572866 | M16: 0.1033964907 | N16: 0.1371557483 | P16: =IF(C16="","",(D16/'Charges Summary'!D$4)/(C16/'Charges Summary'!C$4)-1) -> 0.4016651509 | Q16: =IF(D16="","",(E16/'Charges Summary'!E$4)/(D16/'Charges Summary'!D$4)-1) -> -0.007147352963 | R16: =IF(E16="","",(F16/'Charges Summary'!F$4)/(E16/'Charges Summary'!E$4)-1) -> 0.04904133006 | S16: =IF(F16="","",(G16/'Charges Summary'!G$4)/(F16/'Charges Summary'!F$4)-1) -> 0.08176776399 | T16: =IF(G16="","",(H16/'Charges Summary'!H$4)/(G16/'Charges Summary'!G$4)-1) -> 0.1148652741 | V16: =SUM('DNSP Inputs General'!Q51:U51)/5 -> 110.7146212 | W16: 0.002100476746 | Y16: 197.286427 | Z16: 200.1310737 | AA16: 214.5021329 | AB16: 237.2117532 | AC16: 270.2901339 | AE16: =D16-Y16 -> 0.6112441272 | AF16: 0.2806134707 | AG16: -0.05847541746 | AH16: -0.5953740583 | AI16: -1.220458153
A17: ='DNSP Inputs General'!A52 -> Sodium high pressure 100 watt | C17: =IF('DNSP Inputs General'!E52="","",'DNSP Inputs General'!E52) -> 113.85 | D17: =IF(SUM('DNSP Inputs General'!$O52:$U52)=0,"",IF('DNSP Inputs General'!$B52='DNSP Inputs General'!$A$41,D$6,IF('DNSP Inputs General'!$B52='DNSP Inputs General'!$A$42,D$7,D$8))*'DNSP Inputs General'!$D52) -> 140.9199889 | E17: =IF(SUM('DNSP Inputs General'!$O52:$U52)=0,"",IF('DNSP Inputs General'!$B52='DNSP Inputs General'!$A$41,E$6,IF('DNSP Inputs General'!$B52='DNSP Inputs General'!$A$42,E$7,E$8))*'DNSP Inputs General'!$D52) -> 142.8615144 | F17: =IF(SUM('DNSP Inputs General'!$O52:$U52)=0,"",IF('DNSP Inputs General'!$B52='DNSP Inputs General'!$A$41,F$6,IF('DNSP Inputs General'!$B52='DNSP Inputs General'!$A$42,F$7,F$8))*'DNSP Inputs General'!$D52) -> 145.0798568 | G17: =IF(SUM('DNSP Inputs General'!$O52:$U52)=0,"",IF('DNSP Inputs General'!$B52='DNSP Inputs General'!$A$41,G$6,IF('DNSP Inputs General'!$B52='DNSP Inputs General'!$A$42,G$7,G$8))*'DNSP Inputs General'!$D52) -> 157.0350888 | H17: =IF(SUM('DNSP Inputs General'!$O52:$U52)=0,"",IF('DNSP Inputs General'!$B52='DNSP Inputs General'!$A$41,H$6,IF('DNSP Inputs General'!$B52='DNSP Inputs General'!$A$42,H$7,H$8))*'DNSP Inputs General'!$D52) -> 174.1622045 | J17: 0.2377688964 | K17: 0.01377750303 | L17: 0.01552792114 | M17: 0.08240449284 | N17: 0.1090655336 | P17: =IF(C17="","",(D17/'Charges Summary'!D$4)/(C17/'Charges Summary'!C$4)-1) -> 0.213506208 | Q17: =IF(D17="","",(E17/'Charges Summary'!E$4)/(D17/'Charges Summary'!D$4)-1) -> -0.006094516489 | R17: =IF(E17="","",(F17/'Charges Summary'!F$4)/(E17/'Charges Summary'!E$4)-1) -> -0.004378409997 | S17: =IF(F17="","",(G17/'Charges Summary'!G$4)/(F17/'Charges Summary'!F$4)-1) -> 0.06118725025 | T17: =IF(G17="","",(H17/'Charges Summary'!H$4)/(G17/'Charges Summary'!G$4)-1) -> 0.08732568253 | V17: =SUM('DNSP Inputs General'!Q52:U52)/5 -> 54.7618875 | W17: 0.001038942012 | Y17: 140.7170165 | Z17: 142.9314835 | AA17: 145.5191062 | AB17: 157.9574387 | AC17: 175.6466085 | AE17: 0.2029723509 | AF17: -0.06996908976 | AG17: -0.4392493961 | AH17: -0.9223498839 | AI17: -1.484404013
A18: ='DNSP Inputs General'!A53 -> Sodium high pressure 220 watt | C18: =IF('DNSP Inputs General'!E53="","",'DNSP Inputs General'!E53) -> 113.47 | D18: =IF(SUM('DNSP Inputs General'!$O53:$U53)=0,"",IF('DNSP Inputs General'!$B53='DNSP Inputs General'!$A$41,D$6,IF('DNSP Inputs General'!$B53='DNSP Inputs General'!$A$42,D$7,D$8))*'DNSP Inputs General'!$D53) -> 140.8008674 | E18: =IF(SUM('DNSP Inputs General'!$O53:$U53)=0,"",IF('DNSP Inputs General'!$B53='DNSP Inputs General'!$A$41,E$6,IF('DNSP Inputs General'!$B53='DNSP Inputs General'!$A$42,E$7,E$8))*'DNSP Inputs General'!$D53) -> 142.7093532 | F18: =IF(SUM('DNSP Inputs General'!$O53:$U53)=0,"",IF('DNSP Inputs General'!$B53='DNSP Inputs General'!$A$41,F$6,IF('DNSP Inputs General'!$B53='DNSP Inputs General'!$A$42,F$7,F$8))*'DNSP Inputs General'!$D53) -> 143.7713239 | G18: =IF(SUM('DNSP Inputs General'!$O53:$U53)=0,"",IF('DNSP Inputs General'!$B53='DNSP Inputs General'!$A$41,G$6,IF('DNSP Inputs General'!$B53='DNSP Inputs General'!$A$42,G$7,G$8))*'DNSP Inputs General'!$D53) -> 155.6775255 | H18: =IF(SUM('DNSP Inputs General'!$O53:$U53)=0,"",IF('DNSP Inputs General'!$B53='DNSP Inputs General'!$A$41,H$6,IF('DNSP Inputs General'!$B53='DNSP Inputs General'!$A$42,H$7,H$8))*'DNSP Inputs General'!$D53) -> 172.7384408 | J18: 0.2408642582 | K18: 0.01355450303 | L18: 0.007441493847 | M18: 0.08281346523 | N18: 0.109591383 | P18: =IF(C18="","",(D18/'Charges Summary'!D$4)/(C18/'Charges Summary'!C$4)-1) -> 0.2165408947 | Q18: =IF(D18="","",(E18/'Charges Summary'!E$4)/(D18/'Charges Summary'!D$4)-1) -> -0.006313145253 | R18: =IF(E18="","",(F18/'Charges Summary'!F$4)/(E18/'Charges Summary'!E$4)-1) -> -0.01230632751 | S18: =IF(F18="","",(G18/'Charges Summary'!G$4)/(F18/'Charges Summary'!F$4)-1) -> 0.06158820599 | T18: =IF(G18="","",(H18/'Charges Summary'!H$4)/(G18/'Charges Summary'!G$4)-1) -> 0.08784122427 | V18: =SUM('DNSP Inputs General'!Q53:U53)/5 -> 70.6605 | W18: 0.001340570338 | Y18: 140.589836 | Z18: 142.7688858 | AA18: 144.2043301 | AB18: 156.5874806 | AC18: 174.2031497 | AE18: 0.2110314284 | AF18: -0.05953268514 | AG18: -0.4330061139 | AH18: -0.9099551567 | AI18: -1.464708941
A19: ='DNSP Inputs General'!A54 -> Sodium high pressure 360 watt | C19: =IF('DNSP Inputs General'!E54="","",'DNSP Inputs General'!E54) -> 115.5 | D19: =IF(SUM('DNSP Inputs General'!$O54:$U54)=0,"",IF('DNSP Inputs General'!$B54='DNSP Inputs General'!$A$41,D$6,IF('DNSP Inputs General'!$B54='DNSP Inputs General'!$A$42,D$7,D$8))*'DNSP Inputs General'!$D54) -> 143.3302243 | E19: =IF(SUM('DNSP Inputs General'!$O54:$U54)=0,"",IF('DNSP Inputs General'!$B54='DNSP Inputs General'!$A$41,E$6,IF('DNSP Inputs General'!$B54='DNSP Inputs General'!$A$42,E$7,E$8))*'DNSP Inputs General'!$D54) -> 145.2729942 | F19: =IF(SUM('DNSP Inputs General'!$O54:$U54)=0,"",IF('DNSP Inputs General'!$B54='DNSP Inputs General'!$A$41,F$6,IF('DNSP Inputs General'!$B54='DNSP Inputs General'!$A$42,F$7,F$8))*'DNSP Inputs General'!$D54) -> 146.3540423 | G19: =IF(SUM('DNSP Inputs General'!$O54:$U54)=0,"",IF('DNSP Inputs General'!$B54='DNSP Inputs General'!$A$41,G$6,IF('DNSP Inputs General'!$B54='DNSP Inputs General'!$A$42,G$7,G$8))*'DNSP Inputs General'!$D54) -> 158.4741277 | H19: =IF(SUM('DNSP Inputs General'!$O54:$U54)=0,"",IF('DNSP Inputs General'!$B54='DNSP Inputs General'!$A$41,H$6,IF('DNSP Inputs General'!$B54='DNSP Inputs General'!$A$42,H$7,H$8))*'DNSP Inputs General'!$D54) -> 175.8415266 | J19: 0.2409543228 | K19: 0.01355450303 | L19: 0.007441493847 | M19: 0.08281346523 | N19: 0.109591383 | P19: =IF(C19="","",(D19/'Charges Summary'!D$4)/(C19/'Charges Summary'!C$4)-1) -> 0.2166291938 | Q19: =IF(D19="","",(E19/'Charges Summary'!E$4)/(D19/'Charges Summary'!D$4)-1) -> -0.006313145253 | R19: =IF(E19="","",(F19/'Charges Summary'!F$4)/(E19/'Charges Summary'!E$4)-1) -> -0.01230632751 | S19: =IF(F19="","",(G19/'Charges Summary'!G$4)/(F19/'Charges Summary'!F$4)-1) -> 0.06158820599 | T19: =IF(G19="","",(H19/'Charges Summary'!H$4)/(G19/'Charges Summary'!G$4)-1) -> 0.08784122427 | V19: =SUM('DNSP Inputs General'!Q54:U54)/5 -> 9.08905 | W19: 0.0001724373707 | Y19: 143.1154019 | Z19: 145.3335964 | AA19: 146.794827 | AB19: 159.4004294 | AC19: 177.3325476 | AE19: 0.2148224122 | AF19: -0.06060213457 | AG19: -0.4407846668 | AH19: -0.9263016565 | AI19: -1.491021078
A20: ='DNSP Inputs General'!A55 -> Sodium high pressure 400 watt | C20: =IF('DNSP Inputs General'!E55="","",'DNSP Inputs General'!E55) -> 124.56 | D20: =IF(SUM('DNSP Inputs General'!$O55:$U55)=0,"",IF('DNSP Inputs General'!$B55='DNSP Inputs General'!$A$41,D$6,IF('DNSP Inputs General'!$B55='DNSP Inputs General'!$A$42,D$7,D$8))*'DNSP Inputs General'!$D55) -> 154.5718105 | E20: =IF(SUM('DNSP Inputs General'!$O55:$U55)=0,"",IF('DNSP Inputs General'!$B55='DNSP Inputs General'!$A$41,E$6,IF('DNSP Inputs General'!$B55='DNSP Inputs General'!$A$42,E$7,E$8))*'DNSP Inputs General'!$D55) -> 156.6669546 | F20: =IF(SUM('DNSP Inputs General'!$O55:$U55)=0,"",IF('DNSP Inputs General'!$B55='DNSP Inputs General'!$A$41,F$6,IF('DNSP Inputs General'!$B55='DNSP Inputs General'!$A$42,F$7,F$8))*'DNSP Inputs General'!$D55) -> 157.8327908 | G20: =IF(SUM('DNSP Inputs General'!$O55:$U55)=0,"",IF('DNSP Inputs General'!$B55='DNSP Inputs General'!$A$41,G$6,IF('DNSP Inputs General'!$B55='DNSP Inputs General'!$A$42,G$7,G$8))*'DNSP Inputs General'!$D55) -> 170.9034711 | H20: =IF(SUM('DNSP Inputs General'!$O55:$U55)=0,"",IF('DNSP Inputs General'!$B55='DNSP Inputs General'!$A$41,H$6,IF('DNSP Inputs General'!$B55='DNSP Inputs General'!$A$42,H$7,H$8))*'DNSP Inputs General'!$D55) -> 189.6330188 | J20: 0.2409426019 | K20: 0.01355450303 | L20: 0.007441493847 | M20: 0.08281346523 | N20: 0.109591383 | P20: =IF(C20="","",(D20/'Charges Summary'!D$4)/(C20/'Charges Summary'!C$4)-1) -> 0.2166177027 | Q20: =IF(D20="","",(E20/'Charges Summary'!E$4)/(D20/'Charges Summary'!D$4)-1) -> -0.006313145253 | R20: =IF(E20="","",(F20/'Charges Summary'!F$4)/(E20/'Charges Summary'!E$4)-1) -> -0.01230632751 | S20: =IF(F20="","",(G20/'Charges Summary'!G$4)/(F20/'Charges Summary'!F$4)-1) -> 0.06158820599 | T20: =IF(G20="","",(H20/'Charges Summary'!H$4)/(G20/'Charges Summary'!G$4)-1) -> 0.08784122427 | V20: =SUM('DNSP Inputs General'!Q55:U55)/5 -> 87.24570425 | W20: 0.001655224676 | Y20: 154.3401393 | Z20: 156.7323098 | AA20: 158.3081468 | AB20: 171.9024238 | AC20: 191.2409827 | AE20: 0.2316712288 | AF20: -0.06535524317 | AG20: -0.4753560132 | AH20: -0.9989527668 | AI20: -1.607963908
A21: ='DNSP Inputs General'!A56 -> Sodium high pressure 1000 watt | C21: =IF('DNSP Inputs General'!E56="","",'DNSP Inputs General'!E56) ->  | D21: =IF(SUM('DNSP Inputs General'!$O56:$U56)=0,"",IF('DNSP Inputs General'!$B56='DNSP Inputs General'!$A$41,D$6,IF('DNSP Inputs General'!$B56='DNSP Inputs General'!$A$42,D$7,D$8))*'DNSP Inputs General'!$D56) ->  | E21: =IF(SUM('DNSP Inputs General'!$O56:$U56)=0,"",IF('DNSP Inputs General'!$B56='DNSP Inputs General'!$A$41,E$6,IF('DNSP Inputs General'!$B56='DNSP Inputs General'!$A$42,E$7,E$8))*'DNSP Inputs General'!$D56) ->  | F21: =IF(SUM('DNSP Inputs General'!$O56:$U56)=0,"",IF('DNSP Inputs General'!$B56='DNSP Inputs General'!$A$41,F$6,IF('DNSP Inputs General'!$B56='DNSP Inputs General'!$A$42,F$7,F$8))*'DNSP Inputs General'!$D56) ->  | G21: =IF(SUM('DNSP Inputs General'!$O56:$U56)=0,"",IF('DNSP Inputs General'!$B56='DNSP Inputs General'!$A$41,G$6,IF('DNSP Inputs General'!$B56='DNSP Inputs General'!$A$42,G$7,G$8))*'DNSP Inputs General'!$D56) ->  | H21: =IF(SUM('DNSP Inputs General'!$O56:$U56)=0,"",IF('DNSP Inputs General'!$B56='DNSP Inputs General'!$A$41,H$6,IF('DNSP Inputs General'!$B56='DNSP Inputs General'!$A$42,H$7,H$8))*'DNSP Inputs General'!$D56) ->  | P21: =IF(C21="","",(D21/'Charges Summary'!D$4)/C21-1) ->  | Q21: =IF(D21="","",(E21/'Charges Summary'!E$4)/D21-1) ->  | R21: =IF(E21="","",(F21/'Charges Summary'!F$4)/E21-1) ->  | S21: =IF(F21="","",(G21/'Charges Summary'!G$4)/F21-1) ->  | T21: =IF(G21="","",(H21/'Charges Summary'!H$4)/G21-1) ->  | V21: =SUM('DNSP Inputs General'!Q56:U56)/5 -> 0 | W21: 0
A22: ='DNSP Inputs General'!A57 -> Metal halide 70 watt | C22: =IF('DNSP Inputs General'!E57="","",'DNSP Inputs General'!E57) -> 138.42 | D22: =IF(SUM('DNSP Inputs General'!$O57:$U57)=0,"",IF('DNSP Inputs General'!$B57='DNSP Inputs General'!$A$41,D$6,IF('DNSP Inputs General'!$B57='DNSP Inputs General'!$A$42,D$7,D$8))*'DNSP Inputs General'!$D57) -> 197.8976711 | E22: =IF(SUM('DNSP Inputs General'!$O57:$U57)=0,"",IF('DNSP Inputs General'!$B57='DNSP Inputs General'!$A$41,E$6,IF('DNSP Inputs General'!$B57='DNSP Inputs General'!$A$42,E$7,E$8))*'DNSP Inputs General'!$D57) -> 200.4116872 | F22: =IF(SUM('DNSP Inputs General'!$O57:$U57)=0,"",IF('DNSP Inputs General'!$B57='DNSP Inputs General'!$A$41,F$6,IF('DNSP Inputs General'!$B57='DNSP Inputs General'!$A$42,F$7,F$8))*'DNSP Inputs General'!$D57) -> 214.4436575 | G22: =IF(SUM('DNSP Inputs General'!$O57:$U57)=0,"",IF('DNSP Inputs General'!$B57='DNSP Inputs General'!$A$41,G$6,IF('DNSP Inputs General'!$B57='DNSP Inputs General'!$A$42,G$7,G$8))*'DNSP Inputs General'!$D57) -> 236.6163792 | H22: =IF(SUM('DNSP Inputs General'!$O57:$U57)=0,"",IF('DNSP Inputs General'!$B57='DNSP Inputs General'!$A$41,H$6,IF('DNSP Inputs General'!$B57='DNSP Inputs General'!$A$42,H$7,H$8))*'DNSP Inputs General'!$D57) -> 269.0696757 | J22: 0.4296898652 | K22: 0.01270361628 | L22: 0.07001572866 | M22: 0.1033964907 | N22: 0.1371557483 | P22: =IF(C22="","",(D22/'Charges Summary'!D$4)/(C22/'Charges Summary'!C$4)-1) -> 0.4016651509 | Q22: =IF(D22="","",(E22/'Charges Summary'!E$4)/(D22/'Charges Summary'!D$4)-1) -> -0.007147352963 | R22: =IF(E22="","",(F22/'Charges Summary'!F$4)/(E22/'Charges Summary'!E$4)-1) -> 0.04904133006 | S22: =IF(F22="","",(G22/'Charges Summary'!G$4)/(F22/'Charges Summary'!F$4)-1) -> 0.08176776399 | T22: =IF(G22="","",(H22/'Charges Summary'!H$4)/(G22/'Charges Summary'!G$4)-1) -> 0.1148652741 | V22: =SUM('DNSP Inputs General'!Q57:U57)/5 -> 290.6811852 | W22: 0.005514800699 | Y22: 197.286427 | Z22: 200.1310737 | AA22: 214.5021329 | AB22: 237.2117532 | AC22: 270.2901339 | AE22: =D22-Y22 -> 0.6112441272 | AF22: 0.2806134707 | AG22: -0.05847541746 | AH22: -0.5953740583 | AI22: -1.220458153
A23: ='DNSP Inputs General'!A58 -> Metal halide 100 watt | C23: =IF('DNSP Inputs General'!E58="","",'DNSP Inputs General'!E58) -> 175.25 | D23: =IF(SUM('DNSP Inputs General'!$O58:$U58)=0,"",IF('DNSP Inputs General'!$B58='DNSP Inputs General'!$A$41,D$6,IF('DNSP Inputs General'!$B58='DNSP Inputs General'!$A$42,D$7,D$8))*'DNSP Inputs General'!$D58) -> 216.9062574 | E23: =IF(SUM('DNSP Inputs General'!$O58:$U58)=0,"",IF('DNSP Inputs General'!$B58='DNSP Inputs General'!$A$41,E$6,IF('DNSP Inputs General'!$B58='DNSP Inputs General'!$A$42,E$7,E$8))*'DNSP Inputs General'!$D58) -> 219.894684 | F23: =IF(SUM('DNSP Inputs General'!$O58:$U58)=0,"",IF('DNSP Inputs General'!$B58='DNSP Inputs General'!$A$41,F$6,IF('DNSP Inputs General'!$B58='DNSP Inputs General'!$A$42,F$7,F$8))*'DNSP Inputs General'!$D58) -> 223.3091913 | G23: =IF(SUM('DNSP Inputs General'!$O58:$U58)=0,"",IF('DNSP Inputs General'!$B58='DNSP Inputs General'!$A$41,G$6,IF('DNSP Inputs General'!$B58='DNSP Inputs General'!$A$42,G$7,G$8))*'DNSP Inputs General'!$D58) -> 241.7108719 | H23: =IF(SUM('DNSP Inputs General'!$O58:$U58)=0,"",IF('DNSP Inputs General'!$B58='DNSP Inputs General'!$A$41,H$6,IF('DNSP Inputs General'!$B58='DNSP Inputs General'!$A$42,H$7,H$8))*'DNSP Inputs General'!$D58) -> 268.0731972 | J23: 0.2376961903 | K23: 0.01377750303 | L23: 0.01552792114 | M23: 0.08240449284 | N23: 0.1090655336 | P23: =IF(C23="","",(D23/'Charges Summary'!D$4)/(C23/'Charges Summary'!C$4)-1) -> 0.2134349271 | Q23: =IF(D23="","",(E23/'Charges Summary'!E$4)/(D23/'Charges Summary'!D$4)-1) -> -0.006094516489 | R23: =IF(E23="","",(F23/'Charges Summary'!F$4)/(E23/'Charges Summary'!E$4)-1) -> -0.004378409997 | S23: =IF(F23="","",(G23/'Charges Summary'!G$4)/(F23/'Charges Summary'!F$4)-1) -> 0.06118725025 | T23: =IF(G23="","",(H23/'Charges Summary'!H$4)/(G23/'Charges Summary'!G$4)-1) -> 0.08732568253 | V23: =SUM('DNSP Inputs General'!Q58:U58)/5 -> 25.7910825 | W23: 0.0004893081734 | Y23: 216.5938391 | Z23: 220.0023815 | AA23: 223.9852908 | AB23: 243.1305673 | AC23: 270.3580151 | AE23: 0.3124182265 | AF23: -0.1076975205 | AG23: -0.6760995606 | AH23: -1.41969541 | AI23: -2.284817941
A24: ='DNSP Inputs General'!A59 -> Metal halide 150 watt | C24: =IF('DNSP Inputs General'!E59="","",'DNSP Inputs General'!E59) -> 176.36 | D24: =IF(SUM('DNSP Inputs General'!$O59:$U59)=0,"",IF('DNSP Inputs General'!$B59='DNSP Inputs General'!$A$41,D$6,IF('DNSP Inputs General'!$B59='DNSP Inputs General'!$A$42,D$7,D$8))*'DNSP Inputs General'!$D59) -> 218.2878259 | E24: =IF(SUM('DNSP Inputs General'!$O59:$U59)=0,"",IF('DNSP Inputs General'!$B59='DNSP Inputs General'!$A$41,E$6,IF('DNSP Inputs General'!$B59='DNSP Inputs General'!$A$42,E$7,E$8))*'DNSP Inputs General'!$D59) -> 221.2952871 | F24: =IF(SUM('DNSP Inputs General'!$O59:$U59)=0,"",IF('DNSP Inputs General'!$B59='DNSP Inputs General'!$A$41,F$6,IF('DNSP Inputs General'!$B59='DNSP Inputs General'!$A$42,F$7,F$8))*'DNSP Inputs General'!$D59) -> 224.7315428 | G24: =IF(SUM('DNSP Inputs General'!$O59:$U59)=0,"",IF('DNSP Inputs General'!$B59='DNSP Inputs General'!$A$41,G$6,IF('DNSP Inputs General'!$B59='DNSP Inputs General'!$A$42,G$7,G$8))*'DNSP Inputs General'!$D59) -> 243.2504316 | H24: =IF(SUM('DNSP Inputs General'!$O59:$U59)=0,"",IF('DNSP Inputs General'!$B59='DNSP Inputs General'!$A$41,H$6,IF('DNSP Inputs General'!$B59='DNSP Inputs General'!$A$42,H$7,H$8))*'DNSP Inputs General'!$D59) -> 269.7806698 | J24: 0.237739997 | K24: 0.01377750303 | L24: 0.01552792114 | M24: 0.08240449284 | N24: 0.1090655336 | P24: =IF(C24="","",(D24/'Charges Summary'!D$4)/(C24/'Charges Summary'!C$4)-1) -> 0.2134778751 | Q24: =IF(D24="","",(E24/'Charges Summary'!E$4)/(D24/'Charges Summary'!D$4)-1) -> -0.006094516489 | R24: =IF(E24="","",(F24/'Charges Summary'!F$4)/(E24/'Charges Summary'!E$4)-1) -> -0.004378409997 | S24: =IF(F24="","",(G24/'Charges Summary'!G$4)/(F24/'Charges Summary'!F$4)-1) -> 0.06118725025 | T24: =IF(G24="","",(H24/'Charges Summary'!H$4)/(G24/'Charges Summary'!G$4)-1) -> 0.08732568253 | V24: =SUM('DNSP Inputs General'!Q59:U59)/5 -> 150.9226637 | W24: 0.00286330335 | Y24: 217.9734177 | Z24: 221.4036705 | AA24: 225.4119487 | AB24: 244.6791697 | AC24: 272.0800407 | AE24: 0.3144081515 | AF24: -0.108383492 | AG24: -0.6804059272 | AH24: -1.428738055 | AI24: -2.299370922
A25: ='DNSP Inputs General'!A60 -> Metal halide 250 watt | C25: =IF('DNSP Inputs General'!E60="","",'DNSP Inputs General'!E60) -> 135.89 | D25: =IF(SUM('DNSP Inputs General'!$O60:$U60)=0,"",IF('DNSP Inputs General'!$B60='DNSP Inputs General'!$A$41,D$6,IF('DNSP Inputs General'!$B60='DNSP Inputs General'!$A$42,D$7,D$8))*'DNSP Inputs General'!$D60) -> 168.6237933 | E25: =IF(SUM('DNSP Inputs General'!$O60:$U60)=0,"",IF('DNSP Inputs General'!$B60='DNSP Inputs General'!$A$41,E$6,IF('DNSP Inputs General'!$B60='DNSP Inputs General'!$A$42,E$7,E$8))*'DNSP Inputs General'!$D60) -> 170.909405 | F25: =IF(SUM('DNSP Inputs General'!$O60:$U60)=0,"",IF('DNSP Inputs General'!$B60='DNSP Inputs General'!$A$41,F$6,IF('DNSP Inputs General'!$B60='DNSP Inputs General'!$A$42,F$7,F$8))*'DNSP Inputs General'!$D60) -> 172.1812263 | G25: =IF(SUM('DNSP Inputs General'!$O60:$U60)=0,"",IF('DNSP Inputs General'!$B60='DNSP Inputs General'!$A$41,G$6,IF('DNSP Inputs General'!$B60='DNSP Inputs General'!$A$42,G$7,G$8))*'DNSP Inputs General'!$D60) -> 186.4401503 | H25: =IF(SUM('DNSP Inputs General'!$O60:$U60)=0,"",IF('DNSP Inputs General'!$B60='DNSP Inputs General'!$A$41,H$6,IF('DNSP Inputs General'!$B60='DNSP Inputs General'!$A$42,H$7,H$8))*'DNSP Inputs General'!$D60) -> 206.8723842 | J25: =IF(C25="","",D25/C25-1) -> 0.2408844894 | K25: 0.01355450303 | L25: 0.007441493847 | M25: 0.08281346523 | N25: 0.109591383 | P25: =IF(C25="","",(D25/'Charges Summary'!D$4)/(C25/'Charges Summary'!C$4)-1) -> 0.2165607293 | Q25: =IF(D25="","",(E25/'Charges Summary'!E$4)/(D25/'Charges Summary'!D$4)-1) -> -0.006313145253 | R25: =IF(E25="","",(F25/'Charges Summary'!F$4)/(E25/'Charges Summary'!E$4)-1) -> -0.01230632751 | S25: =IF(F25="","",(G25/'Charges Summary'!G$4)/(F25/'Charges Summary'!F$4)-1) -> 0.06158820599 | T25: =IF(G25="","",(H25/'Charges Summary'!H$4)/(G25/'Charges Summary'!G$4)-1) -> 0.08784122427 | V25: =SUM('DNSP Inputs General'!Q60:U60)/5 -> 74.193525 | W25: 0.001407598855 | Y25: 168.371061 | Z25: 170.9807016 | AA25: 172.6997965 | AB25: 187.5299169 | AC25: 208.6265266 | AE25: 0.2527322496 | AF25: -0.07129662891 | AG25: -0.5185701963 | AH25: -1.089766655 | AI25: -1.754142445
A26: ='DNSP Inputs General'!A61 -> Metal halide 400 watt | C26: =IF('DNSP Inputs General'!E61="","",'DNSP Inputs General'!E61) -> 135.89 | D26: =IF(SUM('DNSP Inputs General'!$O61:$U61)=0,"",IF('DNSP Inputs General'!$B61='DNSP Inputs General'!$A$41,D$6,IF('DNSP Inputs General'!$B61='DNSP Inputs General'!$A$42,D$7,D$8))*'DNSP Inputs General'!$D61) -> 168.6237933 | E26: =IF(SUM('DNSP Inputs General'!$O61:$U61)=0,"",IF('DNSP Inputs General'!$B61='DNSP Inputs General'!$A$41,E$6,IF('DNSP Inputs General'!$B61='DNSP Inputs General'!$A$42,E$7,E$8))*'DNSP Inputs General'!$D61) -> 170.909405 | F26: =IF(SUM('DNSP Inputs General'!$O61:$U61)=0,"",IF('DNSP Inputs General'!$B61='DNSP Inputs General'!$A$41,F$6,IF('DNSP Inputs General'!$B61='DNSP Inputs General'!$A$42,F$7,F$8))*'DNSP Inputs General'!$D61) -> 172.1812263 | G26: =IF(SUM('DNSP Inputs General'!$O61:$U61)=0,"",IF('DNSP Inputs General'!$B61='DNSP Inputs General'!$A$41,G$6,IF('DNSP Inputs General'!$B61='DNSP Inputs General'!$A$42,G$7,G$8))*'DNSP Inputs General'!$D61) -> 186.4401503 | H26: =IF(SUM('DNSP Inputs General'!$O61:$U61)=0,"",IF('DNSP Inputs General'!$B61='DNSP Inputs General'!$A$41,H$6,IF('DNSP Inputs General'!$B61='DNSP Inputs General'!$A$42,H$7,H$8))*'DNSP Inputs General'!$D61) -> 206.8723842 | J26: 0.2408844894 | K26: 0.01355450303 | L26: 0.007441493847 | M26: 0.08281346523 | N26: 0.109591383 | P26: =IF(C26="","",(D26/'Charges Summary'!D$4)/(C26/'Charges Summary'!C$4)-1) -> 0.2165607293 | Q26: =IF(D26="","",(E26/'Charges Summary'!E$4)/(D26/'Charges Summary'!D$4)-1) -> -0.006313145253 | R26: =IF(E26="","",(F26/'Charges Summary'!F$4)/(E26/'Charges Summary'!E$4)-1) -> -0.01230632751 | S26: =IF(F26="","",(G26/'Charges Summary'!G$4)/(F26/'Charges Summary'!F$4)-1) -> 0.06158820599 | T26: =IF(G26="","",(H26/'Charges Summary'!H$4)/(G26/'Charges Summary'!G$4)-1) -> 0.08784122427 | V26: =SUM('DNSP Inputs General'!Q61:U61)/5 -> 8.8325625 | W26: 0.0001675712923 | Y26: 168.371061 | Z26: 170.9807016 | AA26: 172.6997965 | AB26: 187.5299169 | AC26: 208.6265266 | AE26: 0.2527322496 | AF26: -0.07129662891 | AG26: -0.5185701963 | AH26: -1.089766655 | AI26: -1.754142445
A27: ='DNSP Inputs General'!A62 -> Metal halide 1000 watt | C27: =IF('DNSP Inputs General'!E62="","",'DNSP Inputs General'!E62) -> 202.7 | D27: =IF(SUM('DNSP Inputs General'!$O62:$U62)=0,"",IF('DNSP Inputs General'!$B62='DNSP Inputs General'!$A$41,D$6,IF('DNSP Inputs General'!$B62='DNSP Inputs General'!$A$42,D$7,D$8))*'DNSP Inputs General'!$D62) -> 251.5304916 | E27: =IF(SUM('DNSP Inputs General'!$O62:$U62)=0,"",IF('DNSP Inputs General'!$B62='DNSP Inputs General'!$A$41,E$6,IF('DNSP Inputs General'!$B62='DNSP Inputs General'!$A$42,E$7,E$8))*'DNSP Inputs General'!$D62) -> 254.9398624 | F27: =IF(SUM('DNSP Inputs General'!$O62:$U62)=0,"",IF('DNSP Inputs General'!$B62='DNSP Inputs General'!$A$41,F$6,IF('DNSP Inputs General'!$B62='DNSP Inputs General'!$A$42,F$7,F$8))*'DNSP Inputs General'!$D62) -> 256.8369959 | G27: =IF(SUM('DNSP Inputs General'!$O62:$U62)=0,"",IF('DNSP Inputs General'!$B62='DNSP Inputs General'!$A$41,G$6,IF('DNSP Inputs General'!$B62='DNSP Inputs General'!$A$42,G$7,G$8))*'DNSP Inputs General'!$D62) -> 278.1065575 | H27: =IF(SUM('DNSP Inputs General'!$O62:$U62)=0,"",IF('DNSP Inputs General'!$B62='DNSP Inputs General'!$A$41,H$6,IF('DNSP Inputs General'!$B62='DNSP Inputs General'!$A$42,H$7,H$8))*'DNSP Inputs General'!$D62) -> 308.5846397 | J27: 0.240900304 | K27: 0.01355450303 | L27: 0.007441493847 | M27: 0.08281346523 | N27: 0.109591383 | P27: =IF(C27="","",(D27/'Charges Summary'!D$4)/(C27/'Charges Summary'!C$4)-1) -> 0.2165762339 | Q27: =IF(D27="","",(E27/'Charges Summary'!E$4)/(D27/'Charges Summary'!D$4)-1) -> -0.006313145253 | R27: =IF(E27="","",(F27/'Charges Summary'!F$4)/(E27/'Charges Summary'!E$4)-1) -> -0.01230632751 | S27: =IF(F27="","",(G27/'Charges Summary'!G$4)/(F27/'Charges Summary'!F$4)-1) -> 0.06158820599 | T27: =IF(G27="","",(H27/'Charges Summary'!H$4)/(G27/'Charges Summary'!G$4)-1) -> 0.08784122427 | V27: =SUM('DNSP Inputs General'!Q62:U62)/5 -> 4 | W27: 7.588796219e-05 | Y27: 251.1534994 | Z27: 255.0462132 | AA27: 257.6105297 | AB27: 279.7321261 | AC27: 311.2012356 | AE27: 0.3769922723 | AF27: -0.1063508048 | AG27: -0.7735338761 | AH27: -1.625568593 | AI27: -2.616595813
A30: ='DNSP Inputs General'!A$67 -> Energy Efficient Lights
A31: ='DNSP Inputs General'!A68 -> T5 2X14W | C31: =IF('DNSP Inputs General'!E68="","",'DNSP Inputs General'!E68) -> 43.37 | D31: ='Charges Summary'!D$105 -> 59.58349988 | E31: ='Charges Summary'!E$105 -> 60.39457275 | F31: ='Charges Summary'!F$105 -> 61.26083521 | G31: ='Charges Summary'!G$105 -> 62.24831997 | H31: ='Charges Summary'!H$105 -> 63.38364033 | J31: =IF(C31="","",D31/C31-1) -> 0.3738413623 | K31: 0.01361237366 | L31: 0.01434338253 | M31: 0.01611934862 | N31: 0.01823857025 | P31: =IF(C31="","",(D31/'Charges Summary'!D$4)/(C31/'Charges Summary'!C$4)-1) -> 0.3469113878 | Q31: =IF(D31="","",(E31/'Charges Summary'!E$4)/(D31/'Charges Summary'!D$4)-1) -> -0.006256408998 | R31: =IF(E31="","",(F31/'Charges Summary'!F$4)/(E31/'Charges Summary'!E$4)-1) -> -0.005539729334 | S31: =IF(F31="","",(G31/'Charges Summary'!G$4)/(F31/'Charges Summary'!F$4)-1) -> -0.003798575648 | T31: =IF(G31="","",(H31/'Charges Summary'!H$4)/(G31/'Charges Summary'!G$4)-1) -> -0.001720894903 | V31: =SUM('DNSP Inputs General'!Q68:U68)/5 -> 6937.189456 | W31: 0.1316122928 | Y31: 59.41480237 | Z31: 60.36498247 | AA31: 61.42107188 | AB31: 62.65493243 | AC31: 64.07239041 | AE31: =D31-Y31 -> 0.1686975158 | AF31: =E31-Z31 -> 0.02959027727 | AG31: =F31-AA31 -> -0.1602366754 | AH31: =G31-AB31 -> -0.4066124613 | AI31: =H31-AC31 -> -0.6887500817
A32: ='DNSP Inputs General'!A69 -> T5 2X24W | C32: =IF('DNSP Inputs General'!E69="","",'DNSP Inputs General'!E69) -> 42.77 | D32: ='DNSP Inputs General'!$D69*D31 -> 58.75693248 | E32: ='DNSP Inputs General'!$D69*E31 -> 59.5567538 | F32: ='DNSP Inputs General'!$D69*F31 -> 60.4109991 | G32: ='DNSP Inputs General'!$D69*G31 -> 61.38478506 | H32: ='DNSP Inputs General'!$D69*H31 -> 62.50435577 | J32: 0.3737884611 | K32: 0.01361237366 | L32: 0.01434338253 | M32: 0.01611934862 | N32: 0.01823857025 | P32: =IF(C32="","",(D32/'Charges Summary'!D$4)/(C32/'Charges Summary'!C$4)-1) -> 0.3468595235 | Q32: =IF(D32="","",(E32/'Charges Summary'!E$4)/(D32/'Charges Summary'!D$4)-1) -> -0.006256408998 | R32: =IF(E32="","",(F32/'Charges Summary'!F$4)/(E32/'Charges Summary'!E$4)-1) -> -0.005539729334 | S32: =IF(F32="","",(G32/'Charges Summary'!G$4)/(F32/'Charges Summary'!F$4)-1) -> -0.003798575648 | T32: =IF(G32="","",(H32/'Charges Summary'!H$4)/(G32/'Charges Summary'!G$4)-1) -> -0.001720894903 | V32: =SUM('DNSP Inputs General'!Q69:U69)/5 -> 958.7201188 | W32: 0.01818882903 | Y32: 58.59057521 | Z32: 59.52757401 | AA32: 60.56901291 | AB32: 61.78575682 | AC32: 63.18355122 | AE32: 0.1663572728 | AF32: 0.02917978848 | AG32: -0.1580138047 | AH32: -0.400971762 | AI32: -0.6791954505
A33: ='DNSP Inputs General'!A70 -> CF32 | C33: =IF('DNSP Inputs General'!E70="","",'DNSP Inputs General'!E70) -> 42.01 | D33: ='DNSP Inputs General'!$D70*D31 -> 57.72163662 | E33: ='DNSP Inputs General'!$D70*E31 -> 58.50736511 | F33: ='DNSP Inputs General'!$D70*F31 -> 59.34655862 | G33: ='DNSP Inputs General'!$D70*G31 -> 60.30318649 | H33: ='DNSP Inputs General'!$D70*H31 -> 61.40303039 | J33: 0.3739975391 | K33: 0.01361237366 | L33: 0.01434338253 | M33: 0.01611934862 | N33: 0.01823857025 | P33: =IF(C33="","",(D33/'Charges Summary'!D$4)/(C33/'Charges Summary'!C$4)-1) -> 0.3470645032 | Q33: =IF(D33="","",(E33/'Charges Summary'!E$4)/(D33/'Charges Summary'!D$4)-1) -> -0.006256408998 | R33: =IF(E33="","",(F33/'Charges Summary'!F$4)/(E33/'Charges Summary'!E$4)-1) -> -0.005539729334 | S33: =IF(F33="","",(G33/'Charges Summary'!G$4)/(F33/'Charges Summary'!F$4)-1) -> -0.003798575648 | T33: =IF(G33="","",(H33/'Charges Summary'!H$4)/(G33/'Charges Summary'!G$4)-1) -> -0.001720894903 | V33: =SUM('DNSP Inputs General'!Q70:U70)/5 -> 333.3280681 | W33: 0.006323896957 | Y33: 57.55821056 | Z33: 58.47869946 | AA33: 59.50178823 | AB33: 60.69709314 | AC33: 62.07025844 | AE33: 0.1634260613 | AF33: 0.02866564124 | AG33: -0.1552296049 | AH33: -0.3939066484 | AI33: -0.6672280415
A34: ='DNSP Inputs General'!A71 -> CF42 | C34: =IF('DNSP Inputs General'!E71="","",'DNSP Inputs General'!E71) -> 42.01 | D34: ='DNSP Inputs General'!$D71*D31 -> 57.72163662 | E34: ='DNSP Inputs General'!$D71*E31 -> 58.50736511 | F34: ='DNSP Inputs General'!$D71*F31 -> 59.34655862 | G34: ='DNSP Inputs General'!$D71*G31 -> 60.30318649 | H34: ='DNSP Inputs General'!$D71*H31 -> 61.40303039 | J34: 0.3739975391 | K34: 0.01361237366 | L34: 0.01434338253 | M34: 0.01611934862 | N34: 0.01823857025 | P34: =IF(C34="","",(D34/'Charges Summary'!D$4)/(C34/'Charges Summary'!C$4)-1) -> 0.3470645032 | Q34: =IF(D34="","",(E34/'Charges Summary'!E$4)/(D34/'Charges Summary'!D$4)-1) -> -0.006256408998 | R34: =IF(E34="","",(F34/'Charges Summary'!F$4)/(E34/'Charges Summary'!E$4)-1) -> -0.005539729334 | S34: =IF(F34="","",(G34/'Charges Summary'!G$4)/(F34/'Charges Summary'!F$4)-1) -> -0.003798575648 | T34: =IF(G34="","",(H34/'Charges Summary'!H$4)/(G34/'Charges Summary'!G$4)-1) -> -0.001720894903 | V34: =SUM('DNSP Inputs General'!Q71:U71)/5 -> 149.3762494 | W34: 0.002833964791 | Y34: 57.55821056 | Z34: 58.47869946 | AA34: 59.50178823 | AB34: 60.69709314 | AC34: 62.07025844 | AE34: 0.1634260613 | AF34: 0.02866564124 | AG34: -0.1552296049 | AH34: -0.3939066484 | AI34: -0.6672280415
A35: ='DNSP Inputs General'!A72 -> Category P LED Standard Output | C35: =IF('DNSP Inputs General'!E72="","",'DNSP Inputs General'!E72) -> 29.6 | D35: ='Charges Summary'!D$123 -> 32.70149256 | E35: ='Charges Summary'!E$123 -> 32.86655345 | F35: ='Charges Summary'!F$123 -> 33.06377071 | G35: ='Charges Summary'!G$123 -> 33.34693428 | H35: ='Charges Summary'!H$123 -> 33.72844823 | J35: 0.104780154 | K35: 0.00504750319 | L35: 0.00600054605 | M35: 0.00856416443 | N35: 0.01144075036 | P35: =IF(C35="","",(D35/'Charges Summary'!D$4)/(C35/'Charges Summary'!C$4)-1) -> 0.08312430472 | Q35: =IF(D35="","",(E35/'Charges Summary'!E$4)/(D35/'Charges Summary'!D$4)-1) -> -0.01465339128 | R35: =IF(E35="","",(F35/'Charges Summary'!F$4)/(E35/'Charges Summary'!E$4)-1) -> -0.01371902992 | S35: =IF(F35="","",(G35/'Charges Summary'!G$4)/(F35/'Charges Summary'!F$4)-1) -> -0.01120566347 | T35: =IF(G35="","",(H35/'Charges Summary'!H$4)/(G35/'Charges Summary'!G$4)-1) -> -0.008385464238 | V35: =SUM('DNSP Inputs General'!Q72:U72)/5 -> 18015.42177 | W35: 0.3417884116 | Y35: 32.43398425 | Z35: 32.65805975 | AA35: 32.93028076 | AB35: 33.30564308 | AC35: 33.79091529 | AE35: 0.2675083112 | AF35: 0.2084936971 | AG35: 0.13348995 | AH35: 0.04129120677 | AI35: -0.06246705439
A36: Category P LED High Output | C36: =IF('DNSP Inputs General'!E73="","",'DNSP Inputs General'!E73) -> 29.6 | D36: ='DNSP Inputs General'!$D73*D35 -> 32.70149256 | E36: ='DNSP Inputs General'!$D73*E35 -> 32.86655345 | F36: ='DNSP Inputs General'!$D73*F35 -> 33.06377071 | G36: ='DNSP Inputs General'!$D73*G35 -> 33.34693428 | H36: ='DNSP Inputs General'!$D73*H35 -> 33.72844823 | J36: 0.104780154 | K36: 0.00504750319 | L36: 0.00600054605 | M36: 0.00856416443 | N36: 0.01144075036 | P36: =IF(C36="","",(D36/'Charges Summary'!D$4)/(C36/'Charges Summary'!C$4)-1) -> 0.08312430472 | Q36: =IF(D36="","",(E36/'Charges Summary'!E$4)/(D36/'Charges Summary'!D$4)-1) -> -0.01465339128 | R36: =IF(E36="","",(F36/'Charges Summary'!F$4)/(E36/'Charges Summary'!E$4)-1) -> -0.01371902992 | S36: =IF(F36="","",(G36/'Charges Summary'!G$4)/(F36/'Charges Summary'!F$4)-1) -> -0.01120566347 | T36: =IF(G36="","",(H36/'Charges Summary'!H$4)/(G36/'Charges Summary'!G$4)-1) -> -0.008385464238 | V36: =SUM('DNSP Inputs General'!Q73:U73)/5 -> 1821.631137 | W36: 0.03455996871 | Y36: 32.43398425 | Z36: 32.65805975 | AA36: 32.93028076 | AB36: 33.30564308 | AC36: 33.79091529 | AE36: 0.2675083112 | AF36: 0.2084936971 | AG36: 0.13348995 | AH36: 0.04129120677 | AI36: -0.06246705439
A37: Category V LED L1 Standard Output | C37: =IF('DNSP Inputs General'!E74="","",'DNSP Inputs General'!E74) -> 58.83 | D37: ='Charges Summary'!D$141 -> 63.35183669 | E37: ='Charges Summary'!E$141 -> 63.92686803 | F37: ='Charges Summary'!F$141 -> 64.53113512 | G37: ='Charges Summary'!G$141 -> 65.30562046 | H37: ='Charges Summary'!H$141 -> 66.26377897 | J37: 0.07686276884 | K37: 0.009076790266 | L37: 0.009452474586 | M37: 0.01200173124 | N37: 0.01467191498 | P37: =IF(C37="","",(D37/'Charges Summary'!D$4)/(C37/'Charges Summary'!C$4)-1) -> 0.05575415487 | Q37: =IF(D37="","",(E37/'Charges Summary'!E$4)/(D37/'Charges Summary'!D$4)-1) -> -0.0107030861 | R37: =IF(E37="","",(F37/'Charges Summary'!F$4)/(E37/'Charges Summary'!E$4)-1) -> -0.01033476593 | S37: =IF(F37="","",(G37/'Charges Summary'!G$4)/(F37/'Charges Summary'!F$4)-1) -> -0.007835479684 | T37: =IF(G37="","",(H37/'Charges Summary'!H$4)/(G37/'Charges Summary'!G$4)-1) -> -0.005217636758 | V37: =SUM('DNSP Inputs General'!Q74:U74)/5 -> 9042.437377 | W37: 0.1715530364 | Y37: 63.01998032 | Z37: 63.72919404 | AA37: 64.51239554 | AB37: 65.51435771 | AC37: 66.7314631 | AE37: 0.3318563698 | AF37: 0.1976739842 | AG37: 0.01873957689 | AH37: -0.2087372451 | AI37: -0.4676841308
A38: Category V LED L2 Medium Output | C38: =IF('DNSP Inputs General'!E75="","",'DNSP Inputs General'!E75) -> 65.19 | D38: ='DNSP Inputs General'!$D75*D37 -> 69.68702036 | E38: ='DNSP Inputs General'!$D75*E37 -> 70.31955483 | F38: ='DNSP Inputs General'!$D75*F37 -> 70.98424863 | G38: ='DNSP Inputs General'!$D75*G37 -> 71.83618251 | H38: ='DNSP Inputs General'!$D75*H37 -> 72.89015687 | J38: 0.06898328517 | K38: 0.009076790266 | L38: 0.009452474586 | M38: 0.01200173124 | N38: 0.01467191498 | P38: =IF(C38="","",(D38/'Charges Summary'!D$4)/(C38/'Charges Summary'!C$4)-1) -> 0.04802912447 | Q38: =IF(D38="","",(E38/'Charges Summary'!E$4)/(D38/'Charges Summary'!D$4)-1) -> -0.0107030861 | R38: =IF(E38="","",(F38/'Charges Summary'!F$4)/(E38/'Charges Summary'!E$4)-1) -> -0.01033476593 | S38: =IF(F38="","",(G38/'Charges Summary'!G$4)/(F38/'Charges Summary'!F$4)-1) -> -0.007835479684 | T38: =IF(G38="","",(H38/'Charges Summary'!H$4)/(G38/'Charges Summary'!G$4)-1) -> -0.005217636758 | V38: =SUM('DNSP Inputs General'!Q75:U75)/5 -> 4843.709953 | W38: 0.09189481944 | Y38: 69.32197835 | Z38: 70.10211345 | AA38: 70.9636351 | AB38: 72.06579348 | AC38: 73.40460941 | AE38: 0.3650420068 | AF38: 0.2174413826 | AG38: 0.02061353458 | AH38: -0.2296109696 | AI38: -0.5144525439
A39: Category V LED L4 High Output | C39: =IF('DNSP Inputs General'!E76="","",'DNSP Inputs General'!E76) -> 73.84 | D39: ='DNSP Inputs General'!$D76*D37 -> 79.18979586 | E39: ='DNSP Inputs General'!$D76*E37 -> 79.90858503 | F39: ='DNSP Inputs General'!$D76*F37 -> 80.6639189 | G39: ='DNSP Inputs General'!$D76*G37 -> 81.63202558 | H39: ='DNSP Inputs General'!$D76*H37 -> 82.82972372 | J39: 0.07245118992 | K39: 0.009076790266 | L39: 0.009452474586 | M39: 0.01200173124 | N39: 0.01467191498 | P39: =IF(C39="","",(D39/'Charges Summary'!D$4)/(C39/'Charges Summary'!C$4)-1) -> 0.05142905151 | Q39: =IF(D39="","",(E39/'Charges Summary'!E$4)/(D39/'Charges Summary'!D$4)-1) -> -0.0107030861 | R39: =IF(E39="","",(F39/'Charges Summary'!F$4)/(E39/'Charges Summary'!E$4)-1) -> -0.01033476593 | S39: =IF(F39="","",(G39/'Charges Summary'!G$4)/(F39/'Charges Summary'!F$4)-1) -> -0.007835479684 | T39: =IF(G39="","",(H39/'Charges Summary'!H$4)/(G39/'Charges Summary'!G$4)-1) -> -0.005217636758 | V39: =SUM('DNSP Inputs General'!Q76:U76)/5 -> 1587.921733 | W39: 0.03012603611 | Y39: 78.7749754 | Z39: 79.66149255 | AA39: 80.64049443 | AB39: 81.89294713 | AC39: 83.41432888 | AE39: 0.4148204623 | AF39: 0.2470924802 | AG39: 0.02342447111 | AH39: -0.2609215564 | AI39: -0.5846051635
V41: =SUM(V6:V40) -> 52709.28201 | W41: 1
A42: Revenue - Nominal ($,000) | D42: ='Cashflow Summary'!D42/10^3 -> 3861.902925 | E42: ='Cashflow Summary'!E42/10^3 -> 3695.571081 | F42: ='Cashflow Summary'!F42/10^3 -> 3528.522241 | G42: ='Cashflow Summary'!G42/10^3 -> 3446.169064 | H42: ='Cashflow Summary'!H42/10^3 -> 3375.687027 | Y42: 3848.262038 | Z42: 3688.924561 | AA42: 3530.35651 | AB42: 3458.037435 | AC42: 3398.111437 | AE42: =D42-Y42 -> 13.6408878 | AF42: =E42-Z42 -> 6.64651985 | AG42: =F42-AA42 -> -1.834268406 | AH42: =G42-AB42 -> -11.86837073 | AI42: =H42-AC42 -> -22.42441068
AI44: =SUM(AE42:AI42)/SUM(Y42:AC42) -> -0.0008837265329
A46: Written down value (WDV) | D46: =AVERAGE('Charges Summary'!D58,'Charges Summary'!D82) -> 187.8088144 | E46: =AVERAGE('Charges Summary'!E58,'Charges Summary'!E82) -> 175.6047037 | F46: =AVERAGE('Charges Summary'!F58,'Charges Summary'!F82) -> 170.9235799 | G46: =AVERAGE('Charges Summary'!G58,'Charges Summary'!G82) -> 169.2390841 | H46: =AVERAGE('Charges Summary'!H58,'Charges Summary'!H82) -> 168.2365194 | K46: =IF(D46="","",E46/D46-1) -> -0.06498156524 | L46: =IF(E46="","",F46/E46-1) -> -0.02665716641 | M46: =IF(F46="","",G46/F46-1) -> -0.009855256874 | N46: =IF(G46="","",H46/G46-1) -> -0.005923955127 | Q46: =IF(D46="","",(E46/'Charges Summary'!E$4)/(D46/'Charges Summary'!D$4)-1) -> -0.08330975317 | R46: =IF(E46="","",(F46/'Charges Summary'!F$4)/(E46/'Charges Summary'!E$4)-1) -> -0.04573658742 | S46: =IF(F46="","",(G46/'Charges Summary'!G$4)/(F46/'Charges Summary'!F$4)-1) -> -0.02926402813 | T46: =IF(G46="","",(H46/'Charges Summary'!H$4)/(G46/'Charges Summary'!G$4)-1) -> -0.02540978758 | Y46: 187.8088144 | Z46: 175.6047037 | AA46: 170.9235799 | AB46: 169.2390841 | AC46: 168.2365194 | AE46: =D46-Y46 -> 0 | AF46: =E46-Z46 -> 0 | AG46: =F46-AA46 -> 0 | AH46: =G46-AB46 -> 0 | AI46: =H46-AC46 -> 0
A48: Avoided cost | D48: =AVERAGE('Charges Summary'!D63,'Charges Summary'!D87) -> -28.37686215 | E48: =AVERAGE('Charges Summary'!E63,'Charges Summary'!E87) -> -29.04508258 | F48: =AVERAGE('Charges Summary'!F63,'Charges Summary'!F87) -> -29.72099208 | G48: =AVERAGE('Charges Summary'!G63,'Charges Summary'!G87) -> -30.43273815 | H48: =AVERAGE('Charges Summary'!H63,'Charges Summary'!H87) -> -31.1978902 | J48: =IF(C48="","",D48/C48-1) ->  | K48: =IF(D48="","",E48/D48-1) -> 0.02354807328 | L48: =IF(E48="","",F48/E48-1) -> 0.02327104772 | M48: =IF(F48="","",G48/F48-1) -> 0.0239475881 | N48: =IF(G48="","",H48/G48-1) -> 0.02514239893 | Q48: =IF(D48="","",(E48/'Charges Summary'!E$4)/(D48/'Charges Summary'!D$4)-1) -> 0.0034845315 | R48: =IF(E48="","",(F48/'Charges Summary'!F$4)/(E48/'Charges Summary'!E$4)-1) -> 0.00321293618 | S48: =IF(F48="","",(G48/'Charges Summary'!G$4)/(F48/'Charges Summary'!F$4)-1) -> 0.003876215046 | T48: =IF(G48="","",(H48/'Charges Summary'!H$4)/(G48/'Charges Summary'!G$4)-1) -> 0.005047605252 | Y48: -28.48116761 | Z48: -29.23345648 | AA48: -30.03027448 | AB48: -30.90475435 | AC48: -31.85825164 | AE48: =D48-Y48 -> 0.1043054667 | AF48: =E48-Z48 -> 0.1883739079 | AG48: =F48-AA48 -> 0.3092824014 | AH48: =G48-AB48 -> 0.472016196 | AI48: =H48-AC48 -> 0.6603614406

Sheet PL Tariff Components
A1: ='DNSP Inputs O & M'!$A$3 -> Citipower | E1: Global Check | F1: =IF(SUM('Total RAB'!F1,'Depn & WACC Post 2004'!F1,'Cashflow Summary'!F1,W1)<1,"Ok","Error") -> Ok | V1: Check | W1: =SUM(V6:Z36) -> 1.509903313e-12
A3: Public Lighting Tariffs | C3: Nominal Prices | J3: Operations, maintenance and repair Tariff | P3: Replacement Tariff | V3: Check
C4: Actual
A5: ='DNSP Inputs General'!A$40 -> Existing Lights | C5: 2020 | D5: ='DNSP Inputs General'!Q$2 -> 2021/22 | E5: ='DNSP Inputs General'!R$2 -> 2022/23 | F5: ='DNSP Inputs General'!S$2 -> 2023/24 | G5: ='DNSP Inputs General'!T$2 -> 2024/25 | H5: ='DNSP Inputs General'!U$2 -> 2025/26 | J5: =D5 -> 2021/22 | K5: =E5 -> 2022/23 | L5: 2023/24 | M5: 2024/25 | N5: 2025/26 | P5: =J5 -> 2021/22 | Q5: =K5 -> 2022/23 | R5: 2023/24 | S5: 2024/25 | T5: 2025/26 | V5: =P5 -> 2021/22 | W5: =Q5 -> 2022/23 | X5: 2023/24 | Y5: 2024/25 | Z5: 2025/26
A6: ='DNSP Inputs General'!A41 -> Mercury vapour 80 watt | C6: ='DNSP Inputs General'!E41 -> 65.29 | D6: ='Charges Summary'!D$31 -> 93.34795808 | E6: ='Charges Summary'!E$31 -> 94.53381472 | F6: ='Charges Summary'!F$31 -> 101.1526686 | G6: ='Charges Summary'!G$31 -> 111.6114996 | H6: ='Charges Summary'!H$31 -> 126.9196584 | J6: =SUM('Charges Summary'!D25,'Charges Summary'!D8) -> 46.51295148 | K6: =SUM('Charges Summary'!E25,'Charges Summary'!E8) -> 47.75305118 | L6: =SUM('Charges Summary'!F25,'Charges Summary'!F8) -> 48.89629884 | M6: =SUM('Charges Summary'!G25,'Charges Summary'!G8) -> 50.0943968 | N6: =SUM('Charges Summary'!H25,'Charges Summary'!H8) -> 51.36548367 | P6: =SUM('Charges Summary'!D27,'Charges Summary'!D11) -> 46.83500661 | Q6: =SUM('Charges Summary'!E27,'Charges Summary'!E11) -> 46.78076355 | R6: =SUM('Charges Summary'!F27,'Charges Summary'!F11) -> 52.25636981 | S6: =SUM('Charges Summary'!G27,'Charges Summary'!G11) -> 61.51710281 | T6: =SUM('Charges Summary'!H27,'Charges Summary'!H11) -> 75.55417468 | V6: =ABS(D6-J6-P6) -> 0 | W6: =ABS(E6-K6-Q6) -> 1.421085472e-14 | X6: 0 | Y6: 0 | Z6: 1.421085472e-14
A7: ='DNSP Inputs General'!A42 -> Sodium high pressure 150 watt | C7: ='DNSP Inputs General'!E42 -> 111.62 | D7: ='Charges Summary'!D$55 -> 138.1568518 | E7: ='Charges Summary'!E$55 -> 140.0603083 | F7: ='Charges Summary'!F$55 -> 142.2351537 | G7: ='Charges Summary'!G$55 -> 153.9559694 | H7: ='Charges Summary'!H$55 -> 170.7472593 | J7: =SUM('Charges Summary'!D49,'Charges Summary'!D8) -> 84.62124293 | K7: =SUM('Charges Summary'!E49,'Charges Summary'!E8) -> 86.59878125 | L7: =SUM('Charges Summary'!F49,'Charges Summary'!F8) -> 88.66881376 | M7: =SUM('Charges Summary'!G49,'Charges Summary'!G8) -> 90.85119227 | N7: =SUM('Charges Summary'!H49,'Charges Summary'!H8) -> 93.18393316 | P7: =SUM('Charges Summary'!D51,'Charges Summary'!D11) -> 53.53560889 | Q7: =SUM('Charges Summary'!E51,'Charges Summary'!E11) -> 53.46152701 | R7: =SUM('Charges Summary'!F51,'Charges Summary'!F11) -> 53.56633992 | S7: =SUM('Charges Summary'!G51,'Charges Summary'!G11) -> 63.10477711 | T7: =SUM('Charges Summary'!H51,'Charges Summary'!H11) -> 77.56332617 | V7: =ABS(D7-J7-P7) -> 1.421085472e-14 | W7: 1.421085472e-14 | X7: 7.105427358e-15 | Y7: 7.105427358e-15 | Z7: 0
A8: ='DNSP Inputs General'!A43 -> Sodium high pressure 250 watt | C8: ='DNSP Inputs General'!E43 -> 113.24 | D8: ='Charges Summary'!D$79 -> 140.5198277 | E8: ='Charges Summary'!E$79 -> 142.4245042 | F8: ='Charges Summary'!F$79 -> 143.4843552 | G8: ='Charges Summary'!G$79 -> 155.3667919 | H8: ='Charges Summary'!H$79 -> 172.3936535 | J8: =SUM('Charges Summary'!D73,'Charges Summary'!D8) -> 85.17931079 | K8: =SUM('Charges Summary'!E73,'Charges Summary'!E8) -> 87.16341299 | L8: =SUM('Charges Summary'!F73,'Charges Summary'!F8) -> 89.25186396 | M8: =SUM('Charges Summary'!G73,'Charges Summary'!G8) -> 91.45464416 | N8: =SUM('Charges Summary'!H73,'Charges Summary'!H8) -> 93.8086254 | P8: =SUM('Charges Summary'!D75,'Charges Summary'!D11) -> 55.34051693 | Q8: =SUM('Charges Summary'!E75,'Charges Summary'!E11) -> 55.26109116 | R8: =SUM('Charges Summary'!F75,'Charges Summary'!F11) -> 54.23249127 | S8: =SUM('Charges Summary'!G75,'Charges Summary'!G11) -> 63.91214773 | T8: =SUM('Charges Summary'!H75,'Charges Summary'!H11) -> 78.58502809 | V8: 7.105427358e-15 | W8: 7.105427358e-15 | X8: 7.105427358e-15 | Y8: 7.105427358e-15 | Z8: 1.421085472e-14
A9: ='DNSP Inputs General'!A44 -> Fluorescent 20 watt | C9: ='DNSP Inputs General'!E44 -> 129.93 | D9: =IF('DNSP Inputs General'!$B44='DNSP Inputs General'!$A$41,D$6,IF('DNSP Inputs General'!$B44='DNSP Inputs General'!$A$42,D$7,D$8))*'DNSP Inputs General'!$D44 -> 185.7624366 | E9: =IF('DNSP Inputs General'!$B44='DNSP Inputs General'!$A$41,E$6,IF('DNSP Inputs General'!$B44='DNSP Inputs General'!$A$42,E$7,E$8))*'DNSP Inputs General'!$D44 -> 188.1222913 | F9: =IF('DNSP Inputs General'!$B44='DNSP Inputs General'!$A$41,F$6,IF('DNSP Inputs General'!$B44='DNSP Inputs General'!$A$42,F$7,F$8))*'DNSP Inputs General'!$D44 -> 201.2938106 | G9: =IF('DNSP Inputs General'!$B44='DNSP Inputs General'!$A$41,G$6,IF('DNSP Inputs General'!$B44='DNSP Inputs General'!$A$42,G$7,G$8))*'DNSP Inputs General'!$D44 -> 222.1068842 | H9: =IF('DNSP Inputs General'!$B44='DNSP Inputs General'!$A$41,H$6,IF('DNSP Inputs General'!$B44='DNSP Inputs General'!$A$42,H$7,H$8))*'DNSP Inputs General'!$D44 -> 252.5701201 | J9: =IF('DNSP Inputs General'!$B44='DNSP Inputs General'!$A$41,J$6,IF('DNSP Inputs General'!$B44='DNSP Inputs General'!$A$42,J$7,J$8))*'DNSP Inputs General'!$D44 -> 92.56077344 | K9: =IF('DNSP Inputs General'!$B44='DNSP Inputs General'!$A$41,K$6,IF('DNSP Inputs General'!$B44='DNSP Inputs General'!$A$42,K$7,K$8))*'DNSP Inputs General'!$D44 -> 95.02857184 | L9: =IF('DNSP Inputs General'!$B44='DNSP Inputs General'!$A$41,L$6,IF('DNSP Inputs General'!$B44='DNSP Inputs General'!$A$42,L$7,L$8))*'DNSP Inputs General'!$D44 -> 97.30363468 | M9: =IF('DNSP Inputs General'!$B44='DNSP Inputs General'!$A$41,M$6,IF('DNSP Inputs General'!$B44='DNSP Inputs General'!$A$42,M$7,M$8))*'DNSP Inputs General'!$D44 -> 99.68784963 | N9: =IF('DNSP Inputs General'!$B44='DNSP Inputs General'!$A$41,N$6,IF('DNSP Inputs General'!$B44='DNSP Inputs General'!$A$42,N$7,N$8))*'DNSP Inputs General'!$D44 -> 102.2173125 | P9: =IF('DNSP Inputs General'!$B44='DNSP Inputs General'!$A$41,P$6,IF('DNSP Inputs General'!$B44='DNSP Inputs General'!$A$42,P$7,P$8))*'DNSP Inputs General'!$D44 -> 93.20166315 | Q9: =IF('DNSP Inputs General'!$B44='DNSP Inputs General'!$A$41,Q$6,IF('DNSP Inputs General'!$B44='DNSP Inputs General'!$A$42,Q$7,Q$8))*'DNSP Inputs General'!$D44 -> 93.09371946 | R9: =IF('DNSP Inputs General'!$B44='DNSP Inputs General'!$A$41,R$6,IF('DNSP Inputs General'!$B44='DNSP Inputs General'!$A$42,R$7,R$8))*'DNSP Inputs General'!$D44 -> 103.9901759 | S9: =IF('DNSP Inputs General'!$B44='DNSP Inputs General'!$A$41,S$6,IF('DNSP Inputs General'!$B44='DNSP Inputs General'!$A$42,S$7,S$8))*'DNSP Inputs General'!$D44 -> 122.4190346 | T9: =IF('DNSP Inputs General'!$B44='DNSP Inputs General'!$A$41,T$6,IF('DNSP Inputs General'!$B44='DNSP Inputs General'!$A$42,T$7,T$8))*'DNSP Inputs General'!$D44 -> 150.3528076 | V9: 1.421085472e-14 | W9: 2.842170943e-14 | X9: 1.421085472e-14 | Y9: 0 | Z9: 2.842170943e-14
A10: ='DNSP Inputs General'!A45 -> Fluorescent 40 watt | C10: ='DNSP Inputs General'!E45 -> 130.59 | D10: =IF('DNSP Inputs General'!$B45='DNSP Inputs General'!$A$41,D$6,IF('DNSP Inputs General'!$B45='DNSP Inputs General'!$A$42,D$7,D$8))*'DNSP Inputs General'!$D45 -> 186.6959162 | E10: =IF('DNSP Inputs General'!$B45='DNSP Inputs General'!$A$41,E$6,IF('DNSP Inputs General'!$B45='DNSP Inputs General'!$A$42,E$7,E$8))*'DNSP Inputs General'!$D45 -> 189.0676294 | F10: =IF('DNSP Inputs General'!$B45='DNSP Inputs General'!$A$41,F$6,IF('DNSP Inputs General'!$B45='DNSP Inputs General'!$A$42,F$7,F$8))*'DNSP Inputs General'!$D45 -> 202.3053373 | G10: =IF('DNSP Inputs General'!$B45='DNSP Inputs General'!$A$41,G$6,IF('DNSP Inputs General'!$B45='DNSP Inputs General'!$A$42,G$7,G$8))*'DNSP Inputs General'!$D45 -> 223.2229992 | H10: =IF('DNSP Inputs General'!$B45='DNSP Inputs General'!$A$41,H$6,IF('DNSP Inputs General'!$B45='DNSP Inputs General'!$A$42,H$7,H$8))*'DNSP Inputs General'!$D45 -> 253.8393167 | J10: =IF('DNSP Inputs General'!$B45='DNSP Inputs General'!$A$41,J$6,IF('DNSP Inputs General'!$B45='DNSP Inputs General'!$A$42,J$7,J$8))*'DNSP Inputs General'!$D45 -> 93.02590295 | K10: =IF('DNSP Inputs General'!$B45='DNSP Inputs General'!$A$41,K$6,IF('DNSP Inputs General'!$B45='DNSP Inputs General'!$A$42,K$7,K$8))*'DNSP Inputs General'!$D45 -> 95.50610235 | L10: =IF('DNSP Inputs General'!$B45='DNSP Inputs General'!$A$41,L$6,IF('DNSP Inputs General'!$B45='DNSP Inputs General'!$A$42,L$7,L$8))*'DNSP Inputs General'!$D45 -> 97.79259767 | M10: =IF('DNSP Inputs General'!$B45='DNSP Inputs General'!$A$41,M$6,IF('DNSP Inputs General'!$B45='DNSP Inputs General'!$A$42,M$7,M$8))*'DNSP Inputs General'!$D45 -> 100.1887936 | N10: =IF('DNSP Inputs General'!$B45='DNSP Inputs General'!$A$41,N$6,IF('DNSP Inputs General'!$B45='DNSP Inputs General'!$A$42,N$7,N$8))*'DNSP Inputs General'!$D45 -> 102.7309673 | P10: =IF('DNSP Inputs General'!$B45='DNSP Inputs General'!$A$41,P$6,IF('DNSP Inputs General'!$B45='DNSP Inputs General'!$A$42,P$7,P$8))*'DNSP Inputs General'!$D45 -> 93.67001321 | Q10: =IF('DNSP Inputs General'!$B45='DNSP Inputs General'!$A$41,Q$6,IF('DNSP Inputs General'!$B45='DNSP Inputs General'!$A$42,Q$7,Q$8))*'DNSP Inputs General'!$D45 -> 93.5615271 | R10: =IF('DNSP Inputs General'!$B45='DNSP Inputs General'!$A$41,R$6,IF('DNSP Inputs General'!$B45='DNSP Inputs General'!$A$42,R$7,R$8))*'DNSP Inputs General'!$D45 -> 104.5127396 | S10: =IF('DNSP Inputs General'!$B45='DNSP Inputs General'!$A$41,S$6,IF('DNSP Inputs General'!$B45='DNSP Inputs General'!$A$42,S$7,S$8))*'DNSP Inputs General'!$D45 -> 123.0342056 | T10: =IF('DNSP Inputs General'!$B45='DNSP Inputs General'!$A$41,T$6,IF('DNSP Inputs General'!$B45='DNSP Inputs General'!$A$42,T$7,T$8))*'DNSP Inputs General'!$D45 -> 151.1083494 | V10: 0 | W10: 2.842170943e-14 | X10: 0 | Y10: 0 | Z10: 2.842170943e-14
A11: ='DNSP Inputs General'!A46 -> Mercury vapour 50 watt | C11: ='DNSP Inputs General'!E46 -> 92.72 | D11: =IF('DNSP Inputs General'!$B46='DNSP Inputs General'!$A$41,D$6,IF('DNSP Inputs General'!$B46='DNSP Inputs General'!$A$42,D$7,D$8))*'DNSP Inputs General'!$D46 -> 132.5541005 | E11: =IF('DNSP Inputs General'!$B46='DNSP Inputs General'!$A$41,E$6,IF('DNSP Inputs General'!$B46='DNSP Inputs General'!$A$42,E$7,E$8))*'DNSP Inputs General'!$D46 -> 134.2380169 | F11: =IF('DNSP Inputs General'!$B46='DNSP Inputs General'!$A$41,F$6,IF('DNSP Inputs General'!$B46='DNSP Inputs General'!$A$42,F$7,F$8))*'DNSP Inputs General'!$D46 -> 143.6367895 | G11: =IF('DNSP Inputs General'!$B46='DNSP Inputs General'!$A$41,G$6,IF('DNSP Inputs General'!$B46='DNSP Inputs General'!$A$42,G$7,G$8))*'DNSP Inputs General'!$D46 -> 158.4883294 | H11: =IF('DNSP Inputs General'!$B46='DNSP Inputs General'!$A$41,H$6,IF('DNSP Inputs General'!$B46='DNSP Inputs General'!$A$42,H$7,H$8))*'DNSP Inputs General'!$D46 -> 180.2259149 | J11: =IF('DNSP Inputs General'!$B46='DNSP Inputs General'!$A$41,J$6,IF('DNSP Inputs General'!$B46='DNSP Inputs General'!$A$42,J$7,J$8))*'DNSP Inputs General'!$D46 -> 66.0483911 | K11: =IF('DNSP Inputs General'!$B46='DNSP Inputs General'!$A$41,K$6,IF('DNSP Inputs General'!$B46='DNSP Inputs General'!$A$42,K$7,K$8))*'DNSP Inputs General'!$D46 -> 67.80933267 | L11: =IF('DNSP Inputs General'!$B46='DNSP Inputs General'!$A$41,L$6,IF('DNSP Inputs General'!$B46='DNSP Inputs General'!$A$42,L$7,L$8))*'DNSP Inputs General'!$D46 -> 69.43274435 | M11: =IF('DNSP Inputs General'!$B46='DNSP Inputs General'!$A$41,M$6,IF('DNSP Inputs General'!$B46='DNSP Inputs General'!$A$42,M$7,M$8))*'DNSP Inputs General'!$D46 -> 71.13404345 | N11: =IF('DNSP Inputs General'!$B46='DNSP Inputs General'!$A$41,N$6,IF('DNSP Inputs General'!$B46='DNSP Inputs General'!$A$42,N$7,N$8))*'DNSP Inputs General'!$D46 -> 72.93898682 | P11: =IF('DNSP Inputs General'!$B46='DNSP Inputs General'!$A$41,P$6,IF('DNSP Inputs General'!$B46='DNSP Inputs General'!$A$42,P$7,P$8))*'DNSP Inputs General'!$D46 -> 66.50570938 | Q11: =IF('DNSP Inputs General'!$B46='DNSP Inputs General'!$A$41,Q$6,IF('DNSP Inputs General'!$B46='DNSP Inputs General'!$A$42,Q$7,Q$8))*'DNSP Inputs General'!$D46 -> 66.42868424 | R11: =IF('DNSP Inputs General'!$B46='DNSP Inputs General'!$A$41,R$6,IF('DNSP Inputs General'!$B46='DNSP Inputs General'!$A$42,R$7,R$8))*'DNSP Inputs General'!$D46 -> 74.20404513 | S11: =IF('DNSP Inputs General'!$B46='DNSP Inputs General'!$A$41,S$6,IF('DNSP Inputs General'!$B46='DNSP Inputs General'!$A$42,S$7,S$8))*'DNSP Inputs General'!$D46 -> 87.354286 | T11: =IF('DNSP Inputs General'!$B46='DNSP Inputs General'!$A$41,T$6,IF('DNSP Inputs General'!$B46='DNSP Inputs General'!$A$42,T$7,T$8))*'DNSP Inputs General'!$D46 -> 107.2869281 | V11: 1.421085472e-14 | W11: 2.842170943e-14 | X11: 1.421085472e-14 | Y11: 0 | Z11: 2.842170943e-14
A12: ='DNSP Inputs General'!A47 -> Mercury vapour 125 watt | C12: ='DNSP Inputs General'!E47 -> 103.16 | D12: =IF('DNSP Inputs General'!$B47='DNSP Inputs General'!$A$41,D$6,IF('DNSP Inputs General'!$B47='DNSP Inputs General'!$A$42,D$7,D$8))*'DNSP Inputs General'!$D47 -> 147.4897738 | E12: =IF('DNSP Inputs General'!$B47='DNSP Inputs General'!$A$41,E$6,IF('DNSP Inputs General'!$B47='DNSP Inputs General'!$A$42,E$7,E$8))*'DNSP Inputs General'!$D47 -> 149.3634273 | F12: =IF('DNSP Inputs General'!$B47='DNSP Inputs General'!$A$41,F$6,IF('DNSP Inputs General'!$B47='DNSP Inputs General'!$A$42,F$7,F$8))*'DNSP Inputs General'!$D47 -> 159.8212165 | G12: =IF('DNSP Inputs General'!$B47='DNSP Inputs General'!$A$41,G$6,IF('DNSP Inputs General'!$B47='DNSP Inputs General'!$A$42,G$7,G$8))*'DNSP Inputs General'!$D47 -> 176.3461694 | H12: =IF('DNSP Inputs General'!$B47='DNSP Inputs General'!$A$41,H$6,IF('DNSP Inputs General'!$B47='DNSP Inputs General'!$A$42,H$7,H$8))*'DNSP Inputs General'!$D47 -> 200.5330602 | J12: =IF('DNSP Inputs General'!$B47='DNSP Inputs General'!$A$41,J$6,IF('DNSP Inputs General'!$B47='DNSP Inputs General'!$A$42,J$7,J$8))*'DNSP Inputs General'!$D47 -> 73.49046333 | K12: =IF('DNSP Inputs General'!$B47='DNSP Inputs General'!$A$41,K$6,IF('DNSP Inputs General'!$B47='DNSP Inputs General'!$A$42,K$7,K$8))*'DNSP Inputs General'!$D47 -> 75.44982086 | L12: =IF('DNSP Inputs General'!$B47='DNSP Inputs General'!$A$41,L$6,IF('DNSP Inputs General'!$B47='DNSP Inputs General'!$A$42,L$7,L$8))*'DNSP Inputs General'!$D47 -> 77.25615216 | M12: =IF('DNSP Inputs General'!$B47='DNSP Inputs General'!$A$41,M$6,IF('DNSP Inputs General'!$B47='DNSP Inputs General'!$A$42,M$7,M$8))*'DNSP Inputs General'!$D47 -> 79.14914694 | N12: =IF('DNSP Inputs General'!$B47='DNSP Inputs General'!$A$41,N$6,IF('DNSP Inputs General'!$B47='DNSP Inputs General'!$A$42,N$7,N$8))*'DNSP Inputs General'!$D47 -> 81.15746421 | P12: =IF('DNSP Inputs General'!$B47='DNSP Inputs General'!$A$41,P$6,IF('DNSP Inputs General'!$B47='DNSP Inputs General'!$A$42,P$7,P$8))*'DNSP Inputs General'!$D47 -> 73.99931044 | Q12: =IF('DNSP Inputs General'!$B47='DNSP Inputs General'!$A$41,Q$6,IF('DNSP Inputs General'!$B47='DNSP Inputs General'!$A$42,Q$7,Q$8))*'DNSP Inputs General'!$D47 -> 73.91360641 | R12: =IF('DNSP Inputs General'!$B47='DNSP Inputs General'!$A$41,R$6,IF('DNSP Inputs General'!$B47='DNSP Inputs General'!$A$42,R$7,R$8))*'DNSP Inputs General'!$D47 -> 82.5650643 | S12: =IF('DNSP Inputs General'!$B47='DNSP Inputs General'!$A$41,S$6,IF('DNSP Inputs General'!$B47='DNSP Inputs General'!$A$42,S$7,S$8))*'DNSP Inputs General'!$D47 -> 97.19702245 | T12: =IF('DNSP Inputs General'!$B47='DNSP Inputs General'!$A$41,T$6,IF('DNSP Inputs General'!$B47='DNSP Inputs General'!$A$42,T$7,T$8))*'DNSP Inputs General'!$D47 -> 119.375596 | V12: 1.421085472e-14 | W12: 1.421085472e-14 | X12: 0 | Y12: 0 | Z12: 0
A13: ='DNSP Inputs General'!A48 -> Mercury vapour 250 watt | C13: ='DNSP Inputs General'!E48 -> 95.12 | D13: =IF('DNSP Inputs General'!$B48='DNSP Inputs General'!$A$41,D$6,IF('DNSP Inputs General'!$B48='DNSP Inputs General'!$A$42,D$7,D$8))*'DNSP Inputs General'!$D48 -> 118.0366553 | E13: =IF('DNSP Inputs General'!$B48='DNSP Inputs General'!$A$41,E$6,IF('DNSP Inputs General'!$B48='DNSP Inputs General'!$A$42,E$7,E$8))*'DNSP Inputs General'!$D48 -> 119.6365835 | F13: =IF('DNSP Inputs General'!$B48='DNSP Inputs General'!$A$41,F$6,IF('DNSP Inputs General'!$B48='DNSP Inputs General'!$A$42,F$7,F$8))*'DNSP Inputs General'!$D48 -> 120.5268584 | G13: =IF('DNSP Inputs General'!$B48='DNSP Inputs General'!$A$41,G$6,IF('DNSP Inputs General'!$B48='DNSP Inputs General'!$A$42,G$7,G$8))*'DNSP Inputs General'!$D48 -> 130.5081052 | H13: =IF('DNSP Inputs General'!$B48='DNSP Inputs General'!$A$41,H$6,IF('DNSP Inputs General'!$B48='DNSP Inputs General'!$A$42,H$7,H$8))*'DNSP Inputs General'!$D48 -> 144.8106689 | J13: =IF('DNSP Inputs General'!$B48='DNSP Inputs General'!$A$41,J$6,IF('DNSP Inputs General'!$B48='DNSP Inputs General'!$A$42,J$7,J$8))*'DNSP Inputs General'!$D48 -> 71.55062107 | K13: =IF('DNSP Inputs General'!$B48='DNSP Inputs General'!$A$41,K$6,IF('DNSP Inputs General'!$B48='DNSP Inputs General'!$A$42,K$7,K$8))*'DNSP Inputs General'!$D48 -> 73.21726691 | L13: =IF('DNSP Inputs General'!$B48='DNSP Inputs General'!$A$41,L$6,IF('DNSP Inputs General'!$B48='DNSP Inputs General'!$A$42,L$7,L$8))*'DNSP Inputs General'!$D48 -> 74.97156572 | M13: =IF('DNSP Inputs General'!$B48='DNSP Inputs General'!$A$41,M$6,IF('DNSP Inputs General'!$B48='DNSP Inputs General'!$A$42,M$7,M$8))*'DNSP Inputs General'!$D48 -> 76.8219011 | N13: =IF('DNSP Inputs General'!$B48='DNSP Inputs General'!$A$41,N$6,IF('DNSP Inputs General'!$B48='DNSP Inputs General'!$A$42,N$7,N$8))*'DNSP Inputs General'!$D48 -> 78.79924533 | P13: =IF('DNSP Inputs General'!$B48='DNSP Inputs General'!$A$41,P$6,IF('DNSP Inputs General'!$B48='DNSP Inputs General'!$A$42,P$7,P$8))*'DNSP Inputs General'!$D48 -> 46.48603422 | Q13: =IF('DNSP Inputs General'!$B48='DNSP Inputs General'!$A$41,Q$6,IF('DNSP Inputs General'!$B48='DNSP Inputs General'!$A$42,Q$7,Q$8))*'DNSP Inputs General'!$D48 -> 46.41931658 | R13: =IF('DNSP Inputs General'!$B48='DNSP Inputs General'!$A$41,R$6,IF('DNSP Inputs General'!$B48='DNSP Inputs General'!$A$42,R$7,R$8))*'DNSP Inputs General'!$D48 -> 45.55529267 | S13: =IF('DNSP Inputs General'!$B48='DNSP Inputs General'!$A$41,S$6,IF('DNSP Inputs General'!$B48='DNSP Inputs General'!$A$42,S$7,S$8))*'DNSP Inputs General'!$D48 -> 53.68620409 | T13: =IF('DNSP Inputs General'!$B48='DNSP Inputs General'!$A$41,T$6,IF('DNSP Inputs General'!$B48='DNSP Inputs General'!$A$42,T$7,T$8))*'DNSP Inputs General'!$D48 -> 66.0114236 | V13: 7.105427358e-15 | W13: 0 | X13: 0 | Y13: 7.105427358e-15 | Z13: 1.421085472e-14
A14: ='DNSP Inputs General'!A49 -> Mercury vapour 400 watt | C14: ='DNSP Inputs General'!E49 -> 96.25 | D14: =IF('DNSP Inputs General'!$B49='DNSP Inputs General'!$A$41,D$6,IF('DNSP Inputs General'!$B49='DNSP Inputs General'!$A$42,D$7,D$8))*'DNSP Inputs General'!$D49 -> 119.4418536 | E14: =IF('DNSP Inputs General'!$B49='DNSP Inputs General'!$A$41,E$6,IF('DNSP Inputs General'!$B49='DNSP Inputs General'!$A$42,E$7,E$8))*'DNSP Inputs General'!$D49 -> 121.0608285 | F14: =IF('DNSP Inputs General'!$B49='DNSP Inputs General'!$A$41,F$6,IF('DNSP Inputs General'!$B49='DNSP Inputs General'!$A$42,F$7,F$8))*'DNSP Inputs General'!$D49 -> 121.9617019 | G14: =IF('DNSP Inputs General'!$B49='DNSP Inputs General'!$A$41,G$6,IF('DNSP Inputs General'!$B49='DNSP Inputs General'!$A$42,G$7,G$8))*'DNSP Inputs General'!$D49 -> 132.0617731 | H14: =IF('DNSP Inputs General'!$B49='DNSP Inputs General'!$A$41,H$6,IF('DNSP Inputs General'!$B49='DNSP Inputs General'!$A$42,H$7,H$8))*'DNSP Inputs General'!$D49 -> 146.5346055 | J14: =IF('DNSP Inputs General'!$B49='DNSP Inputs General'!$A$41,J$6,IF('DNSP Inputs General'!$B49='DNSP Inputs General'!$A$42,J$7,J$8))*'DNSP Inputs General'!$D49 -> 72.40241418 | K14: =IF('DNSP Inputs General'!$B49='DNSP Inputs General'!$A$41,K$6,IF('DNSP Inputs General'!$B49='DNSP Inputs General'!$A$42,K$7,K$8))*'DNSP Inputs General'!$D49 -> 74.08890104 | L14: =IF('DNSP Inputs General'!$B49='DNSP Inputs General'!$A$41,L$6,IF('DNSP Inputs General'!$B49='DNSP Inputs General'!$A$42,L$7,L$8))*'DNSP Inputs General'!$D49 -> 75.86408436 | M14: =IF('DNSP Inputs General'!$B49='DNSP Inputs General'!$A$41,M$6,IF('DNSP Inputs General'!$B49='DNSP Inputs General'!$A$42,M$7,M$8))*'DNSP Inputs General'!$D49 -> 77.73644754 | N14: =IF('DNSP Inputs General'!$B49='DNSP Inputs General'!$A$41,N$6,IF('DNSP Inputs General'!$B49='DNSP Inputs General'!$A$42,N$7,N$8))*'DNSP Inputs General'!$D49 -> 79.73733159 | P14: =IF('DNSP Inputs General'!$B49='DNSP Inputs General'!$A$41,P$6,IF('DNSP Inputs General'!$B49='DNSP Inputs General'!$A$42,P$7,P$8))*'DNSP Inputs General'!$D49 -> 47.03943939 | Q14: =IF('DNSP Inputs General'!$B49='DNSP Inputs General'!$A$41,Q$6,IF('DNSP Inputs General'!$B49='DNSP Inputs General'!$A$42,Q$7,Q$8))*'DNSP Inputs General'!$D49 -> 46.97192749 | R14: =IF('DNSP Inputs General'!$B49='DNSP Inputs General'!$A$41,R$6,IF('DNSP Inputs General'!$B49='DNSP Inputs General'!$A$42,R$7,R$8))*'DNSP Inputs General'!$D49 -> 46.09761758 | S14: =IF('DNSP Inputs General'!$B49='DNSP Inputs General'!$A$41,S$6,IF('DNSP Inputs General'!$B49='DNSP Inputs General'!$A$42,S$7,S$8))*'DNSP Inputs General'!$D49 -> 54.32532557 | T14: =IF('DNSP Inputs General'!$B49='DNSP Inputs General'!$A$41,T$6,IF('DNSP Inputs General'!$B49='DNSP Inputs General'!$A$42,T$7,T$8))*'DNSP Inputs General'!$D49 -> 66.79727388 | V14: 7.105427358e-15 | W14: 1.421085472e-14 | X14: 0 | Y14: 0 | Z14: 1.421085472e-14
A15: ='DNSP Inputs General'!A50 -> Mercury vapour 700 watt | C15: ='DNSP Inputs General'!E50 -> 0 | D15: =IF('DNSP Inputs General'!$B50='DNSP Inputs General'!$A$41,D$6,IF('DNSP Inputs General'!$B50='DNSP Inputs General'!$A$42,D$7,D$8))*'DNSP Inputs General'!$D50 -> 175.6497847 | E15: =IF('DNSP Inputs General'!$B50='DNSP Inputs General'!$A$41,E$6,IF('DNSP Inputs General'!$B50='DNSP Inputs General'!$A$42,E$7,E$8))*'DNSP Inputs General'!$D50 -> 178.0306302 | F15: =IF('DNSP Inputs General'!$B50='DNSP Inputs General'!$A$41,F$6,IF('DNSP Inputs General'!$B50='DNSP Inputs General'!$A$42,F$7,F$8))*'DNSP Inputs General'!$D50 -> 179.355444 | G15: =IF('DNSP Inputs General'!$B50='DNSP Inputs General'!$A$41,G$6,IF('DNSP Inputs General'!$B50='DNSP Inputs General'!$A$42,G$7,G$8))*'DNSP Inputs General'!$D50 -> 194.2084899 | H15: =IF('DNSP Inputs General'!$B50='DNSP Inputs General'!$A$41,H$6,IF('DNSP Inputs General'!$B50='DNSP Inputs General'!$A$42,H$7,H$8))*'DNSP Inputs General'!$D50 -> 215.4920669 | J15: =IF('DNSP Inputs General'!$B50='DNSP Inputs General'!$A$41,J$6,IF('DNSP Inputs General'!$B50='DNSP Inputs General'!$A$42,J$7,J$8))*'DNSP Inputs General'!$D50 -> 106.4741385 | K15: =IF('DNSP Inputs General'!$B50='DNSP Inputs General'!$A$41,K$6,IF('DNSP Inputs General'!$B50='DNSP Inputs General'!$A$42,K$7,K$8))*'DNSP Inputs General'!$D50 -> 108.9542662 | L15: =IF('DNSP Inputs General'!$B50='DNSP Inputs General'!$A$41,L$6,IF('DNSP Inputs General'!$B50='DNSP Inputs General'!$A$42,L$7,L$8))*'DNSP Inputs General'!$D50 -> 111.5648299 | M15: =IF('DNSP Inputs General'!$B50='DNSP Inputs General'!$A$41,M$6,IF('DNSP Inputs General'!$B50='DNSP Inputs General'!$A$42,M$7,M$8))*'DNSP Inputs General'!$D50 -> 114.3183052 | N15: =IF('DNSP Inputs General'!$B50='DNSP Inputs General'!$A$41,N$6,IF('DNSP Inputs General'!$B50='DNSP Inputs General'!$A$42,N$7,N$8))*'DNSP Inputs General'!$D50 -> 117.2607817 | P15: =IF('DNSP Inputs General'!$B50='DNSP Inputs General'!$A$41,P$6,IF('DNSP Inputs General'!$B50='DNSP Inputs General'!$A$42,P$7,P$8))*'DNSP Inputs General'!$D50 -> 69.17564616 | Q15: =IF('DNSP Inputs General'!$B50='DNSP Inputs General'!$A$41,Q$6,IF('DNSP Inputs General'!$B50='DNSP Inputs General'!$A$42,Q$7,Q$8))*'DNSP Inputs General'!$D50 -> 69.07636395 | R15: =IF('DNSP Inputs General'!$B50='DNSP Inputs General'!$A$41,R$6,IF('DNSP Inputs General'!$B50='DNSP Inputs General'!$A$42,R$7,R$8))*'DNSP Inputs General'!$D50 -> 67.79061409 | S15: =IF('DNSP Inputs General'!$B50='DNSP Inputs General'!$A$41,S$6,IF('DNSP Inputs General'!$B50='DNSP Inputs General'!$A$42,S$7,S$8))*'DNSP Inputs General'!$D50 -> 79.89018466 | T15: =IF('DNSP Inputs General'!$B50='DNSP Inputs General'!$A$41,T$6,IF('DNSP Inputs General'!$B50='DNSP Inputs General'!$A$42,T$7,T$8))*'DNSP Inputs General'!$D50 -> 98.23128512 | V15: 0 | W15: 1.421085472e-14 | X15: 1.421085472e-14 | Y15: 0 | Z15: 2.842170943e-14
A16: ='DNSP Inputs General'!A51 -> Sodium high pressure 70 watt | C16: ='DNSP Inputs General'!E51 -> 138.42 | D16: =IF('DNSP Inputs General'!$B51='DNSP Inputs General'!$A$41,D$6,IF('DNSP Inputs General'!$B51='DNSP Inputs General'!$A$42,D$7,D$8))*'DNSP Inputs General'!$D51 -> 197.8976711 | E16: =IF('DNSP Inputs General'!$B51='DNSP Inputs General'!$A$41,E$6,IF('DNSP Inputs General'!$B51='DNSP Inputs General'!$A$42,E$7,E$8))*'DNSP Inputs General'!$D51 -> 200.4116872 | F16: =IF('DNSP Inputs General'!$B51='DNSP Inputs General'!$A$41,F$6,IF('DNSP Inputs General'!$B51='DNSP Inputs General'!$A$42,F$7,F$8))*'DNSP Inputs General'!$D51 -> 214.4436575 | G16: =IF('DNSP Inputs General'!$B51='DNSP Inputs General'!$A$41,G$6,IF('DNSP Inputs General'!$B51='DNSP Inputs General'!$A$42,G$7,G$8))*'DNSP Inputs General'!$D51 -> 236.6163792 | H16: =IF('DNSP Inputs General'!$B51='DNSP Inputs General'!$A$41,H$6,IF('DNSP Inputs General'!$B51='DNSP Inputs General'!$A$42,H$7,H$8))*'DNSP Inputs General'!$D51 -> 269.0696757 | J16: =IF('DNSP Inputs General'!$B51='DNSP Inputs General'!$A$41,J$6,IF('DNSP Inputs General'!$B51='DNSP Inputs General'!$A$42,J$7,J$8))*'DNSP Inputs General'!$D51 -> 98.60745713 | K16: =IF('DNSP Inputs General'!$B51='DNSP Inputs General'!$A$41,K$6,IF('DNSP Inputs General'!$B51='DNSP Inputs General'!$A$42,K$7,K$8))*'DNSP Inputs General'!$D51 -> 101.2364685 | L16: =IF('DNSP Inputs General'!$B51='DNSP Inputs General'!$A$41,L$6,IF('DNSP Inputs General'!$B51='DNSP Inputs General'!$A$42,L$7,L$8))*'DNSP Inputs General'!$D51 -> 103.6601535 | M16: =IF('DNSP Inputs General'!$B51='DNSP Inputs General'!$A$41,M$6,IF('DNSP Inputs General'!$B51='DNSP Inputs General'!$A$42,M$7,M$8))*'DNSP Inputs General'!$D51 -> 106.2001212 | N16: =IF('DNSP Inputs General'!$B51='DNSP Inputs General'!$A$41,N$6,IF('DNSP Inputs General'!$B51='DNSP Inputs General'!$A$42,N$7,N$8))*'DNSP Inputs General'!$D51 -> 108.8948254 | P16: =IF('DNSP Inputs General'!$B51='DNSP Inputs General'!$A$41,P$6,IF('DNSP Inputs General'!$B51='DNSP Inputs General'!$A$42,P$7,P$8))*'DNSP Inputs General'!$D51 -> 99.29021401 | Q16: =IF('DNSP Inputs General'!$B51='DNSP Inputs General'!$A$41,Q$6,IF('DNSP Inputs General'!$B51='DNSP Inputs General'!$A$42,Q$7,Q$8))*'DNSP Inputs General'!$D51 -> 99.17521872 | R16: =IF('DNSP Inputs General'!$B51='DNSP Inputs General'!$A$41,R$6,IF('DNSP Inputs General'!$B51='DNSP Inputs General'!$A$42,R$7,R$8))*'DNSP Inputs General'!$D51 -> 110.783504 | S16: =IF('DNSP Inputs General'!$B51='DNSP Inputs General'!$A$41,S$6,IF('DNSP Inputs General'!$B51='DNSP Inputs General'!$A$42,S$7,S$8))*'DNSP Inputs General'!$D51 -> 130.416258 | T16: =IF('DNSP Inputs General'!$B51='DNSP Inputs General'!$A$41,T$6,IF('DNSP Inputs General'!$B51='DNSP Inputs General'!$A$42,T$7,T$8))*'DNSP Inputs General'!$D51 -> 160.1748503 | V16: 1.421085472e-14 | W16: 2.842170943e-14 | X16: 1.421085472e-14 | Y16: 2.842170943e-14 | Z16: 2.842170943e-14
A17: ='DNSP Inputs General'!A52 -> Sodium high pressure 100 watt | C17: ='DNSP Inputs General'!E52 -> 113.85 | D17: =IF('DNSP Inputs General'!$B52='DNSP Inputs General'!$A$41,D$6,IF('DNSP Inputs General'!$B52='DNSP Inputs General'!$A$42,D$7,D$8))*'DNSP Inputs General'!$D52 -> 140.9199889 | E17: =IF('DNSP Inputs General'!$B52='DNSP Inputs General'!$A$41,E$6,IF('DNSP Inputs General'!$B52='DNSP Inputs General'!$A$42,E$7,E$8))*'DNSP Inputs General'!$D52 -> 142.8615144 | F17: =IF('DNSP Inputs General'!$B52='DNSP Inputs General'!$A$41,F$6,IF('DNSP Inputs General'!$B52='DNSP Inputs General'!$A$42,F$7,F$8))*'DNSP Inputs General'!$D52 -> 145.0798568 | G17: =IF('DNSP Inputs General'!$B52='DNSP Inputs General'!$A$41,G$6,IF('DNSP Inputs General'!$B52='DNSP Inputs General'!$A$42,G$7,G$8))*'DNSP Inputs General'!$D52 -> 157.0350888 | H17: =IF('DNSP Inputs General'!$B52='DNSP Inputs General'!$A$41,H$6,IF('DNSP Inputs General'!$B52='DNSP Inputs General'!$A$42,H$7,H$8))*'DNSP Inputs General'!$D52 -> 174.1622045 | J17: =IF('DNSP Inputs General'!$B52='DNSP Inputs General'!$A$41,J$6,IF('DNSP Inputs General'!$B52='DNSP Inputs General'!$A$42,J$7,J$8))*'DNSP Inputs General'!$D52 -> 86.31366778 | K17: =IF('DNSP Inputs General'!$B52='DNSP Inputs General'!$A$41,K$6,IF('DNSP Inputs General'!$B52='DNSP Inputs General'!$A$42,K$7,K$8))*'DNSP Inputs General'!$D52 -> 88.33075688 | L17: =IF('DNSP Inputs General'!$B52='DNSP Inputs General'!$A$41,L$6,IF('DNSP Inputs General'!$B52='DNSP Inputs General'!$A$42,L$7,L$8))*'DNSP Inputs General'!$D52 -> 90.44219004 | M17: =IF('DNSP Inputs General'!$B52='DNSP Inputs General'!$A$41,M$6,IF('DNSP Inputs General'!$B52='DNSP Inputs General'!$A$42,M$7,M$8))*'DNSP Inputs General'!$D52 -> 92.66821612 | N17: =IF('DNSP Inputs General'!$B52='DNSP Inputs General'!$A$41,N$6,IF('DNSP Inputs General'!$B52='DNSP Inputs General'!$A$42,N$7,N$8))*'DNSP Inputs General'!$D52 -> 95.04761183 | P17: =IF('DNSP Inputs General'!$B52='DNSP Inputs General'!$A$41,P$6,IF('DNSP Inputs General'!$B52='DNSP Inputs General'!$A$42,P$7,P$8))*'DNSP Inputs General'!$D52 -> 54.60632107 | Q17: =IF('DNSP Inputs General'!$B52='DNSP Inputs General'!$A$41,Q$6,IF('DNSP Inputs General'!$B52='DNSP Inputs General'!$A$42,Q$7,Q$8))*'DNSP Inputs General'!$D52 -> 54.53075755 | R17: =IF('DNSP Inputs General'!$B52='DNSP Inputs General'!$A$41,R$6,IF('DNSP Inputs General'!$B52='DNSP Inputs General'!$A$42,R$7,R$8))*'DNSP Inputs General'!$D52 -> 54.63766672 | S17: =IF('DNSP Inputs General'!$B52='DNSP Inputs General'!$A$41,S$6,IF('DNSP Inputs General'!$B52='DNSP Inputs General'!$A$42,S$7,S$8))*'DNSP Inputs General'!$D52 -> 64.36687265 | T17: =IF('DNSP Inputs General'!$B52='DNSP Inputs General'!$A$41,T$6,IF('DNSP Inputs General'!$B52='DNSP Inputs General'!$A$42,T$7,T$8))*'DNSP Inputs General'!$D52 -> 79.1145927 | V17: 2.131628207e-14 | W17: 0 | X17: 0 | Y17: 1.421085472e-14 | Z17: 1.421085472e-14
A18: ='DNSP Inputs General'!A53 -> Sodium high pressure 220 watt | C18: ='DNSP Inputs General'!E53 -> 113.47 | D18: =IF('DNSP Inputs General'!$B53='DNSP Inputs General'!$A$41,D$6,IF('DNSP Inputs General'!$B53='DNSP Inputs General'!$A$42,D$7,D$8))*'DNSP Inputs General'!$D53 -> 140.8008674 | E18: =IF('DNSP Inputs General'!$B53='DNSP Inputs General'!$A$41,E$6,IF('DNSP Inputs General'!$B53='DNSP Inputs General'!$A$42,E$7,E$8))*'DNSP Inputs General'!$D53 -> 142.7093532 | F18: =IF('DNSP Inputs General'!$B53='DNSP Inputs General'!$A$41,F$6,IF('DNSP Inputs General'!$B53='DNSP Inputs General'!$A$42,F$7,F$8))*'DNSP Inputs General'!$D53 -> 143.7713239 | G18: =IF('DNSP Inputs General'!$B53='DNSP Inputs General'!$A$41,G$6,IF('DNSP Inputs General'!$B53='DNSP Inputs General'!$A$42,G$7,G$8))*'DNSP Inputs General'!$D53 -> 155.6775255 | H18: =IF('DNSP Inputs General'!$B53='DNSP Inputs General'!$A$41,H$6,IF('DNSP Inputs General'!$B53='DNSP Inputs General'!$A$42,H$7,H$8))*'DNSP Inputs General'!$D53 -> 172.7384408 | J18: =IF('DNSP Inputs General'!$B53='DNSP Inputs General'!$A$41,J$6,IF('DNSP Inputs General'!$B53='DNSP Inputs General'!$A$42,J$7,J$8))*'DNSP Inputs General'!$D53 -> 85.34966942 | K18: =IF('DNSP Inputs General'!$B53='DNSP Inputs General'!$A$41,K$6,IF('DNSP Inputs General'!$B53='DNSP Inputs General'!$A$42,K$7,K$8))*'DNSP Inputs General'!$D53 -> 87.33773982 | L18: =IF('DNSP Inputs General'!$B53='DNSP Inputs General'!$A$41,L$6,IF('DNSP Inputs General'!$B53='DNSP Inputs General'!$A$42,L$7,L$8))*'DNSP Inputs General'!$D53 -> 89.43036768 | M18: =IF('DNSP Inputs General'!$B53='DNSP Inputs General'!$A$41,M$6,IF('DNSP Inputs General'!$B53='DNSP Inputs General'!$A$42,M$7,M$8))*'DNSP Inputs General'!$D53 -> 91.63755345 | N18: =IF('DNSP Inputs General'!$B53='DNSP Inputs General'!$A$41,N$6,IF('DNSP Inputs General'!$B53='DNSP Inputs General'!$A$42,N$7,N$8))*'DNSP Inputs General'!$D53 -> 93.99624265 | P18: =IF('DNSP Inputs General'!$B53='DNSP Inputs General'!$A$41,P$6,IF('DNSP Inputs General'!$B53='DNSP Inputs General'!$A$42,P$7,P$8))*'DNSP Inputs General'!$D53 -> 55.45119797 | Q18: =IF('DNSP Inputs General'!$B53='DNSP Inputs General'!$A$41,Q$6,IF('DNSP Inputs General'!$B53='DNSP Inputs General'!$A$42,Q$7,Q$8))*'DNSP Inputs General'!$D53 -> 55.37161335 | R18: =IF('DNSP Inputs General'!$B53='DNSP Inputs General'!$A$41,R$6,IF('DNSP Inputs General'!$B53='DNSP Inputs General'!$A$42,R$7,R$8))*'DNSP Inputs General'!$D53 -> 54.34095625 | S18: =IF('DNSP Inputs General'!$B53='DNSP Inputs General'!$A$41,S$6,IF('DNSP Inputs General'!$B53='DNSP Inputs General'!$A$42,S$7,S$8))*'DNSP Inputs General'!$D53 -> 64.03997202 | T18: =IF('DNSP Inputs General'!$B53='DNSP Inputs General'!$A$41,T$6,IF('DNSP Inputs General'!$B53='DNSP Inputs General'!$A$42,T$7,T$8))*'DNSP Inputs General'!$D53 -> 78.74219815 | V18: 1.421085472e-14 | W18: 1.421085472e-14 | X18: 7.105427358e-15 | Y18: 0 | Z18: 2.842170943e-14
A19: ='DNSP Inputs General'!A54 -> Sodium high pressure 360 watt | C19: ='DNSP Inputs General'!E54 -> 115.5 | D19: =IF('DNSP Inputs General'!$B54='DNSP Inputs General'!$A$41,D$6,IF('DNSP Inputs General'!$B54='DNSP Inputs General'!$A$42,D$7,D$8))*'DNSP Inputs General'!$D54 -> 143.3302243 | E19: =IF('DNSP Inputs General'!$B54='DNSP Inputs General'!$A$41,E$6,IF('DNSP Inputs General'!$B54='DNSP Inputs General'!$A$42,E$7,E$8))*'DNSP Inputs General'!$D54 -> 145.2729942 | F19: =IF('DNSP Inputs General'!$B54='DNSP Inputs General'!$A$41,F$6,IF('DNSP Inputs General'!$B54='DNSP Inputs General'!$A$42,F$7,F$8))*'DNSP Inputs General'!$D54 -> 146.3540423 | G19: =IF('DNSP Inputs General'!$B54='DNSP Inputs General'!$A$41,G$6,IF('DNSP Inputs General'!$B54='DNSP Inputs General'!$A$42,G$7,G$8))*'DNSP Inputs General'!$D54 -> 158.4741277 | H19: =IF('DNSP Inputs General'!$B54='DNSP Inputs General'!$A$41,H$6,IF('DNSP Inputs General'!$B54='DNSP Inputs General'!$A$42,H$7,H$8))*'DNSP Inputs General'!$D54 -> 175.8415266 | J19: =IF('DNSP Inputs General'!$B54='DNSP Inputs General'!$A$41,J$6,IF('DNSP Inputs General'!$B54='DNSP Inputs General'!$A$42,J$7,J$8))*'DNSP Inputs General'!$D54 -> 86.88289701 | K19: =IF('DNSP Inputs General'!$B54='DNSP Inputs General'!$A$41,K$6,IF('DNSP Inputs General'!$B54='DNSP Inputs General'!$A$42,K$7,K$8))*'DNSP Inputs General'!$D54 -> 88.90668125 | L19: =IF('DNSP Inputs General'!$B54='DNSP Inputs General'!$A$41,L$6,IF('DNSP Inputs General'!$B54='DNSP Inputs General'!$A$42,L$7,L$8))*'DNSP Inputs General'!$D54 -> 91.03690124 | M19: =IF('DNSP Inputs General'!$B54='DNSP Inputs General'!$A$41,M$6,IF('DNSP Inputs General'!$B54='DNSP Inputs General'!$A$42,M$7,M$8))*'DNSP Inputs General'!$D54 -> 93.28373705 | N19: =IF('DNSP Inputs General'!$B54='DNSP Inputs General'!$A$41,N$6,IF('DNSP Inputs General'!$B54='DNSP Inputs General'!$A$42,N$7,N$8))*'DNSP Inputs General'!$D54 -> 95.6847979 | P19: =IF('DNSP Inputs General'!$B54='DNSP Inputs General'!$A$41,P$6,IF('DNSP Inputs General'!$B54='DNSP Inputs General'!$A$42,P$7,P$8))*'DNSP Inputs General'!$D54 -> 56.44732727 | Q19: =IF('DNSP Inputs General'!$B54='DNSP Inputs General'!$A$41,Q$6,IF('DNSP Inputs General'!$B54='DNSP Inputs General'!$A$42,Q$7,Q$8))*'DNSP Inputs General'!$D54 -> 56.36631299 | R19: =IF('DNSP Inputs General'!$B54='DNSP Inputs General'!$A$41,R$6,IF('DNSP Inputs General'!$B54='DNSP Inputs General'!$A$42,R$7,R$8))*'DNSP Inputs General'!$D54 -> 55.3171411 | S19: =IF('DNSP Inputs General'!$B54='DNSP Inputs General'!$A$41,S$6,IF('DNSP Inputs General'!$B54='DNSP Inputs General'!$A$42,S$7,S$8))*'DNSP Inputs General'!$D54 -> 65.19039068 | T19: =IF('DNSP Inputs General'!$B54='DNSP Inputs General'!$A$41,T$6,IF('DNSP Inputs General'!$B54='DNSP Inputs General'!$A$42,T$7,T$8))*'DNSP Inputs General'!$D54 -> 80.15672866 | V19: 1.421085472e-14 | W19: 1.421085472e-14 | X19: 7.105427358e-15 | Y19: 1.421085472e-14 | Z19: 2.842170943e-14
A20: ='DNSP Inputs General'!A55 -> Sodium high pressure 400 watt | C20: ='DNSP Inputs General'!E55 -> 124.56 | D20: =IF('DNSP Inputs General'!$B55='DNSP Inputs General'!$A$41,D$6,IF('DNSP Inputs General'!$B55='DNSP Inputs General'!$A$42,D$7,D$8))*'DNSP Inputs General'!$D55 -> 154.5718105 | E20: =IF('DNSP Inputs General'!$B55='DNSP Inputs General'!$A$41,E$6,IF('DNSP Inputs General'!$B55='DNSP Inputs General'!$A$42,E$7,E$8))*'DNSP Inputs General'!$D55 -> 156.6669546 | F20: =IF('DNSP Inputs General'!$B55='DNSP Inputs General'!$A$41,F$6,IF('DNSP Inputs General'!$B55='DNSP Inputs General'!$A$42,F$7,F$8))*'DNSP Inputs General'!$D55 -> 157.8327908 | G20: =IF('DNSP Inputs General'!$B55='DNSP Inputs General'!$A$41,G$6,IF('DNSP Inputs General'!$B55='DNSP Inputs General'!$A$42,G$7,G$8))*'DNSP Inputs General'!$D55 -> 170.9034711 | H20: =IF('DNSP Inputs General'!$B55='DNSP Inputs General'!$A$41,H$6,IF('DNSP Inputs General'!$B55='DNSP Inputs General'!$A$42,H$7,H$8))*'DNSP Inputs General'!$D55 -> 189.6330188 | J20: =IF('DNSP Inputs General'!$B55='DNSP Inputs General'!$A$41,J$6,IF('DNSP Inputs General'!$B55='DNSP Inputs General'!$A$42,J$7,J$8))*'DNSP Inputs General'!$D55 -> 93.69724187 | K20: =IF('DNSP Inputs General'!$B55='DNSP Inputs General'!$A$41,K$6,IF('DNSP Inputs General'!$B55='DNSP Inputs General'!$A$42,K$7,K$8))*'DNSP Inputs General'!$D55 -> 95.87975429 | L20: =IF('DNSP Inputs General'!$B55='DNSP Inputs General'!$A$41,L$6,IF('DNSP Inputs General'!$B55='DNSP Inputs General'!$A$42,L$7,L$8))*'DNSP Inputs General'!$D55 -> 98.17705035 | M20: =IF('DNSP Inputs General'!$B55='DNSP Inputs General'!$A$41,M$6,IF('DNSP Inputs General'!$B55='DNSP Inputs General'!$A$42,M$7,M$8))*'DNSP Inputs General'!$D55 -> 100.6001086 | N20: =IF('DNSP Inputs General'!$B55='DNSP Inputs General'!$A$41,N$6,IF('DNSP Inputs General'!$B55='DNSP Inputs General'!$A$42,N$7,N$8))*'DNSP Inputs General'!$D55 -> 103.1894879 | P20: =IF('DNSP Inputs General'!$B55='DNSP Inputs General'!$A$41,P$6,IF('DNSP Inputs General'!$B55='DNSP Inputs General'!$A$42,P$7,P$8))*'DNSP Inputs General'!$D55 -> 60.87456862 | Q20: =IF('DNSP Inputs General'!$B55='DNSP Inputs General'!$A$41,Q$6,IF('DNSP Inputs General'!$B55='DNSP Inputs General'!$A$42,Q$7,Q$8))*'DNSP Inputs General'!$D55 -> 60.78720028 | R20: =IF('DNSP Inputs General'!$B55='DNSP Inputs General'!$A$41,R$6,IF('DNSP Inputs General'!$B55='DNSP Inputs General'!$A$42,R$7,R$8))*'DNSP Inputs General'!$D55 -> 59.6557404 | S20: =IF('DNSP Inputs General'!$B55='DNSP Inputs General'!$A$41,S$6,IF('DNSP Inputs General'!$B55='DNSP Inputs General'!$A$42,S$7,S$8))*'DNSP Inputs General'!$D55 -> 70.3033625 | T20: =IF('DNSP Inputs General'!$B55='DNSP Inputs General'!$A$41,T$6,IF('DNSP Inputs General'!$B55='DNSP Inputs General'!$A$42,T$7,T$8))*'DNSP Inputs General'!$D55 -> 86.4435309 | V20: 0 | W20: 7.105427358e-15 | X20: 2.842170943e-14 | Y20: 0 | Z20: 0
A21: ='DNSP Inputs General'!A56 -> Sodium high pressure 1000 watt | C21: ='DNSP Inputs General'!E56 -> 0 | D21: =IF('DNSP Inputs General'!$B56='DNSP Inputs General'!$A$41,D$6,IF('DNSP Inputs General'!$B56='DNSP Inputs General'!$A$42,D$7,D$8))*'DNSP Inputs General'!$D56 -> 278.2292589 | E21: =IF('DNSP Inputs General'!$B56='DNSP Inputs General'!$A$41,E$6,IF('DNSP Inputs General'!$B56='DNSP Inputs General'!$A$42,E$7,E$8))*'DNSP Inputs General'!$D56 -> 282.0005182 | F21: =IF('DNSP Inputs General'!$B56='DNSP Inputs General'!$A$41,F$6,IF('DNSP Inputs General'!$B56='DNSP Inputs General'!$A$42,F$7,F$8))*'DNSP Inputs General'!$D56 -> 284.0990234 | G21: =IF('DNSP Inputs General'!$B56='DNSP Inputs General'!$A$41,G$6,IF('DNSP Inputs General'!$B56='DNSP Inputs General'!$A$42,G$7,G$8))*'DNSP Inputs General'!$D56 -> 307.6262479 | H21: =IF('DNSP Inputs General'!$B56='DNSP Inputs General'!$A$41,H$6,IF('DNSP Inputs General'!$B56='DNSP Inputs General'!$A$42,H$7,H$8))*'DNSP Inputs General'!$D56 -> 341.3394339 | J21: =IF('DNSP Inputs General'!$B56='DNSP Inputs General'!$A$41,J$6,IF('DNSP Inputs General'!$B56='DNSP Inputs General'!$A$42,J$7,J$8))*'DNSP Inputs General'!$D56 -> 168.6550354 | K21: =IF('DNSP Inputs General'!$B56='DNSP Inputs General'!$A$41,K$6,IF('DNSP Inputs General'!$B56='DNSP Inputs General'!$A$42,K$7,K$8))*'DNSP Inputs General'!$D56 -> 172.5835577 | L21: =IF('DNSP Inputs General'!$B56='DNSP Inputs General'!$A$41,L$6,IF('DNSP Inputs General'!$B56='DNSP Inputs General'!$A$42,L$7,L$8))*'DNSP Inputs General'!$D56 -> 176.7186906 | M21: =IF('DNSP Inputs General'!$B56='DNSP Inputs General'!$A$41,M$6,IF('DNSP Inputs General'!$B56='DNSP Inputs General'!$A$42,M$7,M$8))*'DNSP Inputs General'!$D56 -> 181.0801954 | N21: =IF('DNSP Inputs General'!$B56='DNSP Inputs General'!$A$41,N$6,IF('DNSP Inputs General'!$B56='DNSP Inputs General'!$A$42,N$7,N$8))*'DNSP Inputs General'!$D56 -> 185.7410783 | P21: =IF('DNSP Inputs General'!$B56='DNSP Inputs General'!$A$41,P$6,IF('DNSP Inputs General'!$B56='DNSP Inputs General'!$A$42,P$7,P$8))*'DNSP Inputs General'!$D56 -> 109.5742235 | Q21: =IF('DNSP Inputs General'!$B56='DNSP Inputs General'!$A$41,Q$6,IF('DNSP Inputs General'!$B56='DNSP Inputs General'!$A$42,Q$7,Q$8))*'DNSP Inputs General'!$D56 -> 109.4169605 | R21: =IF('DNSP Inputs General'!$B56='DNSP Inputs General'!$A$41,R$6,IF('DNSP Inputs General'!$B56='DNSP Inputs General'!$A$42,R$7,R$8))*'DNSP Inputs General'!$D56 -> 107.3803327 | S21: =IF('DNSP Inputs General'!$B56='DNSP Inputs General'!$A$41,S$6,IF('DNSP Inputs General'!$B56='DNSP Inputs General'!$A$42,S$7,S$8))*'DNSP Inputs General'!$D56 -> 126.5460525 | T21: =IF('DNSP Inputs General'!$B56='DNSP Inputs General'!$A$41,T$6,IF('DNSP Inputs General'!$B56='DNSP Inputs General'!$A$42,T$7,T$8))*'DNSP Inputs General'!$D56 -> 155.5983556 | V21: 4.263256415e-14 | W21: 1.421085472e-14 | X21: 1.421085472e-14 | Y21: 0 | Z21: 2.842170943e-14
A22: ='DNSP Inputs General'!A57 -> Metal halide 70 watt | C22: ='DNSP Inputs General'!E57 -> 138.42 | D22: =IF('DNSP Inputs General'!$B57='DNSP Inputs General'!$A$41,D$6,IF('DNSP Inputs General'!$B57='DNSP Inputs General'!$A$42,D$7,D$8))*'DNSP Inputs General'!$D57 -> 197.8976711 | E22: =IF('DNSP Inputs General'!$B57='DNSP Inputs General'!$A$41,E$6,IF('DNSP Inputs General'!$B57='DNSP Inputs General'!$A$42,E$7,E$8))*'DNSP Inputs General'!$D57 -> 200.4116872 | F22: =IF('DNSP Inputs General'!$B57='DNSP Inputs General'!$A$41,F$6,IF('DNSP Inputs General'!$B57='DNSP Inputs General'!$A$42,F$7,F$8))*'DNSP Inputs General'!$D57 -> 214.4436575 | G22: =IF('DNSP Inputs General'!$B57='DNSP Inputs General'!$A$41,G$6,IF('DNSP Inputs General'!$B57='DNSP Inputs General'!$A$42,G$7,G$8))*'DNSP Inputs General'!$D57 -> 236.6163792 | H22: =IF('DNSP Inputs General'!$B57='DNSP Inputs General'!$A$41,H$6,IF('DNSP Inputs General'!$B57='DNSP Inputs General'!$A$42,H$7,H$8))*'DNSP Inputs General'!$D57 -> 269.0696757 | J22: =IF('DNSP Inputs General'!$B57='DNSP Inputs General'!$A$41,J$6,IF('DNSP Inputs General'!$B57='DNSP Inputs General'!$A$42,J$7,J$8))*'DNSP Inputs General'!$D57 -> 98.60745713 | K22: =IF('DNSP Inputs General'!$B57='DNSP Inputs General'!$A$41,K$6,IF('DNSP Inputs General'!$B57='DNSP Inputs General'!$A$42,K$7,K$8))*'DNSP Inputs General'!$D57 -> 101.2364685 | L22: =IF('DNSP Inputs General'!$B57='DNSP Inputs General'!$A$41,L$6,IF('DNSP Inputs General'!$B57='DNSP Inputs General'!$A$42,L$7,L$8))*'DNSP Inputs General'!$D57 -> 103.6601535 | M22: =IF('DNSP Inputs General'!$B57='DNSP Inputs General'!$A$41,M$6,IF('DNSP Inputs General'!$B57='DNSP Inputs General'!$A$42,M$7,M$8))*'DNSP Inputs General'!$D57 -> 106.2001212 | N22: =IF('DNSP Inputs General'!$B57='DNSP Inputs General'!$A$41,N$6,IF('DNSP Inputs General'!$B57='DNSP Inputs General'!$A$42,N$7,N$8))*'DNSP Inputs General'!$D57 -> 108.8948254 | P22: =IF('DNSP Inputs General'!$B57='DNSP Inputs General'!$A$41,P$6,IF('DNSP Inputs General'!$B57='DNSP Inputs General'!$A$42,P$7,P$8))*'DNSP Inputs General'!$D57 -> 99.29021401 | Q22: =IF('DNSP Inputs General'!$B57='DNSP Inputs General'!$A$41,Q$6,IF('DNSP Inputs General'!$B57='DNSP Inputs General'!$A$42,Q$7,Q$8))*'DNSP Inputs General'!$D57 -> 99.17521872 | R22: =IF('DNSP Inputs General'!$B57='DNSP Inputs General'!$A$41,R$6,IF('DNSP Inputs General'!$B57='DNSP Inputs General'!$A$42,R$7,R$8))*'DNSP Inputs General'!$D57 -> 110.783504 | S22: =IF('DNSP Inputs General'!$B57='DNSP Inputs General'!$A$41,S$6,IF('DNSP Inputs General'!$B57='DNSP Inputs General'!$A$42,S$7,S$8))*'DNSP Inputs General'!$D57 -> 130.416258 | T22: =IF('DNSP Inputs General'!$B57='DNSP Inputs General'!$A$41,T$6,IF('DNSP Inputs General'!$B57='DNSP Inputs General'!$A$42,T$7,T$8))*'DNSP Inputs General'!$D57 -> 160.1748503 | V22: 1.421085472e-14 | W22: 2.842170943e-14 | X22: 1.421085472e-14 | Y22: 2.842170943e-14 | Z22: 2.842170943e-14
A23: ='DNSP Inputs General'!A58 -> Metal halide 100 watt | C23: ='DNSP Inputs General'!E58 -> 175.25 | D23: =IF('DNSP Inputs General'!$B58='DNSP Inputs General'!$A$41,D$6,IF('DNSP Inputs General'!$B58='DNSP Inputs General'!$A$42,D$7,D$8))*'DNSP Inputs General'!$D58 -> 216.9062574 | E23: =IF('DNSP Inputs General'!$B58='DNSP Inputs General'!$A$41,E$6,IF('DNSP Inputs General'!$B58='DNSP Inputs General'!$A$42,E$7,E$8))*'DNSP Inputs General'!$D58 -> 219.894684 | F23: =IF('DNSP Inputs General'!$B58='DNSP Inputs General'!$A$41,F$6,IF('DNSP Inputs General'!$B58='DNSP Inputs General'!$A$42,F$7,F$8))*'DNSP Inputs General'!$D58 -> 223.3091913 | G23: =IF('DNSP Inputs General'!$B58='DNSP Inputs General'!$A$41,G$6,IF('DNSP Inputs General'!$B58='DNSP Inputs General'!$A$42,G$7,G$8))*'DNSP Inputs General'!$D58 -> 241.7108719 | H23: =IF('DNSP Inputs General'!$B58='DNSP Inputs General'!$A$41,H$6,IF('DNSP Inputs General'!$B58='DNSP Inputs General'!$A$42,H$7,H$8))*'DNSP Inputs General'!$D58 -> 268.0731972 | J23: =IF('DNSP Inputs General'!$B58='DNSP Inputs General'!$A$41,J$6,IF('DNSP Inputs General'!$B58='DNSP Inputs General'!$A$42,J$7,J$8))*'DNSP Inputs General'!$D58 -> 132.8553514 | K23: =IF('DNSP Inputs General'!$B58='DNSP Inputs General'!$A$41,K$6,IF('DNSP Inputs General'!$B58='DNSP Inputs General'!$A$42,K$7,K$8))*'DNSP Inputs General'!$D58 -> 135.9600866 | L23: =IF('DNSP Inputs General'!$B58='DNSP Inputs General'!$A$41,L$6,IF('DNSP Inputs General'!$B58='DNSP Inputs General'!$A$42,L$7,L$8))*'DNSP Inputs General'!$D58 -> 139.2100376 | M23: =IF('DNSP Inputs General'!$B58='DNSP Inputs General'!$A$41,M$6,IF('DNSP Inputs General'!$B58='DNSP Inputs General'!$A$42,M$7,M$8))*'DNSP Inputs General'!$D58 -> 142.6363719 | N23: =IF('DNSP Inputs General'!$B58='DNSP Inputs General'!$A$41,N$6,IF('DNSP Inputs General'!$B58='DNSP Inputs General'!$A$42,N$7,N$8))*'DNSP Inputs General'!$D58 -> 146.2987751 | P23: =IF('DNSP Inputs General'!$B58='DNSP Inputs General'!$A$41,P$6,IF('DNSP Inputs General'!$B58='DNSP Inputs General'!$A$42,P$7,P$8))*'DNSP Inputs General'!$D58 -> 84.05090596 | Q23: =IF('DNSP Inputs General'!$B58='DNSP Inputs General'!$A$41,Q$6,IF('DNSP Inputs General'!$B58='DNSP Inputs General'!$A$42,Q$7,Q$8))*'DNSP Inputs General'!$D58 -> 83.9345974 | R23: =IF('DNSP Inputs General'!$B58='DNSP Inputs General'!$A$41,R$6,IF('DNSP Inputs General'!$B58='DNSP Inputs General'!$A$42,R$7,R$8))*'DNSP Inputs General'!$D58 -> 84.09915368 | S23: =IF('DNSP Inputs General'!$B58='DNSP Inputs General'!$A$41,S$6,IF('DNSP Inputs General'!$B58='DNSP Inputs General'!$A$42,S$7,S$8))*'DNSP Inputs General'!$D58 -> 99.07450006 | T23: =IF('DNSP Inputs General'!$B58='DNSP Inputs General'!$A$41,T$6,IF('DNSP Inputs General'!$B58='DNSP Inputs General'!$A$42,T$7,T$8))*'DNSP Inputs General'!$D58 -> 121.7744221 | V23: 4.263256415e-14 | W23: 4.263256415e-14 | X23: 0 | Y23: 2.842170943e-14 | Z23: 4.263256415e-14
A24: ='DNSP Inputs General'!A59 -> Metal halide 150 watt | C24: ='DNSP Inputs General'!E59 -> 176.36 | D24: =IF('DNSP Inputs General'!$B59='DNSP Inputs General'!$A$41,D$6,IF('DNSP Inputs General'!$B59='DNSP Inputs General'!$A$42,D$7,D$8))*'DNSP Inputs General'!$D59 -> 218.2878259 | E24: =IF('DNSP Inputs General'!$B59='DNSP Inputs General'!$A$41,E$6,IF('DNSP Inputs General'!$B59='DNSP Inputs General'!$A$42,E$7,E$8))*'DNSP Inputs General'!$D59 -> 221.2952871 | F24: =IF('DNSP Inputs General'!$B59='DNSP Inputs General'!$A$41,F$6,IF('DNSP Inputs General'!$B59='DNSP Inputs General'!$A$42,F$7,F$8))*'DNSP Inputs General'!$D59 -> 224.7315428 | G24: =IF('DNSP Inputs General'!$B59='DNSP Inputs General'!$A$41,G$6,IF('DNSP Inputs General'!$B59='DNSP Inputs General'!$A$42,G$7,G$8))*'DNSP Inputs General'!$D59 -> 243.2504316 | H24: =IF('DNSP Inputs General'!$B59='DNSP Inputs General'!$A$41,H$6,IF('DNSP Inputs General'!$B59='DNSP Inputs General'!$A$42,H$7,H$8))*'DNSP Inputs General'!$D59 -> 269.7806698 | J24: =IF('DNSP Inputs General'!$B59='DNSP Inputs General'!$A$41,J$6,IF('DNSP Inputs General'!$B59='DNSP Inputs General'!$A$42,J$7,J$8))*'DNSP Inputs General'!$D59 -> 133.7015638 | K24: =IF('DNSP Inputs General'!$B59='DNSP Inputs General'!$A$41,K$6,IF('DNSP Inputs General'!$B59='DNSP Inputs General'!$A$42,K$7,K$8))*'DNSP Inputs General'!$D59 -> 136.8260744 | L24: =IF('DNSP Inputs General'!$B59='DNSP Inputs General'!$A$41,L$6,IF('DNSP Inputs General'!$B59='DNSP Inputs General'!$A$42,L$7,L$8))*'DNSP Inputs General'!$D59 -> 140.0967257 | M24: =IF('DNSP Inputs General'!$B59='DNSP Inputs General'!$A$41,M$6,IF('DNSP Inputs General'!$B59='DNSP Inputs General'!$A$42,M$7,M$8))*'DNSP Inputs General'!$D59 -> 143.5448838 | N24: =IF('DNSP Inputs General'!$B59='DNSP Inputs General'!$A$41,N$6,IF('DNSP Inputs General'!$B59='DNSP Inputs General'!$A$42,N$7,N$8))*'DNSP Inputs General'!$D59 -> 147.2306144 | P24: =IF('DNSP Inputs General'!$B59='DNSP Inputs General'!$A$41,P$6,IF('DNSP Inputs General'!$B59='DNSP Inputs General'!$A$42,P$7,P$8))*'DNSP Inputs General'!$D59 -> 84.58626205 | Q24: =IF('DNSP Inputs General'!$B59='DNSP Inputs General'!$A$41,Q$6,IF('DNSP Inputs General'!$B59='DNSP Inputs General'!$A$42,Q$7,Q$8))*'DNSP Inputs General'!$D59 -> 84.46921267 | R24: =IF('DNSP Inputs General'!$B59='DNSP Inputs General'!$A$41,R$6,IF('DNSP Inputs General'!$B59='DNSP Inputs General'!$A$42,R$7,R$8))*'DNSP Inputs General'!$D59 -> 84.63481708 | S24: =IF('DNSP Inputs General'!$B59='DNSP Inputs General'!$A$41,S$6,IF('DNSP Inputs General'!$B59='DNSP Inputs General'!$A$42,S$7,S$8))*'DNSP Inputs General'!$D59 -> 99.70554784 | T24: =IF('DNSP Inputs General'!$B59='DNSP Inputs General'!$A$41,T$6,IF('DNSP Inputs General'!$B59='DNSP Inputs General'!$A$42,T$7,T$8))*'DNSP Inputs General'!$D59 -> 122.5500554 | V24: 2.842170943e-14 | W24: 2.842170943e-14 | X24: 0 | Y24: 0 | Z24: 1.421085472e-14
A25: ='DNSP Inputs General'!A60 -> Metal halide 250 watt | C25: ='DNSP Inputs General'!E60 -> 135.89 | D25: =IF('DNSP Inputs General'!$B60='DNSP Inputs General'!$A$41,D$6,IF('DNSP Inputs General'!$B60='DNSP Inputs General'!$A$42,D$7,D$8))*'DNSP Inputs General'!$D60 -> 168.6237933 | E25: =IF('DNSP Inputs General'!$B60='DNSP Inputs General'!$A$41,E$6,IF('DNSP Inputs General'!$B60='DNSP Inputs General'!$A$42,E$7,E$8))*'DNSP Inputs General'!$D60 -> 170.909405 | F25: =IF('DNSP Inputs General'!$B60='DNSP Inputs General'!$A$41,F$6,IF('DNSP Inputs General'!$B60='DNSP Inputs General'!$A$42,F$7,F$8))*'DNSP Inputs General'!$D60 -> 172.1812263 | G25: =IF('DNSP Inputs General'!$B60='DNSP Inputs General'!$A$41,G$6,IF('DNSP Inputs General'!$B60='DNSP Inputs General'!$A$42,G$7,G$8))*'DNSP Inputs General'!$D60 -> 186.4401503 | H25: =IF('DNSP Inputs General'!$B60='DNSP Inputs General'!$A$41,H$6,IF('DNSP Inputs General'!$B60='DNSP Inputs General'!$A$42,H$7,H$8))*'DNSP Inputs General'!$D60 -> 206.8723842 | J25: =IF('DNSP Inputs General'!$B60='DNSP Inputs General'!$A$41,J$6,IF('DNSP Inputs General'!$B60='DNSP Inputs General'!$A$42,J$7,J$8))*'DNSP Inputs General'!$D60 -> 102.215173 | K25: =IF('DNSP Inputs General'!$B60='DNSP Inputs General'!$A$41,K$6,IF('DNSP Inputs General'!$B60='DNSP Inputs General'!$A$42,K$7,K$8))*'DNSP Inputs General'!$D60 -> 104.5960956 | L25: =IF('DNSP Inputs General'!$B60='DNSP Inputs General'!$A$41,L$6,IF('DNSP Inputs General'!$B60='DNSP Inputs General'!$A$42,L$7,L$8))*'DNSP Inputs General'!$D60 -> 107.1022367 | M25: =IF('DNSP Inputs General'!$B60='DNSP Inputs General'!$A$41,M$6,IF('DNSP Inputs General'!$B60='DNSP Inputs General'!$A$42,M$7,M$8))*'DNSP Inputs General'!$D60 -> 109.745573 | N25: =IF('DNSP Inputs General'!$B60='DNSP Inputs General'!$A$41,N$6,IF('DNSP Inputs General'!$B60='DNSP Inputs General'!$A$42,N$7,N$8))*'DNSP Inputs General'!$D60 -> 112.5703505 | P25: =IF('DNSP Inputs General'!$B60='DNSP Inputs General'!$A$41,P$6,IF('DNSP Inputs General'!$B60='DNSP Inputs General'!$A$42,P$7,P$8))*'DNSP Inputs General'!$D60 -> 66.40862032 | Q25: =IF('DNSP Inputs General'!$B60='DNSP Inputs General'!$A$41,Q$6,IF('DNSP Inputs General'!$B60='DNSP Inputs General'!$A$42,Q$7,Q$8))*'DNSP Inputs General'!$D60 -> 66.3133094 | R25: =IF('DNSP Inputs General'!$B60='DNSP Inputs General'!$A$41,R$6,IF('DNSP Inputs General'!$B60='DNSP Inputs General'!$A$42,R$7,R$8))*'DNSP Inputs General'!$D60 -> 65.07898953 | S25: =IF('DNSP Inputs General'!$B60='DNSP Inputs General'!$A$41,S$6,IF('DNSP Inputs General'!$B60='DNSP Inputs General'!$A$42,S$7,S$8))*'DNSP Inputs General'!$D60 -> 76.69457727 | T25: =IF('DNSP Inputs General'!$B60='DNSP Inputs General'!$A$41,T$6,IF('DNSP Inputs General'!$B60='DNSP Inputs General'!$A$42,T$7,T$8))*'DNSP Inputs General'!$D60 -> 94.30203371 | V25: =ABS(D25-J25-P25) -> 0 | W25: 2.842170943e-14 | X25: 0 | Y25: 1.421085472e-14 | Z25: 1.421085472e-14
A26: ='DNSP Inputs General'!A61 -> Metal halide 400 watt | C26: ='DNSP Inputs General'!E61 -> 135.89 | D26: =IF('DNSP Inputs General'!$B61='DNSP Inputs General'!$A$41,D$6,IF('DNSP Inputs General'!$B61='DNSP Inputs General'!$A$42,D$7,D$8))*'DNSP Inputs General'!$D61 -> 168.6237933 | E26: =IF('DNSP Inputs General'!$B61='DNSP Inputs General'!$A$41,E$6,IF('DNSP Inputs General'!$B61='DNSP Inputs General'!$A$42,E$7,E$8))*'DNSP Inputs General'!$D61 -> 170.909405 | F26: =IF('DNSP Inputs General'!$B61='DNSP Inputs General'!$A$41,F$6,IF('DNSP Inputs General'!$B61='DNSP Inputs General'!$A$42,F$7,F$8))*'DNSP Inputs General'!$D61 -> 172.1812263 | G26: =IF('DNSP Inputs General'!$B61='DNSP Inputs General'!$A$41,G$6,IF('DNSP Inputs General'!$B61='DNSP Inputs General'!$A$42,G$7,G$8))*'DNSP Inputs General'!$D61 -> 186.4401503 | H26: =IF('DNSP Inputs General'!$B61='DNSP Inputs General'!$A$41,H$6,IF('DNSP Inputs General'!$B61='DNSP Inputs General'!$A$42,H$7,H$8))*'DNSP Inputs General'!$D61 -> 206.8723842 | J26: =IF('DNSP Inputs General'!$B61='DNSP Inputs General'!$A$41,J$6,IF('DNSP Inputs General'!$B61='DNSP Inputs General'!$A$42,J$7,J$8))*'DNSP Inputs General'!$D61 -> 102.215173 | K26: =IF('DNSP Inputs General'!$B61='DNSP Inputs General'!$A$41,K$6,IF('DNSP Inputs General'!$B61='DNSP Inputs General'!$A$42,K$7,K$8))*'DNSP Inputs General'!$D61 -> 104.5960956 | L26: =IF('DNSP Inputs General'!$B61='DNSP Inputs General'!$A$41,L$6,IF('DNSP Inputs General'!$B61='DNSP Inputs General'!$A$42,L$7,L$8))*'DNSP Inputs General'!$D61 -> 107.1022367 | M26: =IF('DNSP Inputs General'!$B61='DNSP Inputs General'!$A$41,M$6,IF('DNSP Inputs General'!$B61='DNSP Inputs General'!$A$42,M$7,M$8))*'DNSP Inputs General'!$D61 -> 109.745573 | N26: =IF('DNSP Inputs General'!$B61='DNSP Inputs General'!$A$41,N$6,IF('DNSP Inputs General'!$B61='DNSP Inputs General'!$A$42,N$7,N$8))*'DNSP Inputs General'!$D61 -> 112.5703505 | P26: =IF('DNSP Inputs General'!$B61='DNSP Inputs General'!$A$41,P$6,IF('DNSP Inputs General'!$B61='DNSP Inputs General'!$A$42,P$7,P$8))*'DNSP Inputs General'!$D61 -> 66.40862032 | Q26: =IF('DNSP Inputs General'!$B61='DNSP Inputs General'!$A$41,Q$6,IF('DNSP Inputs General'!$B61='DNSP Inputs General'!$A$42,Q$7,Q$8))*'DNSP Inputs General'!$D61 -> 66.3133094 | R26: =IF('DNSP Inputs General'!$B61='DNSP Inputs General'!$A$41,R$6,IF('DNSP Inputs General'!$B61='DNSP Inputs General'!$A$42,R$7,R$8))*'DNSP Inputs General'!$D61 -> 65.07898953 | S26: =IF('DNSP Inputs General'!$B61='DNSP Inputs General'!$A$41,S$6,IF('DNSP Inputs General'!$B61='DNSP Inputs General'!$A$42,S$7,S$8))*'DNSP Inputs General'!$D61 -> 76.69457727 | T26: =IF('DNSP Inputs General'!$B61='DNSP Inputs General'!$A$41,T$6,IF('DNSP Inputs General'!$B61='DNSP Inputs General'!$A$42,T$7,T$8))*'DNSP Inputs General'!$D61 -> 94.30203371 | V26: 0 | W26: 2.842170943e-14 | X26: 0 | Y26: 1.421085472e-14 | Z26: 1.421085472e-14
A27: ='DNSP Inputs General'!A62 -> Metal halide 1000 watt | C27: ='DNSP Inputs General'!E62 -> 202.7 | D27: =IF('DNSP Inputs General'!$B62='DNSP Inputs General'!$A$41,D$6,IF('DNSP Inputs General'!$B62='DNSP Inputs General'!$A$42,D$7,D$8))*'DNSP Inputs General'!$D62 -> 251.5304916 | E27: =IF('DNSP Inputs General'!$B62='DNSP Inputs General'!$A$41,E$6,IF('DNSP Inputs General'!$B62='DNSP Inputs General'!$A$42,E$7,E$8))*'DNSP Inputs General'!$D62 -> 254.9398624 | F27: =IF('DNSP Inputs General'!$B62='DNSP Inputs General'!$A$41,F$6,IF('DNSP Inputs General'!$B62='DNSP Inputs General'!$A$42,F$7,F$8))*'DNSP Inputs General'!$D62 -> 256.8369959 | G27: =IF('DNSP Inputs General'!$B62='DNSP Inputs General'!$A$41,G$6,IF('DNSP Inputs General'!$B62='DNSP Inputs General'!$A$42,G$7,G$8))*'DNSP Inputs General'!$D62 -> 278.1065575 | H27: =IF('DNSP Inputs General'!$B62='DNSP Inputs General'!$A$41,H$6,IF('DNSP Inputs General'!$B62='DNSP Inputs General'!$A$42,H$7,H$8))*'DNSP Inputs General'!$D62 -> 308.5846397 | J27: =IF('DNSP Inputs General'!$B62='DNSP Inputs General'!$A$41,J$6,IF('DNSP Inputs General'!$B62='DNSP Inputs General'!$A$42,J$7,J$8))*'DNSP Inputs General'!$D62 -> 152.4709663 | K27: =IF('DNSP Inputs General'!$B62='DNSP Inputs General'!$A$41,K$6,IF('DNSP Inputs General'!$B62='DNSP Inputs General'!$A$42,K$7,K$8))*'DNSP Inputs General'!$D62 -> 156.0225093 | L27: =IF('DNSP Inputs General'!$B62='DNSP Inputs General'!$A$41,L$6,IF('DNSP Inputs General'!$B62='DNSP Inputs General'!$A$42,L$7,L$8))*'DNSP Inputs General'!$D62 -> 159.7608365 | M27: =IF('DNSP Inputs General'!$B62='DNSP Inputs General'!$A$41,M$6,IF('DNSP Inputs General'!$B62='DNSP Inputs General'!$A$42,M$7,M$8))*'DNSP Inputs General'!$D62 -> 163.7038131 | N27: =IF('DNSP Inputs General'!$B62='DNSP Inputs General'!$A$41,N$6,IF('DNSP Inputs General'!$B62='DNSP Inputs General'!$A$42,N$7,N$8))*'DNSP Inputs General'!$D62 -> 167.9174395 | P27: =IF('DNSP Inputs General'!$B62='DNSP Inputs General'!$A$41,P$6,IF('DNSP Inputs General'!$B62='DNSP Inputs General'!$A$42,P$7,P$8))*'DNSP Inputs General'!$D62 -> 99.05952531 | Q27: =IF('DNSP Inputs General'!$B62='DNSP Inputs General'!$A$41,Q$6,IF('DNSP Inputs General'!$B62='DNSP Inputs General'!$A$42,Q$7,Q$8))*'DNSP Inputs General'!$D62 -> 98.91735318 | R27: =IF('DNSP Inputs General'!$B62='DNSP Inputs General'!$A$41,R$6,IF('DNSP Inputs General'!$B62='DNSP Inputs General'!$A$42,R$7,R$8))*'DNSP Inputs General'!$D62 -> 97.07615938 | S27: =IF('DNSP Inputs General'!$B62='DNSP Inputs General'!$A$41,S$6,IF('DNSP Inputs General'!$B62='DNSP Inputs General'!$A$42,S$7,S$8))*'DNSP Inputs General'!$D62 -> 114.4027444 | T27: =IF('DNSP Inputs General'!$B62='DNSP Inputs General'!$A$41,T$6,IF('DNSP Inputs General'!$B62='DNSP Inputs General'!$A$42,T$7,T$8))*'DNSP Inputs General'!$D62 -> 140.6672003 | V27: 1.421085472e-14 | W27: 0 | X27: 1.421085472e-14 | Y27: 2.842170943e-14 | Z27: 0
A30: ='DNSP Inputs General'!A$67 -> Energy Efficient Lights
A31: ='DNSP Inputs General'!A$68 -> T5 2X14W | C31: ='DNSP Inputs General'!E68 -> 43.37 | D31: ='Charges Summary'!D$105 -> 59.58349988 | E31: ='Charges Summary'!E$105 -> 60.39457275 | F31: ='Charges Summary'!F$105 -> 61.26083521 | G31: ='Charges Summary'!G$105 -> 62.24831997 | H31: ='Charges Summary'!H$105 -> 63.38364033 | J31: =SUM('Charges Summary'!D99,'Charges Summary'!D8) -> 41.2634602 | K31: =SUM('Charges Summary'!E99,'Charges Summary'!E8) -> 42.21252022 | L31: =SUM('Charges Summary'!F99,'Charges Summary'!F8) -> 43.2104126 | M31: =SUM('Charges Summary'!G99,'Charges Summary'!G8) -> 44.2639804 | N31: =SUM('Charges Summary'!H99,'Charges Summary'!H8) -> 45.38975077 | P31: =SUM('Charges Summary'!D101,'Charges Summary'!D11) -> 18.32003968 | Q31: =SUM('Charges Summary'!E101,'Charges Summary'!E11) -> 18.18205253 | R31: =SUM('Charges Summary'!F101,'Charges Summary'!F11) -> 18.05042261 | S31: =SUM('Charges Summary'!G101,'Charges Summary'!G11) -> 17.98433956 | T31: =SUM('Charges Summary'!H101,'Charges Summary'!H11) -> 17.99388956 | V31: =ABS(D31-J31-P31) -> 0 | W31: 0 | X31: 0 | Y31: 0 | Z31: 0
A32: ='DNSP Inputs General'!B$69 -> T5 2X14W | C32: ='DNSP Inputs General'!E69 -> 42.77 | D32: ='DNSP Inputs General'!$D69*D$31 -> 58.75693248 | E32: ='DNSP Inputs General'!$D69*E$31 -> 59.5567538 | F32: ='DNSP Inputs General'!$D69*F$31 -> 60.4109991 | G32: ='DNSP Inputs General'!$D69*G$31 -> 61.38478506 | H32: ='DNSP Inputs General'!$D69*H$31 -> 62.50435577 | J32: ='DNSP Inputs General'!$D69*J$31 -> 40.6910361 | K32: ='DNSP Inputs General'!$D69*K$31 -> 41.62693036 | L32: ='DNSP Inputs General'!$D69*L$31 -> 42.61097955 | M32: ='DNSP Inputs General'!$D69*M$31 -> 43.64993183 | N32: ='DNSP Inputs General'!$D69*N$31 -> 44.76008503 | P32: ='DNSP Inputs General'!$D69*P$31 -> 18.06589638 | Q32: ='DNSP Inputs General'!$D69*Q$31 -> 17.92982344 | R32: ='DNSP Inputs General'!$D69*R$31 -> 17.80001955 | S32: ='DNSP Inputs General'!$D69*S$31 -> 17.73485323 | T32: ='DNSP Inputs General'!$D69*T$31 -> 17.74427074 | V32: 0 | W32: 3.552713679e-15 | X32: 3.552713679e-15 | Y32: 3.552713679e-15 | Z32: 0
A33: ='DNSP Inputs General'!B$70 -> T5 2X14W | C33: ='DNSP Inputs General'!E70 -> 42.01 | D33: ='DNSP Inputs General'!$D70*D$31 -> 57.72163662 | E33: ='DNSP Inputs General'!$D70*E$31 -> 58.50736511 | F33: ='DNSP Inputs General'!$D70*F$31 -> 59.34655862 | G33: ='DNSP Inputs General'!$D70*G$31 -> 60.30318649 | H33: ='DNSP Inputs General'!$D70*H$31 -> 61.40303039 | J33: ='DNSP Inputs General'!$D70*J$31 -> 39.97406094 | K33: ='DNSP Inputs General'!$D70*K$31 -> 40.89346476 | L33: ='DNSP Inputs General'!$D70*L$31 -> 41.86017503 | M33: ='DNSP Inputs General'!$D70*M$31 -> 42.88082099 | N33: ='DNSP Inputs General'!$D70*N$31 -> 43.97141331 | P33: ='DNSP Inputs General'!$D70*P$31 -> 17.74757568 | Q33: ='DNSP Inputs General'!$D70*Q$31 -> 17.61390035 | R33: ='DNSP Inputs General'!$D70*R$31 -> 17.48638359 | S33: ='DNSP Inputs General'!$D70*S$31 -> 17.42236551 | T33: ='DNSP Inputs General'!$D70*T$31 -> 17.43161708 | V33: 3.552713679e-15 | W33: 3.552713679e-15 | X33: 0 | Y33: 0 | Z33: 7.105427358e-15
A34: ='DNSP Inputs General'!B$71 -> T5 2X14W | C34: ='DNSP Inputs General'!E71 -> 42.01 | D34: ='DNSP Inputs General'!$D71*D$31 -> 57.72163662 | E34: ='DNSP Inputs General'!$D71*E$31 -> 58.50736511 | F34: ='DNSP Inputs General'!$D71*F$31 -> 59.34655862 | G34: ='DNSP Inputs General'!$D71*G$31 -> 60.30318649 | H34: ='DNSP Inputs General'!$D71*H$31 -> 61.40303039 | J34: ='DNSP Inputs General'!$D71*J$31 -> 39.97406094 | K34: ='DNSP Inputs General'!$D71*K$31 -> 40.89346476 | L34: ='DNSP Inputs General'!$D71*L$31 -> 41.86017503 | M34: ='DNSP Inputs General'!$D71*M$31 -> 42.88082099 | N34: ='DNSP Inputs General'!$D71*N$31 -> 43.97141331 | P34: ='DNSP Inputs General'!$D71*P$31 -> 17.74757568 | Q34: ='DNSP Inputs General'!$D71*Q$31 -> 17.61390035 | R34: ='DNSP Inputs General'!$D71*R$31 -> 17.48638359 | S34: ='DNSP Inputs General'!$D71*S$31 -> 17.42236551 | T34: ='DNSP Inputs General'!$D71*T$31 -> 17.43161708 | V34: 3.552713679e-15 | W34: 3.552713679e-15 | X34: 0 | Y34: 0 | Z34: 7.105427358e-15
A35: ='DNSP Inputs General'!B$72 -> Category P LED 18 Watt | C35: ='DNSP Inputs General'!E72 -> 29.6 | D35: ='Charges Summary'!D$123 -> 32.70149256 | E35: ='Charges Summary'!E$123 -> 32.86655345 | F35: ='Charges Summary'!F$123 -> 33.06377071 | G35: ='Charges Summary'!G$123 -> 33.34693428 | H35: ='Charges Summary'!H$123 -> 33.72844823 | J35: =SUM('Charges Summary'!D117,'Charges Summary'!D8) -> 14.38145287 | K35: =SUM('Charges Summary'!E117,'Charges Summary'!E8) -> 14.68450091 | L35: =SUM('Charges Summary'!F117,'Charges Summary'!F8) -> 15.0133481 | M35: =SUM('Charges Summary'!G117,'Charges Summary'!G8) -> 15.36259472 | N35: =SUM('Charges Summary'!H117,'Charges Summary'!H8) -> 15.73455867 | P35: =SUM('Charges Summary'!D119,'Charges Summary'!D11) -> 18.32003968 | Q35: =SUM('Charges Summary'!E119,'Charges Summary'!E11) -> 18.18205253 | R35: =SUM('Charges Summary'!F119,'Charges Summary'!F11) -> 18.05042261 | S35: =SUM('Charges Summary'!G119,'Charges Summary'!G11) -> 17.98433956 | T35: =SUM('Charges Summary'!H119,'Charges Summary'!H11) -> 17.99388956 | V35: 3.552713679e-15 | W35: 7.105427358e-15 | X35: 3.552713679e-15 | Y35: 0 | Z35: 0
A36: ='DNSP Inputs General'!B$73 -> Category P LED 18 Watt | C36: ='DNSP Inputs General'!E73 -> 29.6 | D36: ='DNSP Inputs General'!$D73*D$35 -> 32.70149256 | E36: ='DNSP Inputs General'!$D73*E$35 -> 32.86655345 | F36: ='DNSP Inputs General'!$D73*F$35 -> 33.06377071 | G36: ='DNSP Inputs General'!$D73*G$35 -> 33.34693428 | H36: ='DNSP Inputs General'!$D73*H$35 -> 33.72844823 | J36: ='DNSP Inputs General'!$D73*J$35 -> 14.38145287 | K36: ='DNSP Inputs General'!$D73*K$35 -> 14.68450091 | L36: ='DNSP Inputs General'!$D73*L$35 -> 15.0133481 | M36: ='DNSP Inputs General'!$D73*M$35 -> 15.36259472 | N36: ='DNSP Inputs General'!$D73*N$35 -> 15.73455867 | P36: ='DNSP Inputs General'!$D73*P$35 -> 18.32003968 | Q36: ='DNSP Inputs General'!$D73*Q$35 -> 18.18205253 | R36: ='DNSP Inputs General'!$D73*R$35 -> 18.05042261 | S36: ='DNSP Inputs General'!$D73*S$35 -> 17.98433956 | T36: ='DNSP Inputs General'!$D73*T$35 -> 17.99388956 | V36: =ABS(D36-J36-P36) -> 3.552713679e-15 | W36: =ABS(E36-K36-Q36) -> 7.105427358e-15 | X36: =ABS(F36-L36-R36) -> 3.552713679e-15 | Y36: =ABS(G36-M36-S36) -> 0 | Z36: =ABS(H36-N36-T36) -> 0
A37: ='DNSP Inputs General'!B$74 -> Category V LED L1 Standard Output | C37: ='DNSP Inputs General'!E74 -> 58.83 | D37: ='Charges Summary'!D$141 -> 63.35183669 | E37: ='Charges Summary'!E$141 -> 63.92686803 | F37: ='Charges Summary'!F$141 -> 64.53113512 | G37: ='Charges Summary'!G$141 -> 65.30562046 | H37: ='Charges Summary'!H$141 -> 66.26377897 | J37: =SUM('Charges Summary'!D135,'Charges Summary'!D8) -> 35.87661775 | K37: =SUM('Charges Summary'!E135,'Charges Summary'!E8) -> 36.77834958 | L37: =SUM('Charges Summary'!F135,'Charges Summary'!F8) -> 37.71109934 | M37: =SUM('Charges Summary'!G135,'Charges Summary'!G8) -> 38.68698462 | N37: =SUM('Charges Summary'!H135,'Charges Summary'!H8) -> 39.71798709 | P37: =SUM('Charges Summary'!D137,'Charges Summary'!D11) -> 27.47521894 | Q37: =SUM('Charges Summary'!E137,'Charges Summary'!E11) -> 27.14851845 | R37: =SUM('Charges Summary'!F137,'Charges Summary'!F11) -> 26.82003578 | S37: =SUM('Charges Summary'!G137,'Charges Summary'!G11) -> 26.61863584 | T37: =SUM('Charges Summary'!H137,'Charges Summary'!H11) -> 26.54579189 | V37: 0 | W37: 7.105427358e-15 | X37: 0 | Y37: 7.105427358e-15 | Z37: 3.552713679e-15
A38: ='DNSP Inputs General'!B$75 -> Category V LED L1 Standard Output | C38: ='DNSP Inputs General'!E75 -> 65.19 | D38: ='DNSP Inputs General'!$D75*D$37 -> 69.68702036 | E38: ='DNSP Inputs General'!$D75*E$37 -> 70.31955483 | F38: ='DNSP Inputs General'!$D75*F$37 -> 70.98424863 | G38: ='DNSP Inputs General'!$D75*G$37 -> 71.83618251 | H38: ='DNSP Inputs General'!$D75*H$37 -> 72.89015687 | J38: ='DNSP Inputs General'!$D75*J$37 -> 39.46427953 | K38: ='DNSP Inputs General'!$D75*K$37 -> 40.45618454 | L38: ='DNSP Inputs General'!$D75*L$37 -> 41.48220927 | M38: ='DNSP Inputs General'!$D75*M$37 -> 42.55568308 | N38: ='DNSP Inputs General'!$D75*N$37 -> 43.6897858 | P38: ='DNSP Inputs General'!$D75*P$37 -> 30.22274083 | Q38: ='DNSP Inputs General'!$D75*Q$37 -> 29.86337029 | R38: ='DNSP Inputs General'!$D75*R$37 -> 29.50203936 | S38: ='DNSP Inputs General'!$D75*S$37 -> 29.28049943 | T38: ='DNSP Inputs General'!$D75*T$37 -> 29.20037107 | V38: =ABS(D38-J38-P38) -> 3.552713679e-15 | W38: =ABS(E38-K38-Q38) -> 0 | X38: =ABS(F38-L38-R38) -> 0 | Y38: =ABS(G38-M38-S38) -> 1.776356839e-14 | Z38: =ABS(H38-N38-T38) -> 3.552713679e-15
A39: ='DNSP Inputs General'!B$76 -> Category V LED L1 Standard Output | C39: ='DNSP Inputs General'!E76 -> 73.84 | D39: ='DNSP Inputs General'!$D76*D$37 -> 79.18979586 | E39: ='DNSP Inputs General'!$D76*E$37 -> 79.90858503 | F39: ='DNSP Inputs General'!$D76*F$37 -> 80.6639189 | G39: ='DNSP Inputs General'!$D76*G$37 -> 81.63202558 | H39: ='DNSP Inputs General'!$D76*H$37 -> 82.82972372 | J39: ='DNSP Inputs General'!$D76*J$37 -> 44.84577219 | K39: ='DNSP Inputs General'!$D76*K$37 -> 45.97293697 | L39: ='DNSP Inputs General'!$D76*L$37 -> 47.13887417 | M39: ='DNSP Inputs General'!$D76*M$37 -> 48.35873077 | N39: ='DNSP Inputs General'!$D76*N$37 -> 49.64748386 | P39: ='DNSP Inputs General'!$D76*P$37 -> 34.34402367 | Q39: ='DNSP Inputs General'!$D76*Q$37 -> 33.93564806 | R39: ='DNSP Inputs General'!$D76*R$37 -> 33.52504473 | S39: ='DNSP Inputs General'!$D76*S$37 -> 33.27329481 | T39: ='DNSP Inputs General'!$D76*T$37 -> 33.18223986 | V39: 0 | W39: 7.105427358e-15 | X39: 0 | Y39: 0 | Z39: 0

Sheet Cashflow Summary
A1: ='DNSP Inputs O & M'!$A$3 -> Citipower | E1: Check | F1: =SUM(C138,C144,C167) -> 4.365574569e-09
C2: ='DNSP Inputs General'!O$2 -> 2020 | D2: ='DNSP Inputs General'!Q$2 -> 2021/22 | E2: ='DNSP Inputs General'!R$2 -> 2022/23 | F2: ='DNSP Inputs General'!S$2 -> 2023/24 | G2: ='DNSP Inputs General'!T$2 -> 2024/25 | H2: ='DNSP Inputs General'!U$2 -> 2025/26 | J2: =C2 -> 2020 | K2: =D2 -> 2021/22 | L2: 2022/23 | M2: 2023/24 | N2: 2024/25 | O2: 2025/26
A4: Public Lighting - Revenue | C4: Revenue - Nominal | J4: Revenue - Real 2021 $
C5: ='DNSP Inputs General'!E38 -> 2020 | D5: =D$2 -> 2021/22 | E5: 2022/23 | F5: 2023/24 | G5: 2024/25 | H5: 2025/26 | J5: =J$2 -> 2020 | K5: 2021/22 | L5: 2022/23 | M5: 2023/24 | N5: 2024/25 | O5: 2025/26
A6: ='DNSP Inputs General'!A$40 -> Existing Lights
A7: ='DNSP Inputs General'!A41 -> Mercury vapour 80 watt | C7: =IF('PL Tariffs'!C6="","",'DNSP Inputs General'!O41*'PL Tariffs'!C6) -> 33908.3615 | D7: =IF('PL Tariffs'!D6="","",'DNSP Inputs General'!Q41*'PL Tariffs'!D6) -> 41208.22273 | E7: =IF('PL Tariffs'!E6="","",'DNSP Inputs General'!R41*'PL Tariffs'!E6) -> 35471.95875 | F7: =IF('PL Tariffs'!F6="","",'DNSP Inputs General'!S41*'PL Tariffs'!F6) -> 32262.22072 | G7: =IF('PL Tariffs'!G6="","",'DNSP Inputs General'!T41*'PL Tariffs'!G6) -> 30258.31796 | H7: =IF('PL Tariffs'!H6="","",'DNSP Inputs General'!U41*'PL Tariffs'!H6) -> 29247.15717 | J7: =C7 -> 33908.3615 | K7: =IF(D7="","",D7/'Charges Summary'!D$4) -> 40400.46106 | L7: =IF(E7="","",E7/'Charges Summary'!E$4) -> 34094.949 | M7: =IF(F7="","",F7/'Charges Summary'!F$4) -> 30401.95905 | N7: =IF(G7="","",G7/'Charges Summary'!G$4) -> 27954.68037 | O7: =IF(H7="","",H7/'Charges Summary'!H$4) -> 26490.84704
A8: ='DNSP Inputs General'!A42 -> Sodium high pressure 150 watt | C8: =IF('PL Tariffs'!C7="","",'DNSP Inputs General'!O42*'PL Tariffs'!C7) -> 1008397.404 | D8: =IF('PL Tariffs'!D7="","",'DNSP Inputs General'!Q42*'PL Tariffs'!D7) -> 1123322.968 | E8: =IF('PL Tariffs'!E7="","",'DNSP Inputs General'!R42*'PL Tariffs'!E7) -> 967979.6202 | F8: =IF('PL Tariffs'!F7="","",'DNSP Inputs General'!S42*'PL Tariffs'!F7) -> 835558.7817 | G8: =IF('PL Tariffs'!G7="","",'DNSP Inputs General'!T42*'PL Tariffs'!G7) -> 768750.6925 | H8: =IF('PL Tariffs'!H7="","",'DNSP Inputs General'!U42*'PL Tariffs'!H7) -> 724705.6624 | J8: =C8 -> 1008397.404 | K8: =IF(D8="","",D8/'Charges Summary'!D$4) -> 1101303.643 | L8: =IF(E8="","",E8/'Charges Summary'!E$4) -> 930402.9703 | M8: =IF(F8="","",F8/'Charges Summary'!F$4) -> 787379.8919 | N8: =IF(G8="","",G8/'Charges Summary'!G$4) -> 710223.8771 | O8: =IF(H8="","",H8/'Charges Summary'!H$4) -> 656407.9626
A9: ='DNSP Inputs General'!A43 -> Sodium high pressure 250 watt | C9: =IF('PL Tariffs'!C8="","",'DNSP Inputs General'!O43*'PL Tariffs'!C8) -> 265593.096 | D9: =IF('PL Tariffs'!D8="","",'DNSP Inputs General'!Q43*'PL Tariffs'!D8) -> 296617.6836 | E9: =IF('PL Tariffs'!E8="","",'DNSP Inputs General'!R43*'PL Tariffs'!E8) -> 255542.4605 | F9: =IF('PL Tariffs'!F8="","",'DNSP Inputs General'!S43*'PL Tariffs'!F8) -> 218827.4664 | G9: =IF('PL Tariffs'!G8="","",'DNSP Inputs General'!T43*'PL Tariffs'!G8) -> 201406.9281 | H9: =IF('PL Tariffs'!H8="","",'DNSP Inputs General'!U43*'PL Tariffs'!H8) -> 189957.4832 | J9: 265593.096 | K9: =IF(D9="","",D9/'Charges Summary'!D$4) -> 290803.3975 | L9: =IF(E9="","",E9/'Charges Summary'!E$4) -> 245622.3864 | M9: =IF(F9="","",F9/'Charges Summary'!F$4) -> 206209.7253 | N9: =IF(G9="","",G9/'Charges Summary'!G$4) -> 186073.3405 | O9: =IF(H9="","",H9/'Charges Summary'!H$4) -> 172055.513
A10: ='DNSP Inputs General'!A44 -> Fluorescent 20 watt | C10: =IF('PL Tariffs'!C9="","",'DNSP Inputs General'!O44*'PL Tariffs'!C9) -> 7035.7095 | D10: =IF('PL Tariffs'!D9="","",'DNSP Inputs General'!Q44*'PL Tariffs'!D9) -> 9556.084144 | E10: =IF('PL Tariffs'!E9="","",'DNSP Inputs General'!R44*'PL Tariffs'!E9) -> 9193.606922 | F10: =IF('PL Tariffs'!F9="","",'DNSP Inputs General'!S44*'PL Tariffs'!F9) -> 9345.438809 | G10: =IF('PL Tariffs'!G9="","",'DNSP Inputs General'!T44*'PL Tariffs'!G9) -> 0 | H10: =IF('PL Tariffs'!H9="","",'DNSP Inputs General'!U44*'PL Tariffs'!H9) -> 0 | J10: 7035.7095 | K10: =IF(D10="","",D10/'Charges Summary'!D$4) -> 9368.766227 | L10: =IF(E10="","",E10/'Charges Summary'!E$4) -> 8836.71413 | M10: =IF(F10="","",F10/'Charges Summary'!F$4) -> 8806.574427 | N10: =IF(G10="","",G10/'Charges Summary'!G$4) -> 0 | O10: =IF(H10="","",H10/'Charges Summary'!H$4) -> 0
A11: ='DNSP Inputs General'!A45 -> Fluorescent 40 watt | C11: =IF('PL Tariffs'!C10="","",'DNSP Inputs General'!O45*'PL Tariffs'!C10) -> 914.13 | D11: =IF('PL Tariffs'!D10="","",'DNSP Inputs General'!Q45*'PL Tariffs'!D10) -> 1306.871413 | E11: =IF('PL Tariffs'!E10="","",'DNSP Inputs General'!R45*'PL Tariffs'!E10) -> 1323.473406 | F11: =IF('PL Tariffs'!F10="","",'DNSP Inputs General'!S45*'PL Tariffs'!F10) -> 0 | G11: =IF('PL Tariffs'!G10="","",'DNSP Inputs General'!T45*'PL Tariffs'!G10) -> 0 | H11: =IF('PL Tariffs'!H10="","",'DNSP Inputs General'!U45*'PL Tariffs'!H10) -> 0 | J11: 914.13 | K11: =IF(D11="","",D11/'Charges Summary'!D$4) -> 1281.25418 | L11: =IF(E11="","",E11/'Charges Summary'!E$4) -> 1272.096605 | M11: =IF(F11="","",F11/'Charges Summary'!F$4) -> 0 | N11: =IF(G11="","",G11/'Charges Summary'!G$4) -> 0 | O11: =IF(H11="","",H11/'Charges Summary'!H$4) -> 0
A12: ='DNSP Inputs General'!A46 -> Mercury vapour 50 watt | C12: =IF('PL Tariffs'!C11="","",'DNSP Inputs General'!O46*'PL Tariffs'!C11) -> 1427.888 | D12: =IF('PL Tariffs'!D11="","",'DNSP Inputs General'!Q46*'PL Tariffs'!D11) -> 1428.933203 | E12: =IF('PL Tariffs'!E11="","",'DNSP Inputs General'!R46*'PL Tariffs'!E11) -> 1012.960076 | F12: =IF('PL Tariffs'!F11="","",'DNSP Inputs General'!S46*'PL Tariffs'!F11) -> 0 | G12: =IF('PL Tariffs'!G11="","",'DNSP Inputs General'!T46*'PL Tariffs'!G11) -> 0 | H12: =IF('PL Tariffs'!H11="","",'DNSP Inputs General'!U46*'PL Tariffs'!H11) -> 0 | J12: 1427.888 | K12: =IF(D12="","",D12/'Charges Summary'!D$4) -> 1400.923321 | L12: =IF(E12="","",E12/'Charges Summary'!E$4) -> 973.6372992 | M12: =IF(F12="","",F12/'Charges Summary'!F$4) -> 0 | N12: =IF(G12="","",G12/'Charges Summary'!G$4) -> 0 | O12: =IF(H12="","",H12/'Charges Summary'!H$4) -> 0
A13: ='DNSP Inputs General'!A47 -> Mercury vapour 125 watt | C13: =IF('PL Tariffs'!C12="","",'DNSP Inputs General'!O47*'PL Tariffs'!C12) -> 28848.694 | D13: =IF('PL Tariffs'!D12="","",'DNSP Inputs General'!Q47*'PL Tariffs'!D12) -> 35058.68795 | E13: =IF('PL Tariffs'!E12="","",'DNSP Inputs General'!R47*'PL Tariffs'!E12) -> 24852.84205 | F13: =IF('PL Tariffs'!F12="","",'DNSP Inputs General'!S47*'PL Tariffs'!F12) -> 18615.05233 | G13: =IF('PL Tariffs'!G12="","",'DNSP Inputs General'!T47*'PL Tariffs'!G12) -> 14377.84839 | H13: =IF('PL Tariffs'!H12="","",'DNSP Inputs General'!U47*'PL Tariffs'!H12) -> 0 | J13: 28848.694 | K13: =IF(D13="","",D13/'Charges Summary'!D$4) -> 34371.46918 | L13: =IF(E13="","",E13/'Charges Summary'!E$4) -> 23888.06291 | M13: =IF(F13="","",F13/'Charges Summary'!F$4) -> 17541.6957 | N13: =IF(G13="","",G13/'Charges Summary'!G$4) -> 13283.22865 | O13: =IF(H13="","",H13/'Charges Summary'!H$4) -> 0
A14: ='DNSP Inputs General'!A48 -> Mercury vapour 250 watt | C14: =IF('PL Tariffs'!C13="","",'DNSP Inputs General'!O48*'PL Tariffs'!C13) -> 13649.72 | D14: =IF('PL Tariffs'!D13="","",'DNSP Inputs General'!Q48*'PL Tariffs'!D13) -> 11856.78202 | E14: =IF('PL Tariffs'!E13="","",'DNSP Inputs General'!R48*'PL Tariffs'!E13) -> 10214.87059 | F14: =IF('PL Tariffs'!F13="","",'DNSP Inputs General'!S48*'PL Tariffs'!F13) -> 0 | G14: =IF('PL Tariffs'!G13="","",'DNSP Inputs General'!T48*'PL Tariffs'!G13) -> 0 | H14: =IF('PL Tariffs'!H13="","",'DNSP Inputs General'!U48*'PL Tariffs'!H13) -> 0 | J14: 13649.72 | K14: =IF(D14="","",D14/'Charges Summary'!D$4) -> 11624.36593 | L14: =IF(E14="","",E14/'Charges Summary'!E$4) -> 9818.332679 | M14: =IF(F14="","",F14/'Charges Summary'!F$4) -> 0 | N14: =IF(G14="","",G14/'Charges Summary'!G$4) -> 0 | O14: =IF(H14="","",H14/'Charges Summary'!H$4) -> 0
A15: ='DNSP Inputs General'!A49 -> Mercury vapour 400 watt | C15: =IF('PL Tariffs'!C14="","",'DNSP Inputs General'!O49*'PL Tariffs'!C14) -> 6198.5 | D15: =IF('PL Tariffs'!D14="","",'DNSP Inputs General'!Q49*'PL Tariffs'!D14) -> 5384.438759 | E15: =IF('PL Tariffs'!E14="","",'DNSP Inputs General'!R49*'PL Tariffs'!E14) -> 3820.195505 | F15: =IF('PL Tariffs'!F14="","",'DNSP Inputs General'!S49*'PL Tariffs'!F14) -> 0 | G15: =IF('PL Tariffs'!G14="","",'DNSP Inputs General'!T49*'PL Tariffs'!G14) -> 0 | H15: =IF('PL Tariffs'!H14="","",'DNSP Inputs General'!U49*'PL Tariffs'!H14) -> 0 | J15: 6198.5 | K15: =IF(D15="","",D15/'Charges Summary'!D$4) -> 5278.89324 | L15: =IF(E15="","",E15/'Charges Summary'!E$4) -> 3671.896774 | M15: =IF(F15="","",F15/'Charges Summary'!F$4) -> 0 | N15: =IF(G15="","",G15/'Charges Summary'!G$4) -> 0 | O15: =IF(H15="","",H15/'Charges Summary'!H$4) -> 0
A16: ='DNSP Inputs General'!A50 -> Mercury vapour 700 watt | C16: =IF('PL Tariffs'!C15="","",'DNSP Inputs General'!O50*'PL Tariffs'!C15) ->  | D16: =IF('PL Tariffs'!D15="","",'DNSP Inputs General'!Q50*'PL Tariffs'!D15) ->  | E16: =IF('PL Tariffs'!E15="","",'DNSP Inputs General'!R50*'PL Tariffs'!E15) ->  | F16: =IF('PL Tariffs'!F15="","",'DNSP Inputs General'!S50*'PL Tariffs'!F15) ->  | G16: =IF('PL Tariffs'!G15="","",'DNSP Inputs General'!T50*'PL Tariffs'!G15) ->  | H16: =IF('PL Tariffs'!H15="","",'DNSP Inputs General'!U50*'PL Tariffs'!H15) ->  | K16: =IF(D16="","",D16/'Charges Summary'!D$4) ->  | L16: =IF(E16="","",E16/'Charges Summary'!E$4) ->  | M16: =IF(F16="","",F16/'Charges Summary'!F$4) ->  | N16: =IF(G16="","",G16/'Charges Summary'!G$4) ->  | O16: =IF(H16="","",H16/'Charges Summary'!H$4) -> 
A17: ='DNSP Inputs General'!A51 -> Sodium high pressure 70 watt | C17: =IF('PL Tariffs'!C16="","",'DNSP Inputs General'!O51*'PL Tariffs'!C16) -> 28590.651 | D17: =IF('PL Tariffs'!D16="","",'DNSP Inputs General'!Q51*'PL Tariffs'!D16) -> 34744.39938 | E17: =IF('PL Tariffs'!E16="","",'DNSP Inputs General'!R51*'PL Tariffs'!E16) -> 29907.91206 | F17: =IF('PL Tariffs'!F16="","",'DNSP Inputs General'!S51*'PL Tariffs'!F16) -> 22401.35542 | G17: =IF('PL Tariffs'!G16="","",'DNSP Inputs General'!T51*'PL Tariffs'!G16) -> 17302.30387 | H17: =IF('PL Tariffs'!H16="","",'DNSP Inputs General'!U51*'PL Tariffs'!H16) -> 13772.79001 | J17: 28590.651 | K17: =IF(D17="","",D17/'Charges Summary'!D$4) -> 34063.34127 | L17: =IF(E17="","",E17/'Charges Summary'!E$4) -> 28746.89677 | M17: =IF(F17="","",F17/'Charges Summary'!F$4) -> 21109.67798 | N17: =IF(G17="","",G17/'Charges Summary'!G$4) -> 15985.0384 | O17: =IF(H17="","",H17/'Charges Summary'!H$4) -> 12474.81495
A18: ='DNSP Inputs General'!A52 -> Sodium high pressure 100 watt | C18: =IF('PL Tariffs'!C17="","",'DNSP Inputs General'!O52*'PL Tariffs'!C17) -> 14999.7375 | D18: =IF('PL Tariffs'!D17="","",'DNSP Inputs General'!Q52*'PL Tariffs'!D17) -> 15781.27725 | E18: =IF('PL Tariffs'!E17="","",'DNSP Inputs General'!R52*'PL Tariffs'!E17) -> 13598.89827 | F18: =IF('PL Tariffs'!F17="","",'DNSP Inputs General'!S52*'PL Tariffs'!F17) -> 9667.042623 | G18: =IF('PL Tariffs'!G17="","",'DNSP Inputs General'!T52*'PL Tariffs'!G17) -> 0 | H18: =IF('PL Tariffs'!H17="","",'DNSP Inputs General'!U52*'PL Tariffs'!H17) -> 0 | J18: 14999.7375 | K18: =IF(D18="","",D18/'Charges Summary'!D$4) -> 15471.93339 | L18: =IF(E18="","",E18/'Charges Summary'!E$4) -> 13070.99352 | M18: =IF(F18="","",F18/'Charges Summary'!F$4) -> 9109.634346 | N18: =IF(G18="","",G18/'Charges Summary'!G$4) -> 0 | O18: =IF(H18="","",H18/'Charges Summary'!H$4) -> 0
A19: ='DNSP Inputs General'!A53 -> Sodium high pressure 220 watt | C19: =IF('PL Tariffs'!C18="","",'DNSP Inputs General'!O53*'PL Tariffs'!C18) -> 19289.9 | D19: =IF('PL Tariffs'!D18="","",'DNSP Inputs General'!Q53*'PL Tariffs'!D18) -> 20345.72534 | E19: =IF('PL Tariffs'!E18="","",'DNSP Inputs General'!R53*'PL Tariffs'!E18) -> 17528.2763 | F19: =IF('PL Tariffs'!F18="","",'DNSP Inputs General'!S53*'PL Tariffs'!F18) -> 12361.099 | G19: =IF('PL Tariffs'!G18="","",'DNSP Inputs General'!T53*'PL Tariffs'!G18) -> 0 | H19: =IF('PL Tariffs'!H18="","",'DNSP Inputs General'!U53*'PL Tariffs'!H18) -> 0 | J19: 19289.9 | K19: =IF(D19="","",D19/'Charges Summary'!D$4) -> 19946.90937 | L19: =IF(E19="","",E19/'Charges Summary'!E$4) -> 16847.83439 | M19: =IF(F19="","",F19/'Charges Summary'!F$4) -> 11648.3496 | N19: =IF(G19="","",G19/'Charges Summary'!G$4) -> 0 | O19: =IF(H19="","",H19/'Charges Summary'!H$4) -> 0
A20: ='DNSP Inputs General'!A54 -> Sodium high pressure 360 watt | C20: =IF('PL Tariffs'!C19="","",'DNSP Inputs General'!O54*'PL Tariffs'!C19) -> 3337.95 | D20: =IF('PL Tariffs'!D19="","",'DNSP Inputs General'!Q54*'PL Tariffs'!D19) -> 3520.906959 | E20: =IF('PL Tariffs'!E19="","",'DNSP Inputs General'!R54*'PL Tariffs'!E19) -> 3033.336438 | F20: =IF('PL Tariffs'!F19="","",'DNSP Inputs General'!S54*'PL Tariffs'!F19) -> 0 | G20: =IF('PL Tariffs'!G19="","",'DNSP Inputs General'!T54*'PL Tariffs'!G19) -> 0 | H20: =IF('PL Tariffs'!H19="","",'DNSP Inputs General'!U54*'PL Tariffs'!H19) -> 0 | J20: 3337.95 | K20: =IF(D20="","",D20/'Charges Summary'!D$4) -> 3451.890305 | L20: =IF(E20="","",E20/'Charges Summary'!E$4) -> 2915.583317 | M20: =IF(F20="","",F20/'Charges Summary'!F$4) -> 0 | N20: =IF(G20="","",G20/'Charges Summary'!G$4) -> 0 | O20: =IF(H20="","",H20/'Charges Summary'!H$4) -> 0
A21: ='DNSP Inputs General'!A55 -> Sodium high pressure 400 watt | C21: =IF('PL Tariffs'!C20="","",'DNSP Inputs General'!O55*'PL Tariffs'!C20) -> 22339.836 | D21: =IF('PL Tariffs'!D20="","",'DNSP Inputs General'!Q55*'PL Tariffs'!D20) -> 23564.08608 | E21: =IF('PL Tariffs'!E20="","",'DNSP Inputs General'!R55*'PL Tariffs'!E20) -> 20300.96272 | F21: =IF('PL Tariffs'!F20="","",'DNSP Inputs General'!S55*'PL Tariffs'!F20) -> 14316.42255 | G21: =IF('PL Tariffs'!G20="","",'DNSP Inputs General'!T55*'PL Tariffs'!G20) -> 10851.41058 | H21: =IF('PL Tariffs'!H20="","",'DNSP Inputs General'!U55*'PL Tariffs'!H20) -> 0 | J21: 22339.836 | K21: =IF(D21="","",D21/'Charges Summary'!D$4) -> 23102.18396 | L21: =IF(E21="","",E21/'Charges Summary'!E$4) -> 19512.88604 | M21: =IF(F21="","",F21/'Charges Summary'!F$4) -> 13490.92785 | N21: =IF(G21="","",G21/'Charges Summary'!G$4) -> 10025.26693 | O21: =IF(H21="","",H21/'Charges Summary'!H$4) -> 0
A22: ='DNSP Inputs General'!A56 -> Sodium high pressure 1000 watt | C22: =IF('PL Tariffs'!C21="","",'DNSP Inputs General'!O56*'PL Tariffs'!C21) ->  | D22: =IF('PL Tariffs'!D21="","",'DNSP Inputs General'!Q56*'PL Tariffs'!D21) ->  | E22: =IF('PL Tariffs'!E21="","",'DNSP Inputs General'!R56*'PL Tariffs'!E21) ->  | F22: =IF('PL Tariffs'!F21="","",'DNSP Inputs General'!S56*'PL Tariffs'!F21) ->  | G22: =IF('PL Tariffs'!G21="","",'DNSP Inputs General'!T56*'PL Tariffs'!G21) ->  | H22: =IF('PL Tariffs'!H21="","",'DNSP Inputs General'!U56*'PL Tariffs'!H21) ->  | K22: =IF(D22="","",D22/'Charges Summary'!D$4) ->  | L22: =IF(E22="","",E22/'Charges Summary'!E$4) ->  | M22: =IF(F22="","",F22/'Charges Summary'!F$4) ->  | N22: =IF(G22="","",G22/'Charges Summary'!G$4) ->  | O22: =IF(H22="","",H22/'Charges Summary'!H$4) -> 
A23: ='DNSP Inputs General'!A57 -> Metal halide 70 watt | C23: =IF('PL Tariffs'!C22="","",'DNSP Inputs General'!O57*'PL Tariffs'!C22) -> 82712.871 | D23: =IF('PL Tariffs'!D22="","",'DNSP Inputs General'!Q57*'PL Tariffs'!D22) -> 100515.6904 | E23: =IF('PL Tariffs'!E22="","",'DNSP Inputs General'!R57*'PL Tariffs'!E22) -> 86523.71267 | F23: =IF('PL Tariffs'!F22="","",'DNSP Inputs General'!S57*'PL Tariffs'!F22) -> 64807.21342 | G23: =IF('PL Tariffs'!G22="","",'DNSP Inputs General'!T57*'PL Tariffs'!G22) -> 50055.6363 | H23: =IF('PL Tariffs'!H22="","",'DNSP Inputs General'!U57*'PL Tariffs'!H22) -> 0 | J23: 82712.871 | K23: =IF(D23="","",D23/'Charges Summary'!D$4) -> 98545.38649 | L23: =IF(E23="","",E23/'Charges Summary'!E$4) -> 83164.89065 | M23: =IF(F23="","",F23/'Charges Summary'!F$4) -> 61070.38525 | N23: =IF(G23="","",G23/'Charges Summary'!G$4) -> 46244.78187 | O23: =IF(H23="","",H23/'Charges Summary'!H$4) -> 0
A24: ='DNSP Inputs General'!A58 -> Metal halide 100 watt | C24: =IF('PL Tariffs'!C23="","",'DNSP Inputs General'!O58*'PL Tariffs'!C23) -> 10874.2625 | D24: =IF('PL Tariffs'!D23="","",'DNSP Inputs General'!Q58*'PL Tariffs'!D23) -> 11440.17828 | E24: =IF('PL Tariffs'!E23="","",'DNSP Inputs General'!R58*'PL Tariffs'!E23) -> 9858.126064 | F24: =IF('PL Tariffs'!F23="","",'DNSP Inputs General'!S58*'PL Tariffs'!F23) -> 7007.841588 | G24: =IF('PL Tariffs'!G23="","",'DNSP Inputs General'!T58*'PL Tariffs'!G23) -> 0 | H24: =IF('PL Tariffs'!H23="","",'DNSP Inputs General'!U58*'PL Tariffs'!H23) -> 0 | J24: 10874.2625 | K24: =IF(D24="","",D24/'Charges Summary'!D$4) -> 11215.92844 | L24: =IF(E24="","",E24/'Charges Summary'!E$4) -> 9475.436858 | M24: =IF(F24="","",F24/'Charges Summary'!F$4) -> 6603.764658 | N24: =IF(G24="","",G24/'Charges Summary'!G$4) -> 0 | O24: =IF(H24="","",H24/'Charges Summary'!H$4) -> 0
A25: ='DNSP Inputs General'!A59 -> Metal halide 150 watt | C25: =IF('PL Tariffs'!C24="","",'DNSP Inputs General'!O59*'PL Tariffs'!C24) -> 54715.69 | D25: =IF('PL Tariffs'!D24="","",'DNSP Inputs General'!Q59*'PL Tariffs'!D24) -> 57565.22828 | E25: =IF('PL Tariffs'!E24="","",'DNSP Inputs General'!R59*'PL Tariffs'!E24) -> 49604.58338 | F25: =IF('PL Tariffs'!F24="","",'DNSP Inputs General'!S59*'PL Tariffs'!F24) -> 35262.38761 | G25: =IF('PL Tariffs'!G24="","",'DNSP Inputs General'!T59*'PL Tariffs'!G24) -> 26717.71674 | H25: =IF('PL Tariffs'!H24="","",'DNSP Inputs General'!U59*'PL Tariffs'!H24) -> 0 | J25: 54715.69 | K25: =IF(D25="","",D25/'Charges Summary'!D$4) -> 56436.83735 | L25: =IF(E25="","",E25/'Charges Summary'!E$4) -> 47678.9498 | M25: =IF(F25="","",F25/'Charges Summary'!F$4) -> 33229.13426 | N25: =IF(G25="","",G25/'Charges Summary'!G$4) -> 24683.63353 | O25: =IF(H25="","",H25/'Charges Summary'!H$4) -> 0
A26: ='DNSP Inputs General'!A60 -> Metal halide 250 watt | C26: =IF('PL Tariffs'!C25="","",'DNSP Inputs General'!O60*'PL Tariffs'!C25) -> 24256.365 | D26: =IF('PL Tariffs'!D25="","",'DNSP Inputs General'!Q60*'PL Tariffs'!D25) -> 25584.44503 | E26: =IF('PL Tariffs'!E25="","",'DNSP Inputs General'!R60*'PL Tariffs'!E25) -> 22041.54505 | F26: =IF('PL Tariffs'!F25="","",'DNSP Inputs General'!S60*'PL Tariffs'!F25) -> 15543.89695 | G26: =IF('PL Tariffs'!G25="","",'DNSP Inputs General'!T60*'PL Tariffs'!G25) -> 0 | H26: =IF('PL Tariffs'!H25="","",'DNSP Inputs General'!U60*'PL Tariffs'!H25) -> 0 | J26: 24256.365 | K26: =IF(D26="","",D26/'Charges Summary'!D$4) -> 25082.93993 | L26: =IF(E26="","",E26/'Charges Summary'!E$4) -> 21185.89953 | M26: =IF(F26="","",F26/'Charges Summary'!F$4) -> 14647.62524 | N26: =IF(G26="","",G26/'Charges Summary'!G$4) -> 0 | O26: =IF(H26="","",H26/'Charges Summary'!H$4) -> 0
A27: ='DNSP Inputs General'!A61 -> Metal halide 400 watt | C27: =IF('PL Tariffs'!C26="","",'DNSP Inputs General'!O61*'PL Tariffs'!C26) -> 2887.6625 | D27: =IF('PL Tariffs'!D26="","",'DNSP Inputs General'!Q61*'PL Tariffs'!D26) -> 3045.767266 | E27: =IF('PL Tariffs'!E26="","",'DNSP Inputs General'!R61*'PL Tariffs'!E26) -> 2623.993458 | F27: =IF('PL Tariffs'!F26="","",'DNSP Inputs General'!S61*'PL Tariffs'!F26) -> 1850.463923 | G27: =IF('PL Tariffs'!G26="","",'DNSP Inputs General'!T61*'PL Tariffs'!G26) -> 0 | H27: =IF('PL Tariffs'!H26="","",'DNSP Inputs General'!U61*'PL Tariffs'!H26) -> 0 | J27: 2887.6625 | K27: =IF(D27="","",D27/'Charges Summary'!D$4) -> 2986.064278 | L27: =IF(E27="","",E27/'Charges Summary'!E$4) -> 2522.130897 | M27: =IF(F27="","",F27/'Charges Summary'!F$4) -> 1743.76491 | N27: =IF(G27="","",G27/'Charges Summary'!G$4) -> 0 | O27: =IF(H27="","",H27/'Charges Summary'!H$4) -> 0
A28: ='DNSP Inputs General'!A62 -> Metal halide 1000 watt | C28: =IF('PL Tariffs'!C27="","",'DNSP Inputs General'!O62*'PL Tariffs'!C27) -> 202.7 | D28: =IF('PL Tariffs'!D27="","",'DNSP Inputs General'!Q62*'PL Tariffs'!D27) -> 503.0609833 | E28: =IF('PL Tariffs'!E27="","",'DNSP Inputs General'!R62*'PL Tariffs'!E27) -> 764.8195873 | F28: =IF('PL Tariffs'!F27="","",'DNSP Inputs General'!S62*'PL Tariffs'!F27) -> 1027.347983 | G28: =IF('PL Tariffs'!G27="","",'DNSP Inputs General'!T62*'PL Tariffs'!G27) -> 1390.532787 | H28: =IF('PL Tariffs'!H27="","",'DNSP Inputs General'!U62*'PL Tariffs'!H27) -> 1851.507838 | J28: 202.7 | K28: =IF(D28="","",D28/'Charges Summary'!D$4) -> 493.2000052 | L28: =IF(E28="","",E28/'Charges Summary'!E$4) -> 735.1295429 | M28: =IF(F28="","",F28/'Charges Summary'!F$4) -> 968.1103974 | N28: =IF(G28="","",G28/'Charges Summary'!G$4) -> 1284.668225 | O28: =IF(H28="","",H28/'Charges Summary'!H$4) -> 1677.018066
A31: ='DNSP Inputs General'!A$67 -> Energy Efficient Lights
A32: ='DNSP Inputs General'!B68 -> T5 2X14W | C32: =IF('PL Tariffs'!C31="","",'DNSP Inputs General'!O68*'PL Tariffs'!C31) -> 477210.9525 | D32: =IF('PL Tariffs'!D31="","",'DNSP Inputs General'!Q68*'PL Tariffs'!D31) -> 557270.3233 | E32: =IF('PL Tariffs'!E31="","",'DNSP Inputs General'!R68*'PL Tariffs'!E31) -> 480127.6809 | F32: =IF('PL Tariffs'!F31="","",'DNSP Inputs General'!S68*'PL Tariffs'!F31) -> 413962.1855 | G32: =IF('PL Tariffs'!G31="","",'DNSP Inputs General'!T68*'PL Tariffs'!G31) -> 357539.7384 | H32: =IF('PL Tariffs'!H31="","",'DNSP Inputs General'!U68*'PL Tariffs'!H31) -> 309451.6392 | J32: =C32 -> 477210.9525 | K32: =IF(D32="","",D32/'Charges Summary'!D$4) -> 546346.7364 | L32: =IF(E32="","",E32/'Charges Summary'!E$4) -> 461489.2826 | M32: =IF(F32="","",F32/'Charges Summary'!F$4) -> 390092.8433 | N32: =IF(G32="","",G32/'Charges Summary'!G$4) -> 330319.3892 | O32: =IF(H32="","",H32/'Charges Summary'!H$4) -> 280288.3026
A33: ='DNSP Inputs General'!B69 -> T5 2X14W | C33: =IF('PL Tariffs'!C32="","",'DNSP Inputs General'!O69*'PL Tariffs'!C32) -> 65038.2005 | D33: =IF('PL Tariffs'!D32="","",'DNSP Inputs General'!Q69*'PL Tariffs'!D32) -> 75946.41997 | E33: =IF('PL Tariffs'!E32="","",'DNSP Inputs General'!R69*'PL Tariffs'!E32) -> 65433.19636 | F33: =IF('PL Tariffs'!F32="","",'DNSP Inputs General'!S69*'PL Tariffs'!F32) -> 56415.97027 | G33: =IF('PL Tariffs'!G32="","",'DNSP Inputs General'!T69*'PL Tariffs'!G32) -> 48726.55512 | H33: =IF('PL Tariffs'!H32="","",'DNSP Inputs General'!U69*'PL Tariffs'!H32) -> 42172.96914 | J33: =C33 -> 65038.2005 | K33: =IF(D33="","",D33/'Charges Summary'!D$4) -> 74457.72177 | L33: =IF(E33="","",E33/'Charges Summary'!E$4) -> 62893.10124 | M33: =IF(F33="","",F33/'Charges Summary'!F$4) -> 53162.98691 | N33: =IF(G33="","",G33/'Charges Summary'!G$4) -> 45016.88679 | O33: =IF(H33="","",H33/'Charges Summary'!H$4) -> 38198.50484
A34: ='DNSP Inputs General'!B70 -> T5 2X14W | C34: =IF('PL Tariffs'!C33="","",'DNSP Inputs General'!O70*'PL Tariffs'!C33) -> 22210.687 | D34: =IF('PL Tariffs'!D33="","",'DNSP Inputs General'!Q70*'PL Tariffs'!D33) -> 25939.81489 | E34: =IF('PL Tariffs'!E33="","",'DNSP Inputs General'!R70*'PL Tariffs'!E33) -> 22348.97974 | F34: =IF('PL Tariffs'!F33="","",'DNSP Inputs General'!S70*'PL Tariffs'!F33) -> 19269.10875 | G34: =IF('PL Tariffs'!G33="","",'DNSP Inputs General'!T70*'PL Tariffs'!G33) -> 16642.7571 | H34: =IF('PL Tariffs'!H33="","",'DNSP Inputs General'!U70*'PL Tariffs'!H33) -> 14404.35261 | J34: 22210.687 | K34: =IF(D34="","",D34/'Charges Summary'!D$4) -> 25431.34384 | L34: =IF(E34="","",E34/'Charges Summary'!E$4) -> 21481.39971 | M34: =IF(F34="","",F34/'Charges Summary'!F$4) -> 18158.03878 | N34: =IF(G34="","",G34/'Charges Summary'!G$4) -> 15375.70449 | O34: =IF(H34="","",H34/'Charges Summary'!H$4) -> 13046.85784
A35: ='DNSP Inputs General'!B71 -> T5 2X14W | C35: =IF('PL Tariffs'!C34="","",'DNSP Inputs General'!O71*'PL Tariffs'!C34) -> 15140.404 | D35: =IF('PL Tariffs'!D34="","",'DNSP Inputs General'!Q71*'PL Tariffs'!D34) -> 14562.01449 | E35: =IF('PL Tariffs'!E34="","",'DNSP Inputs General'!R71*'PL Tariffs'!E34) -> 10332.16665 | F35: =IF('PL Tariffs'!F34="","",'DNSP Inputs General'!S71*'PL Tariffs'!F34) -> 7336.255407 | G35: =IF('PL Tariffs'!G34="","",'DNSP Inputs General'!T71*'PL Tariffs'!G34) -> 6336.334405 | H35: =IF('PL Tariffs'!H34="","",'DNSP Inputs General'!U71*'PL Tariffs'!H34) -> 5484.115073 | J35: 15140.404 | K35: =IF(D35="","",D35/'Charges Summary'!D$4) -> 14276.57055 | L35: =IF(E35="","",E35/'Charges Summary'!E$4) -> 9931.075343 | M35: =IF(F35="","",F35/'Charges Summary'!F$4) -> 6913.241912 | N35: =IF(G35="","",G35/'Charges Summary'!G$4) -> 5853.934223 | O35: =IF(H35="","",H35/'Charges Summary'!H$4) -> 4967.281185
A36: ='DNSP Inputs General'!B72 -> Category P LED 18 Watt | C36: =IF('PL Tariffs'!C35="","",'DNSP Inputs General'!O72*'PL Tariffs'!C35) -> 372985.4856 | D36: =IF('PL Tariffs'!D35="","",'DNSP Inputs General'!Q72*'PL Tariffs'!D35) -> 487239.8783 | E36: =IF('PL Tariffs'!E35="","",'DNSP Inputs General'!R72*'PL Tariffs'!E35) -> 549250.5832 | F36: =IF('PL Tariffs'!F35="","",'DNSP Inputs General'!S72*'PL Tariffs'!F35) -> 603491.9836 | G36: =IF('PL Tariffs'!G35="","",'DNSP Inputs General'!T72*'PL Tariffs'!G35) -> 652518.293 | H36: =IF('PL Tariffs'!H35="","",'DNSP Inputs General'!U72*'PL Tariffs'!H35) -> 696358.2932 | J36: 372985.4856 | K36: =IF(D36="","",D36/'Charges Summary'!D$4) -> 477689.0248 | L36: =IF(E36="","",E36/'Charges Summary'!E$4) -> 527928.8565 | M36: =IF(F36="","",F36/'Charges Summary'!F$4) -> 568694.2238 | N36: =IF(G36="","",G36/'Charges Summary'!G$4) -> 602840.5261 | O36: =IF(H36="","",H36/'Charges Summary'!H$4) -> 630732.1058
A37: ='DNSP Inputs General'!B73 -> Category P LED 18 Watt | C37: =IF('PL Tariffs'!C36="","",'DNSP Inputs General'!O73*'PL Tariffs'!C36) -> 33934.92 | D37: =IF('PL Tariffs'!D36="","",'DNSP Inputs General'!Q73*'PL Tariffs'!D36) -> 43757.29492 | E37: =IF('PL Tariffs'!E36="","",'DNSP Inputs General'!R73*'PL Tariffs'!E36) -> 50503.58412 | F37: =IF('PL Tariffs'!F36="","",'DNSP Inputs General'!S73*'PL Tariffs'!F36) -> 59608.61731 | G37: =IF('PL Tariffs'!G36="","",'DNSP Inputs General'!T73*'PL Tariffs'!G36) -> 68621.20599 | H37: =IF('PL Tariffs'!H36="","",'DNSP Inputs General'!U73*'PL Tariffs'!H36) -> 80031.3104 | J37: 33934.92 | K37: =IF(D37="","",D37/'Charges Summary'!D$4) -> 42899.56645 | L37: =IF(E37="","",E37/'Charges Summary'!E$4) -> 48543.05163 | M37: =IF(F37="","",F37/'Charges Summary'!F$4) -> 56171.54374 | N37: =IF(G37="","",G37/'Charges Summary'!G$4) -> 63396.91065 | O37: =IF(H37="","",H37/'Charges Summary'!H$4) -> 72489.00089
A38: ='DNSP Inputs General'!B74 -> Category V LED L1 Standard Output | C38: =IF('PL Tariffs'!C37="","",'DNSP Inputs General'!O74*'PL Tariffs'!C37) -> 333804.3615 | D38: =IF('PL Tariffs'!D37="","",'DNSP Inputs General'!Q74*'PL Tariffs'!D37) -> 423985.8098 | E38: =IF('PL Tariffs'!E37="","",'DNSP Inputs General'!R74*'PL Tariffs'!E37) -> 510678.1151 | F38: =IF('PL Tariffs'!F37="","",'DNSP Inputs General'!S74*'PL Tariffs'!F37) -> 594630.2118 | G38: =IF('PL Tariffs'!G37="","",'DNSP Inputs General'!T74*'PL Tariffs'!G37) -> 668001.2963 | H38: =IF('PL Tariffs'!H37="","",'DNSP Inputs General'!U74*'PL Tariffs'!H37) -> 734711.7109 | J38: 333804.3615 | K38: =IF(D38="","",D38/'Charges Summary'!D$4) -> 415674.8596 | L38: =IF(E38="","",E38/'Charges Summary'!E$4) -> 490853.759 | M38: =IF(F38="","",F38/'Charges Summary'!F$4) -> 560343.4278 | N38: =IF(G38="","",G38/'Charges Summary'!G$4) -> 617144.7717 | O38: =IF(H38="","",H38/'Charges Summary'!H$4) -> 665471.0212
A39: ='DNSP Inputs General'!B75 -> Category V LED L1 Standard Output | C39: =IF('PL Tariffs'!C38="","",'DNSP Inputs General'!O75*'PL Tariffs'!C38) -> 253641.252 | D39: =IF('PL Tariffs'!D38="","",'DNSP Inputs General'!Q75*'PL Tariffs'!D38) -> 290996.969 | E39: =IF('PL Tariffs'!E38="","",'DNSP Inputs General'!R75*'PL Tariffs'!E38) -> 318713.9946 | F39: =IF('PL Tariffs'!F38="","",'DNSP Inputs General'!S75*'PL Tariffs'!F38) -> 347299.471 | G39: =IF('PL Tariffs'!G38="","",'DNSP Inputs General'!T75*'PL Tariffs'!G38) -> 374386.341 | H39: =IF('PL Tariffs'!H38="","",'DNSP Inputs General'!U75*'PL Tariffs'!H38) -> 394052.7808 | J39: 253641.252 | K39: =IF(D39="","",D39/'Charges Summary'!D$4) -> 285292.8599 | L39: =IF(E39="","",E39/'Charges Summary'!E$4) -> 306341.6223 | M39: =IF(F39="","",F39/'Charges Summary'!F$4) -> 327273.9464 | N39: =IF(G39="","",G39/'Charges Summary'!G$4) -> 345883.42 | O39: =IF(H39="","",H39/'Charges Summary'!H$4) -> 356916.4648
A40: ='DNSP Inputs General'!B76 -> Category V LED L1 Standard Output | C40: =IF('PL Tariffs'!C39="","",'DNSP Inputs General'!O76*'PL Tariffs'!C39) -> 109534.256 | D40: =IF('PL Tariffs'!D39="","",'DNSP Inputs General'!Q76*'PL Tariffs'!D39) -> 119852.9641 | E40: =IF('PL Tariffs'!E39="","",'DNSP Inputs General'!R76*'PL Tariffs'!E39) -> 122984.6263 | F40: =IF('PL Tariffs'!F39="","",'DNSP Inputs General'!S76*'PL Tariffs'!F39) -> 127654.4066 | G40: =IF('PL Tariffs'!G39="","",'DNSP Inputs General'!T76*'PL Tariffs'!G39) -> 132285.1559 | H40: =IF('PL Tariffs'!H39="","",'DNSP Inputs General'!U76*'PL Tariffs'!H39) -> 139485.2547 | J40: 109534.256 | K40: =IF(D40="","",D40/'Charges Summary'!D$4) -> 117503.6119 | L40: =IF(E40="","",E40/'Charges Summary'!E$4) -> 118210.4036 | M40: =IF(F40="","",F40/'Charges Summary'!F$4) -> 120293.7663 | N40: =IF(G40="","",G40/'Charges Summary'!G$4) -> 122213.9729 | O40: =IF(H40="","",H40/'Charges Summary'!H$4) -> 126339.8875
A42: Total Revenue | C42: =IF(SUM(C7:C41)=0,"",SUM(C7:C41)) -> 3313681.648 | D42: =SUM(D7:D41) -> 3861902.925 | E42: =SUM(E7:E41) -> 3695571.081 | F42: =SUM(F7:F41) -> 3528522.241 | G42: =SUM(G7:G41) -> 3446169.064 | H42: =SUM(H7:H41) -> 3375687.027 | J42: =IF(SUM(J7:J41)=0,"",SUM(J7:J41)) -> 3313681.648 | K42: =SUM(K7:K41) -> 3786202.084 | L42: =SUM(L7:L41) -> 3552110.229 | M42: =SUM(M7:M41) -> 3325065.24 | N42: =SUM(N7:N41) -> 3183804.032 | O42: =SUM(O7:O41) -> 3057555.582
A43: % Increase \ (Decrease) in Total Revenue | D43: =D42/C42-1 -> 0.1654417461 | E43: =E42/D42-1 -> -0.04306991852 | F43: -0.04520244266 | G43: -0.02333928233 | H43: -0.02045228669 | K43: =K42/J42-1 -> 0.1425968111 | L43: -0.06182761753 | M43: -0.06391834002 | N43: -0.04248374035 | O43: -0.03965333546
A45: Public Lighting - O & M | D45: Forecast O & M - Nominal | K45: Forecast O & M - Real 2021 $
D46: =D$2 -> 2021/22 | E46: 2022/23 | F46: 2023/24 | G46: 2024/25 | H46: 2025/26 | K46: =K$2 -> 2021/22 | L46: 2022/23 | M46: 2023/24 | N46: 2024/25 | O46: 2025/26
A48: Unit cost
A49: ='DNSP Inputs General'!A$41 -> Mercury vapour 80 watt | D49: =SUM('Charges Summary'!D25,'Charges Summary'!D8) -> 46.51295148 | E49: =SUM('Charges Summary'!E25,'Charges Summary'!E8) -> 47.75305118 | F49: =SUM('Charges Summary'!F25,'Charges Summary'!F8) -> 48.89629884 | G49: =SUM('Charges Summary'!G25,'Charges Summary'!G8) -> 50.0943968 | H49: =SUM('Charges Summary'!H25,'Charges Summary'!H8) -> 51.36548367
A50: ='DNSP Inputs General'!A$42 -> Sodium high pressure 150 watt | D50: =SUM('Charges Summary'!D49,'Charges Summary'!D8) -> 84.62124293 | E50: =SUM('Charges Summary'!E49,'Charges Summary'!E8) -> 86.59878125 | F50: =SUM('Charges Summary'!F49,'Charges Summary'!F8) -> 88.66881376 | G50: =SUM('Charges Summary'!G49,'Charges Summary'!G8) -> 90.85119227 | H50: =SUM('Charges Summary'!H49,'Charges Summary'!H8) -> 93.18393316
A51: ='DNSP Inputs General'!A$43 -> Sodium high pressure 250 watt | D51: =SUM('Charges Summary'!D73,'Charges Summary'!D8) -> 85.17931079 | E51: =SUM('Charges Summary'!E73,'Charges Summary'!E8) -> 87.16341299 | F51: =SUM('Charges Summary'!F73,'Charges Summary'!F8) -> 89.25186396 | G51: =SUM('Charges Summary'!G73,'Charges Summary'!G8) -> 91.45464416 | H51: =SUM('Charges Summary'!H73,'Charges Summary'!H8) -> 93.8086254
A53: ='DNSP Inputs General'!A$40 -> Existing Lights
A54: ='DNSP Inputs General'!A$41 -> Mercury vapour 80 watt | D54: =D49*'DNSP Inputs General'!Q41 -> 20533.02615 | E54: =E49*'DNSP Inputs General'!R41 -> 17918.3953 | F54: =F49*'DNSP Inputs General'!S41 -> 15595.27007 | G54: =G49*'DNSP Inputs General'!T41 -> 13580.78864 | H54: =H49*'DNSP Inputs General'!U41 -> 11836.57751 | K54: =D54/'Charges Summary'!D$4 -> 20130.53872 | L54: =E54/'Charges Summary'!E$4 -> 17222.8091 | M54: =F54/'Charges Summary'!F$4 -> 14696.03615 | N54: =G54/'Charges Summary'!G$4 -> 12546.85096 | O54: =H54/'Charges Summary'!H$4 -> 10721.07496
A55: ='DNSP Inputs General'!A$42 -> Sodium high pressure 150 watt | D55: =D50*'DNSP Inputs General'!Q42 -> 688036.7096 | E55: =E50*'DNSP Inputs General'!R42 -> 598498.2928 | F55: =F50*'DNSP Inputs General'!S42 -> 520883.9312 | G55: =G50*'DNSP Inputs General'!T42 -> 453648.6455 | H55: =H50*'DNSP Inputs General'!U42 -> 395502.2427 | K55: =D55/'Charges Summary'!D$4 -> 674549.8459 | L55: =E55/'Charges Summary'!E$4 -> 575264.7863 | M55: =F55/'Charges Summary'!F$4 -> 490849.4081 | N55: =G55/'Charges Summary'!G$4 -> 419111.297 | O55: =H55/'Charges Summary'!H$4 -> 358229.3265
A56: ='DNSP Inputs General'!A$43 -> Sodium high pressure 250 watt | D56: =D51*'DNSP Inputs General'!Q43 -> 179801.6 | E56: =E51*'DNSP Inputs General'!R43 -> 156391.2977 | F56: =F51*'DNSP Inputs General'!S43 -> 136117.692 | G56: =G51*'DNSP Inputs General'!T43 -> 118555.5724 | H56: =H51*'DNSP Inputs General'!U43 -> 103366.0464 | K56: =D56/'Charges Summary'!D$4 -> 176277.1374 | L56: =E56/'Charges Summary'!E$4 -> 150320.239 | M56: =F56/'Charges Summary'!F$4 -> 128269.0529 | N56: =G56/'Charges Summary'!G$4 -> 109529.6552 | O56: =H56/'Charges Summary'!H$4 -> 93624.62502
A57: ='DNSP Inputs General'!A$44 -> Fluorescent 20 watt | D57: =IF('DNSP Inputs General'!$B44='DNSP Inputs General'!$A$41,D$49,IF('DNSP Inputs General'!$B44='DNSP Inputs General'!$A$42,D$50,D$51))*'DNSP Inputs General'!$D44*'DNSP Inputs General'!Q44 -> 4761.557588 | E57: =IF('DNSP Inputs General'!$B44='DNSP Inputs General'!$A$41,E$49,IF('DNSP Inputs General'!$B44='DNSP Inputs General'!$A$42,E$50,E$51))*'DNSP Inputs General'!$D44*'DNSP Inputs General'!R44 -> 4644.081941 | F57: =IF('DNSP Inputs General'!$B44='DNSP Inputs General'!$A$41,F$49,IF('DNSP Inputs General'!$B44='DNSP Inputs General'!$A$42,F$50,F$51))*'DNSP Inputs General'!$D44*'DNSP Inputs General'!S44 -> 4517.50186 | G57: =IF('DNSP Inputs General'!$B44='DNSP Inputs General'!$A$41,G$49,IF('DNSP Inputs General'!$B44='DNSP Inputs General'!$A$42,G$50,G$51))*'DNSP Inputs General'!$D44*'DNSP Inputs General'!T44 -> 0 | H57: =IF('DNSP Inputs General'!$B44='DNSP Inputs General'!$A$41,H$49,IF('DNSP Inputs General'!$B44='DNSP Inputs General'!$A$42,H$50,H$51))*'DNSP Inputs General'!$D44*'DNSP Inputs General'!U44 -> 0 | K57: =D57/'Charges Summary'!D$4 -> 4668.221757 | L57: =E57/'Charges Summary'!E$4 -> 4463.800211 | M57: =F57/'Charges Summary'!F$4 -> 4257.019619 | N57: =G57/'Charges Summary'!G$4 -> 0 | O57: =H57/'Charges Summary'!H$4 -> 0
A58: ='DNSP Inputs General'!A$45 -> Fluorescent 40 watt | D58: =IF('DNSP Inputs General'!$B45='DNSP Inputs General'!$A$41,D$49,IF('DNSP Inputs General'!$B45='DNSP Inputs General'!$A$42,D$50,D$51))*'DNSP Inputs General'!$D45*'DNSP Inputs General'!Q45 -> 651.1813207 | E58: =IF('DNSP Inputs General'!$B45='DNSP Inputs General'!$A$41,E$49,IF('DNSP Inputs General'!$B45='DNSP Inputs General'!$A$42,E$50,E$51))*'DNSP Inputs General'!$D45*'DNSP Inputs General'!R45 -> 668.5427165 | F58: =IF('DNSP Inputs General'!$B45='DNSP Inputs General'!$A$41,F$49,IF('DNSP Inputs General'!$B45='DNSP Inputs General'!$A$42,F$50,F$51))*'DNSP Inputs General'!$D45*'DNSP Inputs General'!S45 -> 0 | G58: =IF('DNSP Inputs General'!$B45='DNSP Inputs General'!$A$41,G$49,IF('DNSP Inputs General'!$B45='DNSP Inputs General'!$A$42,G$50,G$51))*'DNSP Inputs General'!$D45*'DNSP Inputs General'!T45 -> 0 | H58: =IF('DNSP Inputs General'!$B45='DNSP Inputs General'!$A$41,H$49,IF('DNSP Inputs General'!$B45='DNSP Inputs General'!$A$42,H$50,H$51))*'DNSP Inputs General'!$D45*'DNSP Inputs General'!U45 -> 0 | K58: =D58/'Charges Summary'!D$4 -> 638.4168947 | L58: =E58/'Charges Summary'!E$4 -> 642.5901085 | M58: =F58/'Charges Summary'!F$4 -> 0 | N58: =G58/'Charges Summary'!G$4 -> 0 | O58: =H58/'Charges Summary'!H$4 -> 0
A59: ='DNSP Inputs General'!A$46 -> Mercury vapour 50 watt | D59: =IF('DNSP Inputs General'!$B46='DNSP Inputs General'!$A$41,D$49,IF('DNSP Inputs General'!$B46='DNSP Inputs General'!$A$42,D$50,D$51))*'DNSP Inputs General'!$D46*'DNSP Inputs General'!Q46 -> 712.001656 | E59: =IF('DNSP Inputs General'!$B46='DNSP Inputs General'!$A$41,E$49,IF('DNSP Inputs General'!$B46='DNSP Inputs General'!$A$42,E$50,E$51))*'DNSP Inputs General'!$D46*'DNSP Inputs General'!R46 -> 511.6892243 | F59: =IF('DNSP Inputs General'!$B46='DNSP Inputs General'!$A$41,F$49,IF('DNSP Inputs General'!$B46='DNSP Inputs General'!$A$42,F$50,F$51))*'DNSP Inputs General'!$D46*'DNSP Inputs General'!S46 -> 0 | G59: =IF('DNSP Inputs General'!$B46='DNSP Inputs General'!$A$41,G$49,IF('DNSP Inputs General'!$B46='DNSP Inputs General'!$A$42,G$50,G$51))*'DNSP Inputs General'!$D46*'DNSP Inputs General'!T46 -> 0 | H59: =IF('DNSP Inputs General'!$B46='DNSP Inputs General'!$A$41,H$49,IF('DNSP Inputs General'!$B46='DNSP Inputs General'!$A$42,H$50,H$51))*'DNSP Inputs General'!$D46*'DNSP Inputs General'!U46 -> 0 | K59: =D59/'Charges Summary'!D$4 -> 698.0450326 | L59: =E59/'Charges Summary'!E$4 -> 491.8256172 | M59: =F59/'Charges Summary'!F$4 -> 0 | N59: =G59/'Charges Summary'!G$4 -> 0 | O59: =H59/'Charges Summary'!H$4 -> 0
A60: ='DNSP Inputs General'!A$47 -> Mercury vapour 125 watt | D60: =IF('DNSP Inputs General'!$B47='DNSP Inputs General'!$A$41,D$49,IF('DNSP Inputs General'!$B47='DNSP Inputs General'!$A$42,D$50,D$51))*'DNSP Inputs General'!$D47*'DNSP Inputs General'!Q47 -> 17468.86686 | E60: =IF('DNSP Inputs General'!$B47='DNSP Inputs General'!$A$41,E$49,IF('DNSP Inputs General'!$B47='DNSP Inputs General'!$A$42,E$50,E$51))*'DNSP Inputs General'!$D47*'DNSP Inputs General'!R47 -> 12554.22773 | F60: =IF('DNSP Inputs General'!$B47='DNSP Inputs General'!$A$41,F$49,IF('DNSP Inputs General'!$B47='DNSP Inputs General'!$A$42,F$50,F$51))*'DNSP Inputs General'!$D47*'DNSP Inputs General'!S47 -> 8998.350449 | G60: =IF('DNSP Inputs General'!$B47='DNSP Inputs General'!$A$41,G$49,IF('DNSP Inputs General'!$B47='DNSP Inputs General'!$A$42,G$50,G$51))*'DNSP Inputs General'!$D47*'DNSP Inputs General'!T47 -> 6453.184884 | H60: =IF('DNSP Inputs General'!$B47='DNSP Inputs General'!$A$41,H$49,IF('DNSP Inputs General'!$B47='DNSP Inputs General'!$A$42,H$50,H$51))*'DNSP Inputs General'!$D47*'DNSP Inputs General'!U47 -> 0 | K60: =D60/'Charges Summary'!D$4 -> 17126.44294 | L60: =E60/'Charges Summary'!E$4 -> 12066.87675 | M60: =F60/'Charges Summary'!F$4 -> 8479.499419 | N60: =G60/'Charges Summary'!G$4 -> 5961.888598 | O60: =H60/'Charges Summary'!H$4 -> 0
A61: ='DNSP Inputs General'!A$48 -> Mercury vapour 250 watt | D61: =IF('DNSP Inputs General'!$B48='DNSP Inputs General'!$A$41,D$49,IF('DNSP Inputs General'!$B48='DNSP Inputs General'!$A$42,D$50,D$51))*'DNSP Inputs General'!$D48*'DNSP Inputs General'!Q48 -> 7187.259886 | E61: =IF('DNSP Inputs General'!$B48='DNSP Inputs General'!$A$41,E$49,IF('DNSP Inputs General'!$B48='DNSP Inputs General'!$A$42,E$50,E$51))*'DNSP Inputs General'!$D48*'DNSP Inputs General'!R48 -> 6251.473292 | F61: =IF('DNSP Inputs General'!$B48='DNSP Inputs General'!$A$41,F$49,IF('DNSP Inputs General'!$B48='DNSP Inputs General'!$A$42,F$50,F$51))*'DNSP Inputs General'!$D48*'DNSP Inputs General'!S48 -> 0 | G61: =IF('DNSP Inputs General'!$B48='DNSP Inputs General'!$A$41,G$49,IF('DNSP Inputs General'!$B48='DNSP Inputs General'!$A$42,G$50,G$51))*'DNSP Inputs General'!$D48*'DNSP Inputs General'!T48 -> 0 | H61: =IF('DNSP Inputs General'!$B48='DNSP Inputs General'!$A$41,H$49,IF('DNSP Inputs General'!$B48='DNSP Inputs General'!$A$42,H$50,H$51))*'DNSP Inputs General'!$D48*'DNSP Inputs General'!U48 -> 0 | K61: =D61/'Charges Summary'!D$4 -> 7046.375552 | L61: =E61/'Charges Summary'!E$4 -> 6008.793159 | M61: =F61/'Charges Summary'!F$4 -> 0 | N61: =G61/'Charges Summary'!G$4 -> 0 | O61: =H61/'Charges Summary'!H$4 -> 0
A62: ='DNSP Inputs General'!A$49 -> Mercury vapour 400 watt | D62: =IF('DNSP Inputs General'!$B49='DNSP Inputs General'!$A$41,D$49,IF('DNSP Inputs General'!$B49='DNSP Inputs General'!$A$42,D$50,D$51))*'DNSP Inputs General'!$D49*'DNSP Inputs General'!Q49 -> 3263.900831 | E62: =IF('DNSP Inputs General'!$B49='DNSP Inputs General'!$A$41,E$49,IF('DNSP Inputs General'!$B49='DNSP Inputs General'!$A$42,E$50,E$51))*'DNSP Inputs General'!$D49*'DNSP Inputs General'!R49 -> 2337.949361 | F62: =IF('DNSP Inputs General'!$B49='DNSP Inputs General'!$A$41,F$49,IF('DNSP Inputs General'!$B49='DNSP Inputs General'!$A$42,F$50,F$51))*'DNSP Inputs General'!$D49*'DNSP Inputs General'!S49 -> 0 | G62: =IF('DNSP Inputs General'!$B49='DNSP Inputs General'!$A$41,G$49,IF('DNSP Inputs General'!$B49='DNSP Inputs General'!$A$42,G$50,G$51))*'DNSP Inputs General'!$D49*'DNSP Inputs General'!T49 -> 0 | H62: =IF('DNSP Inputs General'!$B49='DNSP Inputs General'!$A$41,H$49,IF('DNSP Inputs General'!$B49='DNSP Inputs General'!$A$42,H$50,H$51))*'DNSP Inputs General'!$D49*'DNSP Inputs General'!U49 -> 0 | K62: =D62/'Charges Summary'!D$4 -> 3199.921999 | L62: =E62/'Charges Summary'!E$4 -> 2247.190937 | M62: =F62/'Charges Summary'!F$4 -> 0 | N62: =G62/'Charges Summary'!G$4 -> 0 | O62: =H62/'Charges Summary'!H$4 -> 0
A63: ='DNSP Inputs General'!A$50 -> Mercury vapour 700 watt | D63: =IF('DNSP Inputs General'!$B50='DNSP Inputs General'!$A$41,D$49,IF('DNSP Inputs General'!$B50='DNSP Inputs General'!$A$42,D$50,D$51))*'DNSP Inputs General'!$D50*'DNSP Inputs General'!Q50 -> 0 | E63: =IF('DNSP Inputs General'!$B50='DNSP Inputs General'!$A$41,E$49,IF('DNSP Inputs General'!$B50='DNSP Inputs General'!$A$42,E$50,E$51))*'DNSP Inputs General'!$D50*'DNSP Inputs General'!R50 -> 0 | F63: =IF('DNSP Inputs General'!$B50='DNSP Inputs General'!$A$41,F$49,IF('DNSP Inputs General'!$B50='DNSP Inputs General'!$A$42,F$50,F$51))*'DNSP Inputs General'!$D50*'DNSP Inputs General'!S50 -> 0 | G63: =IF('DNSP Inputs General'!$B50='DNSP Inputs General'!$A$41,G$49,IF('DNSP Inputs General'!$B50='DNSP Inputs General'!$A$42,G$50,G$51))*'DNSP Inputs General'!$D50*'DNSP Inputs General'!T50 -> 0 | H63: =IF('DNSP Inputs General'!$B50='DNSP Inputs General'!$A$41,H$49,IF('DNSP Inputs General'!$B50='DNSP Inputs General'!$A$42,H$50,H$51))*'DNSP Inputs General'!$D50*'DNSP Inputs General'!U50 -> 0 | K63: =D63/'Charges Summary'!D$4 -> 0 | L63: =E63/'Charges Summary'!E$4 -> 0 | M63: =F63/'Charges Summary'!F$4 -> 0 | N63: =G63/'Charges Summary'!G$4 -> 0 | O63: =H63/'Charges Summary'!H$4 -> 0
A64: ='DNSP Inputs General'!A$51 -> Sodium high pressure 70 watt | D64: =IF('DNSP Inputs General'!$B51='DNSP Inputs General'!$A$41,D$49,IF('DNSP Inputs General'!$B51='DNSP Inputs General'!$A$42,D$50,D$51))*'DNSP Inputs General'!$D51*'DNSP Inputs General'!Q51 -> 17312.26473 | E64: =IF('DNSP Inputs General'!$B51='DNSP Inputs General'!$A$41,E$49,IF('DNSP Inputs General'!$B51='DNSP Inputs General'!$A$42,E$50,E$51))*'DNSP Inputs General'!$D51*'DNSP Inputs General'!R51 -> 15107.75863 | F64: =IF('DNSP Inputs General'!$B51='DNSP Inputs General'!$A$41,F$49,IF('DNSP Inputs General'!$B51='DNSP Inputs General'!$A$42,F$50,F$51))*'DNSP Inputs General'!$D51*'DNSP Inputs General'!S51 -> 10828.61563 | G64: =IF('DNSP Inputs General'!$B51='DNSP Inputs General'!$A$41,G$49,IF('DNSP Inputs General'!$B51='DNSP Inputs General'!$A$42,G$50,G$51))*'DNSP Inputs General'!$D51*'DNSP Inputs General'!T51 -> 7765.763194 | H64: =IF('DNSP Inputs General'!$B51='DNSP Inputs General'!$A$41,H$49,IF('DNSP Inputs General'!$B51='DNSP Inputs General'!$A$42,H$50,H$51))*'DNSP Inputs General'!$D51*'DNSP Inputs General'!U51 -> 5573.967262 | K64: =D64/'Charges Summary'!D$4 -> 16972.91052 | L64: =E64/'Charges Summary'!E$4 -> 14521.28042 | M64: =F64/'Charges Summary'!F$4 -> 10204.23026 | N64: =G64/'Charges Summary'!G$4 -> 7174.537204 | O64: =H64/'Charges Summary'!H$4 -> 5048.665526
A65: ='DNSP Inputs General'!A$52 -> Sodium high pressure 100 watt | D65: =IF('DNSP Inputs General'!$B52='DNSP Inputs General'!$A$41,D$49,IF('DNSP Inputs General'!$B52='DNSP Inputs General'!$A$42,D$50,D$51))*'DNSP Inputs General'!$D52*'DNSP Inputs General'!Q52 -> 9666.051871 | E65: =IF('DNSP Inputs General'!$B52='DNSP Inputs General'!$A$41,E$49,IF('DNSP Inputs General'!$B52='DNSP Inputs General'!$A$42,E$50,E$51))*'DNSP Inputs General'!$D52*'DNSP Inputs General'!R52 -> 8408.14954 | F65: =IF('DNSP Inputs General'!$B52='DNSP Inputs General'!$A$41,F$49,IF('DNSP Inputs General'!$B52='DNSP Inputs General'!$A$42,F$50,F$51))*'DNSP Inputs General'!$D52*'DNSP Inputs General'!S52 -> 6026.39488 | G65: =IF('DNSP Inputs General'!$B52='DNSP Inputs General'!$A$41,G$49,IF('DNSP Inputs General'!$B52='DNSP Inputs General'!$A$42,G$50,G$51))*'DNSP Inputs General'!$D52*'DNSP Inputs General'!T52 -> 0 | H65: =IF('DNSP Inputs General'!$B52='DNSP Inputs General'!$A$41,H$49,IF('DNSP Inputs General'!$B52='DNSP Inputs General'!$A$42,H$50,H$51))*'DNSP Inputs General'!$D52*'DNSP Inputs General'!U52 -> 0 | K65: =D65/'Charges Summary'!D$4 -> 9476.578371 | L65: =E65/'Charges Summary'!E$4 -> 8081.747946 | M65: =F65/'Charges Summary'!F$4 -> 5678.908837 | N65: =G65/'Charges Summary'!G$4 -> 0 | O65: =H65/'Charges Summary'!H$4 -> 0
A66: ='DNSP Inputs General'!A$53 -> Sodium high pressure 220 watt | D66: =IF('DNSP Inputs General'!$B53='DNSP Inputs General'!$A$41,D$49,IF('DNSP Inputs General'!$B53='DNSP Inputs General'!$A$42,D$50,D$51))*'DNSP Inputs General'!$D53*'DNSP Inputs General'!Q53 -> 12333.02723 | E66: =IF('DNSP Inputs General'!$B53='DNSP Inputs General'!$A$41,E$49,IF('DNSP Inputs General'!$B53='DNSP Inputs General'!$A$42,E$50,E$51))*'DNSP Inputs General'!$D53*'DNSP Inputs General'!R53 -> 10727.25789 | F66: =IF('DNSP Inputs General'!$B53='DNSP Inputs General'!$A$41,F$49,IF('DNSP Inputs General'!$B53='DNSP Inputs General'!$A$42,F$50,F$51))*'DNSP Inputs General'!$D53*'DNSP Inputs General'!S53 -> 7688.999438 | G66: =IF('DNSP Inputs General'!$B53='DNSP Inputs General'!$A$41,G$49,IF('DNSP Inputs General'!$B53='DNSP Inputs General'!$A$42,G$50,G$51))*'DNSP Inputs General'!$D53*'DNSP Inputs General'!T53 -> 0 | H66: =IF('DNSP Inputs General'!$B53='DNSP Inputs General'!$A$41,H$49,IF('DNSP Inputs General'!$B53='DNSP Inputs General'!$A$42,H$50,H$51))*'DNSP Inputs General'!$D53*'DNSP Inputs General'!U53 -> 0 | K66: =D66/'Charges Summary'!D$4 -> 12091.2758 | L66: =E66/'Charges Summary'!E$4 -> 10310.82928 | M66: =F66/'Charges Summary'!F$4 -> 7245.646481 | N66: =G66/'Charges Summary'!G$4 -> 0 | O66: =H66/'Charges Summary'!H$4 -> 0
A67: ='DNSP Inputs General'!A$54 -> Sodium high pressure 360 watt | D67: =IF('DNSP Inputs General'!$B54='DNSP Inputs General'!$A$41,D$49,IF('DNSP Inputs General'!$B54='DNSP Inputs General'!$A$42,D$50,D$51))*'DNSP Inputs General'!$D54*'DNSP Inputs General'!Q54 -> 2134.278365 | E67: =IF('DNSP Inputs General'!$B54='DNSP Inputs General'!$A$41,E$49,IF('DNSP Inputs General'!$B54='DNSP Inputs General'!$A$42,E$50,E$51))*'DNSP Inputs General'!$D54*'DNSP Inputs General'!R54 -> 1856.393731 | F67: =IF('DNSP Inputs General'!$B54='DNSP Inputs General'!$A$41,F$49,IF('DNSP Inputs General'!$B54='DNSP Inputs General'!$A$42,F$50,F$51))*'DNSP Inputs General'!$D54*'DNSP Inputs General'!S54 -> 0 | G67: =IF('DNSP Inputs General'!$B54='DNSP Inputs General'!$A$41,G$49,IF('DNSP Inputs General'!$B54='DNSP Inputs General'!$A$42,G$50,G$51))*'DNSP Inputs General'!$D54*'DNSP Inputs General'!T54 -> 0 | H67: =IF('DNSP Inputs General'!$B54='DNSP Inputs General'!$A$41,H$49,IF('DNSP Inputs General'!$B54='DNSP Inputs General'!$A$42,H$50,H$51))*'DNSP Inputs General'!$D54*'DNSP Inputs General'!U54 -> 0 | K67: =D67/'Charges Summary'!D$4 -> 2092.44234 | L67: =E67/'Charges Summary'!E$4 -> 1784.329138 | M67: =F67/'Charges Summary'!F$4 -> 0 | N67: =G67/'Charges Summary'!G$4 -> 0 | O67: =H67/'Charges Summary'!H$4 -> 0
A68: ='DNSP Inputs General'!A$55 -> Sodium high pressure 400 watt | D68: =IF('DNSP Inputs General'!$B55='DNSP Inputs General'!$A$41,D$49,IF('DNSP Inputs General'!$B55='DNSP Inputs General'!$A$42,D$50,D$51))*'DNSP Inputs General'!$D55*'DNSP Inputs General'!Q55 -> 14283.91028 | E68: =IF('DNSP Inputs General'!$B55='DNSP Inputs General'!$A$41,E$49,IF('DNSP Inputs General'!$B55='DNSP Inputs General'!$A$42,E$50,E$51))*'DNSP Inputs General'!$D55*'DNSP Inputs General'!R55 -> 12424.13452 | F68: =IF('DNSP Inputs General'!$B55='DNSP Inputs General'!$A$41,F$49,IF('DNSP Inputs General'!$B55='DNSP Inputs General'!$A$42,F$50,F$51))*'DNSP Inputs General'!$D55*'DNSP Inputs General'!S55 -> 8905.273301 | G68: =IF('DNSP Inputs General'!$B55='DNSP Inputs General'!$A$41,G$49,IF('DNSP Inputs General'!$B55='DNSP Inputs General'!$A$42,G$50,G$51))*'DNSP Inputs General'!$D55*'DNSP Inputs General'!T55 -> 6387.541899 | H68: =IF('DNSP Inputs General'!$B55='DNSP Inputs General'!$A$41,H$49,IF('DNSP Inputs General'!$B55='DNSP Inputs General'!$A$42,H$50,H$51))*'DNSP Inputs General'!$D55*'DNSP Inputs General'!U55 -> 0 | K68: =D68/'Charges Summary'!D$4 -> 14003.91773 | L68: =E68/'Charges Summary'!E$4 -> 11941.83371 | M68: =F68/'Charges Summary'!F$4 -> 8391.789163 | N68: =G68/'Charges Summary'!G$4 -> 5901.243169 | O68: =H68/'Charges Summary'!H$4 -> 0
A69: ='DNSP Inputs General'!A$56 -> Sodium high pressure 1000 watt | D69: =IF('DNSP Inputs General'!$B56='DNSP Inputs General'!$A$41,D$49,IF('DNSP Inputs General'!$B56='DNSP Inputs General'!$A$42,D$50,D$51))*'DNSP Inputs General'!$D56*'DNSP Inputs General'!Q56 -> 0 | E69: =IF('DNSP Inputs General'!$B56='DNSP Inputs General'!$A$41,E$49,IF('DNSP Inputs General'!$B56='DNSP Inputs General'!$A$42,E$50,E$51))*'DNSP Inputs General'!$D56*'DNSP Inputs General'!R56 -> 0 | F69: =IF('DNSP Inputs General'!$B56='DNSP Inputs General'!$A$41,F$49,IF('DNSP Inputs General'!$B56='DNSP Inputs General'!$A$42,F$50,F$51))*'DNSP Inputs General'!$D56*'DNSP Inputs General'!S56 -> 0 | G69: =IF('DNSP Inputs General'!$B56='DNSP Inputs General'!$A$41,G$49,IF('DNSP Inputs General'!$B56='DNSP Inputs General'!$A$42,G$50,G$51))*'DNSP Inputs General'!$D56*'DNSP Inputs General'!T56 -> 0 | H69: =IF('DNSP Inputs General'!$B56='DNSP Inputs General'!$A$41,H$49,IF('DNSP Inputs General'!$B56='DNSP Inputs General'!$A$42,H$50,H$51))*'DNSP Inputs General'!$D56*'DNSP Inputs General'!U56 -> 0 | K69: =D69/'Charges Summary'!D$4 -> 0 | L69: =E69/'Charges Summary'!E$4 -> 0 | M69: =F69/'Charges Summary'!F$4 -> 0 | N69: =G69/'Charges Summary'!G$4 -> 0 | O69: =H69/'Charges Summary'!H$4 -> 0
A70: ='DNSP Inputs General'!A$57 -> Metal halide 70 watt | D70: =IF('DNSP Inputs General'!$B57='DNSP Inputs General'!$A$41,D$49,IF('DNSP Inputs General'!$B57='DNSP Inputs General'!$A$42,D$50,D$51))*'DNSP Inputs General'!$D57*'DNSP Inputs General'!Q57 -> 50084.45311 | E70: =IF('DNSP Inputs General'!$B57='DNSP Inputs General'!$A$41,E$49,IF('DNSP Inputs General'!$B57='DNSP Inputs General'!$A$42,E$50,E$51))*'DNSP Inputs General'!$D57*'DNSP Inputs General'!R57 -> 43706.80789 | F70: =IF('DNSP Inputs General'!$B57='DNSP Inputs General'!$A$41,F$49,IF('DNSP Inputs General'!$B57='DNSP Inputs General'!$A$42,F$50,F$51))*'DNSP Inputs General'!$D57*'DNSP Inputs General'!S57 -> 31327.22959 | G70: =IF('DNSP Inputs General'!$B57='DNSP Inputs General'!$A$41,G$49,IF('DNSP Inputs General'!$B57='DNSP Inputs General'!$A$42,G$50,G$51))*'DNSP Inputs General'!$D57*'DNSP Inputs General'!T57 -> 22466.38488 | H70: =IF('DNSP Inputs General'!$B57='DNSP Inputs General'!$A$41,H$49,IF('DNSP Inputs General'!$B57='DNSP Inputs General'!$A$42,H$50,H$51))*'DNSP Inputs General'!$D57*'DNSP Inputs General'!U57 -> 0 | K70: =D70/'Charges Summary'!D$4 -> 49102.69998 | L70: =E70/'Charges Summary'!E$4 -> 42010.12401 | M70: =F70/'Charges Summary'!F$4 -> 29520.88014 | N70: =G70/'Charges Summary'!G$4 -> 20755.96566 | O70: =H70/'Charges Summary'!H$4 -> 0
A71: ='DNSP Inputs General'!A$58 -> Metal halide 100 watt | D71: =IF('DNSP Inputs General'!$B58='DNSP Inputs General'!$A$41,D$49,IF('DNSP Inputs General'!$B58='DNSP Inputs General'!$A$42,D$50,D$51))*'DNSP Inputs General'!$D58*'DNSP Inputs General'!Q58 -> 7007.123371 | E71: =IF('DNSP Inputs General'!$B58='DNSP Inputs General'!$A$41,E$49,IF('DNSP Inputs General'!$B58='DNSP Inputs General'!$A$42,E$50,E$51))*'DNSP Inputs General'!$D58*'DNSP Inputs General'!R58 -> 6095.243636 | F71: =IF('DNSP Inputs General'!$B58='DNSP Inputs General'!$A$41,F$49,IF('DNSP Inputs General'!$B58='DNSP Inputs General'!$A$42,F$50,F$51))*'DNSP Inputs General'!$D58*'DNSP Inputs General'!S58 -> 4368.659818 | G71: =IF('DNSP Inputs General'!$B58='DNSP Inputs General'!$A$41,G$49,IF('DNSP Inputs General'!$B58='DNSP Inputs General'!$A$42,G$50,G$51))*'DNSP Inputs General'!$D58*'DNSP Inputs General'!T58 -> 0 | H71: =IF('DNSP Inputs General'!$B58='DNSP Inputs General'!$A$41,H$49,IF('DNSP Inputs General'!$B58='DNSP Inputs General'!$A$42,H$50,H$51))*'DNSP Inputs General'!$D58*'DNSP Inputs General'!U58 -> 0 | K71: =D71/'Charges Summary'!D$4 -> 6869.770064 | L71: =E71/'Charges Summary'!E$4 -> 5858.628286 | M71: =F71/'Charges Summary'!F$4 -> 4116.759911 | N71: =G71/'Charges Summary'!G$4 -> 0 | O71: =H71/'Charges Summary'!H$4 -> 0
A72: ='DNSP Inputs General'!A$59 -> Metal halide 150 watt | D72: =IF('DNSP Inputs General'!$B59='DNSP Inputs General'!$A$41,D$49,IF('DNSP Inputs General'!$B59='DNSP Inputs General'!$A$42,D$50,D$51))*'DNSP Inputs General'!$D59*'DNSP Inputs General'!Q59 -> 35258.77365 | E72: =IF('DNSP Inputs General'!$B59='DNSP Inputs General'!$A$41,E$49,IF('DNSP Inputs General'!$B59='DNSP Inputs General'!$A$42,E$50,E$51))*'DNSP Inputs General'!$D59*'DNSP Inputs General'!R59 -> 30670.33422 | F72: =IF('DNSP Inputs General'!$B59='DNSP Inputs General'!$A$41,F$49,IF('DNSP Inputs General'!$B59='DNSP Inputs General'!$A$42,F$50,F$51))*'DNSP Inputs General'!$D59*'DNSP Inputs General'!S59 -> 21982.42838 | G72: =IF('DNSP Inputs General'!$B59='DNSP Inputs General'!$A$41,G$49,IF('DNSP Inputs General'!$B59='DNSP Inputs General'!$A$42,G$50,G$51))*'DNSP Inputs General'!$D59*'DNSP Inputs General'!T59 -> 15766.43264 | H72: =IF('DNSP Inputs General'!$B59='DNSP Inputs General'!$A$41,H$49,IF('DNSP Inputs General'!$B59='DNSP Inputs General'!$A$42,H$50,H$51))*'DNSP Inputs General'!$D59*'DNSP Inputs General'!U59 -> 0 | K72: =D72/'Charges Summary'!D$4 -> 34567.63281 | L72: =E72/'Charges Summary'!E$4 -> 29479.72195 | M72: =F72/'Charges Summary'!F$4 -> 20714.90656 | N72: =G72/'Charges Summary'!G$4 -> 14566.09669 | O72: =H72/'Charges Summary'!H$4 -> 0
A73: ='DNSP Inputs General'!A$60 -> Metal halide 250 watt | D73: =IF('DNSP Inputs General'!$B60='DNSP Inputs General'!$A$41,D$49,IF('DNSP Inputs General'!$B60='DNSP Inputs General'!$A$42,D$50,D$51))*'DNSP Inputs General'!$D60*'DNSP Inputs General'!Q60 -> 15508.59712 | E73: =IF('DNSP Inputs General'!$B60='DNSP Inputs General'!$A$41,E$49,IF('DNSP Inputs General'!$B60='DNSP Inputs General'!$A$42,E$50,E$51))*'DNSP Inputs General'!$D60*'DNSP Inputs General'!R60 -> 13489.36621 | F73: =IF('DNSP Inputs General'!$B60='DNSP Inputs General'!$A$41,F$49,IF('DNSP Inputs General'!$B60='DNSP Inputs General'!$A$42,F$50,F$51))*'DNSP Inputs General'!$D60*'DNSP Inputs General'!S60 -> 9668.801688 | G73: =IF('DNSP Inputs General'!$B60='DNSP Inputs General'!$A$41,G$49,IF('DNSP Inputs General'!$B60='DNSP Inputs General'!$A$42,G$50,G$51))*'DNSP Inputs General'!$D60*'DNSP Inputs General'!T60 -> 0 | H73: =IF('DNSP Inputs General'!$B60='DNSP Inputs General'!$A$41,H$49,IF('DNSP Inputs General'!$B60='DNSP Inputs General'!$A$42,H$50,H$51))*'DNSP Inputs General'!$D60*'DNSP Inputs General'!U60 -> 0 | K73: =D73/'Charges Summary'!D$4 -> 15204.59832 | L73: =E73/'Charges Summary'!E$4 -> 12965.71346 | M73: =F73/'Charges Summary'!F$4 -> 9111.291982 | N73: =G73/'Charges Summary'!G$4 -> 0 | O73: =H73/'Charges Summary'!H$4 -> 0
A74: ='DNSP Inputs General'!A$61 -> Metal halide 400 watt | D74: =IF('DNSP Inputs General'!$B61='DNSP Inputs General'!$A$41,D$49,IF('DNSP Inputs General'!$B61='DNSP Inputs General'!$A$42,D$50,D$51))*'DNSP Inputs General'!$D61*'DNSP Inputs General'!Q61 -> 1846.261561 | E74: =IF('DNSP Inputs General'!$B61='DNSP Inputs General'!$A$41,E$49,IF('DNSP Inputs General'!$B61='DNSP Inputs General'!$A$42,E$50,E$51))*'DNSP Inputs General'!$D61*'DNSP Inputs General'!R61 -> 1605.87693 | F74: =IF('DNSP Inputs General'!$B61='DNSP Inputs General'!$A$41,F$49,IF('DNSP Inputs General'!$B61='DNSP Inputs General'!$A$42,F$50,F$51))*'DNSP Inputs General'!$D61*'DNSP Inputs General'!S61 -> 1151.04782 | G74: =IF('DNSP Inputs General'!$B61='DNSP Inputs General'!$A$41,G$49,IF('DNSP Inputs General'!$B61='DNSP Inputs General'!$A$42,G$50,G$51))*'DNSP Inputs General'!$D61*'DNSP Inputs General'!T61 -> 0 | H74: =IF('DNSP Inputs General'!$B61='DNSP Inputs General'!$A$41,H$49,IF('DNSP Inputs General'!$B61='DNSP Inputs General'!$A$42,H$50,H$51))*'DNSP Inputs General'!$D61*'DNSP Inputs General'!U61 -> 0 | K74: =D74/'Charges Summary'!D$4 -> 1810.071228 | L74: =E74/'Charges Summary'!E$4 -> 1543.537317 | M74: =F74/'Charges Summary'!F$4 -> 1084.677617 | N74: =G74/'Charges Summary'!G$4 -> 0 | O74: =H74/'Charges Summary'!H$4 -> 0
A75: ='DNSP Inputs General'!A$62 -> Metal halide 1000 watt | D75: =IF('DNSP Inputs General'!$B62='DNSP Inputs General'!$A$41,D$49,IF('DNSP Inputs General'!$B62='DNSP Inputs General'!$A$42,D$50,D$51))*'DNSP Inputs General'!$D62*'DNSP Inputs General'!Q62 -> 304.9419326 | E75: =IF('DNSP Inputs General'!$B62='DNSP Inputs General'!$A$41,E$49,IF('DNSP Inputs General'!$B62='DNSP Inputs General'!$A$42,E$50,E$51))*'DNSP Inputs General'!$D62*'DNSP Inputs General'!R62 -> 468.0675278 | F75: =IF('DNSP Inputs General'!$B62='DNSP Inputs General'!$A$41,F$49,IF('DNSP Inputs General'!$B62='DNSP Inputs General'!$A$42,F$50,F$51))*'DNSP Inputs General'!$D62*'DNSP Inputs General'!S62 -> 639.0433459 | G75: =IF('DNSP Inputs General'!$B62='DNSP Inputs General'!$A$41,G$49,IF('DNSP Inputs General'!$B62='DNSP Inputs General'!$A$42,G$50,G$51))*'DNSP Inputs General'!$D62*'DNSP Inputs General'!T62 -> 818.5190653 | H75: =IF('DNSP Inputs General'!$B62='DNSP Inputs General'!$A$41,H$49,IF('DNSP Inputs General'!$B62='DNSP Inputs General'!$A$42,H$50,H$51))*'DNSP Inputs General'!$D62*'DNSP Inputs General'!U62 -> 1007.504637 | K75: =D75/'Charges Summary'!D$4 -> 298.964475 | L75: =E75/'Charges Summary'!E$4 -> 449.8973006 | M75: =F75/'Charges Summary'!F$4 -> 602.1956703 | N75: =G75/'Charges Summary'!G$4 -> 756.2032655 | O75: =H75/'Charges Summary'!H$4 -> 912.5554004
A78: ='DNSP Inputs General'!A$67 -> Energy Efficient Lights
A79: ='DNSP Inputs General'!A$68 -> T5 2X14W | D79: =SUM('Charges Summary'!D99,'Charges Summary'!D8)*'DNSP Inputs General'!$D68*'DNSP Inputs General'!Q68 -> 385927.3432 | E79: =SUM('Charges Summary'!E99,'Charges Summary'!E8)*'DNSP Inputs General'!$D68*'DNSP Inputs General'!R68 -> 335583.1247 | F79: =SUM('Charges Summary'!F99,'Charges Summary'!F8)*'DNSP Inputs General'!$D68*'DNSP Inputs General'!S68 -> 291988.7849 | G79: =SUM('Charges Summary'!G99,'Charges Summary'!G8)*'DNSP Inputs General'!$D68*'DNSP Inputs General'!T68 -> 254241.9134 | H79: =SUM('Charges Summary'!H99,'Charges Summary'!H8)*'DNSP Inputs General'!$D68*'DNSP Inputs General'!U68 -> 221601.863 | K79: =D79/'Charges Summary'!D$4 -> 378362.4133 | L79: =E79/'Charges Summary'!E$4 -> 322555.8984 | M79: =F79/'Charges Summary'!F$4 -> 275152.5123 | N79: =G79/'Charges Summary'!G$4 -> 234885.8729 | O79: =H79/'Charges Summary'!H$4 -> 200717.6636
A80: ='DNSP Inputs General'!B$69 -> T5 2X14W | D80: =SUM('Charges Summary'!D$99,'Charges Summary'!D$8)*'DNSP Inputs General'!$D69*'DNSP Inputs General'!Q69 -> 52595.30044 | E80: =SUM('Charges Summary'!E$99,'Charges Summary'!E$8)*'DNSP Inputs General'!$D69*'DNSP Inputs General'!R69 -> 45734.24397 | F80: =SUM('Charges Summary'!F$99,'Charges Summary'!F$8)*'DNSP Inputs General'!$D69*'DNSP Inputs General'!S69 -> 39793.08059 | G80: =SUM('Charges Summary'!G$99,'Charges Summary'!G$8)*'DNSP Inputs General'!$D69*'DNSP Inputs General'!T69 -> 34648.82718 | H80: =SUM('Charges Summary'!H$99,'Charges Summary'!H$8)*'DNSP Inputs General'!$D69*'DNSP Inputs General'!U69 -> 30200.54621 | K80: =D80/'Charges Summary'!D$4 -> 51564.32981 | L80: =E80/'Charges Summary'!E$4 -> 43958.85569 | M80: =F80/'Charges Summary'!F$4 -> 37498.5844 | N80: =G80/'Charges Summary'!G$4 -> 32010.92971 | O80: =H80/'Charges Summary'!H$4 -> 27354.3868
A81: ='DNSP Inputs General'!B$70 -> T5 2X14W | D81: =SUM('Charges Summary'!D$99,'Charges Summary'!D$8)*'DNSP Inputs General'!$D70*'DNSP Inputs General'!Q70 -> 17964.14312 | E81: =SUM('Charges Summary'!E$99,'Charges Summary'!E$8)*'DNSP Inputs General'!$D70*'DNSP Inputs General'!R70 -> 15620.72081 | F81: =SUM('Charges Summary'!F$99,'Charges Summary'!F$8)*'DNSP Inputs General'!$D70*'DNSP Inputs General'!S70 -> 13591.4918 | G81: =SUM('Charges Summary'!G$99,'Charges Summary'!G$8)*'DNSP Inputs General'!$D70*'DNSP Inputs General'!T70 -> 11834.4507 | H81: =SUM('Charges Summary'!H$99,'Charges Summary'!H$8)*'DNSP Inputs General'!$D70*'DNSP Inputs General'!U70 -> 10315.12188 | K81: =D81/'Charges Summary'!D$4 -> 17612.01082 | L81: =E81/'Charges Summary'!E$4 -> 15014.32957 | M81: =F81/'Charges Summary'!F$4 -> 12807.7971 | N81: =G81/'Charges Summary'!G$4 -> 10933.46587 | O81: =H81/'Charges Summary'!H$4 -> 9343.004322
A82: ='DNSP Inputs General'!B$71 -> T5 2X14W | D82: =SUM('Charges Summary'!D$99,'Charges Summary'!D$8)*'DNSP Inputs General'!$D71*'DNSP Inputs General'!Q71 -> 10084.65609 | E82: =SUM('Charges Summary'!E$99,'Charges Summary'!E$8)*'DNSP Inputs General'!$D71*'DNSP Inputs General'!R71 -> 7221.622303 | F82: =SUM('Charges Summary'!F$99,'Charges Summary'!F$8)*'DNSP Inputs General'!$D71*'DNSP Inputs General'!S71 -> 5174.637629 | G82: =SUM('Charges Summary'!G$99,'Charges Summary'!G$8)*'DNSP Inputs General'!$D71*'DNSP Inputs General'!T71 -> 4505.68597 | H82: =SUM('Charges Summary'!H$99,'Charges Summary'!H$8)*'DNSP Inputs General'!$D71*'DNSP Inputs General'!U71 -> 3927.237613 | K82: =D82/'Charges Summary'!D$4 -> 9886.977133 | L82: =E82/'Charges Summary'!E$4 -> 6941.281304 | M82: =F82/'Charges Summary'!F$4 -> 4876.26449 | N82: =G82/'Charges Summary'!G$4 -> 4162.6574 | O82: =H82/'Charges Summary'!H$4 -> 3557.126947
A83: ='DNSP Inputs General'!B$72 -> Category P LED 18 Watt | D83: =SUM('Charges Summary'!D117,'Charges Summary'!D8)*'DNSP Inputs General'!$D72*'DNSP Inputs General'!Q72 -> 214278.2118 | E83: =SUM('Charges Summary'!E117,'Charges Summary'!E8)*'DNSP Inputs General'!$D72*'DNSP Inputs General'!R72 -> 245400.5621 | F83: =SUM('Charges Summary'!F117,'Charges Summary'!F8)*'DNSP Inputs General'!$D72*'DNSP Inputs General'!S72 -> 274029.0968 | G83: =SUM('Charges Summary'!G117,'Charges Summary'!G8)*'DNSP Inputs General'!$D72*'DNSP Inputs General'!T72 -> 300608.5656 | H83: =SUM('Charges Summary'!H117,'Charges Summary'!H8)*'DNSP Inputs General'!$D72*'DNSP Inputs General'!U72 -> 324856.0488 | K83: =D83/'Charges Summary'!D$4 -> 210077.9402 | L83: =E83/'Charges Summary'!E$4 -> 235874.1932 | M83: =F83/'Charges Summary'!F$4 -> 258228.392 | N83: =G83/'Charges Summary'!G$4 -> 277722.5218 | O83: =H83/'Charges Summary'!H$4 -> 294240.9701
A84: ='DNSP Inputs General'!B$73 -> Category P LED 18 Watt | D84: =SUM('Charges Summary'!D117,'Charges Summary'!D8)*'DNSP Inputs General'!$D73*'DNSP Inputs General'!Q73 -> 19243.57041 | E84: =SUM('Charges Summary'!E117,'Charges Summary'!E8)*'DNSP Inputs General'!$D73*'DNSP Inputs General'!R73 -> 22564.57856 | F84: =SUM('Charges Summary'!F117,'Charges Summary'!F8)*'DNSP Inputs General'!$D73*'DNSP Inputs General'!S73 -> 27066.63221 | G84: =SUM('Charges Summary'!G117,'Charges Summary'!G8)*'DNSP Inputs General'!$D73*'DNSP Inputs General'!T73 -> 31613.09426 | H84: =SUM('Charges Summary'!H117,'Charges Summary'!H8)*'DNSP Inputs General'!$D73*'DNSP Inputs General'!U73 -> 37335.17002 | K84: =D84/'Charges Summary'!D$4 -> 18866.35884 | L84: =E84/'Charges Summary'!E$4 -> 21688.62906 | M84: =F84/'Charges Summary'!F$4 -> 25505.95172 | N84: =G84/'Charges Summary'!G$4 -> 29206.31434 | O84: =H84/'Charges Summary'!H$4 -> 33816.62951
A85: ='DNSP Inputs General'!B$74 -> Category V LED L1 Standard Output | D85: =SUM('Charges Summary'!D135,'Charges Summary'!D8)*'DNSP Inputs General'!$D74*'DNSP Inputs General'!Q74 -> 240106.3272 | E85: =SUM('Charges Summary'!E135,'Charges Summary'!E8)*'DNSP Inputs General'!$D74*'DNSP Inputs General'!R74 -> 293802.8848 | F85: =SUM('Charges Summary'!F135,'Charges Summary'!F8)*'DNSP Inputs General'!$D74*'DNSP Inputs General'!S74 -> 347493.6392 | G85: =SUM('Charges Summary'!G135,'Charges Summary'!G8)*'DNSP Inputs General'!$D74*'DNSP Inputs General'!T74 -> 395723.3036 | H85: =SUM('Charges Summary'!H135,'Charges Summary'!H8)*'DNSP Inputs General'!$D74*'DNSP Inputs General'!U74 -> 440380.4114 | K85: =D85/'Charges Summary'!D$4 -> 235399.7741 | L85: =E85/'Charges Summary'!E$4 -> 282397.5536 | M85: =F85/'Charges Summary'!F$4 -> 327456.9188 | N85: =G85/'Charges Summary'!G$4 -> 365595.949 | O85: =H85/'Charges Summary'!H$4 -> 398878.0875
A86: ='DNSP Inputs General'!B$75 -> Category V LED L1 Standard Output | D86: =SUM('Charges Summary'!D135,'Charges Summary'!D8)*'DNSP Inputs General'!$D75*'DNSP Inputs General'!Q75 -> 164793.7545 | E86: =SUM('Charges Summary'!E135,'Charges Summary'!E8)*'DNSP Inputs General'!$D75*'DNSP Inputs General'!R75 -> 183362.2555 | F86: =SUM('Charges Summary'!F135,'Charges Summary'!F8)*'DNSP Inputs General'!$D75*'DNSP Inputs General'!S75 -> 202956.9885 | G86: =SUM('Charges Summary'!G135,'Charges Summary'!G8)*'DNSP Inputs General'!$D75*'DNSP Inputs General'!T75 -> 221786.0961 | H86: =SUM('Charges Summary'!H135,'Charges Summary'!H8)*'DNSP Inputs General'!$D75*'DNSP Inputs General'!U75 -> 236192.1325 | K86: =D86/'Charges Summary'!D$4 -> 161563.475 | L86: =E86/'Charges Summary'!E$4 -> 176244.1932 | M86: =F86/'Charges Summary'!F$4 -> 191254.35 | N86: =G86/'Charges Summary'!G$4 -> 204900.994 | O86: =H86/'Charges Summary'!H$4 -> 213932.9172
A87: ='DNSP Inputs General'!B$76 -> Category V LED L1 Standard Output | D87: =SUM('Charges Summary'!D135,'Charges Summary'!D8)*'DNSP Inputs General'!$D76*'DNSP Inputs General'!Q76 -> 67873.62775 | E87: =SUM('Charges Summary'!E135,'Charges Summary'!E8)*'DNSP Inputs General'!$D76*'DNSP Inputs General'!R76 -> 70755.4072 | F87: =SUM('Charges Summary'!F135,'Charges Summary'!F8)*'DNSP Inputs General'!$D76*'DNSP Inputs General'!S76 -> 74599.4627 | G87: =SUM('Charges Summary'!G135,'Charges Summary'!G8)*'DNSP Inputs General'!$D76*'DNSP Inputs General'!T76 -> 78365.59481 | H87: =SUM('Charges Summary'!H135,'Charges Summary'!H8)*'DNSP Inputs General'!$D76*'DNSP Inputs General'!U76 -> 83606.36282 | K87: =D87/'Charges Summary'!D$4 -> 66543.17205 | L87: =E87/'Charges Summary'!E$4 -> 68008.70561 | M87: =F87/'Charges Summary'!F$4 -> 70298.00675 | N87: =G87/'Charges Summary'!G$4 -> 72399.43602 | O87: =H87/'Charges Summary'!H$4 -> 75727.13327
A89: Total O & M | D89: =SUM(D54:D88) -> 2261022.722 | E89: =SUM(E54:E88) -> 2164380.741 | F89: =SUM(F54:F88) -> 2065393.054 | G89: =SUM(G54:G88) -> 1978770.365 | H89: =SUM(H54:H88) -> 1905701.233 | K89: =SUM(K54:K88) -> 2216702.259 | L89: =SUM(L54:L88) -> 2080360.194 | M89: =SUM(M54:M88) -> 1946301.08 | N89: =SUM(N54:N88) -> 1828121.879 | O89: =SUM(O54:O88) -> 1726104.167
A92: Public Lighting - Capital Charge | D92: Capital Charge - Nominal | K92: Capital Charge - Real 2021 $
D93: =D$2 -> 2021/22 | E93: 2022/23 | F93: 2023/24 | G93: 2024/25 | H93: 2025/26 | K93: =K$2 -> 2021/22 | L93: 2022/23 | M93: 2023/24 | N93: 2024/25 | O93: 2025/26
A95: Unit cost
A96: ='DNSP Inputs General'!A$41 -> Mercury vapour 80 watt | D96: =SUM('Charges Summary'!D27,'Charges Summary'!D11) -> 46.83500661 | E96: =SUM('Charges Summary'!E27,'Charges Summary'!E11) -> 46.78076355 | F96: =SUM('Charges Summary'!F27,'Charges Summary'!F11) -> 52.25636981 | G96: =SUM('Charges Summary'!G27,'Charges Summary'!G11) -> 61.51710281 | H96: =SUM('Charges Summary'!H27,'Charges Summary'!H11) -> 75.55417468
A97: ='DNSP Inputs General'!A$42 -> Sodium high pressure 150 watt | D97: =SUM('Charges Summary'!D51,'Charges Summary'!D11) -> 53.53560889 | E97: =SUM('Charges Summary'!E51,'Charges Summary'!E11) -> 53.46152701 | F97: =SUM('Charges Summary'!F51,'Charges Summary'!F11) -> 53.56633992 | G97: =SUM('Charges Summary'!G51,'Charges Summary'!G11) -> 63.10477711 | H97: =SUM('Charges Summary'!H51,'Charges Summary'!H11) -> 77.56332617
A98: ='DNSP Inputs General'!A$43 -> Sodium high pressure 250 watt | D98: =SUM('Charges Summary'!D75,'Charges Summary'!D11) -> 55.34051693 | E98: =SUM('Charges Summary'!E75,'Charges Summary'!E11) -> 55.26109116 | F98: =SUM('Charges Summary'!F75,'Charges Summary'!F11) -> 54.23249127 | G98: =SUM('Charges Summary'!G75,'Charges Summary'!G11) -> 63.91214773 | H98: =SUM('Charges Summary'!H75,'Charges Summary'!H11) -> 78.58502809
A100: ='DNSP Inputs General'!A$40 -> Existing Lights
A101: ='DNSP Inputs General'!A$41 -> Mercury vapour 80 watt | D101: =D96*'DNSP Inputs General'!Q41 -> 20675.19658 | E101: =E96*'DNSP Inputs General'!R41 -> 17553.56345 | F101: =F96*'DNSP Inputs General'!S41 -> 16666.95065 | G101: =G96*'DNSP Inputs General'!T41 -> 16677.52932 | H101: =H96*'DNSP Inputs General'!U41 -> 17410.57966 | K101: =D101/'Charges Summary'!D$4 -> 20269.92234 | L101: =E101/'Charges Summary'!E$4 -> 16872.1399 | M101: =F101/'Charges Summary'!F$4 -> 15705.9229 | N101: =G101/'Charges Summary'!G$4 -> 15407.82941 | O101: =H101/'Charges Summary'!H$4 -> 15769.77208
A102: ='DNSP Inputs General'!A$42 -> Sodium high pressure 150 watt | D102: =D97*'DNSP Inputs General'!Q42 -> 435286.2581 | E102: =E97*'DNSP Inputs General'!R42 -> 369481.3274 | F102: =F97*'DNSP Inputs General'!S42 -> 314674.8505 | G102: =G97*'DNSP Inputs General'!T42 -> 315102.047 | H102: =H97*'DNSP Inputs General'!U42 -> 329203.4197 | K102: =D102/'Charges Summary'!D$4 -> 426753.7971 | L102: =E102/'Charges Summary'!E$4 -> 355138.184 | M102: =F102/'Charges Summary'!F$4 -> 296530.4838 | N102: =G102/'Charges Summary'!G$4 -> 291112.5801 | O102: =H102/'Charges Summary'!H$4 -> 298178.6361
A103: ='DNSP Inputs General'!A$43 -> Sodium high pressure 250 watt | D103: =D98*'DNSP Inputs General'!Q43 -> 116816.0836 | E103: =E98*'DNSP Inputs General'!R43 -> 99151.16286 | F103: =F98*'DNSP Inputs General'!S43 -> 82709.77449 | G103: =G98*'DNSP Inputs General'!T43 -> 82851.35574 | H103: =H98*'DNSP Inputs General'!U43 -> 86591.4368 | K103: =D103/'Charges Summary'!D$4 -> 114526.2601 | L103: =E103/'Charges Summary'!E$4 -> 95302.14739 | M103: =F103/'Charges Summary'!F$4 -> 77940.67243 | N103: =G103/'Charges Summary'!G$4 -> 76543.68532 | O103: =H103/'Charges Summary'!H$4 -> 78430.88795
A104: ='DNSP Inputs General'!A$44 -> Fluorescent 20 watt | D104: =IF('DNSP Inputs General'!$B44='DNSP Inputs General'!$A$41,D$96,IF('DNSP Inputs General'!$B44='DNSP Inputs General'!$A$42,D$97,D$98))*'DNSP Inputs General'!$D44*'DNSP Inputs General'!Q44 -> 4794.526557 | E104: =IF('DNSP Inputs General'!$B44='DNSP Inputs General'!$A$41,E$96,IF('DNSP Inputs General'!$B44='DNSP Inputs General'!$A$42,E$97,E$98))*'DNSP Inputs General'!$D44*'DNSP Inputs General'!R44 -> 4549.52498 | F104: =IF('DNSP Inputs General'!$B44='DNSP Inputs General'!$A$41,F$96,IF('DNSP Inputs General'!$B44='DNSP Inputs General'!$A$42,F$97,F$98))*'DNSP Inputs General'!$D44*'DNSP Inputs General'!S44 -> 4827.936949 | G104: =IF('DNSP Inputs General'!$B44='DNSP Inputs General'!$A$41,G$96,IF('DNSP Inputs General'!$B44='DNSP Inputs General'!$A$42,G$97,G$98))*'DNSP Inputs General'!$D44*'DNSP Inputs General'!T44 -> 0 | H104: =IF('DNSP Inputs General'!$B44='DNSP Inputs General'!$A$41,H$96,IF('DNSP Inputs General'!$B44='DNSP Inputs General'!$A$42,H$97,H$98))*'DNSP Inputs General'!$D44*'DNSP Inputs General'!U44 -> 0 | K104: =D104/'Charges Summary'!D$4 -> 4700.54447 | L104: =E104/'Charges Summary'!E$4 -> 4372.91392 | M104: =F104/'Charges Summary'!F$4 -> 4549.554809 | N104: =G104/'Charges Summary'!G$4 -> 0 | O104: =H104/'Charges Summary'!H$4 -> 0
A105: ='DNSP Inputs General'!A$45 -> Fluorescent 40 watt | D105: =IF('DNSP Inputs General'!$B45='DNSP Inputs General'!$A$41,D$96,IF('DNSP Inputs General'!$B45='DNSP Inputs General'!$A$42,D$97,D$98))*'DNSP Inputs General'!$D45*'DNSP Inputs General'!Q45 -> 655.6900925 | E105: =IF('DNSP Inputs General'!$B45='DNSP Inputs General'!$A$41,E$96,IF('DNSP Inputs General'!$B45='DNSP Inputs General'!$A$42,E$97,E$98))*'DNSP Inputs General'!$D45*'DNSP Inputs General'!R45 -> 654.9306897 | F105: =IF('DNSP Inputs General'!$B45='DNSP Inputs General'!$A$41,F$96,IF('DNSP Inputs General'!$B45='DNSP Inputs General'!$A$42,F$97,F$98))*'DNSP Inputs General'!$D45*'DNSP Inputs General'!S45 -> 0 | G105: =IF('DNSP Inputs General'!$B45='DNSP Inputs General'!$A$41,G$96,IF('DNSP Inputs General'!$B45='DNSP Inputs General'!$A$42,G$97,G$98))*'DNSP Inputs General'!$D45*'DNSP Inputs General'!T45 -> 0 | H105: =IF('DNSP Inputs General'!$B45='DNSP Inputs General'!$A$41,H$96,IF('DNSP Inputs General'!$B45='DNSP Inputs General'!$A$42,H$97,H$98))*'DNSP Inputs General'!$D45*'DNSP Inputs General'!U45 -> 0 | K105: =D105/'Charges Summary'!D$4 -> 642.8372858 | L105: =E105/'Charges Summary'!E$4 -> 629.5064961 | M105: =F105/'Charges Summary'!F$4 -> 0 | N105: =G105/'Charges Summary'!G$4 -> 0 | O105: =H105/'Charges Summary'!H$4 -> 0
A106: ='DNSP Inputs General'!A$46 -> Mercury vapour 50 watt | D106: =IF('DNSP Inputs General'!$B46='DNSP Inputs General'!$A$41,D$96,IF('DNSP Inputs General'!$B46='DNSP Inputs General'!$A$42,D$97,D$98))*'DNSP Inputs General'!$D46*'DNSP Inputs General'!Q46 -> 716.9315471 | E106: =IF('DNSP Inputs General'!$B46='DNSP Inputs General'!$A$41,E$96,IF('DNSP Inputs General'!$B46='DNSP Inputs General'!$A$42,E$97,E$98))*'DNSP Inputs General'!$D46*'DNSP Inputs General'!R46 -> 501.2708513 | F106: =IF('DNSP Inputs General'!$B46='DNSP Inputs General'!$A$41,F$96,IF('DNSP Inputs General'!$B46='DNSP Inputs General'!$A$42,F$97,F$98))*'DNSP Inputs General'!$D46*'DNSP Inputs General'!S46 -> 0 | G106: =IF('DNSP Inputs General'!$B46='DNSP Inputs General'!$A$41,G$96,IF('DNSP Inputs General'!$B46='DNSP Inputs General'!$A$42,G$97,G$98))*'DNSP Inputs General'!$D46*'DNSP Inputs General'!T46 -> 0 | H106: =IF('DNSP Inputs General'!$B46='DNSP Inputs General'!$A$41,H$96,IF('DNSP Inputs General'!$B46='DNSP Inputs General'!$A$42,H$97,H$98))*'DNSP Inputs General'!$D46*'DNSP Inputs General'!U46 -> 0 | K106: =D106/'Charges Summary'!D$4 -> 702.8782883 | L106: =E106/'Charges Summary'!E$4 -> 481.811682 | M106: =F106/'Charges Summary'!F$4 -> 0 | N106: =G106/'Charges Summary'!G$4 -> 0 | O106: =H106/'Charges Summary'!H$4 -> 0
A107: ='DNSP Inputs General'!A$47 -> Mercury vapour 125 watt | D107: =IF('DNSP Inputs General'!$B47='DNSP Inputs General'!$A$41,D$96,IF('DNSP Inputs General'!$B47='DNSP Inputs General'!$A$42,D$97,D$98))*'DNSP Inputs General'!$D47*'DNSP Inputs General'!Q47 -> 17589.82109 | E107: =IF('DNSP Inputs General'!$B47='DNSP Inputs General'!$A$41,E$96,IF('DNSP Inputs General'!$B47='DNSP Inputs General'!$A$42,E$97,E$98))*'DNSP Inputs General'!$D47*'DNSP Inputs General'!R47 -> 12298.61432 | F107: =IF('DNSP Inputs General'!$B47='DNSP Inputs General'!$A$41,F$96,IF('DNSP Inputs General'!$B47='DNSP Inputs General'!$A$42,F$97,F$98))*'DNSP Inputs General'!$D47*'DNSP Inputs General'!S47 -> 9616.701876 | G107: =IF('DNSP Inputs General'!$B47='DNSP Inputs General'!$A$41,G$96,IF('DNSP Inputs General'!$B47='DNSP Inputs General'!$A$42,G$97,G$98))*'DNSP Inputs General'!$D47*'DNSP Inputs General'!T47 -> 7924.663503 | H107: =IF('DNSP Inputs General'!$B47='DNSP Inputs General'!$A$41,H$96,IF('DNSP Inputs General'!$B47='DNSP Inputs General'!$A$42,H$97,H$98))*'DNSP Inputs General'!$D47*'DNSP Inputs General'!U47 -> 0 | K107: =D107/'Charges Summary'!D$4 -> 17245.02623 | L107: =E107/'Charges Summary'!E$4 -> 11821.18616 | M107: =F107/'Charges Summary'!F$4 -> 9062.196281 | N107: =G107/'Charges Summary'!G$4 -> 7321.340056 | O107: =H107/'Charges Summary'!H$4 -> 0
A108: ='DNSP Inputs General'!A$48 -> Mercury vapour 250 watt | D108: =IF('DNSP Inputs General'!$B48='DNSP Inputs General'!$A$41,D$96,IF('DNSP Inputs General'!$B48='DNSP Inputs General'!$A$42,D$97,D$98))*'DNSP Inputs General'!$D48*'DNSP Inputs General'!Q48 -> 4669.522138 | E108: =IF('DNSP Inputs General'!$B48='DNSP Inputs General'!$A$41,E$96,IF('DNSP Inputs General'!$B48='DNSP Inputs General'!$A$42,E$97,E$98))*'DNSP Inputs General'!$D48*'DNSP Inputs General'!R48 -> 3963.397298 | F108: =IF('DNSP Inputs General'!$B48='DNSP Inputs General'!$A$41,F$96,IF('DNSP Inputs General'!$B48='DNSP Inputs General'!$A$42,F$97,F$98))*'DNSP Inputs General'!$D48*'DNSP Inputs General'!S48 -> 0 | G108: =IF('DNSP Inputs General'!$B48='DNSP Inputs General'!$A$41,G$96,IF('DNSP Inputs General'!$B48='DNSP Inputs General'!$A$42,G$97,G$98))*'DNSP Inputs General'!$D48*'DNSP Inputs General'!T48 -> 0 | H108: =IF('DNSP Inputs General'!$B48='DNSP Inputs General'!$A$41,H$96,IF('DNSP Inputs General'!$B48='DNSP Inputs General'!$A$42,H$97,H$98))*'DNSP Inputs General'!$D48*'DNSP Inputs General'!U48 -> 0 | K108: =D108/'Charges Summary'!D$4 -> 4577.990382 | L108: =E108/'Charges Summary'!E$4 -> 3809.53952 | M108: =F108/'Charges Summary'!F$4 -> 0 | N108: =G108/'Charges Summary'!G$4 -> 0 | O108: =H108/'Charges Summary'!H$4 -> 0
A109: ='DNSP Inputs General'!A$49 -> Mercury vapour 400 watt | D109: =IF('DNSP Inputs General'!$B49='DNSP Inputs General'!$A$41,D$96,IF('DNSP Inputs General'!$B49='DNSP Inputs General'!$A$42,D$97,D$98))*'DNSP Inputs General'!$D49*'DNSP Inputs General'!Q49 -> 2120.537928 | E109: =IF('DNSP Inputs General'!$B49='DNSP Inputs General'!$A$41,E$96,IF('DNSP Inputs General'!$B49='DNSP Inputs General'!$A$42,E$97,E$98))*'DNSP Inputs General'!$D49*'DNSP Inputs General'!R49 -> 1482.246144 | F109: =IF('DNSP Inputs General'!$B49='DNSP Inputs General'!$A$41,F$96,IF('DNSP Inputs General'!$B49='DNSP Inputs General'!$A$42,F$97,F$98))*'DNSP Inputs General'!$D49*'DNSP Inputs General'!S49 -> 0 | G109: =IF('DNSP Inputs General'!$B49='DNSP Inputs General'!$A$41,G$96,IF('DNSP Inputs General'!$B49='DNSP Inputs General'!$A$42,G$97,G$98))*'DNSP Inputs General'!$D49*'DNSP Inputs General'!T49 -> 0 | H109: =IF('DNSP Inputs General'!$B49='DNSP Inputs General'!$A$41,H$96,IF('DNSP Inputs General'!$B49='DNSP Inputs General'!$A$42,H$97,H$98))*'DNSP Inputs General'!$D49*'DNSP Inputs General'!U49 -> 0 | K109: =D109/'Charges Summary'!D$4 -> 2078.971242 | L109: =E109/'Charges Summary'!E$4 -> 1424.705837 | M109: =F109/'Charges Summary'!F$4 -> 0 | N109: =G109/'Charges Summary'!G$4 -> 0 | O109: =H109/'Charges Summary'!H$4 -> 0
A110: ='DNSP Inputs General'!A$50 -> Mercury vapour 700 watt | D110: =IF('DNSP Inputs General'!$B50='DNSP Inputs General'!$A$41,D$96,IF('DNSP Inputs General'!$B50='DNSP Inputs General'!$A$42,D$97,D$98))*'DNSP Inputs General'!$D50*'DNSP Inputs General'!Q50 -> 0 | E110: =IF('DNSP Inputs General'!$B50='DNSP Inputs General'!$A$41,E$96,IF('DNSP Inputs General'!$B50='DNSP Inputs General'!$A$42,E$97,E$98))*'DNSP Inputs General'!$D50*'DNSP Inputs General'!R50 -> 0 | F110: =IF('DNSP Inputs General'!$B50='DNSP Inputs General'!$A$41,F$96,IF('DNSP Inputs General'!$B50='DNSP Inputs General'!$A$42,F$97,F$98))*'DNSP Inputs General'!$D50*'DNSP Inputs General'!S50 -> 0 | G110: =IF('DNSP Inputs General'!$B50='DNSP Inputs General'!$A$41,G$96,IF('DNSP Inputs General'!$B50='DNSP Inputs General'!$A$42,G$97,G$98))*'DNSP Inputs General'!$D50*'DNSP Inputs General'!T50 -> 0 | H110: =IF('DNSP Inputs General'!$B50='DNSP Inputs General'!$A$41,H$96,IF('DNSP Inputs General'!$B50='DNSP Inputs General'!$A$42,H$97,H$98))*'DNSP Inputs General'!$D50*'DNSP Inputs General'!U50 -> 0 | K110: =D110/'Charges Summary'!D$4 -> 0 | L110: =E110/'Charges Summary'!E$4 -> 0 | M110: =F110/'Charges Summary'!F$4 -> 0 | N110: =G110/'Charges Summary'!G$4 -> 0 | O110: =H110/'Charges Summary'!H$4 -> 0
A111: ='DNSP Inputs General'!A$51 -> Sodium high pressure 70 watt | D111: =IF('DNSP Inputs General'!$B51='DNSP Inputs General'!$A$41,D$96,IF('DNSP Inputs General'!$B51='DNSP Inputs General'!$A$42,D$97,D$98))*'DNSP Inputs General'!$D51*'DNSP Inputs General'!Q51 -> 17432.13465 | E111: =IF('DNSP Inputs General'!$B51='DNSP Inputs General'!$A$41,E$96,IF('DNSP Inputs General'!$B51='DNSP Inputs General'!$A$42,E$97,E$98))*'DNSP Inputs General'!$D51*'DNSP Inputs General'!R51 -> 14800.15343 | F111: =IF('DNSP Inputs General'!$B51='DNSP Inputs General'!$A$41,F$96,IF('DNSP Inputs General'!$B51='DNSP Inputs General'!$A$42,F$97,F$98))*'DNSP Inputs General'!$D51*'DNSP Inputs General'!S51 -> 11572.73979 | G111: =IF('DNSP Inputs General'!$B51='DNSP Inputs General'!$A$41,G$96,IF('DNSP Inputs General'!$B51='DNSP Inputs General'!$A$42,G$97,G$98))*'DNSP Inputs General'!$D51*'DNSP Inputs General'!T51 -> 9536.540678 | H111: =IF('DNSP Inputs General'!$B51='DNSP Inputs General'!$A$41,H$96,IF('DNSP Inputs General'!$B51='DNSP Inputs General'!$A$42,H$97,H$98))*'DNSP Inputs General'!$D51*'DNSP Inputs General'!U51 -> 8198.822752 | K111: =D111/'Charges Summary'!D$4 -> 17090.43075 | L111: =E111/'Charges Summary'!E$4 -> 14225.61635 | M111: =F111/'Charges Summary'!F$4 -> 10905.44771 | N111: =G111/'Charges Summary'!G$4 -> 8810.501195 | O111: =H111/'Charges Summary'!H$4 -> 7426.149426
A112: ='DNSP Inputs General'!A$52 -> Sodium high pressure 100 watt | D112: =IF('DNSP Inputs General'!$B52='DNSP Inputs General'!$A$41,D$96,IF('DNSP Inputs General'!$B52='DNSP Inputs General'!$A$42,D$97,D$98))*'DNSP Inputs General'!$D52*'DNSP Inputs General'!Q52 -> 6115.225381 | E112: =IF('DNSP Inputs General'!$B52='DNSP Inputs General'!$A$41,E$96,IF('DNSP Inputs General'!$B52='DNSP Inputs General'!$A$42,E$97,E$98))*'DNSP Inputs General'!$D52*'DNSP Inputs General'!R52 -> 5190.748729 | F112: =IF('DNSP Inputs General'!$B52='DNSP Inputs General'!$A$41,F$96,IF('DNSP Inputs General'!$B52='DNSP Inputs General'!$A$42,F$97,F$98))*'DNSP Inputs General'!$D52*'DNSP Inputs General'!S52 -> 3640.647743 | G112: =IF('DNSP Inputs General'!$B52='DNSP Inputs General'!$A$41,G$96,IF('DNSP Inputs General'!$B52='DNSP Inputs General'!$A$42,G$97,G$98))*'DNSP Inputs General'!$D52*'DNSP Inputs General'!T52 -> 0 | H112: =IF('DNSP Inputs General'!$B52='DNSP Inputs General'!$A$41,H$96,IF('DNSP Inputs General'!$B52='DNSP Inputs General'!$A$42,H$97,H$98))*'DNSP Inputs General'!$D52*'DNSP Inputs General'!U52 -> 0 | K112: =D112/'Charges Summary'!D$4 -> 5995.355017 | L112: =E112/'Charges Summary'!E$4 -> 4989.245574 | M112: =F112/'Charges Summary'!F$4 -> 3430.725508 | N112: =G112/'Charges Summary'!G$4 -> 0 | O112: =H112/'Charges Summary'!H$4 -> 0
A113: ='DNSP Inputs General'!A$53 -> Sodium high pressure 220 watt | D113: =IF('DNSP Inputs General'!$B53='DNSP Inputs General'!$A$41,D$96,IF('DNSP Inputs General'!$B53='DNSP Inputs General'!$A$42,D$97,D$98))*'DNSP Inputs General'!$D53*'DNSP Inputs General'!Q53 -> 8012.698106 | E113: =IF('DNSP Inputs General'!$B53='DNSP Inputs General'!$A$41,E$96,IF('DNSP Inputs General'!$B53='DNSP Inputs General'!$A$42,E$97,E$98))*'DNSP Inputs General'!$D53*'DNSP Inputs General'!R53 -> 6801.018409 | F113: =IF('DNSP Inputs General'!$B53='DNSP Inputs General'!$A$41,F$96,IF('DNSP Inputs General'!$B53='DNSP Inputs General'!$A$42,F$97,F$98))*'DNSP Inputs General'!$D53*'DNSP Inputs General'!S53 -> 4672.099566 | G113: =IF('DNSP Inputs General'!$B53='DNSP Inputs General'!$A$41,G$96,IF('DNSP Inputs General'!$B53='DNSP Inputs General'!$A$42,G$97,G$98))*'DNSP Inputs General'!$D53*'DNSP Inputs General'!T53 -> 0 | H113: =IF('DNSP Inputs General'!$B53='DNSP Inputs General'!$A$41,H$96,IF('DNSP Inputs General'!$B53='DNSP Inputs General'!$A$42,H$97,H$98))*'DNSP Inputs General'!$D53*'DNSP Inputs General'!U53 -> 0 | K113: =D113/'Charges Summary'!D$4 -> 7855.63357 | L113: =E113/'Charges Summary'!E$4 -> 6537.005115 | M113: =F113/'Charges Summary'!F$4 -> 4402.703116 | N113: =G113/'Charges Summary'!G$4 -> 0 | O113: =H113/'Charges Summary'!H$4 -> 0
A114: ='DNSP Inputs General'!A$54 -> Sodium high pressure 360 watt | D114: =IF('DNSP Inputs General'!$B54='DNSP Inputs General'!$A$41,D$96,IF('DNSP Inputs General'!$B54='DNSP Inputs General'!$A$42,D$97,D$98))*'DNSP Inputs General'!$D54*'DNSP Inputs General'!Q54 -> 1386.628594 | E114: =IF('DNSP Inputs General'!$B54='DNSP Inputs General'!$A$41,E$96,IF('DNSP Inputs General'!$B54='DNSP Inputs General'!$A$42,E$97,E$98))*'DNSP Inputs General'!$D54*'DNSP Inputs General'!R54 -> 1176.942707 | F114: =IF('DNSP Inputs General'!$B54='DNSP Inputs General'!$A$41,F$96,IF('DNSP Inputs General'!$B54='DNSP Inputs General'!$A$42,F$97,F$98))*'DNSP Inputs General'!$D54*'DNSP Inputs General'!S54 -> 0 | G114: =IF('DNSP Inputs General'!$B54='DNSP Inputs General'!$A$41,G$96,IF('DNSP Inputs General'!$B54='DNSP Inputs General'!$A$42,G$97,G$98))*'DNSP Inputs General'!$D54*'DNSP Inputs General'!T54 -> 0 | H114: =IF('DNSP Inputs General'!$B54='DNSP Inputs General'!$A$41,H$96,IF('DNSP Inputs General'!$B54='DNSP Inputs General'!$A$42,H$97,H$98))*'DNSP Inputs General'!$D54*'DNSP Inputs General'!U54 -> 0 | K114: =D114/'Charges Summary'!D$4 -> 1359.447965 | L114: =E114/'Charges Summary'!E$4 -> 1131.254179 | M114: =F114/'Charges Summary'!F$4 -> 0 | N114: =G114/'Charges Summary'!G$4 -> 0 | O114: =H114/'Charges Summary'!H$4 -> 0
A115: ='DNSP Inputs General'!A$55 -> Sodium high pressure 400 watt | D115: =IF('DNSP Inputs General'!$B55='DNSP Inputs General'!$A$41,D$96,IF('DNSP Inputs General'!$B55='DNSP Inputs General'!$A$42,D$97,D$98))*'DNSP Inputs General'!$D55*'DNSP Inputs General'!Q55 -> 9280.1758 | E115: =IF('DNSP Inputs General'!$B55='DNSP Inputs General'!$A$41,E$96,IF('DNSP Inputs General'!$B55='DNSP Inputs General'!$A$42,E$97,E$98))*'DNSP Inputs General'!$D55*'DNSP Inputs General'!R55 -> 7876.828207 | F115: =IF('DNSP Inputs General'!$B55='DNSP Inputs General'!$A$41,F$96,IF('DNSP Inputs General'!$B55='DNSP Inputs General'!$A$42,F$97,F$98))*'DNSP Inputs General'!$D55*'DNSP Inputs General'!S55 -> 5411.149248 | G115: =IF('DNSP Inputs General'!$B55='DNSP Inputs General'!$A$41,G$96,IF('DNSP Inputs General'!$B55='DNSP Inputs General'!$A$42,G$97,G$98))*'DNSP Inputs General'!$D55*'DNSP Inputs General'!T55 -> 4463.868678 | H115: =IF('DNSP Inputs General'!$B55='DNSP Inputs General'!$A$41,H$96,IF('DNSP Inputs General'!$B55='DNSP Inputs General'!$A$42,H$97,H$98))*'DNSP Inputs General'!$D55*'DNSP Inputs General'!U55 -> 0 | K115: =D115/'Charges Summary'!D$4 -> 9098.266225 | L115: =E115/'Charges Summary'!E$4 -> 7571.052332 | M115: =F115/'Charges Summary'!F$4 -> 5099.138689 | N115: =G115/'Charges Summary'!G$4 -> 4124.023757 | O115: =H115/'Charges Summary'!H$4 -> 0
A116: ='DNSP Inputs General'!A$56 -> Sodium high pressure 1000 watt | D116: =IF('DNSP Inputs General'!$B56='DNSP Inputs General'!$A$41,D$96,IF('DNSP Inputs General'!$B56='DNSP Inputs General'!$A$42,D$97,D$98))*'DNSP Inputs General'!$D56*'DNSP Inputs General'!Q56 -> 0 | E116: =IF('DNSP Inputs General'!$B56='DNSP Inputs General'!$A$41,E$96,IF('DNSP Inputs General'!$B56='DNSP Inputs General'!$A$42,E$97,E$98))*'DNSP Inputs General'!$D56*'DNSP Inputs General'!R56 -> 0 | F116: =IF('DNSP Inputs General'!$B56='DNSP Inputs General'!$A$41,F$96,IF('DNSP Inputs General'!$B56='DNSP Inputs General'!$A$42,F$97,F$98))*'DNSP Inputs General'!$D56*'DNSP Inputs General'!S56 -> 0 | G116: =IF('DNSP Inputs General'!$B56='DNSP Inputs General'!$A$41,G$96,IF('DNSP Inputs General'!$B56='DNSP Inputs General'!$A$42,G$97,G$98))*'DNSP Inputs General'!$D56*'DNSP Inputs General'!T56 -> 0 | H116: =IF('DNSP Inputs General'!$B56='DNSP Inputs General'!$A$41,H$96,IF('DNSP Inputs General'!$B56='DNSP Inputs General'!$A$42,H$97,H$98))*'DNSP Inputs General'!$D56*'DNSP Inputs General'!U56 -> 0 | K116: =D116/'Charges Summary'!D$4 -> 0 | L116: =E116/'Charges Summary'!E$4 -> 0 | M116: =F116/'Charges Summary'!F$4 -> 0 | N116: =G116/'Charges Summary'!G$4 -> 0 | O116: =H116/'Charges Summary'!H$4 -> 0
A117: ='DNSP Inputs General'!A$57 -> Metal halide 70 watt | D117: =IF('DNSP Inputs General'!$B57='DNSP Inputs General'!$A$41,D$96,IF('DNSP Inputs General'!$B57='DNSP Inputs General'!$A$42,D$97,D$98))*'DNSP Inputs General'!$D57*'DNSP Inputs General'!Q57 -> 50431.23727 | E117: =IF('DNSP Inputs General'!$B57='DNSP Inputs General'!$A$41,E$96,IF('DNSP Inputs General'!$B57='DNSP Inputs General'!$A$42,E$97,E$98))*'DNSP Inputs General'!$D57*'DNSP Inputs General'!R57 -> 42816.90478 | F117: =IF('DNSP Inputs General'!$B57='DNSP Inputs General'!$A$41,F$96,IF('DNSP Inputs General'!$B57='DNSP Inputs General'!$A$42,F$97,F$98))*'DNSP Inputs General'!$D57*'DNSP Inputs General'!S57 -> 33479.98383 | G117: =IF('DNSP Inputs General'!$B57='DNSP Inputs General'!$A$41,G$96,IF('DNSP Inputs General'!$B57='DNSP Inputs General'!$A$42,G$97,G$98))*'DNSP Inputs General'!$D57*'DNSP Inputs General'!T57 -> 27589.25143 | H117: =IF('DNSP Inputs General'!$B57='DNSP Inputs General'!$A$41,H$96,IF('DNSP Inputs General'!$B57='DNSP Inputs General'!$A$42,H$97,H$98))*'DNSP Inputs General'!$D57*'DNSP Inputs General'!U57 -> 0 | K117: =D117/'Charges Summary'!D$4 -> 49442.6865 | L117: =E117/'Charges Summary'!E$4 -> 41154.76665 | M117: =F117/'Charges Summary'!F$4 -> 31549.50511 | N117: =G117/'Charges Summary'!G$4 -> 25488.81621 | O117: =H117/'Charges Summary'!H$4 -> 0
A118: ='DNSP Inputs General'!A$58 -> Metal halide 100 watt | D118: =IF('DNSP Inputs General'!$B58='DNSP Inputs General'!$A$41,D$96,IF('DNSP Inputs General'!$B58='DNSP Inputs General'!$A$42,D$97,D$98))*'DNSP Inputs General'!$D58*'DNSP Inputs General'!Q58 -> 4433.054908 | E118: =IF('DNSP Inputs General'!$B58='DNSP Inputs General'!$A$41,E$96,IF('DNSP Inputs General'!$B58='DNSP Inputs General'!$A$42,E$97,E$98))*'DNSP Inputs General'!$D58*'DNSP Inputs General'!R58 -> 3762.882428 | F118: =IF('DNSP Inputs General'!$B58='DNSP Inputs General'!$A$41,F$96,IF('DNSP Inputs General'!$B58='DNSP Inputs General'!$A$42,F$97,F$98))*'DNSP Inputs General'!$D58*'DNSP Inputs General'!S58 -> 2639.18177 | G118: =IF('DNSP Inputs General'!$B58='DNSP Inputs General'!$A$41,G$96,IF('DNSP Inputs General'!$B58='DNSP Inputs General'!$A$42,G$97,G$98))*'DNSP Inputs General'!$D58*'DNSP Inputs General'!T58 -> 0 | H118: =IF('DNSP Inputs General'!$B58='DNSP Inputs General'!$A$41,H$96,IF('DNSP Inputs General'!$B58='DNSP Inputs General'!$A$42,H$97,H$98))*'DNSP Inputs General'!$D58*'DNSP Inputs General'!U58 -> 0 | K118: =D118/'Charges Summary'!D$4 -> 4346.158371 | L118: =E118/'Charges Summary'!E$4 -> 3616.808572 | M118: =F118/'Charges Summary'!F$4 -> 2487.004747 | N118: =G118/'Charges Summary'!G$4 -> 0 | O118: =H118/'Charges Summary'!H$4 -> 0
A119: ='DNSP Inputs General'!A$59 -> Metal halide 150 watt | D119: =IF('DNSP Inputs General'!$B59='DNSP Inputs General'!$A$41,D$96,IF('DNSP Inputs General'!$B59='DNSP Inputs General'!$A$42,D$97,D$98))*'DNSP Inputs General'!$D59*'DNSP Inputs General'!Q59 -> 22306.45463 | E119: =IF('DNSP Inputs General'!$B59='DNSP Inputs General'!$A$41,E$96,IF('DNSP Inputs General'!$B59='DNSP Inputs General'!$A$42,E$97,E$98))*'DNSP Inputs General'!$D59*'DNSP Inputs General'!R59 -> 18934.24916 | F119: =IF('DNSP Inputs General'!$B59='DNSP Inputs General'!$A$41,F$96,IF('DNSP Inputs General'!$B59='DNSP Inputs General'!$A$42,F$97,F$98))*'DNSP Inputs General'!$D59*'DNSP Inputs General'!S59 -> 13279.95922 | G119: =IF('DNSP Inputs General'!$B59='DNSP Inputs General'!$A$41,G$96,IF('DNSP Inputs General'!$B59='DNSP Inputs General'!$A$42,G$97,G$98))*'DNSP Inputs General'!$D59*'DNSP Inputs General'!T59 -> 10951.2841 | H119: =IF('DNSP Inputs General'!$B59='DNSP Inputs General'!$A$41,H$96,IF('DNSP Inputs General'!$B59='DNSP Inputs General'!$A$42,H$97,H$98))*'DNSP Inputs General'!$D59*'DNSP Inputs General'!U59 -> 0 | K119: =D119/'Charges Summary'!D$4 -> 21869.20454 | L119: =E119/'Charges Summary'!E$4 -> 18199.22785 | M119: =F119/'Charges Summary'!F$4 -> 12514.22771 | N119: =G119/'Charges Summary'!G$4 -> 10117.53684 | O119: =H119/'Charges Summary'!H$4 -> 0
A120: ='DNSP Inputs General'!A$60 -> Metal halide 250 watt | D120: =IF('DNSP Inputs General'!$B60='DNSP Inputs General'!$A$41,D$96,IF('DNSP Inputs General'!$B60='DNSP Inputs General'!$A$42,D$97,D$98))*'DNSP Inputs General'!$D60*'DNSP Inputs General'!Q60 -> 10075.84792 | E120: =IF('DNSP Inputs General'!$B60='DNSP Inputs General'!$A$41,E$96,IF('DNSP Inputs General'!$B60='DNSP Inputs General'!$A$42,E$97,E$98))*'DNSP Inputs General'!$D60*'DNSP Inputs General'!R60 -> 8552.178838 | F120: =IF('DNSP Inputs General'!$B60='DNSP Inputs General'!$A$41,F$96,IF('DNSP Inputs General'!$B60='DNSP Inputs General'!$A$42,F$97,F$98))*'DNSP Inputs General'!$D60*'DNSP Inputs General'!S60 -> 5875.095263 | G120: =IF('DNSP Inputs General'!$B60='DNSP Inputs General'!$A$41,G$96,IF('DNSP Inputs General'!$B60='DNSP Inputs General'!$A$42,G$97,G$98))*'DNSP Inputs General'!$D60*'DNSP Inputs General'!T60 -> 0 | H120: =IF('DNSP Inputs General'!$B60='DNSP Inputs General'!$A$41,H$96,IF('DNSP Inputs General'!$B60='DNSP Inputs General'!$A$42,H$97,H$98))*'DNSP Inputs General'!$D60*'DNSP Inputs General'!U60 -> 0 | K120: =D120/'Charges Summary'!D$4 -> 9878.341615 | L120: =E120/'Charges Summary'!E$4 -> 8220.186073 | M120: =F120/'Charges Summary'!F$4 -> 5536.333259 | N120: =G120/'Charges Summary'!G$4 -> 0 | O120: =H120/'Charges Summary'!H$4 -> 0
A121: ='DNSP Inputs General'!A$61 -> Metal halide 400 watt | D121: =IF('DNSP Inputs General'!$B61='DNSP Inputs General'!$A$41,D$96,IF('DNSP Inputs General'!$B61='DNSP Inputs General'!$A$42,D$97,D$98))*'DNSP Inputs General'!$D61*'DNSP Inputs General'!Q61 -> 1199.505704 | E121: =IF('DNSP Inputs General'!$B61='DNSP Inputs General'!$A$41,E$96,IF('DNSP Inputs General'!$B61='DNSP Inputs General'!$A$42,E$97,E$98))*'DNSP Inputs General'!$D61*'DNSP Inputs General'!R61 -> 1018.116528 | F121: =IF('DNSP Inputs General'!$B61='DNSP Inputs General'!$A$41,F$96,IF('DNSP Inputs General'!$B61='DNSP Inputs General'!$A$42,F$97,F$98))*'DNSP Inputs General'!$D61*'DNSP Inputs General'!S61 -> 699.4161027 | G121: =IF('DNSP Inputs General'!$B61='DNSP Inputs General'!$A$41,G$96,IF('DNSP Inputs General'!$B61='DNSP Inputs General'!$A$42,G$97,G$98))*'DNSP Inputs General'!$D61*'DNSP Inputs General'!T61 -> 0 | H121: =IF('DNSP Inputs General'!$B61='DNSP Inputs General'!$A$41,H$96,IF('DNSP Inputs General'!$B61='DNSP Inputs General'!$A$42,H$97,H$98))*'DNSP Inputs General'!$D61*'DNSP Inputs General'!U61 -> 0 | K121: =D121/'Charges Summary'!D$4 -> 1175.993049 | L121: =E121/'Charges Summary'!E$4 -> 978.5935802 | M121: =F121/'Charges Summary'!F$4 -> 659.0872928 | N121: =G121/'Charges Summary'!G$4 -> 0 | O121: =H121/'Charges Summary'!H$4 -> 0
A122: ='DNSP Inputs General'!A$62 -> Metal halide 1000 watt | D122: =IF('DNSP Inputs General'!$B62='DNSP Inputs General'!$A$41,D$96,IF('DNSP Inputs General'!$B62='DNSP Inputs General'!$A$42,D$97,D$98))*'DNSP Inputs General'!$D62*'DNSP Inputs General'!Q62 -> 198.1190506 | E122: =IF('DNSP Inputs General'!$B62='DNSP Inputs General'!$A$41,E$96,IF('DNSP Inputs General'!$B62='DNSP Inputs General'!$A$42,E$97,E$98))*'DNSP Inputs General'!$D62*'DNSP Inputs General'!R62 -> 296.7520595 | F122: =IF('DNSP Inputs General'!$B62='DNSP Inputs General'!$A$41,F$96,IF('DNSP Inputs General'!$B62='DNSP Inputs General'!$A$42,F$97,F$98))*'DNSP Inputs General'!$D62*'DNSP Inputs General'!S62 -> 388.3046375 | G122: =IF('DNSP Inputs General'!$B62='DNSP Inputs General'!$A$41,G$96,IF('DNSP Inputs General'!$B62='DNSP Inputs General'!$A$42,G$97,G$98))*'DNSP Inputs General'!$D62*'DNSP Inputs General'!T62 -> 572.0137222 | H122: =IF('DNSP Inputs General'!$B62='DNSP Inputs General'!$A$41,H$96,IF('DNSP Inputs General'!$B62='DNSP Inputs General'!$A$42,H$97,H$98))*'DNSP Inputs General'!$D62*'DNSP Inputs General'!U62 -> 844.0032017 | K122: =D122/'Charges Summary'!D$4 -> 194.2355302 | L122: =E122/'Charges Summary'!E$4 -> 285.2322424 | M122: =F122/'Charges Summary'!F$4 -> 365.914727 | N122: =G122/'Charges Summary'!G$4 -> 528.4649594 | O122: =H122/'Charges Summary'!H$4 -> 764.4626651
A125: ='DNSP Inputs General'!A$67 -> Energy Efficient Lights
A126: ='DNSP Inputs General'!A$68 -> T5 2X14W | D126: =SUM('Charges Summary'!D$101,'Charges Summary'!D$11)*'DNSP Inputs General'!$D68*'DNSP Inputs General'!Q68 -> 171342.9802 | E126: =SUM('Charges Summary'!E$101,'Charges Summary'!E$11)*'DNSP Inputs General'!$D68*'DNSP Inputs General'!R68 -> 144544.5562 | F126: =SUM('Charges Summary'!F$101,'Charges Summary'!F$11)*'DNSP Inputs General'!$D68*'DNSP Inputs General'!S68 -> 121973.4006 | G126: =SUM('Charges Summary'!G$101,'Charges Summary'!G$11)*'DNSP Inputs General'!$D68*'DNSP Inputs General'!T68 -> 103297.825 | H126: =SUM('Charges Summary'!H$101,'Charges Summary'!H$11)*'DNSP Inputs General'!$D68*'DNSP Inputs General'!U68 -> 87849.77623 | K126: =D126/'Charges Summary'!D$4 -> 167984.323 | L126: =E126/'Charges Summary'!E$4 -> 138933.3842 | M126: =F126/'Charges Summary'!F$4 -> 114940.3311 | N126: =G126/'Charges Summary'!G$4 -> 95433.51633 | O126: =H126/'Charges Summary'!H$4 -> 79570.63898
A127: ='DNSP Inputs General'!B$69 -> T5 2X14W | D127: =SUM('Charges Summary'!D$101,'Charges Summary'!D$11)*'DNSP Inputs General'!$D69*'DNSP Inputs General'!Q69 -> 23351.11953 | E127: =SUM('Charges Summary'!E$101,'Charges Summary'!E$11)*'DNSP Inputs General'!$D69*'DNSP Inputs General'!R69 -> 19698.9524 | F127: =SUM('Charges Summary'!F$101,'Charges Summary'!F$11)*'DNSP Inputs General'!$D69*'DNSP Inputs General'!S69 -> 16622.88968 | G127: =SUM('Charges Summary'!G$101,'Charges Summary'!G$11)*'DNSP Inputs General'!$D69*'DNSP Inputs General'!T69 -> 14077.72794 | H127: =SUM('Charges Summary'!H$101,'Charges Summary'!H$11)*'DNSP Inputs General'!$D69*'DNSP Inputs General'!U69 -> 11972.42293 | K127: =D127/'Charges Summary'!D$4 -> 22893.39197 | L127: =E127/'Charges Summary'!E$4 -> 18934.24556 | M127: =F127/'Charges Summary'!F$4 -> 15664.40252 | N127: =G127/'Charges Summary'!G$4 -> 13005.95709 | O127: =H127/'Charges Summary'!H$4 -> 10844.11804
A128: ='DNSP Inputs General'!B$70 -> T5 2X14W | D128: =SUM('Charges Summary'!D$101,'Charges Summary'!D$11)*'DNSP Inputs General'!$D70*'DNSP Inputs General'!Q70 -> 7975.671773 | E128: =SUM('Charges Summary'!E$101,'Charges Summary'!E$11)*'DNSP Inputs General'!$D70*'DNSP Inputs General'!R70 -> 6728.258934 | F128: =SUM('Charges Summary'!F$101,'Charges Summary'!F$11)*'DNSP Inputs General'!$D70*'DNSP Inputs General'!S70 -> 5677.616949 | G128: =SUM('Charges Summary'!G$101,'Charges Summary'!G$11)*'DNSP Inputs General'!$D70*'DNSP Inputs General'!T70 -> 4808.306394 | H128: =SUM('Charges Summary'!H$101,'Charges Summary'!H$11)*'DNSP Inputs General'!$D70*'DNSP Inputs General'!U70 -> 4089.230734 | K128: =D128/'Charges Summary'!D$4 -> 7819.333026 | L128: =E128/'Charges Summary'!E$4 -> 6467.070139 | M128: =F128/'Charges Summary'!F$4 -> 5350.24168 | N128: =G128/'Charges Summary'!G$4 -> 4442.238612 | O128: =H128/'Charges Summary'!H$4 -> 3703.853515
A129: ='DNSP Inputs General'!B$71 -> T5 2X14W | D129: =SUM('Charges Summary'!D$101,'Charges Summary'!D$11)*'DNSP Inputs General'!$D71*'DNSP Inputs General'!Q71 -> 4477.358393 | E129: =SUM('Charges Summary'!E$101,'Charges Summary'!E$11)*'DNSP Inputs General'!$D71*'DNSP Inputs General'!R71 -> 3110.544345 | F129: =SUM('Charges Summary'!F$101,'Charges Summary'!F$11)*'DNSP Inputs General'!$D71*'DNSP Inputs General'!S71 -> 2161.617778 | G129: =SUM('Charges Summary'!G$101,'Charges Summary'!G$11)*'DNSP Inputs General'!$D71*'DNSP Inputs General'!T71 -> 1830.648435 | H129: =SUM('Charges Summary'!H$101,'Charges Summary'!H$11)*'DNSP Inputs General'!$D71*'DNSP Inputs General'!U71 -> 1556.87746 | K129: =D129/'Charges Summary'!D$4 -> 4389.593422 | L129: =E129/'Charges Summary'!E$4 -> 2989.794039 | M129: =F129/'Charges Summary'!F$4 -> 2036.977421 | N129: =G129/'Charges Summary'!G$4 -> 1691.276823 | O129: =H129/'Charges Summary'!H$4 -> 1410.154238
A130: ='DNSP Inputs General'!B$72 -> Category P LED 18 Watt | D130: =SUM('Charges Summary'!D$119,'Charges Summary'!D$11)*'DNSP Inputs General'!$D72*'DNSP Inputs General'!Q72 -> 272961.6665 | E130: =SUM('Charges Summary'!E$119,'Charges Summary'!E$11)*'DNSP Inputs General'!$D72*'DNSP Inputs General'!R72 -> 303850.0211 | F130: =SUM('Charges Summary'!F$119,'Charges Summary'!F$11)*'DNSP Inputs General'!$D72*'DNSP Inputs General'!S72 -> 329462.8868 | G130: =SUM('Charges Summary'!G$119,'Charges Summary'!G$11)*'DNSP Inputs General'!$D72*'DNSP Inputs General'!T72 -> 351909.7274 | H130: =SUM('Charges Summary'!H$119,'Charges Summary'!H$11)*'DNSP Inputs General'!$D72*'DNSP Inputs General'!U72 -> 371502.2445 | K130: =D130/'Charges Summary'!D$4 -> 267611.0846 | L130: =E130/'Charges Summary'!E$4 -> 292054.6634 | M130: =F130/'Charges Summary'!F$4 -> 310465.8318 | N130: =G130/'Charges Summary'!G$4 -> 325118.0043 | O130: =H130/'Charges Summary'!H$4 -> 336491.1357
A131: ='DNSP Inputs General'!B$73 -> Category P LED 18 Watt | D131: =SUM('Charges Summary'!D$119,'Charges Summary'!D$11)*'DNSP Inputs General'!$D73*'DNSP Inputs General'!Q73 -> 24513.7245 | E131: =SUM('Charges Summary'!E$119,'Charges Summary'!E$11)*'DNSP Inputs General'!$D73*'DNSP Inputs General'!R73 -> 27939.00556 | F131: =SUM('Charges Summary'!F$119,'Charges Summary'!F$11)*'DNSP Inputs General'!$D73*'DNSP Inputs General'!S73 -> 32541.9851 | G131: =SUM('Charges Summary'!G$119,'Charges Summary'!G$11)*'DNSP Inputs General'!$D73*'DNSP Inputs General'!T73 -> 37008.11173 | H131: =SUM('Charges Summary'!H$119,'Charges Summary'!H$11)*'DNSP Inputs General'!$D73*'DNSP Inputs General'!U73 -> 42696.14038 | K131: =D131/'Charges Summary'!D$4 -> 24033.20761 | L131: =E131/'Charges Summary'!E$4 -> 26854.42257 | M131: =F131/'Charges Summary'!F$4 -> 30665.59202 | N131: =G131/'Charges Summary'!G$4 -> 34190.59632 | O131: =H131/'Charges Summary'!H$4 -> 38672.37138
A132: ='DNSP Inputs General'!B$74 -> Category V LED L1 Standard Output | D132: =SUM('Charges Summary'!D$137,'Charges Summary'!D$11)*'DNSP Inputs General'!$D74*'DNSP Inputs General'!Q74 -> 183879.4826 | E132: =SUM('Charges Summary'!E$137,'Charges Summary'!E$11)*'DNSP Inputs General'!$D74*'DNSP Inputs General'!R74 -> 216875.2304 | F132: =SUM('Charges Summary'!F$137,'Charges Summary'!F$11)*'DNSP Inputs General'!$D74*'DNSP Inputs General'!S74 -> 247136.5725 | G132: =SUM('Charges Summary'!G$137,'Charges Summary'!G$11)*'DNSP Inputs General'!$D74*'DNSP Inputs General'!T74 -> 272277.9927 | H132: =SUM('Charges Summary'!H$137,'Charges Summary'!H$11)*'DNSP Inputs General'!$D74*'DNSP Inputs General'!U74 -> 294331.2995 | K132: =D132/'Charges Summary'!D$4 -> 180275.0855 | L132: =E132/'Charges Summary'!E$4 -> 208456.2054 | M132: =F132/'Charges Summary'!F$4 -> 232886.5091 | N132: =G132/'Charges Summary'!G$4 -> 251548.8227 | O132: =H132/'Charges Summary'!H$4 -> 266592.9337
A133: ='DNSP Inputs General'!B$75 -> Category V LED L1 Standard Output | D133: =SUM('Charges Summary'!D$137,'Charges Summary'!D$11)*'DNSP Inputs General'!$D75*'DNSP Inputs General'!Q75 -> 126203.2145 | E133: =SUM('Charges Summary'!E$137,'Charges Summary'!E$11)*'DNSP Inputs General'!$D75*'DNSP Inputs General'!R75 -> 135351.7391 | F133: =SUM('Charges Summary'!F$137,'Charges Summary'!F$11)*'DNSP Inputs General'!$D75*'DNSP Inputs General'!S75 -> 144342.4824 | G133: =SUM('Charges Summary'!G$137,'Charges Summary'!G$11)*'DNSP Inputs General'!$D75*'DNSP Inputs General'!T75 -> 152600.2449 | H133: =SUM('Charges Summary'!H$137,'Charges Summary'!H$11)*'DNSP Inputs General'!$D75*'DNSP Inputs General'!U75 -> 157860.6484 | K133: =D133/'Charges Summary'!D$4 -> 123729.3849 | L133: =E133/'Charges Summary'!E$4 -> 130097.4292 | M133: =F133/'Charges Summary'!F$4 -> 136019.5964 | N133: =G133/'Charges Summary'!G$4 -> 140982.426 | O133: =H133/'Charges Summary'!H$4 -> 142983.5476
A134: ='DNSP Inputs General'!B$76 -> Category V LED L1 Standard Output | D134: =SUM('Charges Summary'!D$137,'Charges Summary'!D$11)*'DNSP Inputs General'!$D76*'DNSP Inputs General'!Q76 -> 51979.33639 | E134: =SUM('Charges Summary'!E$137,'Charges Summary'!E$11)*'DNSP Inputs General'!$D76*'DNSP Inputs General'!R76 -> 52229.21908 | F134: =SUM('Charges Summary'!F$137,'Charges Summary'!F$11)*'DNSP Inputs General'!$D76*'DNSP Inputs General'!S76 -> 53054.94387 | G134: =SUM('Charges Summary'!G$137,'Charges Summary'!G$11)*'DNSP Inputs General'!$D76*'DNSP Inputs General'!T76 -> 53919.5611 | H134: =SUM('Charges Summary'!H$137,'Charges Summary'!H$11)*'DNSP Inputs General'!$D76*'DNSP Inputs General'!U76 -> 55878.89192 | K134: =D134/'Charges Summary'!D$4 -> 50960.43985 | L134: =E134/'Charges Summary'!E$4 -> 50201.69801 | M134: =F134/'Charges Summary'!F$4 -> 49995.75959 | N134: =G134/'Charges Summary'!G$4 -> 49814.5369 | O134: =H134/'Charges Summary'!H$4 -> 50612.75425
A136: Total Capital Charge | D136: =SUM(D101:D135) -> 1600880.204 | E136: =SUM(E101:E135) -> 1531190.34 | F136: =SUM(F101:F135) -> 1463129.187 | G136: =SUM(G101:G135) -> 1467398.7 | H136: =SUM(H101:H135) -> 1469985.794 | K136: =SUM(K101:K135) -> 1569499.825 | L136: =SUM(L101:L135) -> 1471750.036 | M136: =SUM(M101:M135) -> 1378764.16 | N136: =SUM(N101:N135) -> 1355682.153 | O136: =SUM(O101:O135) -> 1331451.416
A138: Check | C138: =SUM(D138:O138) -> 3.259629011e-09 | D138: =ABS(D42-SUM(D89,D136)) -> 0 | E138: =ABS(E42-SUM(E89,E136)) -> 4.656612873e-10 | F138: =ABS(F42-SUM(F89,F136)) -> 4.656612873e-10 | G138: =ABS(G42-SUM(G89,G136)) -> 4.656612873e-10 | H138: =ABS(H42-SUM(H89,H136)) -> 0 | K138: =ABS(K42-SUM(K89,K136)) -> 4.656612873e-10 | L138: =ABS(L42-SUM(L89,L136)) -> 9.313225746e-10 | M138: =ABS(M42-SUM(M89,M136)) -> 4.656612873e-10 | N138: =ABS(N42-SUM(N89,N136)) -> 0 | O138: =ABS(O42-SUM(O89,O136)) -> 0
A140: Public Lighting - Capital Expenditure | D140: Forecast Capital Expenditure - Nominal | K140: Forecast Capital Expenditure - Real 2021 $
D141: =D$2 -> 2021/22 | E141: 2022/23 | F141: 2023/24 | G141: 2024/25 | H141: 2025/26 | K141: =K$2 -> 2021/22 | L141: 2022/23 | M141: 2023/24 | N141: 2024/25 | O141: 2025/26
A143: Total Capital Expenditure | D143: =K143*'Charges Summary'!D$4 -> 545533.4069 | E143: =L143*'Charges Summary'!E$4 -> 538243.258 | F143: =M143*'Charges Summary'!F$4 -> 530473.6614 | G143: =N143*'Charges Summary'!G$4 -> 524458.2106 | H143: =O143*'Charges Summary'!H$4 -> 520987.2783 | K143: ='DNSP Inputs General'!Q14 -> 534839.8864 | L143: ='DNSP Inputs General'!R14 -> 517348.8321 | M143: ='DNSP Inputs General'!S14 -> 499886.1879 | N143: ='DNSP Inputs General'!T14 -> 484529.9619 | O143: ='DNSP Inputs General'!U14 -> 471888.4033
A144: Check | C144: =SUM(D144:H144) -> 1.746229827e-10 | D144: =ABS(D143-D151) -> 0 | E144: =ABS(E143-E151) -> 0 | F144: =ABS(F143-F151) -> 1.164153218e-10 | G144: =ABS(G143-G151) -> 0 | H144: =ABS(H143-H151) -> 5.820766091e-11
A147: Public Lighting - RAB | D147: RAB - Historical Cost ($)
D148: =D$2 -> 2021/22 | E148: 2022/23 | F148: 2023/24 | G148: 2024/25 | H148: 2025/26
A150: Opening RAB | D150: ='Total RAB'!T157 -> 12575659.83 | E150: =D153 -> 12138838.69 | F150: =E153 -> 11743593.27 | G150: =F153 -> 11389895.74 | H150: 11007490.93
A151: Capex | D151: ='Total RAB'!T158 -> 545533.4069 | E151: ='Total RAB'!U158 -> 538243.258 | F151: ='Total RAB'!V158 -> 530473.6614 | G151: ='Total RAB'!W158 -> 524458.2106 | H151: ='Total RAB'!X158 -> 520987.2783
A152: Depreciation | D152: ='Total RAB'!T159 -> 982354.5482 | E152: ='Total RAB'!U159 -> 933488.6764 | F152: ='Total RAB'!V159 -> 884171.1945 | G152: ='Total RAB'!W159 -> 906863.018 | H152: ='Total RAB'!X159 -> 929237.7099
A153: Closing RAB | D153: =D150+D151-D152 -> 12138838.69 | E153: =E150+E151-E152 -> 11743593.27 | F153: =F150+F151-F152 -> 11389895.74 | G153: =G150+G151-G152 -> 11007490.93 | H153: =H150+H151-H152 -> 10599240.5
A155: Average RAB | D155: =SUM(D150,D153)/2 -> 12357249.26 | E155: =SUM(E150,E153)/2 -> 11941215.98 | F155: =SUM(F150,F153)/2 -> 11566744.5 | G155: =SUM(G150,G153)/2 -> 11198693.33 | H155: =SUM(H150,H153)/2 -> 10803365.71
A157: =WACC!A$8 -> Nominal Pre Tax WACC | D157: =WACC!E$8 -> 0.05005366832 | E157: =WACC!F$8 -> 0.05005366832 | F157: =WACC!G$8 -> 0.05005366832 | G157: =WACC!H$8 -> 0.05005366832 | H157: =WACC!I$8 -> 0.05005366832
A159: Capital Charge | D159: Capital Charge - Nominal
D160: =D$2 -> 2021/22 | E160: 2022/23 | F160: 2023/24 | G160: 2024/25 | H160: 2025/26
A162: Depreciation | D162: =D152 -> 982354.5482 | E162: =E152 -> 933488.6764 | F162: =F152 -> 884171.1945 | G162: =G152 -> 906863.018 | H162: =H152 -> 929237.7099
A163: Return | D163: =D157*D155 -> 618525.6557 | E163: =E157*E155 -> 597701.6639 | F163: =F157*F155 -> 578957.9929 | G163: =G157*G155 -> 560535.6817 | H163: =H157*H155 -> 540748.0842
D165: =SUM(D162:D164) -> 1600880.204 | E165: =SUM(E162:E164) -> 1531190.34 | F165: =SUM(F162:F164) -> 1463129.187 | G165: =SUM(G162:G164) -> 1467398.7 | H165: =SUM(H162:H164) -> 1469985.794
A167: Check | C167: =SUM(D167:H167) -> 9.313225746e-10 | D167: =ABS(D136-D165)*IF('DNSP Inputs General'!Q80=0,0,1) -> 2.328306437e-10 | E167: =ABS(E136-E165)*IF('DNSP Inputs General'!R80=0,0,1) -> 2.328306437e-10 | F167: =ABS(F136-F165)*IF('DNSP Inputs General'!S80=0,0,1) -> 2.328306437e-10 | G167: =ABS(G136-G165)*IF('DNSP Inputs General'!T80=0,0,1) -> 2.328306437e-10 | H167: =ABS(H136-H165)*IF('DNSP Inputs General'!U80=0,0,1) -> 0

Sheet Charges Summary
A1: ='DNSP Inputs O & M'!$A$3 -> Citipower | D1: ='DNSP Inputs General'!Q$2 -> 2021/22 | E1: ='DNSP Inputs General'!R$2 -> 2022/23 | F1: ='DNSP Inputs General'!S$2 -> 2023/24 | G1: ='DNSP Inputs General'!T$2 -> 2024/25 | H1: ='DNSP Inputs General'!U$2 -> 2025/26
A2: Nominal $
A4: ='Total RAB'!A20 -> CPI Index | C4: 1 | D4: =(1+WACC!E6) -> 1.019993873 | E4: =D4*(1+WACC!F6) -> 1.0403875 | F4: =E4*(1+WACC!G6) -> 1.061188875 | G4: =F4*(1+WACC!H6) -> 1.08240615 | H4: =G4*(1+WACC!I6) -> 1.104047641
A6: ='DNSP Inputs General'!$A$6 -> Poles and Brackets | D6: =D$1 -> 2021/22 | E6: =E$1 -> 2022/23 | F6: 2023/24 | G6: 2024/25 | H6: 2025/26
A7: O & M
A8: ='O & M 2021-2025'!A$10 -> Dedicated poles - inspection | D8: ='O & M 2021-2025'!$B$10*D$4 -> 0.8078841521 | E8: ='O & M 2021-2025'!$J$10*E$4 -> 0.8284371845 | F8: ='O & M 2021-2025'!$R$10*F$4 -> 0.8491537208 | G8: ='O & M 2021-2025'!$Z$10*G$4 -> 0.8712583717 | H8: ='O & M 2021-2025'!$AH$10*H$4 -> 0.8955141668
A10: Capital Charge
A11: Depreciation and Return | D11: ='Depn & WACC Post 2004'!H$84 -> 8.793076502 | E11: ='Depn & WACC Post 2004'!H$137 -> 8.851466172 | F11: ='Depn & WACC Post 2004'!H$190 -> 8.924683022 | G11: ='Depn & WACC Post 2004'!H$243 -> 8.999411961 | H11: ='Depn & WACC Post 2004'!H$296 -> 9.094701857
A13: Total Charge | D13: =SUM(D8,D11) -> 9.600960654 | E13: =SUM(E8,E11) -> 9.679903357 | F13: =SUM(F8,F11) -> 9.773836743 | G13: =SUM(G8,G11) -> 9.870670333 | H13: =SUM(H8,H11) -> 9.990216024
A18: ='DNSP Inputs General'!$A$8 -> Existing Lights
A20: ='O & M 2021-2025'!$A$8 -> MV80 | D20: =D$1 -> 2021/22 | E20: =E$1 -> 2022/23 | F20: 2023/24 | G20: 2024/25 | H20: 2025/26
A22: O & M Charge
A23: ='O & M 2021-2025'!A$9 -> Bulk change & repairs | D23: ='O & M 2021-2025'!$B$9*D$4 -> 42.00674432 | E23: ='O & M 2021-2025'!$J$9*E$4 -> 43.17504098 | F23: ='O & M 2021-2025'!$R$9*F$4 -> 44.23321651 | G23: ='O & M 2021-2025'!$Z$9*G$4 -> 45.33861164 | H23: ='O & M 2021-2025'!$AH$9*H$4 -> 46.5113233
A24: ='O & M 2021-2025'!A$11 -> Other costs | D24: ='O & M 2021-2025'!$B$11*D$4 -> 3.698323009 | E24: ='O & M 2021-2025'!$J$11*E$4 -> 3.749573011 | F24: ='O & M 2021-2025'!$R$11*F$4 -> 3.813928607 | G24: ='O & M 2021-2025'!$Z$11*G$4 -> 3.88452679 | H24: ='O & M 2021-2025'!$AH$11*H$4 -> 3.958646207
D25: =SUM(D23:D24) -> 45.70506732 | E25: =SUM(E23:E24) -> 46.92461399 | F25: =SUM(F23:F24) -> 48.04714511 | G25: =SUM(G23:G24) -> 49.22313843 | H25: =SUM(H23:H24) -> 50.46996951
A26: Capital Charge
A27: Depreciation and Return | D27: ='Depn & WACC Post 2004'!H$40 -> 38.04193011 | E27: ='Depn & WACC Post 2004'!H$93 -> 37.92929738 | F27: ='Depn & WACC Post 2004'!H$146 -> 43.33168679 | G27: ='Depn & WACC Post 2004'!H$199 -> 52.51769085 | H27: ='Depn & WACC Post 2004'!H$252 -> 66.45947283
A29: Poles & Brackets Charge | D29: =D$13 -> 9.600960654 | E29: =E$13 -> 9.679903357 | F29: =F$13 -> 9.773836743 | G29: =G$13 -> 9.870670333 | H29: =H$13 -> 9.990216024
A31: Total Charge | D31: =SUM(D25,D27,D29) -> 93.34795808 | E31: =SUM(E25,E27,E29) -> 94.53381472 | F31: =SUM(F25,F27,F29) -> 101.1526686 | G31: =SUM(G25,G27,G29) -> 111.6114996 | H31: =SUM(H25,H27,H29) -> 126.9196584
A33: WDV RAB - MV 80 Luminaire
A34: RAB WDV | D34: =MAX(0,'Depn & WACC Post 2004'!$I$8) -> 156.5256199 | E34: =MAX(0,'Depn & WACC Post 2004'!I$40) -> 146.3543401 | F34: =MAX(0,'Depn & WACC Post 2004'!I$93) -> 142.4529481 | G34: =MAX(0,'Depn & WACC Post 2004'!I$146) -> 163.0563333 | H34: =MAX(0,'Depn & WACC Post 2004'!I$199) -> 162.0903949
A36: Avoided Costs - MV 80 O & M
A37: Materials & labour - bulk lamp change | D37: ='O & M 2021-2025'!$G$9*D$4 -> -25.56251927 | E37: ='O & M 2021-2025'!$O$9*E$4 -> -26.16368073 | F37: ='O & M 2021-2025'!$W$9*F$4 -> -26.77179718 | G37: ='O & M 2021-2025'!$AE$9*G$4 -> -27.41200677 | H37: ='O & M 2021-2025'!$AM$9*H$4 -> -28.10000117
A38: Materials & Labour - repair of faults | D38: ='O & M 2021-2025'!$G$10*D$4 -> -10.41206791 | E38: ='O & M 2021-2025'!$O$10*E$4 -> -10.72909621 | F38: ='O & M 2021-2025'!$W$10*F$4 -> -11.00033731 | G38: ='O & M 2021-2025'!$AE$10*G$4 -> -11.28244296 | H38: ='O & M 2021-2025'!$AM$10*H$4 -> -11.57952903
D39: =SUM(D37:D38) -> -35.97458718 | E39: =SUM(E37:E38) -> -36.89277694 | F39: =SUM(F37:F38) -> -37.77213449 | G39: =SUM(G37:G38) -> -38.69444973 | H39: =SUM(H37:H38) -> -39.6795302
A44: ='O & M 2021-2025'!$A$14 -> S-HP 150 | D44: =D$1 -> 2021/22 | E44: =E$1 -> 2022/23 | F44: 2023/24 | G44: 2024/25 | H44: 2025/26
A46: O & M Charge
A47: ='O & M 2021-2025'!A$15 -> Patrols and repairs | D47: ='O & M 2021-2025'!$B$15*D$4 -> 80.11503576 | E47: ='O & M 2021-2025'!$J$15*E$4 -> 82.02077106 | F47: ='O & M 2021-2025'!$R$15*F$4 -> 84.00573143 | G47: ='O & M 2021-2025'!$Z$15*G$4 -> 86.09540711 | H47: ='O & M 2021-2025'!$AH$15*H$4 -> 88.32977279
A48: ='O & M 2021-2025'!A$17 -> Other costs | D48: ='O & M 2021-2025'!$B$17*D$4 -> 3.698323009 | E48: ='O & M 2021-2025'!$J$17*E$4 -> 3.749573011 | F48: ='O & M 2021-2025'!$R$17*F$4 -> 3.813928607 | G48: ='O & M 2021-2025'!$Z$17*G$4 -> 3.88452679 | H48: ='O & M 2021-2025'!$AH$17*H$4 -> 3.958646207
D49: =SUM(D47:D48) -> 83.81335877 | E49: =SUM(E47:E48) -> 85.77034407 | F49: =SUM(F47:F48) -> 87.81966004 | G49: =SUM(G47:G48) -> 89.9799339 | H49: =SUM(H47:H48) -> 92.288419
A50: Capital Charge
A51: Depreciation and Return | D51: ='Depn & WACC Post 2004'!H$41 -> 44.74253239 | E51: ='Depn & WACC Post 2004'!H$94 -> 44.61006084 | F51: ='Depn & WACC Post 2004'!H$147 -> 44.6416569 | G51: ='Depn & WACC Post 2004'!H$200 -> 54.10536515 | H51: ='Depn & WACC Post 2004'!H$253 -> 68.46862432
A53: Poles & Brackets Charge | D53: =D$13 -> 9.600960654 | E53: =E$13 -> 9.679903357 | F53: =F$13 -> 9.773836743 | G53: =G$13 -> 9.870670333 | H53: =H$13 -> 9.990216024
A55: Total Charge | D55: =SUM(D49,D51,D53) -> 138.1568518 | E55: =SUM(E49,E51,E53) -> 140.0603083 | F55: =SUM(F49,F51,F53) -> 142.2351537 | G55: =SUM(G49,G51,G53) -> 153.9559694 | H55: =SUM(H49,H51,H53) -> 170.7472593
A57: WDV RAB - S-HP 150 Luminaire
A58: RAB WDV | D58: =MAX(0,'Depn & WACC Post 2004'!$I$9) -> 184.0956176 | E58: =MAX(0,'Depn & WACC Post 2004'!I$41) -> 172.1327962 | F58: =MAX(0,'Depn & WACC Post 2004'!I$94) -> 167.5442236 | G58: =MAX(0,'Depn & WACC Post 2004'!I$147) -> 167.9857265 | H58: =MAX(0,'Depn & WACC Post 2004'!I$200) -> 166.9905866
A60: Avoided Costs - S-HP 150
A61: Materials & labour - bulk lamp change
A62: Materials & Labour - repair of faults | D62: ='O & M 2021-2025'!G16*D4 -> -28.37686215 | E62: ='O & M 2021-2025'!O16*E4 -> -29.04508258 | F62: ='O & M 2021-2025'!W16*F4 -> -29.72099208 | G62: ='O & M 2021-2025'!AE16*G4 -> -30.43273815 | H62: ='O & M 2021-2025'!AM16*H4 -> -31.1978902
D63: =SUM(D61:D62) -> -28.37686215 | E63: =SUM(E61:E62) -> -29.04508258 | F63: =SUM(F61:F62) -> -29.72099208 | G63: =SUM(G61:G62) -> -30.43273815 | H63: =SUM(H61:H62) -> -31.1978902
A68: ='O & M 2021-2025'!$A$20 -> S-HP 250 | D68: =D$1 -> 2021/22 | E68: =E$1 -> 2022/23 | F68: 2023/24 | G68: 2024/25 | H68: 2025/26
A70: O & M Charge
A71: ='O & M 2021-2025'!A$21 -> Patrols and repairs | D71: ='O & M 2021-2025'!$B$21*D$4 -> 80.67310363 | E71: ='O & M 2021-2025'!$J$21*E$4 -> 82.5854028 | F71: ='O & M 2021-2025'!$R$21*F$4 -> 84.58878163 | G71: ='O & M 2021-2025'!$Z$21*G$4 -> 86.698859 | H71: ='O & M 2021-2025'!$AH$21*H$4 -> 88.95446502
A72: ='O & M 2021-2025'!A$23 -> Other costs | D72: ='O & M 2021-2025'!$B$23*D$4 -> 3.698323009 | E72: ='O & M 2021-2025'!$J$23*E$4 -> 3.749573011 | F72: ='O & M 2021-2025'!$R$23*F$4 -> 3.813928607 | G72: ='O & M 2021-2025'!$Z$23*G$4 -> 3.88452679 | H72: ='O & M 2021-2025'!$AH$23*H$4 -> 3.958646207
D73: =SUM(D71:D72) -> 84.37142664 | E73: =SUM(E71:E72) -> 86.33497581 | F73: =SUM(F71:F72) -> 88.40271024 | G73: =SUM(G71:G72) -> 90.58338579 | H73: =SUM(H71:H72) -> 92.91311123
A74: Capital Charge
A75: Depreciation and Return | D75: ='Depn & WACC Post 2004'!H$42 -> 46.54744043 | E75: ='Depn & WACC Post 2004'!H$95 -> 46.40962499 | F75: ='Depn & WACC Post 2004'!H$148 -> 45.30780825 | G75: ='Depn & WACC Post 2004'!H$201 -> 54.91273577 | H75: ='Depn & WACC Post 2004'!H$254 -> 69.49032624
A77: Poles & Brackets Charge | D77: =D$13 -> 9.600960654 | E77: =E$13 -> 9.679903357 | F77: =F$13 -> 9.773836743 | G77: =G$13 -> 9.870670333 | H77: =H$13 -> 9.990216024
A79: Total Charge | D79: =SUM(D73,D75,D77) -> 140.5198277 | E79: =SUM(E73,E75,E77) -> 142.4245042 | F79: =SUM(F73,F75,F77) -> 143.4843552 | G79: =SUM(G73,G75,G77) -> 155.3667919 | H79: =SUM(H73,H75,H77) -> 172.3936535
A81: WDV RAB - S-HP 250 Luminaire
A82: RAB WDV | D82: =MAX(0,'Depn & WACC Post 2004'!$I$10) -> 191.5220113 | E82: =MAX(0,'Depn & WACC Post 2004'!I$42) -> 179.0766112 | F82: =MAX(0,'Depn & WACC Post 2004'!I$95) -> 174.3029362 | G82: =MAX(0,'Depn & WACC Post 2004'!I$148) -> 170.4924417 | H82: =MAX(0,'Depn & WACC Post 2004'!I$201) -> 169.4824521
A84: Avoided Costs - S-HP 250
A85: Materials & labour - bulk lamp change
A86: Materials & Labour - repair of faults | D86: ='O & M 2021-2025'!G22*D4 -> -28.37686215 | E86: ='O & M 2021-2025'!O22*E4 -> -29.04508258 | F86: ='O & M 2021-2025'!W22*F4 -> -29.72099208 | G86: ='O & M 2021-2025'!AE22*G4 -> -30.43273815 | H86: ='O & M 2021-2025'!AM22*H4 -> -31.1978902
D87: =SUM(D85:D86) -> -28.37686215 | E87: =SUM(E85:E86) -> -29.04508258 | F87: =SUM(F85:F86) -> -29.72099208 | G87: =SUM(G85:G86) -> -30.43273815 | H87: =SUM(H85:H86) -> -31.1978902
A92: ='DNSP Inputs General'!$A$11 -> Energy Efficient Lights
A94: ='O & M 2021-2025'!$A$26 -> T5 (2 X 14W) | D94: =D$1 -> 2021/22 | E94: =E$1 -> 2022/23 | F94: 2023/24 | G94: 2024/25 | H94: 2025/26
A96: O & M Charge
A97: ='O & M 2021-2025'!A$27 -> Bulk change & repairs | D97: ='O & M 2021-2025'!$B$27*D$4 -> 36.75725304 | E97: ='O & M 2021-2025'!$J$27*E$4 -> 37.63451002 | F97: ='O & M 2021-2025'!$R$27*F$4 -> 38.54733027 | G97: ='O & M 2021-2025'!$Z$27*G$4 -> 39.50819524 | H97: ='O & M 2021-2025'!$AH$27*H$4 -> 40.53559039
A98: ='O & M 2021-2025'!A$29 -> Other costs | D98: ='O & M 2021-2025'!$B$29*D$4 -> 3.698323009 | E98: ='O & M 2021-2025'!$J$29*E$4 -> 3.749573011 | F98: ='O & M 2021-2025'!$R$29*F$4 -> 3.813928607 | G98: ='O & M 2021-2025'!$Z$29*G$4 -> 3.88452679 | H98: ='O & M 2021-2025'!$AH$29*H$4 -> 3.958646207
D99: =SUM(D97:D98) -> 40.45557605 | E99: =SUM(E97:E98) -> 41.38408303 | F99: =SUM(F97:F98) -> 42.36125888 | G99: =SUM(G97:G98) -> 43.39272203 | H99: =SUM(H97:H98) -> 44.4942366
A100: Capital Charge
A101: Depreciation and Return | D101: ='Depn & WACC Post 2004'!$H$69 -> 9.526963183 | E101: ='Depn & WACC Post 2004'!$H$122 -> 9.330586359 | F101: ='Depn & WACC Post 2004'!$H$175 -> 9.125739591 | G101: ='Depn & WACC Post 2004'!$H$228 -> 8.984927602 | H101: ='Depn & WACC Post 2004'!$H$281 -> 8.899187701
A103: Poles & Brackets Charge | D103: =D$13 -> 9.600960654 | E103: =E$13 -> 9.679903357 | F103: =F$13 -> 9.773836743 | G103: =G$13 -> 9.870670333 | H103: =H$13 -> 9.990216024
A105: Total Charge | D105: =SUM(D99,D101,D103) -> 59.58349988 | E105: =SUM(E99,E101,E103) -> 60.39457275 | F105: =SUM(F99,F101,F103) -> 61.26083521 | G105: =SUM(G99,G101,G103) -> 62.24831997 | H105: =SUM(H99,H101,H103) -> 63.38364033
A110: ='DNSP Inputs General'!$A$11 -> Energy Efficient Lights
A112: ='O & M 2021-2025'!$A$32 -> Category P LED 18 Watt | D112: =D$1 -> 2021/22 | E112: =E$1 -> 2022/23 | F112: 2023/24 | G112: 2024/25 | H112: 2025/26
A114: O & M Charge
A115: ='O & M 2021-2025'!A$27 -> Bulk change & repairs | D115: ='O & M 2021-2025'!$B$33*D$4 -> 9.875245712 | E115: ='O & M 2021-2025'!$J$33*E$4 -> 10.10649072 | F115: ='O & M 2021-2025'!$R$33*F$4 -> 10.35026577 | G115: ='O & M 2021-2025'!$Z$33*G$4 -> 10.60680956 | H115: ='O & M 2021-2025'!$AH$33*H$4 -> 10.8803983
A116: ='O & M 2021-2025'!A$29 -> Other costs | D116: ='O & M 2021-2025'!$B$35*D$4 -> 3.698323009 | E116: ='O & M 2021-2025'!$J$35*E$4 -> 3.749573011 | F116: ='O & M 2021-2025'!$R$35*F$4 -> 3.813928607 | G116: ='O & M 2021-2025'!$Z$35*G$4 -> 3.88452679 | H116: ='O & M 2021-2025'!$AH$35*H$4 -> 3.958646207
D117: =SUM(D115:D116) -> 13.57356872 | E117: =SUM(E115:E116) -> 13.85606373 | F117: 14.16419438 | G117: 14.49133635 | H117: 14.83904451
A118: Capital Charge
A119: Depreciation and Return | D119: ='Depn & WACC Post 2004'!$H$73 -> 9.526963183 | E119: ='Depn & WACC Post 2004'!$H$126 -> 9.330586359 | F119: ='Depn & WACC Post 2004'!$H$179 -> 9.125739591 | G119: ='Depn & WACC Post 2004'!$H$232 -> 8.984927602 | H119: ='Depn & WACC Post 2004'!$H$285 -> 8.899187701
A121: Poles & Brackets Charge | D121: =D$13 -> 9.600960654 | E121: =E$13 -> 9.679903357 | F121: =F$13 -> 9.773836743 | G121: =G$13 -> 9.870670333 | H121: =H$13 -> 9.990216024
A123: Total Charge | D123: =SUM(D117,D119,D121) -> 32.70149256 | E123: =SUM(E117,E119,E121) -> 32.86655345 | F123: =SUM(F117,F119,F121) -> 33.06377071 | G123: =SUM(G117,G119,G121) -> 33.34693428 | H123: =SUM(H117,H119,H121) -> 33.72844823
A128: ='DNSP Inputs General'!$A$11 -> Energy Efficient Lights
A130: ='O & M 2021-2025'!$A$37 -> Category V LED L1 | D130: =D$1 -> 2021/22 | E130: =E$1 -> 2022/23 | F130: 2023/24 | G130: 2024/25 | H130: 2025/26
A132: O & M Charge
A133: Patrols and repairs | D133: ='O & M 2021-2025'!$B$38*D$4 -> 31.37041059 | E133: ='O & M 2021-2025'!$J$38*E$4 -> 32.20033938 | F133: ='O & M 2021-2025'!$R$38*F$4 -> 33.04801701 | G133: ='O & M 2021-2025'!$Z$38*G$4 -> 33.93119945 | H133: ='O & M 2021-2025'!$AH$38*H$4 -> 34.86382671
A134: ='O & M 2021-2025'!A$29 -> Other costs | D134: ='O & M 2021-2025'!$B$40*D$4 -> 3.698323009 | E134: ='O & M 2021-2025'!$J$40*E$4 -> 3.749573011 | F134: ='O & M 2021-2025'!$R$40*F$4 -> 3.813928607 | G134: ='O & M 2021-2025'!$Z$40*G$4 -> 3.88452679 | H134: ='O & M 2021-2025'!$AH$40*H$4 -> 3.958646207
D135: =SUM(D133:D134) -> 35.0687336 | E135: =SUM(E133:E134) -> 35.94991239 | F135: 36.86194562 | G135: 37.81572624 | H135: 38.82247292
A136: Capital Charge
A137: Depreciation and Return | D137: ='Depn & WACC Post 2004'!$H$75 -> 18.68214244 | E137: ='Depn & WACC Post 2004'!$H$128 -> 18.29705227 | F137: ='Depn & WACC Post 2004'!$H$181 -> 17.89535276 | G137: ='Depn & WACC Post 2004'!$H$234 -> 17.61922388 | H137: ='Depn & WACC Post 2004'!$H$287 -> 17.45109003
A139: Poles & Brackets Charge | D139: =D$13 -> 9.600960654 | E139: =E$13 -> 9.679903357 | F139: =F$13 -> 9.773836743 | G139: =G$13 -> 9.870670333 | H139: =H$13 -> 9.990216024
A141: Total Charge | D141: =SUM(D135,D137,D139) -> 63.35183669 | E141: =SUM(E135,E137,E139) -> 63.92686803 | F141: =SUM(F135,F137,F139) -> 64.53113512 | G141: =SUM(G135,G137,G139) -> 65.30562046 | H141: =SUM(H135,H137,H139) -> 66.26377897

Sheet O & M 2021-2025
A1: ='DNSP Inputs O & M'!$A$3 -> Citipower
A3: Public Lighting O & M Costs | B3: Year | C3: ='DNSP Inputs General'!$Q2 -> 2021/22 | J3: Year | K3: ='DNSP Inputs General'!$R2 -> 2022/23 | R3: Year | S3: ='DNSP Inputs General'!$S2 -> 2023/24 | Z3: Year | AA3: ='DNSP Inputs General'!$T2 -> 2024/25 | AH3: Year | AI3: ='DNSP Inputs General'!$U2 -> 2025/26
A4: ='DNSP Inputs O & M'!C5 -> Real 2021 $
A6: Summary
A8: =$A$68 -> MV80 | D8: Avoided Costs - MV 80 O & M | L8: Avoided Costs - MV 80 O & M | T8: Avoided Costs - MV 80 O & M | AB8: Avoided Costs - MV 80 O & M | AJ8: Avoided Costs - MV 80 O & M
A9: =$A$69 -> Bulk change & repairs | B9: =G89 -> 41.18333006 | D9: Materials & labour - bulk lamp change | G9: =-(G71+G80)*2 -> -25.06144395 | J9: =O89 -> 41.49900011 | L9: Materials & labour - bulk lamp change | O9: =-(O71+O80)*2 -> -25.14801526 | R9: =W89 -> 41.68269905 | T9: Materials & labour - bulk lamp change | W9: =-(W71+W80)*2 -> -25.22811708 | Z9: =AE89 -> 41.88687549 | AB9: Materials & labour - bulk lamp change | AE9: =-(AE71+AE80)*2 -> -25.32506561 | AH9: =AM89 -> 42.12800389 | AJ9: Materials & labour - bulk lamp change | AM9: =-(AM71+AM80)*2 -> -25.4518013
A10: =$A$91 -> Dedicated poles - inspection | B10: =G92*C42 -> 0.7920480444 | D10: Materials & Labour - repair of faults | G10: =-(G75+G83+G85)/2 -> -10.20797104 | J10: =O92*K42 -> 0.796277526 | L10: Materials & Labour - repair of faults | O10: =-(O75+O83+O85)/2 -> -10.31259623 | R10: =W92*S42 -> 0.8001909375 | T10: Materials & Labour - repair of faults | W10: =-(W75+W83+W85)/2 -> -10.36605035 | Z10: =AE92*AA42 -> 0.8049274034 | AB10: Materials & Labour - repair of faults | AE10: =-(AE75+AE83+AE85)/2 -> -10.42348379 | AH10: =AM92*AI42 -> 0.8111191345 | AJ10: Materials & Labour - repair of faults | AM10: =-(AM75+AM83+AM85)/2 -> -10.48825123
A11: Other costs | B11: =IF(C50=0,0,C48/C50) -> 3.625828653 | G11: =SUM(G9:G10) -> -35.26941499 | J11: =IF(K50=0,0,K48/K50) -> 3.604015822 | O11: =SUM(O9:O10) -> -35.46061149 | R11: =IF(S50=0,0,S48/S50) -> 3.59401488 | W11: =SUM(W9:W10) -> -35.59416743 | Z11: =IF(AA50=0,0,AA48/AA50) -> 3.588788543 | AE11: =SUM(AE9:AE10) -> -35.7485494 | AH11: =IF(AI50=0,0,AI48/AI50) -> 3.585575533 | AM11: =SUM(AM9:AM10) -> -35.94005253
A14: =$A$109 -> S-HP 150 | D14: Avoided Costs - S-HP 150 O & M | L14: Avoided Costs - S-HP 150 O & M | T14: Avoided Costs - S-HP 150 O & M | AB14: Avoided Costs - S-HP 150 O & M | AJ14: Avoided Costs - S-HP 150 O & M
A15: =$A$110 -> Patrols and repairs | B15: =G126 -> 78.54462456 | D15: Materials & labour - bulk lamp change | J15: =O126 -> 78.83675175 | L15: Materials & labour - bulk lamp change | R15: =W126 -> 79.16190361 | T15: Materials & labour - bulk lamp change | Z15: =AE126 -> 79.54075936 | AB15: Materials & labour - bulk lamp change | AH15: =AM126 -> 80.00539971 | AJ15: Materials & labour - bulk lamp change
A16: =$A$10 -> Dedicated poles - inspection | B16: =B10 -> 0.7920480444 | D16: Materials & Labour - repair of faults | G16: =-(G112+G119)/2 -> -27.82062021 | J16: =J10 -> 0.796277526 | L16: Materials & Labour - repair of faults | O16: =-(O112+O119)/2 -> -27.91756204 | R16: =R10 -> 0.8001909375 | T16: Materials & Labour - repair of faults | W16: =-(W112+W119)/2 -> -28.00725939 | Z16: =Z10 -> 0.8049274034 | AB16: Materials & Labour - repair of faults | AE16: =-(AE112+AE119)/2 -> -28.11582155 | AH16: =AH10 -> 0.8111191345 | AJ16: Materials & Labour - repair of faults | AM16: =-(AM112+AM119)/2 -> -28.25773911
A17: =$A$11 -> Other costs | B17: =B11 -> 3.625828653 | G17: =SUM(G15:G16) -> -27.82062021 | J17: =J11 -> 3.604015822 | O17: =SUM(O15:O16) -> -27.91756204 | R17: =R11 -> 3.59401488 | W17: =SUM(W15:W16) -> -28.00725939 | Z17: =Z11 -> 3.588788543 | AE17: =SUM(AE15:AE16) -> -28.11582155 | AH17: =AH11 -> 3.585575533 | AM17: =SUM(AM15:AM16) -> -28.25773911
A20: =$A$141 -> S-HP 250 | D20: Avoided Costs - MV 80 O & M | L20: Avoided Costs - MV 80 O & M | T20: Avoided Costs - MV 80 O & M | AB20: Avoided Costs - MV 80 O & M | AJ20: Avoided Costs - MV 80 O & M
